Workbook

Sheet RESUMO MODULO TOTAL
A1: ='RESUMO MODULO MINIMO'!A1 -> EXECUÇÃO DE SERVIÇOS DE IMPLANTAÇÃO DE PAVIMENTAÇÃO EM CONCRETO BETUMINOSO USINADO A QUENTE, EM VIAS URBANAS E RURAIS DE MUNÍCIPIOS DIVERSOS INSERIDOS NA ÁREA DE ATUAÇÃO DA CODEVASF, NO ESTADO DO CEARÁ
A5: =A1 -> EXECUÇÃO DE SERVIÇOS DE IMPLANTAÇÃO DE PAVIMENTAÇÃO EM CONCRETO BETUMINOSO USINADO A QUENTE, EM VIAS URBANAS E RURAIS DE MUNÍCIPIOS DIVERSOS INSERIDOS NA ÁREA DE ATUAÇÃO DA CODEVASF, NO ESTADO DO CEARÁ
A6: ITEM | B6: ORIGEM COMPOSIÇÃO | C6: CÓDIGO COMPOSIÇÃO | D6: DISCRIMINAÇÃO DOS SERVIÇOS | H6: BDI %: | I6: =BDI!F26 -> 0.2158381752 | J6: R$/m² | K6: =L43/I15 -> 109.1230976 | L6: PERCENTUAL DE RISCO
H7: Total de m² | I7: Encargos Sociais: | J7: Horista | K7: Mensalista | L7: 0.0114
H8: =I15 -> 574000 | J8: ='ENC. SOCIAIS'!$E$51 -> 112.76 | K8: ='ENC. SOCIAIS'!$F$51 -> 71.07
H9: UND | I9: QTDE. | J9: PREÇO UNITÁRIO COM BDI COM RISCO 0 (R$) | K9: PREÇO TOTAL COM BDI RISCO 0 (R$) | L9: PREÇO TOTAL COM CONTINGÊNCIA (R$) | V9: TOTAL
D10: MOBILIZAÇÃO | R10: Índices de reajustamento
A11: 1 | B11: Codevasf | C11: Composição Própria | D11: Implantação da Obra | H11: Módulo | I11: ='MC MODULO'!I1 -> 41 | J11: ='SERVIÇOS PRELI'!I15 -> 1324 | K11: =ROUND(I11*J11,2) -> 54284 | L11: =K11*(1+$L$7) -> 54902.8376 | P11: INCC | Q11: =SUMIF(P11:P42,"INCC",L11:L42) -> 1860896.797 | R11: =Q11/$Q$15 -> 0.02970938834 | S11: INCC | V11: 54725.57
A12: 2 | B12: Codevasf | C12: Composição Própria | D12: Administração da Obra | H12: Módulo | I12: =I11 -> 41 | J12: ='SERVIÇOS PRELI'!$I$24 -> 5861.84 | K12: =ROUND(I12*J12,2) -> 240335.44 | L12: =K12*(1+$L$7) -> 243075.264 | P12: INCC | Q12: =SUMIF(P11:P42,"T",L11:L42) -> 731484.936 | R12: =Q12/$Q$15 -> 0.01167822421 | S12: T | V12: 242290.32
A13: 3 | B13: Codevasf | C13: Composição Própria | D13: Placa de Obra em Chapa de Aço Galvanizado | H13: und | I13: =I12 -> 41 | J13: ='SERVIÇOS PRELI'!I19 -> 404.49 | K13: 16584.09 | L13: 16773.14863 | P13: INCC | Q13: =SUMIF(P11:P42,"P",L11:L42) -> 55448029.68 | R13: =Q13/$Q$15 -> 0.885232888 | S13: P | V13: 16718.98
D14: TERRAPLANAGEM | Q14: =SUMIF(P11:P42,"D",L11:L42) -> 4596246.616 | R14: =Q14/$Q$15 -> 0.0733794995 | S14: D
A15: 4 | B15: Codevasf | C15: Composição Própria | D15: serviços topográficos para pavimentação, inclusive notas de serviços, acompanhamento e greide | H15: m² | I15: ='MC MODULO'!R22 -> 574000 | J15: ='CPU CODEVASF'!H114 -> 0.47 | K15: =ROUND(I15*J15,2) -> 269780 | L15: =K15*(1+$L$7) -> 272855.492 | P15: T | Q15: =SUM(Q11:Q14) -> 62636658.02 | R15: =SUM(R11:R14) -> 1 | V15: 275520
A16: 5 | B16: SICRO | C16: 5502114 | D16: Escavação, carga e transporte de material de 1ª categoria - DMT de 1.000 a 1.200 m - caminho de serviço em leito natural - com escavadeira e caminhão basculante de 14 m³ | H16: m³ | I16: ='MC MODULO'!R27 -> 57400 | J16: =CPU_SICRO!I1145 -> 6.39 | K16: 366786 | L16: 370967.3604 | P16: T | V16: 370230
A17: 6 | B17: SICRO | C17: 4413942 | D17: Espalhamento de material em bota-fora | H17: m³ | I17: ='MC MODULO'!R34 -> 57400 | J17: =CPU_SICRO!I1177 -> 1.51 | K17: 86674 | L17: 87662.0836 | P17: T | V17: 87248
D18: PAVIMENTAÇÃO | N18: 0.2
A19: 7 | B19: SICRO | C19: 4011463 | D19: Concreto asfáltico - faixa C - areia e brita comerciais | H19: t | I19: ='MC MODULO'!R42 -> 68880 | J19: =CPU_SICRO!I34 -> 178.0880229 | K19: =ROUND(I19*J19,2) -> 12266703.02 | L19: =K19*(1+$L$7) -> 12406543.43 | M19: =I19*N18 -> 13776 | P19: P | V19: 12366496.36
A20: 8 | B20: SICRO | C20: 4011352 | D20: Imprimação com emulsão asfáltica | H20: m² | I20: ='MC MODULO'!R48 -> 574000 | J20: =CPU_SICRO!I250 -> 0.38 | K20: 218120 | L20: 220606.568 | P20: P | V20: 218120
A21: 9 | B21: SICRO | C21: 4011353 | D21: Pintura de ligação | H21: m² | I21: ='MC MODULO'!R54 -> 574000 | J21: =CPU_SICRO!I282 -> 0.26 | K21: 149240 | L21: 150941.336 | P21: P | V21: 154980
A22: 10 | B22: SICRO | C22: 4011276 | D22: Base ou sub-base de brita graduada com brita comercial | H22: m³ | I22: ='MC MODULO'!R59 -> 86100 | J22: =CPU_SICRO!I318 -> 180.05 | K22: 15502305 | L22: 15679031.28 | M22: =I22*N18 -> 17220 | P22: P | R22: =164*L22 -> 2571361129 | V22: 15628872
A23: 11 | B23: SICRO | C23: 4011228 | D23: Sub-base estabilizada granulometricamente com mistura de solos na pista com material de jazida | H23: m³ | I23: ='MC MODULO'!R65 -> 86100 | J23: =CPU_SICRO!I425 -> 23.48 | K23: 2021628 | L23: 2044674.559 | P23: P | V23: 2037987
A24: 12 | B24: SICRO | C24: 4011209 | D24: Regularização do subleito | H24: m² | I24: ='MC MODULO'!R71 -> 574000 | J24: =CPU_SICRO!I515 -> 0.96 | K24: 551040 | L24: 557321.856 | P24: P | V24: 556780
D25: AQUISIÇÃO E TRASNPORTE DO MATERIAL BETUMINOSO
A26: 13 | B26: CODEVASF | C26: CPU-13 | D26: AQUISIÇÃO DE CIMENTO ASFALTICO CAP 50/70 | H26: t | I26: =' CONSUMO DE MAT. B TOTAL'!P18 -> 3788.4 | J26: ='CPU CODEVASF'!H85 -> 4828.55 | K26: =ROUND(I26*J26,2) -> 18292478.82 | L26: =K26*(1+$L$7) -> 18501013.08 | P26: P | V26: 18372073.1
A27: 14 | B27: CODEVASF | C27: CPU-17 | D27: TRANSPORTE CAP 50/70 | H27: t | I27: =' CONSUMO DE MAT. B TOTAL'!P18 -> 3788.4 | J27: ='CPU CODEVASF'!H122 -> 62.43 | K27: 236509.81 | L27: 239206.0218 | P27: P | V27: 237532.68
A28: 15 | B28: CODEVASF | C28: CPU-14 | D28: AQUISIÇÃO DE EMULSÃO ASFÁLTICA PARA IMPRIMAÇÃO | H28: t | I28: =' CONSUMO DE MAT. B TOTAL'!P14 -> 918.4 | J28: ='CPU CODEVASF'!H93 -> 3592.41 | K28: 3299269.34 | L28: 3336881.01 | P28: P | V28: 3313623.94
A29: 16 | B29: CODEVASF | C29: CPU-18 | D29: TRANSPORTE EMULSÃO ASFÁLTICA PARA IMPRIMAÇÃO | H29: t | I29: =' CONSUMO DE MAT. B TOTAL'!P14 -> 918.4 | J29: ='CPU CODEVASF'!H130 -> 1293.06 | K29: 1187546.3 | L29: 1201084.328 | P29: P | V29: 1192707.71
A30: 17 | B30: CODEVASF | C30: CPU-15 | D30: AQUISIÇÃO DE EMULSÃO ASFÁLTICA RR-1C | H30: t | I30: =' CONSUMO DE MAT. B TOTAL'!P16 -> 229.6 | J30: ='CPU CODEVASF'!H101 -> 3497.4 | K30: 803003.04 | L30: 812157.2747 | P30: P | V30: 806497.55
A31: 18 | B31: CODEVASF | C31: CPU-19 | D31: TRANSPORTE RR-1C | H31: t | I31: =' CONSUMO DE MAT. B TOTAL'!P16 -> 229.6 | J31: ='CPU CODEVASF'!H138 -> 1285.73 | K31: 295203.61 | L31: 298568.9312 | P31: P | V31: 296487.07
D32: SINALIZAÇÃO
A33: 19 | B33: SICRO | C33: 5213440 | D33: Fornecimento e implantação de placa de regulamentação em aço D = 0,60 m - película retrorrefletiva tipo I + SI | H33: und | I33: ='MC MODULO'!R78 -> 41 | J33: =CPU_SICRO!$I$643 -> 201.97 | K33: =ROUND(I33*J33,2) -> 8280.77 | L33: =K33*(1+$L$7) -> 8375.170778 | P33: INCC | V33: 8348.01
A34: 20 | B34: SICRO | C34: 5213863 | D34: Suporte metálico galvanizado para placa de advertência ou regulamentação - lado ou diâmetro de 0,60 m - fornecimento e implantação | H34: und | I34: ='MC MODULO'!R84 -> 41 | J34: =CPU_SICRO!$I$870 -> 318 | K34: 13038 | L34: 13186.6332 | P34: INCC | V34: 13144.19
D35: DRENAGEM | N35: 0.1
A36: 21 | B36: SICRO | C36: 2003373 | D36: Meio fio de concreto - MFC 03 - areia e brita comerciais - fôrma de madeira | H36: m | I36: ='MC MODULO'!R91 -> 164000 | J36: =CPU_SICRO!I1111 -> 27.71 | K36: =ROUND(I36*J36,2) -> 4544440 | L36: =K36*(1+$L$7) -> 4596246.616 | M36: =I36*N35 -> 16400 | P36: D | V36: 4580520
D37: LIMPEZA GERAL
A38: 22 | B38: Codevasf | C38: Composição Própria | D38: Limpeza Geral | H38: m² | I38: ='MC MODULO'!R99 -> 574000 | J38: ='CPU CODEVASF'!$H$66 -> 1 | K38: =ROUND(I38*J38,2) -> 574000 | L38: =K38*(1+$L$7) -> 580543.6 | P38: INCC | V38: 579740
D39: SERVIÇOS COMPLEMENTARES
A40: 23 | B40: Codevasf | C40: Composição Própria | D40: Conserto de quebra no ramal na rua sem pavimento com fornecimento de material hidráulico | H40: m | I40: ='MC MODULO'!R106 -> 8200 | J40: ='CPU CODEVASF'!H77 -> 16.73 | K40: =ROUND(I40*J40,2) -> 137186 | L40: =K40*(1+$L$7) -> 138749.9204 | P40: INCC | V40: 138334
D41: PROJETO EXECUTIVO
A42: 24 | B42: Codevasf | C42: Composição Própria | D42: Projeto Executivo | H42: km | I42: ='MC MODULO'!R113 -> 82 | J42: ='Projeto Executivo'!G32 -> 9709.919385 | K42: =ROUND(I42*J42,2) -> 796213.39 | L42: =K42*(1+$L$7) -> 805290.2226 | P42: INCC | V42: 803293.91
A43: VALOR TOTAL DO SRP | K43: =SUM(K11:K42) -> 61930648.63 | L43: =SUM(L11:L42) -> 62636658.02 | V43: =SUM(V11:V42) -> 62352270.39
J44: =SUM(J11:J42) -> 32816.82741

Sheet CONSUMO DE MAT. B TOTAL
B5: TRECHO | D5: QUANTIDADES | M5: MAT. BETUMINOSO
B6: Inicio (km) | C6: Fim (km) | D6: Extensão (m) | E6: Largura (m) | F6: Espess. (m) | G6: Área (m2) | H6: Volume (m3) | I6: Densidade (t/m3) | J6: Massa (t) | K6: Unid | L6: Quant. | M6: Tipo | N6: Consumo Taxa de Aplicação | O6: Unid. | P6: Quant.
B7: REGULARIZAÇÃO DE SUBLEITO
F8: 1 | H8: =G8*F8 -> 0
B9: SUB-BASE
F10: 0.15 | G10: =G8 -> 0 | H10: =G10*F10 -> 0
B11: BASE DE BRITA GRADUADA
F12: 0.15 | G12: =G8 -> 0 | H12: =G12*F12 -> 0
B13: IMPRIMAÇÃO
F14: 1 | G14: ='MC MODULO'!R48 -> 574000 | H14: =G14*F14 -> 574000 | M14: EAI | N14: 1,6 l/m2 | O14: t | P14: =ROUND((G14*1.6)/1000,2) -> 918.4
B15: PINTURA DE LIGAÇÃO
F16: 1 | G16: ='MC MODULO'!R54 -> 574000 | H16: =G16*F16 -> 574000 | M16: RR-1C | N16: 0,4 l/m2 | O16: t | P16: =ROUND((G16*0.4)/1000,2) -> 229.6
B17: CBUQ FAIXA "C"
H18: =G18*F18 -> 0 | J18: ='MC MODULO'!R42 -> 68880 | M18: CAP-50/70 | N18: 55 t/m3 | O18: t | P18: =ROUND((J18*55)/1000,2) -> 3788.4
B19: CBUQ FAIXA "B"
H20: =G20*F20 -> 0 | M20: CAP-50/70 | N20: 55 t/m3 | O20: t | P20: =ROUND((J20*55)/1000,2) -> 0
B21: FRESAGEM CONTINUA
H22: =G22*F22 -> 0

Sheet CRONOGRAMA TOTAL
A2: ='RESUMO MODULO MINIMO'!$A$5 -> EXECUÇÃO DE SERVIÇOS DE IMPLANTAÇÃO DE PAVIMENTAÇÃO EM CONCRETO BETUMINOSO USINADO A QUENTE, EM VIAS URBANAS E RURAIS DE MUNÍCIPIOS DIVERSOS INSERIDOS NA ÁREA DE ATUAÇÃO DA CODEVASF, NO ESTADO DO CEARÁ
A3: Cronograma Físico e Financeiro
A4: Item | B4: Descrição | C4: Total Por Etapa | D4: 30 DIAS | E4: 60 DIAS | F4: 90 DIAS | G4: 120 DIAS | H4: 150 DIAS | I4: 180 DIAS | J4: 210 DIAS | K4: 240 DIAS | L4: 270 DIAS | M4: 300 DIAS | N4: 330 DIAS | O4: 360 DIAS
B5: ='RESUMO MODULO MINIMO'!$D$10 -> MOBILIZAÇÃO | C5: 1 | E5: =$C$5/11 -> 0.09090909091 | F5: =$C$5/11 -> 0.09090909091 | G5: 0.09090909091 | H5: 0.09090909091 | I5: 0.09090909091 | J5: 0.09090909091 | K5: 0.09090909091 | L5: 0.09090909091 | M5: 0.09090909091 | N5: 0.09090909091 | O5: 0.09090909091 | Q5: =SUM(D5:O5) -> 1
C6: =SUM('RESUMO MODULO TOTAL'!L11:L13) -> 314751.2502 | E6: =$C$6*E5 -> 28613.75002 | F6: 28613.75002 | G6: 28613.75002 | H6: 28613.75002 | I6: 28613.75002 | J6: 28613.75002 | K6: 28613.75002 | L6: 28613.75002 | M6: 28613.75002 | N6: 28613.75002 | O6: 28613.75002 | Q6: =SUM(D6:O6) -> 314751.2502 | R6: =C6 -> 314751.2502 | S6: =Q6-R6 -> 0
B7: ='RESUMO MODULO MINIMO'!D14 -> TERRAPLANAGEM | C7: 1 | F7: =$C$9/10 -> 0.1 | G7: =$C$9/10 -> 0.1 | H7: 0.1 | I7: 0.1 | J7: 0.1 | K7: 0.1 | L7: 0.1 | M7: 0.1 | N7: 0.1 | O7: 0.1 | Q7: =SUM(F7:O7) -> 1
C8: =SUM('RESUMO MODULO TOTAL'!L15:L17) -> 731484.936 | F8: =$C$8*F7 -> 73148.4936 | G8: =$C$8*G7 -> 73148.4936 | H8: 73148.4936 | I8: 73148.4936 | J8: 73148.4936 | K8: 73148.4936 | L8: 73148.4936 | M8: 73148.4936 | N8: 73148.4936 | O8: 73148.4936 | Q8: 731484.936 | R8: =C8 -> 731484.936 | S8: =Q8-R8 -> 0
B9: ='RESUMO MODULO MINIMO'!$D$18 -> PAVIMENTAÇÃO | C9: 1 | F9: =$C$9/10 -> 0.1 | G9: 0.1 | H9: 0.1 | I9: 0.1 | J9: 0.1 | K9: 0.1 | L9: 0.1 | M9: 0.1 | N9: 0.1 | O9: 0.1 | Q9: 1
C10: =SUM('RESUMO MODULO TOTAL'!L19:L30) -> 55149460.74 | F10: =$C$10*F9 -> 5514946.074 | G10: =$C$10*G9 -> 5514946.074 | H10: 5514946.074 | I10: 5514946.074 | J10: 5514946.074 | K10: 5514946.074 | L10: 5514946.074 | M10: 5514946.074 | N10: 5514946.074 | O10: 5514946.074 | Q10: 55149460.74 | R10: =C10 -> 55149460.74 | S10: =Q10-R10 -> 0
B11: ='RESUMO MODULO MINIMO'!$D$32 -> SINALIZAÇÃO | C11: 1 | F11: =$C$11/10 -> 0.1 | G11: =(100%-$F$11)/9 -> 0.1 | H11: =(100%-$F$11)/9 -> 0.1 | I11: 0.1 | J11: 0.1 | K11: 0.1 | L11: 0.1 | M11: 0.1 | N11: 0.1 | O11: 0.1 | Q11: 1
C12: =SUM('RESUMO MODULO TOTAL'!L33:L34) -> 21561.80398 | F12: =$C$12*F11 -> 2156.180398 | G12: 2156.180398 | H12: 2156.180398 | I12: 2156.180398 | J12: 2156.180398 | K12: 2156.180398 | L12: 2156.180398 | M12: 2156.180398 | N12: 2156.180398 | O12: 2156.180398 | Q12: 21561.80398 | R12: =C12 -> 21561.80398 | S12: 0
B13: ='RESUMO MODULO MINIMO'!$D$35 -> DRENAGEM | C13: 1 | F13: =$C$13/10 -> 0.1 | G13: =$C$13/10 -> 0.1 | H13: 0.1 | I13: 0.1 | J13: 0.1 | K13: 0.1 | L13: 0.1 | M13: 0.1 | N13: 0.1 | O13: 0.1 | Q13: =SUM(D13:O13) -> 1
C14: =SUM('RESUMO MODULO TOTAL'!L36) -> 4596246.616 | F14: =$C$14*F13 -> 459624.6616 | G14: =$C$14*G13 -> 459624.6616 | H14: 459624.6616 | I14: 459624.6616 | J14: 459624.6616 | K14: 459624.6616 | L14: 459624.6616 | M14: 459624.6616 | N14: 459624.6616 | O14: 459624.6616 | Q14: 4596246.616 | R14: =C14 -> 4596246.616 | S14: 0
B15: ='RESUMO MODULO MINIMO'!$D$37 -> LIMPEZA GERAL | C15: 1 | F15: =100%/10 -> 0.1 | G15: =100%/10 -> 0.1 | H15: 0.1 | I15: 0.1 | J15: 0.1 | K15: 0.1 | L15: 0.1 | M15: 0.1 | N15: 0.1 | O15: 0.1 | Q15: =SUM(D15:O15) -> 1
C16: ='RESUMO MODULO TOTAL'!L38 -> 580543.6 | F16: =$C$16*F15 -> 58054.36 | G16: 58054.36 | H16: 58054.36 | I16: 58054.36 | J16: 58054.36 | K16: 58054.36 | L16: 58054.36 | M16: 58054.36 | N16: 58054.36 | O16: 58054.36 | Q16: 580543.6 | R16: =C16 -> 580543.6 | S16: =Q16-R16 -> 0
B17: ='RESUMO MODULO MINIMO'!D39 -> SERVIÇOS COMPLEMENTARES | C17: 1 | F17: =100%/10 -> 0.1 | G17: 0.1 | H17: 0.1 | I17: 0.1 | J17: 0.1 | K17: 0.1 | L17: 0.1 | M17: 0.1 | N17: 0.1 | O17: 0.1 | Q17: 1
C18: ='RESUMO MODULO TOTAL'!L40 -> 138749.9204 | F18: =$C$18*F17 -> 13874.99204 | G18: =$C$18*G17 -> 13874.99204 | H18: 13874.99204 | I18: 13874.99204 | J18: 13874.99204 | K18: 13874.99204 | L18: 13874.99204 | M18: 13874.99204 | N18: 13874.99204 | O18: 13874.99204 | Q18: 138749.9204 | R18: =C18 -> 138749.9204 | S18: =Q18-R18 -> 0
B19: ='RESUMO MODULO MINIMO'!$D$41 -> PROJETO EXECUTIVO | C19: 1 | D19: 0.5 | E19: 0.5 | Q19: 1
C20: ='RESUMO MODULO TOTAL'!L42 -> 805290.2226 | D20: =$C$20*D19 -> 402645.1113 | E20: =$C$20*E19 -> 402645.1113 | Q20: 805290.2226 | R20: =C20 -> 805290.2226 | S20: =Q20-R20 -> 0
A22: Porcentagem | D22: =SUM(D6+D8+D10+D12+D14+D16+D18+D20)/$O$27 -> 0.006428266195 | E22: =SUM(E6+E8+E10+E12+E14+E16+E18+E20)/$O$27 -> 0.006885087343 | F22: 0.0981919966 | G22: 0.0981919966 | H22: 0.0981919966 | I22: 0.0981919966 | J22: 0.0981919966 | K22: 0.0981919966 | L22: 0.0981919966 | M22: 0.0981919966 | N22: 0.0981919966 | O22: 0.0981919966
A23: Custo | D23: =$O$27*D22 -> 402645.1113 | E23: =$O$27*E22 -> 431258.8613 | F23: =$O$27*F22 -> 6150418.512 | G23: 6150418.512 | H23: 6150418.512 | I23: 6150418.512 | J23: 6150418.512 | K23: 6150418.512 | L23: 6150418.512 | M23: 6150418.512 | N23: 6150418.512 | O23: 6150418.512
A24: Porcentagem Acumulado | D24: =D22 -> 0.006428266195 | E24: =D24+E22 -> 0.01331335354 | F24: =E24+F22 -> 0.1115053501 | G24: 0.2096973467 | H24: 0.3078893434 | I24: 0.40608134 | J24: 0.5042733366 | K24: 0.6024653332 | L24: 0.7006573298 | M24: 0.7988493264 | N24: 0.897041323 | O24: 0.9952333196
A25: Custo Acumulado | D25: =D23 -> 402645.1113 | E25: =D25+E23 -> 833903.9727 | F25: 6984322.485 | G25: 13134741 | H25: 19285159.51 | I25: 25435578.02 | J25: 31585996.53 | K25: 37736415.05 | L25: 43886833.56 | M25: 50037252.07 | N25: 56187670.58 | O25: 62338089.09
D27: Total Geral | N27: R$ | O27: ='RESUMO MODULO TOTAL'!L43 -> 62636658.02

Sheet RESUMO MODULO MINIMO
A1: EXECUÇÃO DE SERVIÇOS DE IMPLANTAÇÃO DE PAVIMENTAÇÃO EM CONCRETO BETUMINOSO USINADO A QUENTE, EM VIAS URBANAS E RURAIS DE MUNÍCIPIOS DIVERSOS INSERIDOS NA ÁREA DE ATUAÇÃO DA CODEVASF, NO ESTADO DO CEARÁ | J1: Extensão (km)
A5: =A1 -> EXECUÇÃO DE SERVIÇOS DE IMPLANTAÇÃO DE PAVIMENTAÇÃO EM CONCRETO BETUMINOSO USINADO A QUENTE, EM VIAS URBANAS E RURAIS DE MUNÍCIPIOS DIVERSOS INSERIDOS NA ÁREA DE ATUAÇÃO DA CODEVASF, NO ESTADO DO CEARÁ
A6: ITEM | B6: ORIGEM COMPOSIÇÃO | C6: CÓDIGO COMPOSIÇÃO | D6: DISCRIMINAÇÃO DOS SERVIÇOS | H6: BDI %: | I6: =BDI!F26 -> 0.2158381752 | J6: R$/m² | K6: =L43/I15 -> 109.1230972 | L6: PERCENTUAL DE RISCO
H7: Total de m² | I7: Encargos Sociais: | J7: Horista | K7: Mensalista | L7: 0.0114
H8: =I15 -> 14000 | J8: ='ENC. SOCIAIS'!$E$51 -> 112.76 | K8: ='ENC. SOCIAIS'!$F$51 -> 71.07
H9: UND | I9: QTDE. | J9: PREÇO UNITÁRIO COM BDI COM RISCO 0 (R$) | K9: PREÇO TOTAL COM BDI RISCO 0 (R$) | L9: PREÇO TOTAL COM CONTINGÊNCIA (R$)
D10: MOBILIZAÇÃO
A11: 1 | B11: Codevasf | C11: Composição Própria | D11: Implantação da Obra | H11: ='[11]RESUMO MODULO TOTAL'!I11 -> Módulo | I11: 1 | J11: ='SERVIÇOS PRELI'!I15 -> 1324 | K11: =ROUND(I11*J11,2) -> 1324 | L11: =K11*(1+$L$7) -> 1339.0936
A12: 2 | B12: Codevasf | C12: Composição Própria | D12: Administração da Obra | H12: ='[11]RESUMO MODULO TOTAL'!I12 -> Módulo | I12: 1 | J12: ='SERVIÇOS PRELI'!$I$24 -> 5861.84 | K12: =ROUND(I12*J12,2) -> 5861.84 | L12: =K12*(1+$L$7) -> 5928.664976
A13: 3 | B13: Codevasf | C13: Composição Própria | D13: Placa de Obra em Chapa de Aço Galvanizado | H13: und | I13: 1 | J13: ='SERVIÇOS PRELI'!I19 -> 404.49 | K13: 404.49 | L13: 409.101186
D14: TERRAPLANAGEM
A15: 4 | B15: Codevasf | C15: Composição Própria | D15: serviços topográficos para pavimentação, inclusive notas de serviços, acompanhamento e greide | H15: m² | I15: ='MC MODULO'!H22 -> 14000 | J15: ='CPU CODEVASF'!H114 -> 0.47 | K15: =ROUND(I15*J15,2) -> 6580 | L15: =K15*(1+$L$7) -> 6655.012
A16: 5 | B16: SICRO | C16: 5502114 | D16: Escavação, carga e transporte de material de 1ª categoria - DMT de 1.000 a 1.200 m - caminho de serviço em leito natural - com escavadeira e caminhão basculante de 14 m³ | H16: m³ | I16: ='MC MODULO'!$H$27 -> 1400 | J16: =CPU_SICRO!I1145 -> 6.39 | K16: 8946 | L16: 9047.9844
A17: 6 | B17: SICRO | C17: 4413942 | D17: Espalhamento de material em bota-fora | H17: m³ | I17: ='MC MODULO'!$H$34 -> 1400 | J17: =CPU_SICRO!I1177 -> 1.51 | K17: 2114 | L17: 2138.0996
D18: PAVIMENTAÇÃO
A19: 7 | B19: SICRO | C19: 4011463 | D19: Concreto asfáltico - faixa C - areia e brita comerciais | H19: t | I19: ='MC MODULO'!H42 -> 1680 | J19: =CPU_SICRO!I34 -> 178.0880229 | K19: =ROUND(I19*J19,2) -> 299187.88 | L19: =K19*(1+$L$7) -> 302598.6218
A20: 8 | B20: SICRO | C20: 4011352 | D20: Imprimação com emulsão asfáltica | H20: m² | I20: ='MC MODULO'!H48 -> 14000 | J20: =CPU_SICRO!I250 -> 0.38 | K20: 5320 | L20: 5380.648
A21: 9 | B21: SICRO | C21: 4011353 | D21: Pintura de ligação | H21: m² | I21: ='MC MODULO'!H54 -> 14000 | J21: =CPU_SICRO!I282 -> 0.26 | K21: 3640 | L21: 3681.496
A22: 10 | B22: SICRO | C22: 4011276 | D22: Base ou sub-base de brita graduada com brita comercial | H22: m³ | I22: ='MC MODULO'!H59 -> 2100 | J22: =CPU_SICRO!I318 -> 180.05 | K22: 378105 | L22: 382415.397
A23: 11 | B23: SICRO | C23: 4011228 | D23: Sub-base estabilizada granulometricamente com mistura de solos na pista com material de jazida | H23: m³ | I23: ='MC MODULO'!H65 -> 2100 | J23: =CPU_SICRO!I425 -> 23.48 | K23: 49308 | L23: 49870.1112
A24: 12 | B24: SICRO | C24: 4011209 | D24: Regularização do subleito | H24: m² | I24: ='MC MODULO'!H71 -> 14000 | J24: =CPU_SICRO!I515 -> 0.96 | K24: 13440 | L24: 13593.216
D25: AQUISIÇÃO E TRASNPORTE DO MATERIAL BETUMINOSO
A26: 13 | B26: CODEVASF | C26: CPU-13 | D26: AQUISIÇÃO DE CIMENTO ASFALTICO CAP 50/70 | H26: t | I26: ='CONSUMO DE MAT. BET.MINIMO'!P18 -> 92.4 | J26: ='CPU CODEVASF'!H85 -> 4828.55 | K26: =ROUND(I26*J26,2) -> 446158.02 | L26: =K26*(1+$L$7) -> 451244.2214
A27: 14 | B27: CODEVASF | C27: CPU-17 | D27: TRANSPORTE DE CIMENTO ASFALTICO CAP 50/70 | H27: t | I27: =I26 -> 92.4 | J27: ='CPU CODEVASF'!H122 -> 62.43 | K27: =ROUND(I27*J27,2) -> 5768.53 | L27: 5834.291242
A28: 15 | B28: CODEVASF | C28: CPU-14 | D28: AQUISIÇÃO DE EMULSÃO ASFÁLTICA PARA IMPRIMAÇÃO | H28: t | I28: ='CONSUMO DE MAT. BET.MINIMO'!P14 -> 22.4 | J28: ='CPU CODEVASF'!H93 -> 3592.41 | K28: 80469.98 | L28: 81387.33777
A29: 16 | B29: CODEVASF | C29: CPU-18 | D29: TRANSPORTE DE EMULSÃO ASFÁLTICA PARA IMPRIMAÇÃO | H29: t | I29: =I28 -> 22.4 | J29: ='CPU CODEVASF'!H130 -> 1293.06 | K29: 28964.54 | L29: 29294.73576
A30: 17 | B30: CODEVASF | C30: CPU-15 | D30: AQUISIÇÃO DE EMULSÃO ASFÁLTICA RR-1C | H30: t | I30: ='CONSUMO DE MAT. BET.MINIMO'!P16 -> 5.6 | J30: ='CPU CODEVASF'!H101 -> 3497.4 | K30: 19585.44 | L30: 19808.71402
A31: 18 | B31: CODEVASF | C31: CPU-19 | D31: TRANSPORTE DE EMULSÃO ASFÁLTICA RR-1C | H31: t | I31: =I30 -> 5.6 | J31: ='CPU CODEVASF'!H138 -> 1285.73 | K31: 7200.09 | L31: 7282.171026
D32: SINALIZAÇÃO
A33: 19 | B33: SICRO | C33: 5213440 | D33: Fornecimento e implantação de placa de regulamentação em aço D = 0,60 m - película retrorrefletiva tipo I + SI | H33: und | I33: ='MC MODULO'!$H$78 -> 1 | J33: =CPU_SICRO!$I$643 -> 201.97 | K33: =ROUND(I33*J33,2) -> 201.97 | L33: =K33*(1+$L$7) -> 204.272458
A34: 20 | B34: SICRO | C34: 5213863 | D34: Suporte metálico galvanizado para placa de advertência ou regulamentação - lado ou diâmetro de 0,60 m - fornecimento e implantação | H34: und | I34: ='MC MODULO'!$H$84 -> 1 | J34: =CPU_SICRO!$I$870 -> 318 | K34: 318 | L34: 321.6252
D35: DRENAGEM
A36: 21 | B36: SICRO | C36: 2003373 | D36: Meio fio de concreto - MFC 03 - areia e brita comerciais - fôrma de madeira | H36: m | I36: ='MC MODULO'!$H$91 -> 4000 | J36: =CPU_SICRO!I1111 -> 27.71 | K36: =ROUND(I36*J36,2) -> 110840 | L36: =K36*(1+$L$7) -> 112103.576
D37: LIMPEZA GERAL
A38: 22 | B38: Codevasf | C38: Composição Própria | D38: Limpeza Geral | H38: m² | I38: ='MC MODULO'!$H$99 -> 14000 | J38: ='CPU CODEVASF'!$H$66 -> 1 | K38: =ROUND(I38*J38,2) -> 14000 | L38: =K38*(1+$L$7) -> 14159.6
D39: SERVIÇOS COMPLEMENTARES
A40: 23 | B40: Codevasf | C40: Composição Própria | D40: Conserto de quebra no ramal na rua sem pavimento com fornecimento de material hidráulico | H40: m | I40: ='MC MODULO'!H106 -> 200 | J40: ='CPU CODEVASF'!H77 -> 16.73 | K40: =ROUND(I40*J40,2) -> 3346 | L40: =K40*(1+$L$7) -> 3384.1444
D41: PROJETO EXECUTIVO
A42: 24 | B42: Codevasf | C42: Composição Própria | D42: Projeto Executivo | H42: km | I42: ='MC MODULO'!$H$113 -> 2 | J42: ='Projeto Executivo'!G32 -> 9709.919385 | K42: =ROUND(I42*J42,2) -> 19419.84 | L42: =K42*(1+$L$7) -> 19641.22618
A43: VALOR TOTAL DO SRP | K43: =SUM(K11:K42) -> 1510503.62 | L43: =SUM(L11:L42) -> 1527723.361 | M43: =L43*'RESUMO MODULO TOTAL'!I11 -> 62636657.81
J44: =SUM(J11:J42) -> 32816.82741 | M44: ='RESUMO MODULO TOTAL'!L43 -> 62636658.02
J45: ='RESUMO MODULO TOTAL'!J44 -> 32816.82741

Sheet CONSUMO DE MAT. BET.MINIMO
B5: TRECHO | D5: QUANTIDADES | M5: MAT. BETUMINOSO
B6: Inicio (km) | C6: Fim (km) | D6: Extensão (m) | E6: Largura (m) | F6: Espess. (m) | G6: Área (m2) | H6: Volume (m3) | I6: Densidade (t/m3) | J6: Massa (t) | K6: Unid | L6: Quant. | M6: Tipo | N6: Consumo Taxa de Aplicação | O6: Unid. | P6: Quant.
B7: REGULARIZAÇÃO DE SUBLEITO
F8: 1 | H8: =G8*F8 -> 0
B9: SUB-BASE
F10: 0.15 | G10: =G8 -> 0 | H10: =G10*F10 -> 0
B11: BASE DE BRITA GRADUADA
F12: 0.15 | G12: =G8 -> 0 | H12: =G12*F12 -> 0
B13: IMPRIMAÇÃO
F14: 1 | G14: ='MC MODULO'!H48 -> 14000 | H14: =G14*F14 -> 14000 | M14: EAI | N14: 1,6 l/m2 | O14: t | P14: =ROUND((G14*1.6)/1000,2) -> 22.4
B15: PINTURA DE LIGAÇÃO
F16: 1 | G16: ='MC MODULO'!H54 -> 14000 | H16: =G16*F16 -> 14000 | M16: RR-1C | N16: 0,4 l/m2 | O16: t | P16: =ROUND((G16*0.4)/1000,2) -> 5.6
B17: CBUQ FAIXA "C"
H18: =G18*F18 -> 0 | J18: ='MC MODULO'!H42 -> 1680 | M18: CAP-50/70 | N18: 55 t/m3 | O18: t | P18: =ROUND((J18*55)/1000,2) -> 92.4
B19: CBUQ FAIXA "B"
H20: =G20*F20 -> 0 | M20: CAP-50/70 | N20: 55 t/m3 | O20: t | P20: =ROUND((J20*55)/1000,2) -> 0
B21: FRESAGEM CONTINUA
H22: =G22*F22 -> 0

Sheet CRONOGRAMA MINIMO
A2: ='RESUMO MODULO MINIMO'!$A$5 -> EXECUÇÃO DE SERVIÇOS DE IMPLANTAÇÃO DE PAVIMENTAÇÃO EM CONCRETO BETUMINOSO USINADO A QUENTE, EM VIAS URBANAS E RURAIS DE MUNÍCIPIOS DIVERSOS INSERIDOS NA ÁREA DE ATUAÇÃO DA CODEVASF, NO ESTADO DO CEARÁ
A3: Cronograma Físico e Financeiro
A4: Item | B4: Descrição | C4: Total Por Etapa | D4: 30 DIAS | E4: 60 DIAS | F4: 90 DIAS | G4: 120 DIAS | H4: 150 DIAS | I4: 180 DIAS | J4: 210 DIAS | K4: 240 DIAS | L4: 270 DIAS | M4: 300 DIAS | N4: 330 DIAS | O4: 360 DIAS
B5: ='RESUMO MODULO MINIMO'!$D$10 -> MOBILIZAÇÃO | C5: 1 | E5: =$C$5/11 -> 0.09090909091 | F5: =$C$5/11 -> 0.09090909091 | G5: 0.09090909091 | H5: 0.09090909091 | I5: 0.09090909091 | J5: 0.09090909091 | K5: 0.09090909091 | L5: 0.09090909091 | M5: 0.09090909091 | N5: 0.09090909091 | O5: 0.09090909091 | Q5: =SUM(D5:O5) -> 1
C6: =SUM('RESUMO MODULO MINIMO'!L11:L13) -> 7676.859762 | E6: =$C$6*E5 -> 697.896342 | F6: 697.896342 | G6: 697.896342 | H6: 697.896342 | I6: 697.896342 | J6: 697.896342 | K6: 697.896342 | L6: 697.896342 | M6: 697.896342 | N6: 697.896342 | O6: 697.896342 | Q6: =SUM(D6:O6) -> 7676.859762 | R6: =C6 -> 7676.859762 | S6: =Q6-R6 -> 0
B7: ='RESUMO MODULO MINIMO'!D14 -> TERRAPLANAGEM | C7: 1 | F7: =$C$9/10 -> 0.1 | G7: =$C$9/10 -> 0.1 | H7: 0.1 | I7: 0.1 | J7: 0.1 | K7: 0.1 | L7: 0.1 | M7: 0.1 | N7: 0.1 | O7: 0.1 | Q7: =SUM(F7:O7) -> 1
C8: =SUM('RESUMO MODULO MINIMO'!L15:L17) -> 17841.096 | F8: =$C$8*F7 -> 1784.1096 | G8: =$C$8*G7 -> 1784.1096 | H8: 1784.1096 | I8: 1784.1096 | J8: 1784.1096 | K8: 1784.1096 | L8: 1784.1096 | M8: 1784.1096 | N8: 1784.1096 | O8: 1784.1096 | Q8: 17841.096 | R8: =C8 -> 17841.096 | S8: =Q8-R8 -> 0
B9: ='RESUMO MODULO MINIMO'!$D$18 -> PAVIMENTAÇÃO | C9: 1 | F9: =$C$9/10 -> 0.1 | G9: 0.1 | H9: 0.1 | I9: 0.1 | J9: 0.1 | K9: 0.1 | L9: 0.1 | M9: 0.1 | N9: 0.1 | O9: 0.1 | Q9: 1
C10: =SUM('RESUMO MODULO MINIMO'!L19:L30) -> 1345108.79 | F10: =$C$10*F9 -> 134510.879 | G10: =$C$10*G9 -> 134510.879 | H10: 134510.879 | I10: 134510.879 | J10: 134510.879 | K10: 134510.879 | L10: 134510.879 | M10: 134510.879 | N10: 134510.879 | O10: 134510.879 | Q10: 1345108.79 | R10: =C10 -> 1345108.79 | S10: =Q10-R10 -> 0
B11: ='RESUMO MODULO MINIMO'!$D$32 -> SINALIZAÇÃO | C11: 1 | F11: =$C$11/10 -> 0.1 | G11: =(100%-$F$11)/9 -> 0.1 | H11: =(100%-$F$11)/9 -> 0.1 | I11: 0.1 | J11: 0.1 | K11: 0.1 | L11: 0.1 | M11: 0.1 | N11: 0.1 | O11: 0.1 | Q11: 1
C12: =SUM('RESUMO MODULO MINIMO'!L33:L34) -> 525.897658 | F12: =$C$12*F11 -> 52.5897658 | G12: 52.5897658 | H12: 52.5897658 | I12: 52.5897658 | J12: 52.5897658 | K12: 52.5897658 | L12: 52.5897658 | M12: 52.5897658 | N12: 52.5897658 | O12: 52.5897658 | Q12: 525.897658 | R12: =C12 -> 525.897658 | S12: 0
B13: ='RESUMO MODULO MINIMO'!$D$35 -> DRENAGEM | C13: 1 | F13: =$C$13/10 -> 0.1 | G13: =$C$13/10 -> 0.1 | H13: 0.1 | I13: 0.1 | J13: 0.1 | K13: 0.1 | L13: 0.1 | M13: 0.1 | N13: 0.1 | O13: 0.1 | Q13: =SUM(D13:O13) -> 1
C14: =SUM('RESUMO MODULO MINIMO'!L36) -> 112103.576 | F14: =$C$14*F13 -> 11210.3576 | G14: =$C$14*G13 -> 11210.3576 | H14: 11210.3576 | I14: 11210.3576 | J14: 11210.3576 | K14: 11210.3576 | L14: 11210.3576 | M14: 11210.3576 | N14: 11210.3576 | O14: 11210.3576 | Q14: 112103.576 | R14: =C14 -> 112103.576 | S14: 0
B15: ='RESUMO MODULO MINIMO'!$D$37 -> LIMPEZA GERAL | C15: 1 | F15: =100%/10 -> 0.1 | G15: =100%/10 -> 0.1 | H15: 0.1 | I15: 0.1 | J15: 0.1 | K15: 0.1 | L15: 0.1 | M15: 0.1 | N15: 0.1 | O15: 0.1 | Q15: =SUM(D15:O15) -> 1
C16: =SUM('RESUMO MODULO MINIMO'!L38) -> 14159.6 | F16: =$C$16*F15 -> 1415.96 | G16: 1415.96 | H16: 1415.96 | I16: 1415.96 | J16: 1415.96 | K16: 1415.96 | L16: 1415.96 | M16: 1415.96 | N16: 1415.96 | O16: 1415.96 | Q16: 14159.6 | R16: =C16 -> 14159.6 | S16: =Q16-R16 -> 0
B17: ='RESUMO MODULO MINIMO'!D39 -> SERVIÇOS COMPLEMENTARES | C17: 1 | F17: =100%/10 -> 0.1 | G17: 0.1 | H17: 0.1 | I17: 0.1 | J17: 0.1 | K17: 0.1 | L17: 0.1 | M17: 0.1 | N17: 0.1 | O17: 0.1 | Q17: =SUM(D17:O17) -> 1
C18: ='RESUMO MODULO MINIMO'!L40 -> 3384.1444 | F18: =$C$18*F17 -> 338.41444 | G18: =$C$18*G17 -> 338.41444 | H18: 338.41444 | I18: 338.41444 | J18: 338.41444 | K18: 338.41444 | L18: 338.41444 | M18: 338.41444 | N18: 338.41444 | O18: 338.41444 | Q18: 3384.1444 | R18: =C18 -> 3384.1444 | S18: =Q18-R18 -> 0
B19: ='RESUMO MODULO MINIMO'!$D$41 -> PROJETO EXECUTIVO | C19: 1 | D19: 0.5 | E19: 0.5 | Q19: =SUM(D19:O19) -> 1
C20: ='RESUMO MODULO MINIMO'!L42 -> 19641.22618 | D20: =$C$20*D19 -> 9820.613088 | E20: =$C$20*E19 -> 9820.613088 | Q20: 19641.22618 | R20: =C20 -> 19641.22618 | S20: =Q20-R20 -> 0
A22: Porcentagem | D22: =SUM(D6+D8+D10+D12+D14+D16+D18+D20)/$O$27 -> 0.00642826662 | E22: =SUM(E6+E8+E10+E12+E14+E16+E18+E20)/$O$27 -> 0.00688508777 | F22: 0.09819199639 | G22: 0.09819199639 | H22: 0.09819199639 | I22: 0.09819199639 | J22: 0.09819199639 | K22: 0.09819199639 | L22: 0.09819199639 | M22: 0.09819199639 | N22: 0.09819199639 | O22: 0.09819199639
A23: Custo | D23: =$O$27*D22 -> 9820.613088 | E23: =$O$27*E22 -> 10518.50943 | F23: =$O$27*F22 -> 150010.2068 | G23: 150010.2068 | H23: 150010.2068 | I23: 150010.2068 | J23: 150010.2068 | K23: 150010.2068 | L23: 150010.2068 | M23: 150010.2068 | N23: 150010.2068 | O23: 150010.2068
A24: Porcentagem Acumulado | D24: =D22 -> 0.00642826662 | E24: =D24+E22 -> 0.01331335439 | F24: =E24+F22 -> 0.1115053508 | G24: 0.2096973472 | H24: 0.3078893436 | I24: 0.4060813399 | J24: 0.5042733363 | K24: 0.6024653327 | L24: 0.7006573291 | M24: 0.7988493255 | N24: 0.8970413219 | O24: 0.9952333183
A25: Custo Acumulado | D25: =D23 -> 9820.613088 | E25: =D25+E23 -> 20339.12252 | F25: 170349.3293 | G25: 320359.5361 | H25: 470369.7428 | I25: 620379.9496 | J25: 770390.1564 | K25: 920400.3632 | L25: 1070410.57 | M25: 1220420.777 | N25: 1370430.983 | O25: 1520441.19
D27: Total Geral | N27: R$ | O27: ='RESUMO MODULO MINIMO'!L43 -> 1527723.361

Sheet CPU CODEVASF
A4: ='RESUMO MODULO MINIMO'!A1 -> EXECUÇÃO DE SERVIÇOS DE IMPLANTAÇÃO DE PAVIMENTAÇÃO EM CONCRETO BETUMINOSO USINADO A QUENTE, EM VIAS URBANAS E RURAIS DE MUNÍCIPIOS DIVERSOS INSERIDOS NA ÁREA DE ATUAÇÃO DA CODEVASF, NO ESTADO DO CEARÁ
F5: BDI %: | G5: =BDI!$F$26 -> 0.2158381752
E6: Encargos Sociais: | G6: Horista | H6: Mensalista
G7: ='ENC. SOCIAIS'!E51/100 -> 1.1276 | H7: ='ENC. SOCIAIS'!F51/100 -> 0.7107
A8: COMPOSIÇÕES DE CUSTO UNITARIO
A9: CPU-01 | B9: CODEVASF | C9: 74209/1 | D9: PLACA DE OBRA EM CHAPA DE ACO GALVANIZADO | E9: M2 | F9: COEF. | G9: PRECO UNITÁRIO (R$) | H9: TOTAL (R$)
A11: INS. SINAPI | B11: SINAPI | C11: 5075 | D11: PREGO 18X30. | E11: kg | F11: 0.11 | G11: =VLOOKUP($C11,'INSUMOS SINAPI'!$A$8:$E$5286,5,0) -> 19,84 | H11: =ROUND(F11*G11,2) -> 2.18
A12: INS. SINAPI | B12: SINAPI | C12: 4491 | D12: PECA DE MADEIRA NATIVA / REGIONAL 7,5 X 7,5CM (3X3) NAO APARELHADA (P/FORMA) | E12: m | F12: 4 | G12: =VLOOKUP($C12,'INSUMOS SINAPI'!$A$8:$E$5286,5,0) -> 10,54 | H12: 42.16
A13: INS. SINAPI | B13: SINAPI | C13: 4417 | D13: PECA DE MADEIRA DE LEI *2,5 X 7,5* CM (1" X 3"), NÃO APARELHADA, (P/TELHADO) | E13: m | F13: 1 | G13: =VLOOKUP($C13,'INSUMOS SINAPI'!$A$8:$E$5286,5,0) -> 5,41 | H13: 5.41
A14: INS. SINAPI | B14: SINAPI | C14: 4813 | D14: PLACA DE OBRA (PARA CONSTRUCAO CIVIL) EM CHAPA GALVANIZADA *Nº 22*, DE *2,0 X 1,125* M | E14: m² | F14: 1 | G14: =VLOOKUP($C14,'INSUMOS SINAPI'!$A$8:$E$5286,5,0) -> 225,00 | H14: 225
A15: INS. SINAPI | B15: SINAPI | C15: 370 | D15: AREIA MÉDIA | E15: m³ | F15: 0.0049 | G15: =VLOOKUP($C15,'INSUMOS SINAPI'!$A$8:$E$5286,5,0) -> 90,00 | H15: 0.44
A16: INS. SINAPI | B16: SINAPI | C16: 1379 | D16: CIMENTO PORTLAND COMPOSTO CP II-32 | E16: kg | F16: 1.5 | G16: =VLOOKUP($C16,'INSUMOS SINAPI'!$A$8:$E$5286,5,0) -> 0,54 | H16: 0.81
A17: INS. SINAPI | B17: SINAPI | C17: 4718 | D17: PEDRA BRITADA Nº 2 | E17: m³ | F17: 0.0098 | G17: =VLOOKUP($C17,'INSUMOS SINAPI'!$A$8:$E$5286,5,0) -> 77,80 | H17: 0.76
A18: COMP. SINAPI | B18: SINAPI | C18: 87445 | D18: BETONEIRA CAPACIDADE NOMINAL 400 L, CAPACIDADE DE MISTURA 310 L, MOTOR A DIESEL POTÊNCIA 5,0 HP, SEM CARREGADOR MECANICO (LOCACAO) | E18: h | F18: 0.0065 | G18: =VLOOKUP($C18,'COMP Sint. Sinapi'!$A$7:$E$6679,5,0) -> 4,30 | H18: =ROUND(F18*G18,2) -> 0.03
A19: COMP. SINAPI | B19: SINAPI | C19: 88262 | D19: CARPINTEIRO DE FORMAS COM ENCARGOS COMPLEMENTARES | E19: h | F19: 1 | G19: =VLOOKUP($C19,'COMP Sint. Sinapi'!$A$7:$E$7100,5,0) -> 22,02 | H19: =ROUND(F19*G19,2) -> 22.02
A20: COMP. SINAPI | B20: SINAPI | C20: 88316 | D20: SERVENTE COM ENCARGOS COMPLEMENTARES | E20: h | F20: 2.06 | G20: =VLOOKUP($C20,'COMP Sint. Sinapi'!$A$7:$E$7100,5,0) -> 16,44 | H20: =ROUND(F20*G20,2) -> 33.87
E21: Sub total: | H21: =SUM(H11:H20) -> 332.68
F22: BDI | G22: =BDI!F26 -> 0.2158381752 | H22: =ROUND(H21*G22,2) -> 71.81
G23: Total Serviços: | H23: =H21+H22 -> 404.49
E24: =A9 -> CPU-01 | F24: PREÇO UNITÁRIO TOTAL: | H24: =H23 -> 404.49
A26: CPU-02 | B26: CODEVASF | C26: Propria | D26: MOBILIZAÇÃO E DESMOBILIZAÇÃO | E26: T X KM | F26: COEF. | G26: PRECO UNITÁRIO (R$) | H26: TOTAL (R$)
A28: COMP. SINAPI | B28: SINAPI | C28: 73340 | D28: CAMINHÃO TOCO, PBT 14.300 KG, CARGA ÚTIL MÁX. 9.710 KG, DIST. ENTRE EIXOS 3,56 M, POTÊNCIA 185 CV, INCLUSIVE CARROCERIA FIXA ABERTA DE MADEIRA P/ TR ANSPORTE GERAL DE CARGA SECA, DIMEN. APROX. 2,50 X 6,50 X 0,50 M - MATERIA IS NA OPERAÇÃO. AF_06/2014 | E28: H | F28: 2 | G28: =VLOOKUP($C28,'COMP Sint. Sinapi'!$A$7:$E$6679,5,0) -> 66,87 | H28: =ROUND(F28*G28,2) -> 133.74
A29: COMP. SINAPI | B29: SINAPI | C29: 67826 | D29: CAMINHÃO BASCULANTE 6 M3 TOCO, PESO BRUTO TOTAL 16.000 KG, CARGA ÚTIL MÁXI CHP MA 11.130 KG, DISTÂNCIA ENTRE EIXOS 5,36 M, POTÊNCIA 185 CV, INCLUSIVE CAÇAMBA METÁLICA - CHP DIURNO. AF_06/2014 | E29: CHP | F29: 2 | G29: =VLOOKUP($C29,'COMP Sint. Sinapi'!$A$7:$E$6679,5,0) -> 139,03 | H29: =ROUND(F29*G29,2) -> 278.06
A30: COMP. SINAPI | B30: SINAPI | C30: 6259 | D30: CAMINHÃO PIPA 6.000 L, PESO BRUTO TOTAL 13.000 KG, DISTÂNCIA ENTRE EIXOS 4 CHP ,80 M, POTÊNCIA 189 CV INCLUSIVE TANQUE DE AÇO PARA TRANSPORTE DE ÁGUA, CAPACIDADE 6 M3 - CHP DIURNO. AF_06/2014 | E30: CHP | F30: 2 | G30: =VLOOKUP($C30,'COMP Sint. Sinapi'!$A$7:$E$6679,5,0) -> 193,74 | H30: =ROUND(F30*G30,2) -> 387.48
A31: COMP. SICRO | B31: SICRO | C31: 5914640 | D31: TRANSPORTE COM CAVALO MECÂNICO COM SEMIRREBOQUE COM CAPACIDADE DE 30 T - RODOVIA PAVIMENTADA | E31: T x km | F31: ='Mob e Desmob'!E31 -> 678.7 | G31: 0.39 | H31: =ROUND(F31*G31,2) -> 264.69
A32: INSUMO | B32: ORSE | C32: 5896 | D32: VEÍCULO TIPO SEDAN OU PICK-UP CAPACIDADE 0,6 TON | E32: h | F32: 3 | G32: =VLOOKUP(C32,'Relação Insumos'!C:F,4,0) -> 8.33 | H32: =ROUND(F32*G32,2) -> 24.99
E33: Sub total: | H33: =SUM(H28:H32) -> 1088.96
F34: BDI | G34: =BDI!F26 -> 0.2158381752 | H34: =ROUND(H33*G34,2) -> 235.04
G35: Total Serviços: | H35: =H33+H34 -> 1324
E36: =A26 -> CPU-02 | F36: PREÇO UNITÁRIO TOTAL: | H36: =H35 -> 1324
A38: CPU-03 | B38: CODEVASF | D38: ADMINISTRAÇÃO LOCAL | E38: % | F38: COEF. | G38: PRECO UNITÁRIO (R$) | H38: TOTAL (R$)
A40: COMP. SINAPI | B40: SINAPI | C40: 90777 | D40: ENGENHEIRO CIVIL DE OBRA JUNIOR COM ENCARGOS COMPLEMENTARES | E40: H | F40: 20 | G40: =VLOOKUP(C40,'COMP Sint. Sinapi'!A19:E7100,5,0) -> 98,20 | H40: =ROUND(F40*G40,2) -> 1964
A41: COMP. SINAPI | B41: SINAPI | C41: 90780 | D41: MESTRE DE OBRAS COM ENCARGOS COMPLEMENTARES | E41: H | F41: 40 | G41: =VLOOKUP(C41,'COMP Sint. Sinapi'!A20:E7100,5,0) -> 43,48 | H41: 1739.2
A42: COMP. SINAPI | B42: SINAPI | C42: 90772 | D42: AUXILIAR DE ESCRITORIO COM ENCARGOS COMPLEMENTARES | E42: H | F42: 40 | G42: =VLOOKUP(C42,'COMP Sint. Sinapi'!A21:E7100,5,0) -> 13,46 | H42: 538.4
A43: INS. SINAPI | B43: SINAPI | C43: 14250 | D43: ENERGIA | E43: KW/H | F43: 100 | G43: =VLOOKUP(C43,'Relação Insumos'!C:F,4,0) -> 0,78 | H43: 78
A44: INS. SINAPI | B44: SINAPI | C44: 14583 | D44: ÁGUA TARIFA "A" ENTRE 0 E 20M3 FORNECIMENTO D'AGUA | E44: M3 | F44: 1 | G44: =VLOOKUP(C44,'Relação Insumos'!C:F,4,0) -> 14,75 | H44: 14.75
A45: INSUMO | B45: ORSE | C45: 4415 | D45: VEÍCULO LEVE - VOLKSWAGEN:GOL 1000 - AUTOMÓVEL ATÉ 100 HP | E45: H | F45: 40 | G45: =VLOOKUP(C45,'Relação Insumos'!C:F,4,0) -> 4.4 | H45: 176
E46: ADM. LOCAL : | H46: =SUM(H40:H45) -> 4510.35
E47: Total para 6 meses:
E48: =BDI!F26 -> 0.2158381752 | H48: =ROUND(E48*H46,2) -> 973.51
E49: =A38 -> CPU-03 | F49: PREÇO TOTAL: | H49: =H46+H48 -> 5483.86
A51: CPU-04 | B51: CODEVASF | D51: CANTEIRO DE OBRAS E ALMOXARIFADO | E51: MÊS | F51: COEF. | G51: PRECO UNITÁRIO (R$) | H51: TOTAL (R$)
A53: INS. SINAPI | B53: SINAPI | C53: 10775 | D53: LOCAÇÃO DE CONTAINER - ESCRITÓRIO COM BANHEIRO - 6,20 X 2,20M | E53: mês | F53: 0.2 | G53: =VLOOKUP(C53,'Relação Insumos'!C:F,4,0) -> 900,00 | H53: =ROUND(F53*G53,2) -> 180
A54: INSUMO | B54: ORSE | C54: 4299 | D54: ALUGUEL DE CONTAINER - ALMOXARIFADO SEM BANHEIRO - 6,00 X 2,40M | E54: mês | F54: 0.2 | G54: =VLOOKUP(C54,'Relação Insumos'!C:F,4,0) -> 654.42 | H54: =ROUND(F54*G54,2) -> 130.88
E55: Sub total: | H55: =SUM(H53:H54) -> 310.88
F56: BDI | G56: =BDI!F26 -> 0.2158381752 | H56: =ROUND(H55*G56,2) -> 67.1
G57: Total Serviços: | H57: =H55+H56 -> 377.98
E58: =A51 -> CPU-04 | F58: PREÇO UNITÁRIO TOTAL: | H58: =H57 -> 377.98
A60: CPU-11 | B60: CODEVASF | D60: LIMPEZA GERAL | E60: UNID | F60: COEF. | G60: PRECO UNITÁRIO (R$) | H60: TOTAL (R$)
A62: COMP. SINAPI | B62: SINAPI | C62: 88316 | D62: SERVENTE COM ENCARGOS COMPLEMENTARES | E62: H | F62: 0.05 | G62: =VLOOKUP(C62,'COMP Sint. Sinapi'!A41:E7100,5,0) -> 16,44 | H62: =ROUND(F62*G62,2) -> 0.82
E63: Sub total: | H63: =SUM(H62:H62) -> 0.82
F64: BDI | G64: =BDI!F26 -> 0.2158381752 | H64: =ROUND(H63*G64,2) -> 0.18
G65: Total Serviços: | H65: =H63+H64 -> 1
E66: =A60 -> CPU-11 | F66: PREÇO UNITÁRIO TOTAL: | H66: =H65 -> 1
A67: CPU-12 | B67: CODEVASF | D67: Correção de vazamentos no ramal na rua sem pavimento com fornecimento do material hidráulico | E67: UNID | F67: COEF. | G67: PRECO UNITÁRIO (R$) | H67: TOTAL (R$)
A69: Composição Auxiliar | B69: SINAPI | C69: 88316 | D69: SERVENTE COM ENCARGOS COMPLEMENTARES | E69: H | F69: 0.2 | G69: =VLOOKUP(C69,'COMP Sint. Sinapi'!A42:E7100,5,0) -> 16,44 | H69: =ROUND(F69*G69,2) -> 3.29
A70: Composição Auxiliar | B70: SINAPI | C70: 88267 | D70: ENCANADOR OU BOMBEIRO HIDRÁULICO COM ENCARGOS COMPLEMENTARES | E70: H | F70: 0.1 | G70: =VLOOKUP(C70,'COMP Sint. Sinapi'!A43:E6715,5,0) -> 21,75 | H70: =ROUND(F70*G70,2) -> 2.18
A71: Insumo | B71: SINAPI | C71: 9867 | D71: TUBO PVC, SOLDAVEL, DN 20 MM, AGUA FRIA (NBR-5648) | E71: m | F71: 1 | G71: =VLOOKUP(C71,'INSUMOS SINAPI'!A:E,5,0) -> 3,18 | H71: =ROUND(F71*G71,2) -> 3.18
A72: Insumo | B72: ORSE | C72: 10585 | D72: Arco de serra | E72: un | F72: 0.1 | G72: 21.25 | H72: =ROUND(F72*G72,2) -> 2.13
A73: Insumo | B73: SINAPI | C73: 3859 | D73: LUVA SOLDAVEL COM ROSCA, PVC, 20 MM X 1/2", PARA AGUA FRIA PREDIAL | E73: un | F73: 2 | G73: =VLOOKUP(C73,'INSUMOS SINAPI'!A:E,5,0) -> 1,49 | H73: =ROUND(F73*G73,2) -> 2.98
E74: Sub total: | H74: =SUM(H69:H73) -> 13.76
F75: BDI | G75: =BDI!F26 -> 0.2158381752 | H75: =ROUND(H74*G75,2) -> 2.97
G76: Total Serviços: | H76: =H74+H75 -> 16.73
E77: =A67 -> CPU-12 | F77: PREÇO UNITÁRIO TOTAL: | H77: =H76 -> 16.73
A79: CPU-13 | B79: CODEVASF | D79: AQUISIÇÃO DE CIMENTO ASFALTICO CAP 50/70 | E79: UNID | F79: COEF. | G79: PRECO UNITÁRIO (R$) | H79: TOTAL (R$)
D81: CIMENTO ASFALTICO 50/70 | E81: t | F81: 1 | G81: =VLOOKUP(SMALL('TRANSPORTE CAP-50-70'!$X$17:$X$29,1),'TRANSPORTE CAP-50-70'!$X$17:$Z$29,2,0) -> 4217.007772 | H81: =ROUND(F81*G81,2) -> 4217.01 | J81: 4147.16
E82: Sub total: | H82: =SUM(H81) -> 4217.01
F83: BDI | G83: 0.145017 | H83: =ROUND(H82*G83,2) -> 611.54
G84: Total Serviços: | H84: =H82+H83 -> 4828.55
E85: =A79 -> CPU-13 | F85: PREÇO UNITÁRIO TOTAL: | H85: =H84 -> 4828.55
A87: CPU-14 | B87: CODEVASF | D87: AQUISIÇÃO DE ASFALTO DILUIDO CM-30 | E87: UNID | F87: COEF. | G87: PRECO UNITÁRIO (R$) | H87: TOTAL (R$)
D89: EMULSÃO ASFÁLTICA PARA IMPRIMAÇÃO | E89: t | F89: 1 | G89: =VLOOKUP(SMALL('TRANSPORTE EAI'!X17:X36,1),'TRANSPORTE EAI'!X17:Z36,2,0) -> 3137.427909 | H89: =ROUND(F89*G89,2) -> 3137.43 | J89: 3137.43
E90: Sub total: | H90: =SUM(H89) -> 3137.43
F91: BDI | G91: 0.145017 | H91: =ROUND(H90*G91,2) -> 454.98
G92: Total Serviços: | H92: =H90+H91 -> 3592.41
E93: =A87 -> CPU-14 | F93: PREÇO UNITÁRIO TOTAL: | H93: =H92 -> 3592.41
A95: CPU-15 | B95: CODEVASF | D95: AQUISIÇÃO DE EMULSÃO ASFÁLTICA RR-1C | E95: UNID | F95: COEF. | G95: PRECO UNITÁRIO (R$) | H95: TOTAL (R$)
D97: EMULSÃO ASFÁLTICA RR-1C | E97: t | F97: 1 | G97: =VLOOKUP(SMALL('TRANSPORTE RR-1C'!X17:X36,1),'TRANSPORTE RR-1C'!X17:Z36,2,0) -> 3054.454462 | H97: =ROUND(F97*G97,2) -> 3054.45 | J97: 2840.96
E98: Sub total: | H98: =SUM(H97) -> 3054.45
F99: BDI | G99: 0.145017 | H99: =ROUND(H98*G99,2) -> 442.95
G100: Total Serviços: | H100: =H98+H99 -> 3497.4
E101: =A95 -> CPU-15 | F101: PREÇO UNITÁRIO TOTAL: | H101: =H100 -> 3497.4
A103: CPU-16 | B103: CODEVASF | D103: SERVIÇOS TOPOGRÁFICOS PARA PAVIMENTAÇÃO, INCLUSIVE NOTAS DE SERVIÇOS, ACOMPANHAMENTO E GREIDE | E103: UNID | F103: COEF. | G103: PRECO UNITÁRIO (R$) | H103: TOTAL (R$)
A105: Insumo | B105: SINAPI | C105: 20206 | D105: =VLOOKUP(C105,'INSUMOS SINAPI'!A:E,2,0) -> SARRAFO APARELHADO *2 X 10* CM, EM MACARANDUBA, ANGELIM OU EQUIVALENTE DA REGIAO | E105: m | F105: 0.002886 | G105: =VLOOKUP(C105,'INSUMOS SINAPI'!A:E,5,0) -> 6,84 | H105: =ROUND(F105*G105,2) -> 0.02
A106: Composição | B106: SINAPI | C106: 88253 | D106: =VLOOKUP(C106,'COMP Sint. Sinapi'!A:F,2,0) -> AUXILIAR DE TOPÓGRAFO COM ENCARGOS COMPLEMENTARES | E106: h | F106: 0.0025 | G106: =VLOOKUP(C106,'COMP Sint. Sinapi'!A:F,5,0) -> 12,88 | H106: 0.03
A107: Composição | B107: SINAPI | C107: 88288 | D107: =VLOOKUP(C107,'COMP Sint. Sinapi'!A:F,2,0) -> NIVELADOR COM ENCARGOS COMPLEMENTARES | E107: h | F107: 0.0025 | G107: =VLOOKUP(C107,'COMP Sint. Sinapi'!A:F,5,0) -> 15,95 | H107: 0.04
A108: Composição | B108: SINAPI | C108: 88316 | D108: =VLOOKUP(C108,'COMP Sint. Sinapi'!A:F,2,0) -> SERVENTE COM ENCARGOS COMPLEMENTARES | E108: h | F108: 0.0075 | G108: =VLOOKUP(C108,'COMP Sint. Sinapi'!A:F,5,0) -> 16,44 | H108: 0.12
A109: Composição | B109: SINAPI | C109: 88597 | D109: =VLOOKUP(C109,'COMP Sint. Sinapi'!A:F,2,0) -> DESENHISTA DETALHISTA COM ENCARGOS COMPLEMENTARES | E109: h | F109: 0.002 | G109: =VLOOKUP(C109,'COMP Sint. Sinapi'!A:F,5,0) -> 52,79 | H109: 0.11
A110: Composição | B110: SINAPI | C110: 92145 | D110: =VLOOKUP(C110,'COMP Sint. Sinapi'!A:F,2,0) -> CAMINHONETE CABINE SIMPLES COM MOTOR 1.6 FLEX, CÂMBIO MANUAL, POTÊNCIA 101/104 CV, 2 PORTAS - CHP DIURNO. AF_11/2015 | E110: chp | F110: 0.001 | G110: =VLOOKUP(C110,'COMP Sint. Sinapi'!A:F,5,0) -> 66,10 | H110: 0.07
E111: Sub total: | H111: =SUM(H105:H110) -> 0.39
F112: BDI | G112: =BDI!F26 -> 0.2158381752 | H112: =ROUND(H111*G112,2) -> 0.08
G113: Total Serviços: | H113: =H111+H112 -> 0.47
E114: =A103 -> CPU-16 | F114: PREÇO UNITÁRIO TOTAL: | H114: =H113 -> 0.47
A116: CPU-17 | B116: CODEVASF | D116: TRANSPORTE DE CIMENTO ASFALTICO CAP 50/70 | E116: UNID | F116: COEF. | G116: PRECO UNITÁRIO (R$) | H116: TOTAL (R$)
D118: TRANSPORTE DE CIMENTO ASFALTICO 50/70 | E118: t | F118: 1 | G118: =VLOOKUP(SMALL('TRANSPORTE CAP-50-70'!$X$17:$X$29,1),'TRANSPORTE CAP-50-70'!$X$17:$Z$29,3,0) -> 54.52 | H118: =ROUND(F118*G118,2) -> 54.52 | J118: 767.63
E119: Sub total: | H119: =SUM(H118) -> 54.52
F120: BDI | G120: 0.145017 | H120: =ROUND(H119*G120,2) -> 7.91
G121: Total Serviços: | H121: =H119+H120 -> 62.43
E122: =A116 -> CPU-17 | F122: PREÇO UNITÁRIO TOTAL: | H122: =H121 -> 62.43
A124: CPU-18 | B124: CODEVASF | D124: TRANSPORTE DE ASFALTO DILUIDO CM-30 | E124: UNID | F124: COEF. | G124: PRECO UNITÁRIO (R$) | H124: TOTAL (R$)
D126: TRANSPORTE DE EMULSÃO ASFÁLTICA PARA IMPRIMAÇÃO | E126: t | F126: 1 | G126: =VLOOKUP(SMALL('TRANSPORTE EAI'!X17:X36,1),'TRANSPORTE EAI'!X17:Z36,3,0) -> 1129.29 | H126: =ROUND(F126*G126,2) -> 1129.29 | J126: 53.53
E127: Sub total: | H127: =SUM(H126) -> 1129.29
F128: BDI | G128: 0.145017 | H128: =ROUND(H127*G128,2) -> 163.77
G129: Total Serviços: | H129: =H127+H128 -> 1293.06
E130: =A124 -> CPU-18 | F130: PREÇO UNITÁRIO TOTAL: | H130: =H129 -> 1293.06
A132: CPU-19 | B132: CODEVASF | D132: TRANSPORTE DE EMULSÃO ASFÁLTICA RR-1C | E132: UNID | F132: COEF. | G132: PRECO UNITÁRIO (R$) | H132: TOTAL (R$)
D134: TRANSPORTE DE EMULSÃO ASFÁLTICA RR-1C | E134: t | F134: 1 | G134: =VLOOKUP(SMALL('TRANSPORTE RR-1C'!X17:X36,1),'TRANSPORTE RR-1C'!X17:Z36,3,0) -> 1122.891603 | H134: =ROUND(F134*G134,2) -> 1122.89 | J134: 390.29
E135: Sub total: | H135: =SUM(H134) -> 1122.89
F136: BDI | G136: 0.145017 | H136: =ROUND(H135*G136,2) -> 162.84
G137: Total Serviços: | H137: =H135+H136 -> 1285.73
E138: =A132 -> CPU-19 | F138: PREÇO UNITÁRIO TOTAL: | H138: =H137 -> 1285.73

Sheet SERVIÇOS PRELI
A4: ='RESUMO MODULO MINIMO'!A1 -> EXECUÇÃO DE SERVIÇOS DE IMPLANTAÇÃO DE PAVIMENTAÇÃO EM CONCRETO BETUMINOSO USINADO A QUENTE, EM VIAS URBANAS E RURAIS DE MUNÍCIPIOS DIVERSOS INSERIDOS NA ÁREA DE ATUAÇÃO DA CODEVASF, NO ESTADO DO CEARÁ
G5: BDI %: | H5: =BDI!F26 -> 0.2158381752
F6: Encargos Sociais: | H6: Horista | I6: Mensalista
H7: ='ENC. SOCIAIS'!$E$51/100 -> 1.1276 | I7: ='ENC. SOCIAIS'!$F$51/100 -> 0.7107
A8: Anexo VI - Planilhas Orçamentárias
A9: PLANILHA ORÇAMENTARIA NÁO DESONERADA -Janeiro/2020
A10: ITEM | B10: CPUs | C10: Fonte | D10: Cód. | E10: DISCRIMINAÇÃO DOS SERVIÇOS | F10: UND | G10: QTDE. | H10: PREÇO UNITÁRIO (R$) | I10: TOTAL
A12: 1 | B12: IMPLANTAÇÃO DA OBRA
A13: 1.1 | B13: SERVIÇOS INICIAIS
A14: 1.1.1 | B14: CPU-02 | C14: CODEVASF | D14: 72840 | E14: MOBILIZAÇÃO E DESMOBILIZAÇÃO | F14: und | G14: 1 | H14: ='CPU CODEVASF'!$H$36 -> 1324 | I14: =ROUND(G14*H14,2) -> 1324
F15: ITEM 1: | H15: TOTAL | I15: =SUM(I14:I14) -> 1324
A17: 2 | B17: PLACA DE OBRA EM CHAPA DE ACO GALVANIZADO
A18: 2.1 | B18: CPU-01 | C18: CODEVASF | D18: 74209/1 | E18: PLACA DE OBRA EM CHAPA DE ACO GALVANIZADO | F18: und | G18: 1 | H18: ='CPU CODEVASF'!$H$24 -> 404.49 | I18: =ROUND(G18*H18,2) -> 404.49
F19: ITEM 1: | H19: TOTAL | I19: =SUM(I18:I18) -> 404.49
A21: 3 | B21: ADMINISTRAÇÃO DA OBRA
A22: 3.1 | B22: CPU-03 | C22: CODEVASF | D22: 2.1 | E22: ADMINISTRAÇÃO LOCAL | F22: % | G22: 1 | H22: ='CPU CODEVASF'!$H$49 -> 5483.86 | I22: =ROUND(G22*H22,2) -> 5483.86
A23: 3.2 | B23: CPU-04 | C23: CODEVASF | D23: 2.2 | E23: CANTEIRO DE OBRAS E ALMOXARIFADO | F23: MÊS | G23: 1 | H23: ='CPU CODEVASF'!$H$58 -> 377.98 | I23: =ROUND(G23*H23,2) -> 377.98
F24: ITEM 2: | H24: TOTAL | I24: =SUM(I22:I23) -> 5861.84

Sheet Projeto Executivo
A1: COMPOSIÇAO PREÇO PROJETO EXECUTIVO (POR KM)
A3: DISCRIMINAÇAO | F3: Pr. Unit. | G3: Pr. Total
A5: A· EOUIPE TECNICA | G5: =G6+G9 -> 3342.2
B6: A. 1 - Pessoal de Nível Superior | C6: Unidade | D6: Quantitativo | E6: Código SINAPI | G6: =G7+G8 -> 2483.5
B7: Engenheiro | C7: h | D7: 20 | E7: 34780 | F7: =VLOOKUP(E7,'INSUMOS SINAPI'!$A$8:$E$5288,5,0) -> 109,91 | G7: =F7*D7 -> 2198.2
B8: Topógrafo | C8: h | D8: 10 | E8: 7592 | F8: =VLOOKUP(E8,'INSUMOS SINAPI'!$A$8:$E$5288,5,0) -> 28,53 | G8: =F8*D8 -> 285.3
B9: A.2 - Pessoal de Nível Técnico e Aux. | G9: =G10+G11 -> 858.7
B10: Auxiliar de topógrafo | C10: h | D10: 10 | E10: 244 | F10: =VLOOKUP(E10,'INSUMOS SINAPI'!$A$8:$E$5288,5,0) -> 11,63 | G10: =F10*D10 -> 116.3
B11: Cadista/calculista | C11: h | D11: 20 | E11: 2359 | F11: =VLOOKUP(E11,'INSUMOS SINAPI'!$A$8:$E$5288,5,0) -> 37,12 | G11: =F11*D11 -> 742.4
A12: B - ENCARGOS SOCIAIS | G12: =G13 -> 0
B13: Taxas 72,23 % do item "A" | G13: 0
A14: C - DESPESAS GERAIS | G14: =G15+G16+G17+G18 -> 466.086
B15: C.1 - MATERIAIS DE CONSUMO | C15: Estimativa % como referência de equipe técnica com encargos sociais | D15: 0.03 | F15: =G5+G13 -> 3342.2 | G15: =F15*D15 -> 100.266
B16: C.2 - VEÍCULOS | C16: H | D16: 8 | E16: 92144 | F16: =VLOOKUP(E16,'COMPOSIÇÃO ANALI sinapi'!$M$5:$R$43600,6,0) -> 40,00 | G16: =F16*D16 -> 320
B17: C.3 - COMBUSTÍVEL | C17: L | D17: 2 | E17: 4221 | F17: =VLOOKUP(E17,'COMPOSIÇÃO ANALI sinapi'!$M$5:$R$42432,6,0) -> 4,91 | G17: =F17*D17 -> 9.82
B18: C.3 - EQUIPAMENTOS, INSTALAÇÕES E MOBILIÁRIO | C18: H | D18: 16 | E18: 7247 | F18: =VLOOKUP(E18,'COMPOSIÇÃO ANALI sinapi'!$M$5:$R$42432,6,0) -> 2,25 | G18: =F18*D18 -> 36
A19: D - ENSAIOS | G19: =G20 -> 3440.42
B20: D.1 - ENSAIOS | C20: Composição Ensaios | F20: =Ensaios!F20 -> 3440.42 | G20: =F20 -> 3440.42
A21: I - SOMA (A+B+C+D) | G21: =G5+G12+G14+G19 -> 7248.706
A22: II - CUSTOS ADMINISTIRATIVOS (22,57 %) | D22: =BDI!F26 -> 0.2158381752 | G22: =D22*G21 -> 1564.547475
A23: II - SOMA | G23: =SUM(G21:G22) -> 8813.253475
A24: VI - RELATÓRIOS | C24: Estimativa % como referência soma II | D24: 0.025 | F24: =G23 -> 8813.253475 | G24: =F24*D24 -> 220.3313369
A25: V - DESPESAS DIRETAS (3,74%) | C25: Percentual VI | D25: 0.0374 | F25: =D25*G24 -> 8.240391999 | G25: =F25 -> 8.240391999
A26: VI - REMUNERAÇAO DA EMPRESA
B27: Taxas 4,75% | D27: 0.0475 | F27: =D27*F25 -> 0.39141862 | G27: =F27 -> 0.39141862
A28: VII - CONTIGÊNCIAS | D28: 0.0577 | F28: =F24 -> 8813.253475 | G28: =F28*D28 -> 508.5247255
A29: VIII - SOMA | G29: =SUM(G24:G28) -> 737.487873
A30: IX - CUSTOS ADMINISTIRATIVOS (22,57 %) | D30: =BDI!F26 -> 0.2158381752 | G30: =D30*G29 -> 159.1780367
A31: III - SOMA | G31: =SUM(G29:G30) -> 896.6659098
A32: X - TOTAL | G32: =G31+G23 -> 9709.919385
B33: OBS: Preencher com código sinapi e verificar se o valor está de igual ou abaixo do recebido de referência pela área demandante.

Sheet Ensaios
A1: SERVIÇOS GEOLÓGICOS/GEOTÉCNICOS
A3: NOME DA EMPRESA:
A5: PROJETO: | D5: CONTRATANTE: | F5: EDITAL:
D6: Codevasf (Sede)
A7: Cod. | B7: Insumos | C7: Uni | D7: Qde | E7: Preço Unitário (PU) | F7: Preço Total (PT)
A8: GT01 | B8: Ensaios em solos Umidade Natural | C8: un | D8: 2 | E8: 30 | F8: =ROUND(E8*D8,2) -> 60
A9: GT02 | B9: Densidade in SITUEnsaios do Frasco de Areia (in Situ) | C9: un | D9: 2 | E9: 45.03 | F9: 90.06
A10: GT03 | B10: Ensaios em solos Limite de Liquidez | C10: un | D10: 2 | E10: 50.04 | F10: 100.08
A11: GT04 | B11: Ensaios em solos Limite de Plasticidade | C11: un | D11: 2 | E11: 45.03 | F11: 90.06
A12: GT05 | B12: Granulometria por Peneiramento | C12: un | D12: 2 | E12: 80.06 | F12: 160.12
A13: GT06 | B13: Granulometria Completa ( peneiramento e sedimentação) | C13: un | D13: 2 | E13: 80.06 | F13: 160.12
A14: GT07 | B14: Massa Específica Real dos Grãos | C14: un | D14: 2 | E14: 35.03 | F14: 70.06
A15: GT08 | B15: Compactação Proctor Normal | C15: un | D15: 4 | E15: 87.7 | F15: 350.8
A16: GT09 | B16: Abrasão "Los Angeles " | C16: un | D16: 2 | E16: 225 | F16: 450
A17: GT10 | B17: Índice de Suporte Califórnia ( ISC/CBR) | C17: un | D17: 10 | E17: 166.4 | F17: 1664
A18: GT11 | B18: Equivalente de Areia | C18: un | D18: 2 | E18: 50 | F18: 100
A19: GT12 | B19: Ensaio de Expansão | C19: un | D19: 2 | E19: 72.56 | F19: 145.12
A20: TOTAL SERVIÇOS GEOTÉCNICOS | F20: =SUM(F8:F19) -> 3440.42
A21: NOME DO INFORMANTE: | E21: QUALIFICAÇÃO:
A23: ASSINATURA: | E23: DATA:

Sheet BDI
B3: OBRA:
B4: LOCAL:
B5: DATA BASE:
B6: DETALHAMENTO DO BDI - SEM DESONERAÇÃO
B8: Item | C8: Descrição dos serviços | E8: Preço de Venda (%) | F8: Custo Direto (%)
B9: A | C9: ADMINISTRAÇÃO CENTRAL | D9: Váriável - f (CD) | E9: =F9/(1+$F$26) -> 0.04934867257 | F9: 0.06
B10: B | C10: CUSTOS FINANCEIROS | D10: 0,43% s/ PV - Lucro Operacional | E10: 0.0041 | F10: =E10*(1+$F$26) -> 0.004984936518
B11: C | C11: RISCOS | D11: 0,50% de PV | F11: =E11*(1+$F$26) -> 0
B12: D | C12: SEGUROS E GARANTIAS CONTRATUAIS | D12: 0,25% do PV | F12: =E12*(1+$F$26) -> 0
B13: SUBTOTAL | E13: =SUM(E9:E12) -> 0.05344867257 | F13: =SUM(F9:F12) -> 0.06498493652
B14: LUCRO | E14: % SOBRE PV | F14: % SOBRE CD
B15: E | C15: LUCRO OPERACIONAL | D15: Variável - f (CD) | E15: =F15/(1+$F$26) -> 0.05757345133 | F15: 0.07
B16: SUBTOTAL | E16: =SUM(E15) -> 0.05757345133 | F16: =SUM(F15) -> 0.07
B17: TAXAS E IMPOSTOS | E17: % SOBRE PV | F17: % SOBRE CD
B18: F | C18: PIS | D18: 0,65% de PV | E18: 0.0065 | F18: =E18*(1+$F$26) -> 0.007902948139
B19: G | C19: COFINS | D19: 3,00% de PV | E19: 0.03 | F19: =E19*(1+$F$26) -> 0.03647514526
B20: H | C20: ISSQN | D20: 3,00% de PV | E20: 0.03 | F20: =E20*(1+$F$26) -> 0.03647514526
B21: I | C21: Contribuição Previdenciaria | D21: 0,00% de PV | E21: 0 | F21: =E21*(1+$F$26) -> 0
B22: SUBTOTAL | E22: =SUM(E18:E21) -> 0.0665 | F22: =SUM(F18:F21) -> 0.08085323865
B23: BDI COM IMPOSTOS | E23: =E22+E16+E13 -> 0.1775221239 | F23: =(1+(F9+F15))/(1-(E10+E11+E12+E18+E19+E20+E21))-1 -> 0.2158381752
B24: CUSTO DIRETO - CD | E24: =E25-E23 -> 0.8224778761
E25: 1
B26: BDI | F26: =F23 -> 0.2158381752
B27: Observação: O percentual de ISSQN aqui utilizado consiste apenas em um referencial médio.
C28: O valor real do ISSQN a ser adotado deve ser aquele proveniente das alíquotas dos municípios situados na área de
C29: influência das obras.

Sheet ENC. SOCIAIS
A6: NOME DA CONCORRENTE:
A7: EDITAL:
A8: FOLHA:
A9: ='RESUMO MODULO MINIMO'!A1 -> EXECUÇÃO DE SERVIÇOS DE IMPLANTAÇÃO DE PAVIMENTAÇÃO EM CONCRETO BETUMINOSO USINADO A QUENTE, EM VIAS URBANAS E RURAIS DE MUNÍCIPIOS DIVERSOS INSERIDOS NA ÁREA DE ATUAÇÃO DA CODEVASF, NO ESTADO DO CEARÁ
A11: DETALHAMENTO DOS ENCARGOS SOCIAIS (%)
A12: VIGÊNCIA A PARTIR DE 10/2020 | C12: COM DESONERAÇÃO | E12: SEM DESONERAÇÃO
C14: HORISTA | D14: MENSALISTA | E14: HORISTA | F14: MENSALISTA
A16: GRUPO A
A17: A1 | B17: INSS | C17: 0 | D17: 0 | E17: 20 | F17: 20
A18: A2 | B18: SESI | C18: 1.5 | D18: 1.5 | E18: 1.5 | F18: 1.5
A19: A3 | B19: SENAI | C19: 1 | D19: 1 | E19: 1 | F19: 1
A20: A4 | B20: INCRA | C20: 0.2 | D20: 0.2 | E20: 0.2 | F20: 0.2
A21: A5 | B21: SEBRAE | C21: 0.6 | D21: 0.6 | E21: 0.6 | F21: 0.6
A22: A6 | B22: Salário Educação | C22: 2.5 | D22: 2.5 | E22: 2.5 | F22: 2.5
A23: A7 | B23: Seguro Contra Acidentes de Trabalho | C23: 3 | D23: 3 | E23: 3 | F23: 3
A24: A8 | B24: FGTS | C24: 8 | D24: 8 | E24: 8 | F24: 8
A25: A9 | B25: SECONCI | C25: 1 | D25: 1 | E25: 0 | F25: 0
A26: A | B26: Total | C26: =SUM(C17:C25) -> 17.8 | D26: =SUM(D17:D25) -> 17.8 | E26: =SUM(E17:E25) -> 36.8 | F26: =SUM(F17:F25) -> 36.8
A27: GRUPO B
A28: B1 | B28: Repouso Semanal Remunerado | C28: 17.88 | D28: - | E28: 17.84 | F28: -
A29: B2 | B29: Feriados | C29: 3.94 | D29: - | E29: 3.71 | F29: -
A30: B3 | B30: Auxílio-enfermidade | C30: 0.91 | D30: 0.69 | E30: 0.87 | F30: 0.67
A31: B4 | B31: 13° salário | C31: 10.98 | D31: 8.33 | E31: 10.8 | F31: 8.33
A32: B5 | B32: Licença-paternidade | C32: 0.07 | D32: 0.06 | E32: 0.07 | F32: 0.06
A33: B6 | B33: Faltas Justificadas | C33: 0.73 | D33: 0.56 | E33: 0.72 | F33: 0.56
A34: B7 | B34: Dias de chuva | C34: 1.45 | D34: - | E34: 1.55 | F34: 0
A35: B8 | B35: Auxílio Acidente de Trabalho | C35: 0.11 | D35: 0.09 | E35: 0.11 | F35: 0.08
A36: B9 | B36: Férias Gozadas | C36: 11.35 | D36: 8.62 | E36: 8.71 | F36: 6.73
A37: B10 | B37: Salário Maternidade | C37: 0.03 | D37: 0.03 | E37: 0.03 | F37: 0.03
A38: B | B38: Total | C38: =SUM(C28:C37) -> 47.45 | D38: =SUM(D28:D37) -> 18.38 | E38: =SUM(E28:E37) -> 44.41 | F38: =SUM(F28:F37) -> 16.46
A39: GRUPO C
A40: C1 | B40: Aviso Prévio Indenizado | C40: 6.76 | D40: 5.14 | E40: 5.4 | F40: 4.17
A41: C2 | B41: Aviso Prévio Trabalhado | C41: 0.16 | D41: 0.12 | E41: 0.13 | F41: 0.1
A42: C3 | B42: Férias Indenizadas | C42: 2.28 | D42: 1.73 | E42: 4.85 | F42: 3.75
A43: C4 | B43: Depósito Rescisão Sem Justa Causa | C43: 3.81 | D43: 2.89 | E43: 3.9 | F43: 3.01
A44: C5 | B44: Indenização Adicional | C44: 0.57 | D44: 0.43 | E44: 0.45 | F44: 0.35
A45: C | B45: Total | C45: =SUM(C40:C44) -> 13.58 | D45: =SUM(D40:D44) -> 10.31 | E45: =SUM(E40:E44) -> 14.73 | F45: =SUM(F40:F44) -> 11.38
A46: GRUPO D
A47: D1 | B47: Reincidência de A sobre B | C47: 8.45 | D47: 3.27 | E47: 16.34 | F47: 6.06
A48: D2 | B48: Reincidência de Grupo A sobre Aviso Prévio Trabalhado e Reincidência do FGTS sobre Aviso Prévio Indenizado | C48: 0.57 | D48: 0.43 | E48: 0.48 | F48: 0.37
A49: D | B49: Total | C49: =SUM(C47:C48) -> 9.02 | D49: =SUM(D47:D48) -> 3.7 | E49: =SUM(E47:E48) -> 16.82 | F49: =SUM(F47:F48) -> 6.43
A51: T O T A L (%) | C51: =C26+C38+C45+C49 -> 87.85 | D51: =D26+D38+D45+D49 -> 50.19 | E51: =E26+E38+E45+E49 -> 112.76 | F51: =F26+F38+F45+F49 -> 71.07

Sheet CPU_SICRO
M1: Estado do Ceará | P1: DMT | Q1: 10
A2: CGCIT | I2: DNIT | M2: 2021-04-01
A3: SISTEMA DE CUSTOS REFERENCIAIS DE OBRAS - SICRO | D3: =$M$1 -> Estado do Ceará
A4: Custo Unitário de Referência | D4: =M2 -> 2021-04-01 | G4: Produção da equipe | H4: 99.6 | I4: t
A5: 4011463 | B5: Concreto asfáltico - faixa C - areia e brita comerciais | H5: Valores em reais (R$)
A6: A - EQUIPAMENTOS | C6: Quantidade | D6: Utilização | F6: Custo Horário | I6: Custo
D7: Operativa | E7: Improdutiva | F7: Produtivo | G7: Improdutivo | I7: Horário Total
A8: E9762 | B8: Rolo compactador de pneus autopropelido de 27 t - 85 kW | C8: 1 | D8: 0.71 | E8: 0.29 | F8: 158.7539 | G8: 74.3931 | I8: =ROUND((C8*(D8*F8))+(C8*(E8*G8)),4) -> 134.2893
A9: E9681 | B9: Rolo compactador liso tandem vibratório autopropelido de 10,4 t - 82 kW | C9: 1 | D9: 0.82 | E9: 0.18 | F9: 197.3405 | G9: 71.2946 | I9: 174.6522
A10: E9545 | B10: Vibroacabadora de asfalto sobre esteiras - 82 kW | C10: 1 | D10: 1 | E10: 0 | F10: 192.5613 | G10: 81.7839 | I10: 192.5613
G11: Custo horário total de equipamentos | I11: =SUM(I8:I10) -> 501.5028
A12: B - MÃO DE OBRA | C12: Quantidade | D12: Unidade | E12: Custo Horário | G12: Custo Horário Total
A13: P9824 | B13: Servente | C13: 8 | D13: h | E13: 16.2666 | I13: =ROUND(C13*E13,4) -> 130.1328
C14: Custo horário total de mão de obra | H14: =SUM(I13) -> 130.1328
C15: Custo horário total de execução | I15: =SUM(H14,I11) -> 631.6356
C16: Custo unitário de execução | I16: =I15/H4 -> 6.341722892
G17: Custo do FIC | I17: 0.0143
G18: Custo do FIT | I18: -
A19: C - MATERIAL | C19: Quantidade | D19: Unidade | E19: Preço Unitário | G19: Custo Unitário
C20: Custo unitário total de material
A21: D - ATIVIDADES AUXILIARES | C21: Quantidade | D21: Unidade | E21: Custo Unitário | G21: Custo Unitário
A22: 6416078 | B22: Usinagem de concreto asfáltico - faixa C - areia e brita comerciais | C22: 1.02 | D22: t | F22: 127.06 | I22: =ROUND(C22*F22,4) -> 129.6012
C23: Custo total de atividades auxiliares | I23: =SUM(I22) -> 129.6012
G24: Subtotal | I24: =SUM(I23,I17,I16,I18) -> 135.9572229
A25: E - TEMPO FIXO | C25: Código | D25: Quantidade | E25: Unidade | F25: Custo Unitário | H25: Custo Unitário
A26: 6416078 | B26: Usinagem de concreto asfáltico - faixa C - areia e brita comerciais - Caminhão basculante 10 m³ | C26: 5914649 | D26: 1.02 | E26: t | G26: 5.11 | I26: =ROUND(D26*G26,4) -> 5.2122
C27: Custo unitário total de tempo fixo | I27: =SUM(I26) -> 5.2122
A28: F - MOMENTO DE TRANSPORTE | C28: Quantidade | D28: Unidade | E28: DMT | I28: Custo Unitário
E29: LN | F29: RP | G29: P
A30: 6416078 | B30: Usinagem de concreto asfáltico - faixa C - areia e brita comerciais - Caminhão basculante 10 m³ | C30: 1.02 | D30: tkm | G30: =$Q$1 -> 10 | I30: =ROUND((C30*G30)*$I$164,4) -> 5.304 | K30: 5914389
C31: Custo unitário total de transporte | I31: =SUM(I30) -> 5.304
E32: Custo unitário direto total | I32: =SUM(I31,I27,I24) -> 146.4734229
F33: BDI | G33: =BDI!F26 -> 0.2158381752 | I33: =ROUND(I32*G33,4) -> 31.6146
G34: Preço Unitário: | I34: =SUM(I32,I33) -> 178.0880229
A35: Obs.
A37: CGCIT | I37: DNIT
A38: SISTEMA DE CUSTOS REFERENCIAIS DE OBRAS - SICRO | D38: =$M$1 -> Estado do Ceará
A39: Custo Unitário de Referência | D39: =M2 -> 2021-04-01 | G39: Produção da equipe | H39: 99.6 | I39: t
A40: 6416078 | B40: Usinagem de concreto asfáltico - faixa C - areia e brita comerciais | H40: Valores em reais (R$)
A41: A - EQUIPAMENTOS | C41: Quantidade | D41: Utilização | F41: Custo Horário | I41: Custo
D42: Operativa | E42: Improdutiva | F42: Produtivo | G42: Improdutivo | I42: Horário Total
A43: E9559 | B43: Aquecedor de fluido térmico - 12 kW | C43: 1 | D43: 1 | E43: 0 | F43: 51.5297 | G43: 28.3592 | I43: =ROUND((C43*(D43*F43))+(C43*(E43*G43)),4) -> 51.5297
A44: E9584 | B44: Carregadeira de pneus com capacidade de 1,72 m³ - 113 kW | C44: 1 | D44: 0.8 | E44: 0.2 | F44: 136.6478 | G44: 66.785 | I44: 122.6752
A45: E9021 | B45: Grupo gerador - 456 kVA | C45: 1 | D45: 1 | E45: 0 | F45: 300.2696 | G45: 14.4023 | I45: 300.2696
A46: E9558 | B46: Tanque de estocagem de asfalto com capacidade de 30.000 l | C46: 2 | D46: 1 | E46: 0 | F46: 48.5772 | G46: 32.0022 | I46: 97.1544
A47: E9689 | B47: Usina de asfalto a quente gravimétrica com capacidade de 100/140 t/h - 260 kW | C47: 1 | D47: 1 | E47: 0 | F47: 919.3189 | G47: 464.3495 | I47: 919.3189
G48: Custo horário total de equipamentos | I48: =SUM(I43:I47) -> 1490.9478
A49: B - MÃO DE OBRA | C49: Quantidade | D49: Unidade | E49: Custo Horário | G49: Custo Horário Total
A50: P9824 | B50: Servente | C50: 4 | D50: h | E50: 16.2666 | I50: =ROUND(C50*E50,4) -> 65.0664
C51: Custo horário total de mão de obra | H51: =SUM(I50) -> 65.0664
C52: Custo horário total de execução | I52: =SUM(I48,H51) -> 1556.0142
C53: Custo unitário de execução | I53: =I52/H39 -> 15.62263253
G54: Custo do FIC | I54: -
G55: Custo do FIT | I55: -
A56: C - MATERIAL | C56: Quantidade | D56: Unidade | E56: Preço Unitário | G56: Custo Unitário
A57: M0028 | B57: Areia média | C57: 0.32475 | D57: m³ | F57: 92.049 | I57: =ROUND(C57*F57,4) -> 29.8929
A58: M0005 | B58: Brita 0 | C58: 0.06245 | D58: m³ | F58: 96.5853 | I58: =ROUND(C58*F58,4) -> 6.0318
A59: M0191 | B59: Brita 1 | C59: 0.06245 | D59: m³ | F59: 93.9769 | I59: 5.8689
A60: M0344 | B60: Cal hidratada - a granel | C60: 56.2 | D60: kg | F60: 0.4015 | I60: 22.5643
A61: M1943 | B61: Cimento asfáltico CAP 50/70 | C61: 0.06323 | D61: t | I61: 0
A62: M1941 | B62: Óleo combustível 1A | C62: 8 | D62: l | F62: 4.0477 | I62: 32.3816
A63: M1103 | B63: Pedrisco | C63: 0.13739 | D63: m³ | F63: 94.3767 | I63: 12.9664
C64: Custo unitário total de material | I64: =SUM(I57:I63) -> 109.7059
A65: D - ATIVIDADES AUXILIARES | C65: Quantidade | D65: Unidade | E65: Custo Unitário | G65: Custo Unitário
C66: Custo total de atividades auxiliares
G67: Subtotal | I67: =SUM(I64,I53,I54,I55) -> 125.3285325
A68: E - TEMPO FIXO | C68: Código | D68: Quantidade | E68: Unidade | F68: Custo Unitário | H68: Custo Unitário
A69: M0028 | B69: Areia média - Caminhão basculante 10 m³ | C69: 5914647 | D69: 0.48713 | E69: t | G69: 1.16 | I69: =ROUND(D69*G69,4) -> 0.5651
A70: M0005 | B70: Brita 0 - Caminhão basculante 10 m³ | C70: 5914647 | D70: 0.09368 | E70: t | G70: 1.16 | I70: =ROUND(D70*G70,4) -> 0.1087
A71: M0191 | B71: Brita 1 - Caminhão basculante 10 m³ | C71: 5914647 | D71: 0.09368 | E71: t | G71: 1.16 | I71: 0.1087
A72: M0344 | B72: Cal hidratada - a granel - Caminhão silo 30 m³ | C72: 5914363 | D72: 0.0562 | E72: t | G72: 12.6 | I72: 0.7081
A73: M1103 | B73: Pedrisco - Caminhão basculante 10 m³ | C73: 5914647 | D73: 0.20609 | E73: t | G73: 1.16 | I73: 0.2391
C74: Custo unitário total de tempo fixo | I74: =SUM(I69:I73) -> 1.7297
A75: F - MOMENTO DE TRANSPORTE | C75: Quantidade | D75: Unidade | E75: DMT | I75: Custo Unitário
E76: LN | F76: RP | G76: P
A77: M0028 | B77: Areia média - Caminhão basculante 10 m³ | C77: 0.48713 | D77: tkm | G77: =$Q$1 -> 10 | I77: =ROUND((C77*G77)*$I$164,4) -> 2.5331 | K77: 5914389
A78: M0005 | B78: Brita 0 - Caminhão basculante 10 m³ | C78: 0.09368 | D78: tkm | G78: =$Q$1 -> 10 | I78: =ROUND((C78*G78)*$I$164,4) -> 0.4871 | K78: 5914389
A79: M0191 | B79: Brita 1 - Caminhão basculante 10 m³ | C79: 0.09368 | D79: tkm | G79: 10 | I79: =ROUND((C79*G79)*$I$164,4) -> 0.4871 | K79: 5914389
A80: M0344 | B80: Cal hidratada - a granel - Caminhão silo 30 m³ | C80: 0.0562 | D80: tkm | G80: 10 | I80: =ROUND((C80*G80)*$I$191,4) -> 0.236 | K80: 5914366
A81: M1103 | B81: Pedrisco - Caminhão basculante 10 m³ | C81: 0.20609 | D81: tkm | G81: 10 | I81: =ROUND((C81*G81)*$I$164,4) -> 1.0717 | K81: 5914389
C82: Custo unitário total de transporte | I82: =SUM(I77:I81) -> 4.815
E83: Custo unitário direto total | I83: =ROUND(SUM(I82,I74,I67),2) -> 131.87
A84: Obs.
A86: CGCIT | I86: DNIT
A87: SISTEMA DE CUSTOS REFERENCIAIS DE OBRAS - SICRO | D87: =$M$1 -> Estado do Ceará
A88: Custo Unitário de Referência | D88: =M2 -> 2021-04-01 | G88: Produção da equipe | H88: 457.16 | I88: t
A89: 5914647 | B89: Carga, manobra e descarga de agregados ou solos em caminhão basculante de 10 m³ - carga com carregadeira de 3,40 m³ (exclusa) e descarga livre | H89: Valores em reais (R$)
A90: A - EQUIPAMENTOS | C90: Quantidade | D90: Utilização | F90: Custo Horário | I90: Custo
D91: Operativa | E91: Improdutiva | F91: Produtivo | G91: Improdutivo | I91: Horário Total
A92: E9579 | B92: Caminhão basculante com capacidade de 10 m³ - 188 kW | C92: 3 | D92: 0.86 | E92: 0.14 | F92: 195.966 | G92: 57.5492 | I92: =ROUND((C92*(D92*F92))+(C92*(E92*G92)),4) -> 529.7629
G93: Custo horário total de equipamentos | I93: =SUM(I92) -> 529.7629
A94: B - MÃO DE OBRA | C94: Quantidade | D94: Unidade | E94: Custo Horário | G94: Custo Horário Total
C95: Custo horário total de mão de obra | H95: -
C96: Custo horário total de execução | I96: =SUM(I93) -> 529.7629
C97: Custo unitário de execução | I97: =I96/H88 -> 1.158812888
G98: Custo do FIC | I98: -
G99: Custo do FIT | I99: -
A100: C - MATERIAL | C100: Quantidade | D100: Unidade | E100: Preço Unitário | G100: Custo Unitário
C101: Custo unitário total de material
A102: D - ATIVIDADES AUXILIARES | C102: Quantidade | D102: Unidade | E102: Custo Unitário | G102: Custo Unitário
C103: Custo total de atividades auxiliares
G104: Subtotal | I104: =SUM(I97,I98,I99) -> 1.158812888
A105: E - TEMPO FIXO | C105: Código | D105: Quantidade | E105: Unidade | F105: Custo Unitário | H105: Custo Unitário
C106: Custo unitário total de tempo fixo
A107: F - MOMENTO DE TRANSPORTE | C107: Quantidade | D107: Unidade | E107: DMT | I107: Custo Unitário
E108: LN | F108: RP | G108: P
C109: Custo unitário total de transporte
E110: Custo unitário direto total | I110: =ROUND(SUM(I104),4) -> 1.1588
A111: Obs.
A113: CGCIT | I113: DNIT
A114: SISTEMA DE CUSTOS REFERENCIAIS DE OBRAS - SICRO | D114: =$M$1 -> Estado do Ceará
A115: Custo Unitário de Referência | D115: =M2 -> 2021-04-01 | G115: Produção da equipe | H115: 25.97 | I115: t
A116: 5914363 | B116: Carga, manobra e descarga de cimento a granel em caminhão silo de 30 m³ | H116: Valores em reais (R$)
A117: A - EQUIPAMENTOS | C117: Quantidade | D117: Utilização | F117: Custo Horário | I117: Custo
D118: Operativa | E118: Improdutiva | F118: Produtivo | G118: Improdutivo | I118: Horário Total
A119: E9146 | B119: Caminhão silo com capacidade de 30 m³ - 265 kW | C119: 1 | D119: 1 | E119: 0 | F119: 327.2601 | G119: 75.7196 | I119: =ROUND((C119*(D119*F119))+(C119*(E119*G119)),4) -> 327.2601
G120: Custo horário total de equipamentos | I120: =SUM(I119) -> 327.2601
A121: B - MÃO DE OBRA | C121: Quantidade | D121: Unidade | E121: Custo Horário | G121: Custo Horário Total
C122: Custo horário total de mão de obra | H122: -
C123: Custo horário total de execução | I123: =SUM(I120) -> 327.2601
C124: Custo unitário de execução | I124: =I123/H115 -> 12.60146708
G125: Custo do FIC | I125: -
G126: Custo do FIT | I126: -
A127: C - MATERIAL | C127: Quantidade | D127: Unidade | E127: Preço Unitário | G127: Custo Unitário
C128: Custo unitário total de material
A129: D - ATIVIDADES AUXILIARES | C129: Quantidade | D129: Unidade | E129: Custo Unitário | G129: Custo Unitário
C130: Custo total de atividades auxiliares
G131: Subtotal | I131: =SUM(I124,I125,I126) -> 12.60146708
A132: E - TEMPO FIXO | C132: Código | D132: Quantidade | E132: Unidade | F132: Custo Unitário | H132: Custo Unitário
C133: Custo unitário total de tempo fixo
A134: F - MOMENTO DE TRANSPORTE | C134: Quantidade | D134: Unidade | E134: DMT | I134: Custo Unitário
E135: LN | F135: RP | G135: P
C136: Custo unitário total de transporte
E137: Custo unitário direto total | I137: =ROUND(SUM(I131),2) -> 12.6
A138: Obs.
A140: CGCIT | I140: DNIT
A141: SISTEMA DE CUSTOS REFERENCIAIS DE OBRAS - SICRO | D141: =$M$1 -> Estado do Ceará
A142: Custo Unitário de Referência | D142: =M2 -> 2021-04-01 | G142: Produção da equipe | H142: 373.5 | I142: tkm
A143: 5914389 | B143: Transporte com caminhão basculante de 10 m³ - rodovia pavimentada | H143: Valores em reais (R$)
A144: A - EQUIPAMENTOS | C144: Quantidade | D144: Utilização | F144: Custo Horário | I144: Custo
D145: Operativa | E145: Improdutiva | F145: Produtivo | G145: Improdutivo | I145: Horário Total
A146: E9579 | B146: Caminhão basculante com capacidade de 10 m³ - 188 kW | C146: 1 | D146: 1 | E146: 0 | F146: 195.966 | G146: 57.5492 | I146: =ROUND((C146*(D146*F146))+(C146*(E146*G146)),4) -> 195.966
G147: Custo horário total de equipamentos | I147: =SUM(I146) -> 195.966
A148: B - MÃO DE OBRA | C148: Quantidade | D148: Unidade | E148: Custo Horário | G148: Custo Horário Total
C149: Custo horário total de mão de obra | H149: -
C150: Custo horário total de execução | I150: =SUM(I147) -> 195.966
C151: Custo unitário de execução | I151: =I150/H142 -> 0.5246746988
G152: Custo do FIC | I152: -
G153: Custo do FIT | I153: -
A154: C - MATERIAL | C154: Quantidade | D154: Unidade | E154: Preço Unitário | G154: Custo Unitário
C155: Custo unitário total de material
A156: D - ATIVIDADES AUXILIARES | C156: Quantidade | D156: Unidade | E156: Custo Unitário | G156: Custo Unitário
C157: Custo total de atividades auxiliares
G158: Subtotal | I158: =SUM(I151,I152,I153) -> 0.5246746988
A159: E - TEMPO FIXO | C159: Código | D159: Quantidade | E159: Unidade | F159: Custo Unitário | H159: Custo Unitário
C160: Custo unitário total de tempo fixo
A161: F - MOMENTO DE TRANSPORTE | C161: Quantidade | D161: Unidade | E161: DMT | I161: Custo Unitário
E162: LN | F162: RP | G162: P
C163: Custo unitário total de transporte | I163: -
E164: Custo unitário direto total | I164: =ROUND(SUM(I158),2) -> 0.52
A165: Obs.
A167: CGCIT | I167: DNIT
A168: SISTEMA DE CUSTOS REFERENCIAIS DE OBRAS - SICRO | D168: =$M$1 -> Estado do Ceará
A169: Custo Unitário de Referência | D169: =M2 -> 2021-04-01 | G169: Produção da equipe | H169: 779.12 | I169: tkm
A170: 5914366 | B170: Transporte de cimento a granel com caminhão silo de 30 m³ - rodovia pavimentada | H170: Valores em reais (R$)
A171: A - EQUIPAMENTOS | C171: Quantidade | D171: Utilização | F171: Custo Horário | I171: Custo
D172: Operativa | E172: Improdutiva | F172: Produtivo | G172: Improdutivo | I172: Horário Total
A173: E9146 | B173: Caminhão silo com capacidade de 30 m³ - 265 kW | C173: 1 | D173: 1 | E173: 0 | F173: 327.2601 | G173: 75.7196 | I173: =ROUND((C173*(D173*F173))+(C173*(E173*G173)),4) -> 327.2601
G174: Custo horário total de equipamentos | I174: =SUM(I173) -> 327.2601
A175: B - MÃO DE OBRA | C175: Quantidade | D175: Unidade | E175: Custo Horário | G175: Custo Horário Total
C176: Custo horário total de mão de obra | H176: -
C177: Custo horário total de execução | I177: =SUM(I174) -> 327.2601
C178: Custo unitário de execução | I178: =I177/H169 -> 0.4200381199
G179: Custo do FIC | I179: -
G180: Custo do FIT | I180: -
A181: C - MATERIAL | C181: Quantidade | D181: Unidade | E181: Preço Unitário | G181: Custo Unitário
C182: Custo unitário total de material
A183: D - ATIVIDADES AUXILIARES | C183: Quantidade | D183: Unidade | E183: Custo Unitário | G183: Custo Unitário
C184: Custo total de atividades auxiliares
G185: Subtotal | I185: =SUM(I178,I179,I180) -> 0.4200381199
A186: E - TEMPO FIXO | C186: Código | D186: Quantidade | E186: Unidade | F186: Custo Unitário | H186: Custo Unitário
C187: Custo unitário total de tempo fixo
A188: F - MOMENTO DE TRANSPORTE | C188: Quantidade | D188: Unidade | E188: DMT | I188: Custo Unitário
E189: LN | F189: RP | G189: P
C190: Custo unitário total de transporte | I190: -
E191: Custo unitário direto total | I191: =ROUND(SUM(I185),2) -> 0.42
A192: Obs.
A194: CGCIT | I194: DNIT
A195: SISTEMA DE CUSTOS REFERENCIAIS DE OBRAS - SICRO | D195: =$M$1 -> Estado do Ceará
A196: Custo Unitário de Referência | D196: =M2 -> 2021-04-01 | G196: Produção da equipe | H196: 99.6 | I196: t
A197: 5914649 | B197: Carga, manobra e descarga de mistura betuminosa a quente em caminhão basculante de 10 m³ - carga em usina de asfalto 100/140 t/h e descarga em vibroacabadora | H197: Valores em reais (R$)
A198: A - EQUIPAMENTOS | C198: Quantidade | D198: Utilização | F198: Custo Horário | I198: Custo
D199: Operativa | E199: Improdutiva | F199: Produtivo | G199: Improdutivo | I199: Horário Total
A200: E9579 | B200: Caminhão basculante com capacidade de 10 m³ - 188 kW | C200: 3 | D200: 0.81 | E200: 0.19 | F200: 195.966 | G200: 57.5492 | I200: =ROUND((C200*(D200*F200))+(C200*(E200*G200)),4) -> 509.0004
G201: Custo horário total de equipamentos | I201: =SUM(I200) -> 509.0004
A202: B - MÃO DE OBRA | C202: Quantidade | D202: Unidade | E202: Custo Horário | G202: Custo Horário Total
C203: Custo horário total de mão de obra | H203: -
C204: Custo horário total de execução | I204: =SUM(I201) -> 509.0004
C205: Custo unitário de execução | I205: =I204/H196 -> 5.110445783
G206: Custo do FIC | I206: -
... 936 more rows

Sheet TRANSPORTE CAP-50-70
B8: MEMÓRIA DE CÁLCULO
B11: REAJUSTE | E11: TIPOLOGIA DO MATERIAL | G11: CIMENTO ASFALTICO DE PETRÓLEO | K11: IMPOSTOS | L11: COFINS | M11: 0.03
F12: 2014-07-01 | G12: ÍNDICE INICIAL | H12: 270.237 | L12: PIS | M12: 0.0065 | O12: LEGENDA
F13: 2021-09-01 | G13: ÍNDICE FINAL | H13: 428.475 | I13: =ROUND(H13/H12,4) -> 1.5856 | L13: ICMS | M13: 0.18 | N13: =1-(M13/1) -> 0.82 | O13: ENTRADA DE DADOS
E14: CAP50/70
B15: DATA-BASE | C15: PRODUTOS | D15: LOCALIDADES | H15: CUSTO ANP (R$/Kg) | J15: CUSTO ANP | K15: IMPOSTOS DO PRODUTO | L15: CUSTO DO PRODUTO COM IMPOSTOS | M15: DMT's | N15: CUSTO DO TRANSPORTE RODOVIA PAVIMENTADA | O15: ICMS | P15: ATUALIZAÇÃO DO CUSTO DE TRANSPORTE | Q15: CUSTO DO TRANSPORTE RODOVIA PAVIMENTADA COM IMPOSTOS E ATUALIZAÇÃO MONETÁRIA | R15: PEDÁGIO | T15: TOTAL TRANSPORTE | U15: TOTAL PRODUTO | V15: TOTAL GERAL
B16: =F13 -> 2021-09-01 | D16: REFINARIAS | E16: ENDEREÇO | F16: ORIGEM REFINARIAS / CAPITAIS | G16: DESTINO | H16: ESTADO | I16: REGIÃO | J16: R$/t | K16: R$/t | L16: R$/t | M16: KM | N16: R$/t | O16: R$/t | P16: R$/t | Q16: R$/t | R16: CUSTO | S16: R$/t | T16: R$/t | U16: R$/t | V16: R$/t | X16: TOTAL GERAL | Y16: TOTAL PRODUTO | Z16: TOTAL TRANSPORTE | BP16: PAVIMETAÇÃO
B17: 1 | C17: CAP 50/70 | D17: Refinaria Abreu e Lima | E17: Rodovia PE 60, Km 10 - Ipojuca - PE CEP:55590-000 | F17: IPOJUCA - PE | G17: Fortaleza - CE | I17: 3.293992402 | J17: =IF(AND(H17="",I17=""),"",IF(AND(H17<>0,I17=""),H17*1000,IF(AND(H17="",I17<>0),I17*1000,IF(AND(H17<>0,I17<>0),H17*1000,"")))) -> 3293.992402 | K17: =ROUND(((J17/(1-$M$11-$M$12-$M$13))-J17),2) -> 910.21 | L17: =J17+K17 -> 4204.202402 | M17: 838 | N17: =ROUND((26.939+0.253*M17),2) -> 238.95 | O17: =TRUNC(N17*($M$13/(1-$M$13)),2) -> 52.45 | P17: =TRUNC(IF($H$12="","",(($H$13-$H$12)/$H$12)*(N17+O17)),2) -> 170.63 | Q17: =N17+O17+P17 -> 462.03 | R17: 52.2 | S17: =EVEN(' CONSUMO DE MAT. B TOTAL'!$P$18*2/28)*R17/' CONSUMO DE MAT. B TOTAL'!$P$18 -> 3.747861894 | T17: =IF(AND(N17="",O17=""),"",Q17+S17) -> 465.7778619 | U17: =IF(OR(J17="",K17=""),"",J17+K17) -> 4204.202402 | V17: =IF(OR(T17="",U17=""),"",T17+U17) -> 4669.980263 | X17: =V17 -> 4669.980263 | Y17: =U17 -> 4204.202402 | Z17: =T17 -> 465.7778619 | BP17: CIMENTO ASFALTICO DE PETRÓLEO
B18: 2 | D18: Refinaria Potiguar Clara Camarão | E18: Rodovia RN 221, KM 25 - Guamaré - RN CEP:59598-000 | F18: GUAMARÉ - RN | G18: Fortaleza - CE | I18: 3.293992402 | J18: =IF(AND(H18="",I18=""),"",IF(AND(H18<>0,I18=""),H18*1000,IF(AND(H18="",I18<>0),I18*1000,IF(AND(H18<>0,I18<>0),H18*1000,"")))) -> 3293.992402 | K18: =(J18/(1-$M$11-$M$12-$M$13))-J18 -> 910.2097702 | L18: =J18+K18 -> 4204.202172 | M18: 420 | N18: =ROUND((26.939+0.253*M18),2) -> 133.2 | O18: =TRUNC(N18*($M$13/(1-$M$13)),2) -> 29.23 | P18: =TRUNC(IF($H$12="","",(($H$13-$H$12)/$H$12)*(N18+O18)),2) -> 95.11 | Q18: =N18+O18+P18 -> 257.54 | R18: 0 | S18: =EVEN(' CONSUMO DE MAT. B TOTAL'!$P$18*2/28)*R18/' CONSUMO DE MAT. B TOTAL'!$P$18 -> 0 | T18: 257.54 | U18: 4204.202172 | V18: =IF(OR(T18="",U18=""),"",T18+U18) -> 4461.742172 | X18: =V18 -> 4461.742172 | Y18: =U18 -> 4204.202172 | Z18: =T18 -> 257.54 | BP18: ASFALTO DILUÍDO
B19: 3 | D19: Refinaria Landulpho Alves (RLAM) | E19: Rodovia BA 523, KM 4 – Mataripe São Francisco do Conde - BA CEP:43900-000 | F19: SÃO FRANCISCO DO CONDE - BA | G19: Fortaleza - CE | H19: 3.249299922 | J19: 3249.299922 | K19: =ROUND(((J19/(1-$M$13-$M$12-$M$11))-J19),2) -> 897.86 | L19: 4147.159922 | M19: 1180 | N19: 325.48 | O19: =TRUNC((N19/$N$13)-N19,2) -> 71.44 | P19: 232.41 | Q19: 629.33 | R19: 14.4 | S19: =EVEN(' CONSUMO DE MAT. B TOTAL'!$P$18*2/28)*R19/' CONSUMO DE MAT. B TOTAL'!$P$18 -> 1.033892936 | T19: 630.3638929 | U19: =L19 -> 4147.159922 | V19: =IF(OR(T19="",U19=""),"",T19+U19)-0.01 -> 4777.513815 | X19: 4777.513815 | Y19: 4147.159922 | Z19: 630.3638929 | BP19: LIGANTE BETUMINOSO
B20: 4 | D20: Refinaria Lubrificantes e Derivados do Nordeste (Lubnor) | E20: Av. Leite Barbosa, s/nº - Mucuripe Fortaleza - Ceará CEP:60180-420 | F20: FORTALEZA - CE | G20: Fortaleza - CE | H20: 3.304027772 | J20: 3304.027772 | K20: 912.98 | L20: 4217.007772 | M20: 5 | N20: 28.2 | O20: =TRUNC((N20/$N$13)-N20,2) -> 6.19 | P20: 20.13 | Q20: 54.52 | R20: 0 | S20: =EVEN(' CONSUMO DE MAT. B TOTAL'!$P$18*2/28)*R20/' CONSUMO DE MAT. B TOTAL'!$P$18 -> 0 | T20: 54.52 | U20: 4217.007772 | V20: =IF(OR(T20="",U20=""),"",T20+U20) -> 4271.527772 | X20: 4271.527772 | Y20: 4217.007772 | Z20: 54.52
B21: 5 | D21: Refinaria Capuava (Recap) | E21: Av. Alberto Soares Sampaio, 2122-A Capuava – Mauá - SP | F21: MAUÁ - SP | G21: Fortaleza - CE | H21: 3.853975114 | J21: 3853.975114 | K21: 1064.95 | L21: 4918.925114 | M21: 2991 | N21: 783.66 | O21: 172.02 | P21: 559.6 | Q21: 1515.28 | R21: 511.2 | S21: =EVEN(' CONSUMO DE MAT. B TOTAL'!$P$18*2/28)*R21/' CONSUMO DE MAT. B TOTAL'!$P$18 -> 36.70319924 | T21: 1551.983199 | U21: 4918.925114 | V21: 6470.908313 | X21: 6470.908313 | Y21: 4918.925114 | Z21: 1551.983199
B22: 6 | D22: Refinaria Duque de Caxias (Reduc) | E22: Rodovia Washington Luiz, km 113,7 Campos Elíseos – Duque de Caxias - RJ CEP:25213-005 | F22: DUQUE DE CAXIAS - RJ | G22: Fortaleza - CE | H22: 3.895939601 | J22: 3895.939601 | K22: 1076.54 | L22: 4972.479601 | M22: 2614 | N22: 688.28 | O22: 151.08 | P22: 491.48 | Q22: 1330.84 | R22: 241.8 | S22: =EVEN(' CONSUMO DE MAT. B TOTAL'!$P$18*2/28)*R22/' CONSUMO DE MAT. B TOTAL'!$P$18 -> 17.36078556 | T22: 1348.200786 | U22: 4972.479601 | V22: 6320.680387 | X22: 6320.680387 | Y22: 4972.479601 | Z22: 1348.200786
B23: 7 | D23: Refinaria Alberto Pasqualini (Refap) | E23: Avenida Getúlio Vargas, 11001 - Bairro Brigadeira Canoas - RS - Brasil CEP:92420-221 | F23: CANOAS - RS | G23: Fortaleza - CE | H23: 3.635505767 | J23: 3635.505767 | K23: 1004.58 | L23: 4640.085767 | M23: 4071 | N23: 1056.9 | O23: 232 | P23: 754.71 | Q23: 2043.61 | R23: 972 | S23: =EVEN(' CONSUMO DE MAT. B TOTAL'!$P$18*2/28)*R23/' CONSUMO DE MAT. B TOTAL'!$P$18 -> 69.7877732 | T23: 2113.397773 | U23: 4640.085767 | V23: 6753.48354 | X23: 6753.48354 | Y23: 4640.085767 | Z23: 2113.397773
B24: 8 | D24: Unidade de Industrialização do Xisto (SIX) | E24: Rodovia do Xisto, BR 476, km 153 São Mateus do Sul – PR CEP 83900-000 | F24: SÃO MATEUS DO SUL - PR | G24: Fortaleza - CE | H24: 3.696572238 | J24: 3696.572238 | K24: 1021.45 | L24: 4718.022238 | M24: 3518 | N24: 916.99 | O24: 201.29 | P24: 654.81 | Q24: 1773.09 | R24: 640.8 | S24: =EVEN(' CONSUMO DE MAT. B TOTAL'!$P$18*2/28)*R24/' CONSUMO DE MAT. B TOTAL'!$P$18 -> 46.00823567 | T24: 1819.098236 | U24: 4718.022238 | V24: 6537.120474 | X24: 6537.120474 | Y24: 4718.022238 | Z24: 1819.098236
B25: 9 | D25: Refinaria Gabriel Passos (Regap) | E25: Av. Refinaria Gabriel Passos, 690 Distrito Industrial Paulo Camilo Sul Betim - MG CEP:32669-205 | F25: BETIM - MG | G25: Fortaleza - CE | H25: 3.491643916 | J25: 3491.643916 | K25: 964.83 | L25: 4456.473916 | M25: 2402 | N25: 634.65 | O25: 139.31 | P25: 453.19 | Q25: 1227.15 | R25: 400.8 | S25: =EVEN(' CONSUMO DE MAT. B TOTAL'!$P$18*2/28)*R25/' CONSUMO DE MAT. B TOTAL'!$P$18 -> 28.77668673 | T25: 1255.926687 | U25: 4456.473916 | V25: 5712.400603 | X25: 5712.400603 | Y25: 4456.473916 | Z25: 1255.926687
B26: 10 | D26: Refinaria Presidente Getúlio Vargas (Repar) | E26: Rodovia do Xisto, BR 476, km 16 Araucária - PR CEP:83707-440 | F26: ARAUCÁRIA - PR | G26: Fortaleza - CE | H26: 3.696572238 | J26: 3696.572238 | K26: 1021.45 | L26: 4718.022238 | M26: 3412 | N26: 890.18 | O26: 195.4 | P26: 635.66 | Q26: 1721.24 | R26: 748.2 | S26: =EVEN(' CONSUMO DE MAT. B TOTAL'!$P$18*2/28)*R26/' CONSUMO DE MAT. B TOTAL'!$P$18 -> 53.71935382 | T26: 1774.959354 | U26: 4718.022238 | V26: 6492.981592 | X26: 6492.981592 | Y26: 4718.022238 | Z26: 1774.959354
B27: 11 | D27: Refinaria Presidente Bernardes (RPBC) | E27: Av. 9 de abril, 777 - Jardim das Indústrias Cubatão - SP CEP:11505-000 | F27: CUBATÃO - SP | G27: Fortaleza - CE | H27: 3.853975114 | J27: 3853.975114 | K27: 1064.95 | L27: 4918.925114 | M27: 3032 | N27: 794.04 | O27: 174.3 | P27: 567.01 | Q27: 1535.35 | R27: 511.2 | S27: =EVEN(' CONSUMO DE MAT. B TOTAL'!$P$18*2/28)*R27/' CONSUMO DE MAT. B TOTAL'!$P$18 -> 36.70319924 | T27: 1572.053199 | U27: 4918.925114 | V27: 6490.978313 | X27: 6490.978313 | Y27: 4918.925114 | Z27: 1572.053199
B28: 12 | D28: Refinaria de Paulínia (Replan) | E28: Rodovia SP 332 - Km. 130 Bonfim - Paulínia – SP CEP:13140-000 | F28: PAULÍNIA - SP | G28: Fortaleza - CE | H28: 3.853975114 | J28: 3853.975114 | K28: 1064.95 | L28: 4918.925114 | M28: 2990 | N28: 783.41 | O28: 171.96 | P28: 559.41 | Q28: 1514.78 | R28: 615 | S28: =EVEN(' CONSUMO DE MAT. B TOTAL'!$P$18*2/28)*R28/' CONSUMO DE MAT. B TOTAL'!$P$18 -> 44.15584416 | T28: 1558.935844 | U28: 4918.925114 | V28: 6477.860958 | X28: 6477.860958 | Y28: 4918.925114 | Z28: 1558.935844
B29: 13 | D29: Refinaria Henrique Lage (Revap) | E29: Rodovia Presidente Dutra, KM 143, S/N Bairro Jardim Diamante - São José dos Campos – SP CEP:12223-900 | F29: SÃO JOSÉ DOS CAMPOS - SP | G29: Fortaleza - CE | H29: 3.853975114 | J29: 3853.975114 | K29: 1064.95 | L29: 4918.925114 | M29: 2907 | N29: 762.41 | O29: 167.35 | P29: 544.42 | Q29: 1474.18 | R29: 405.6 | S29: =EVEN(' CONSUMO DE MAT. B TOTAL'!$P$18*2/28)*R29/' CONSUMO DE MAT. B TOTAL'!$P$18 -> 29.12131771 | T29: 1503.301318 | U29: 4918.925114 | V29: 6422.226432 | X29: 6422.226432 | Y29: 4918.925114 | Z29: 1503.301318

Sheet TRANSPORTE RR-1C
B8: MEMÓRIA DE CÁLCULO
B11: REAJUSTE | F11: TIPOLOGIA DO MATERIAL | G11: EMULSÕES | K11: IMPOSTOS | L11: COFINS | M11: 0.03
F12: 2014-07-01 | G12: ÍNDICE INICIAL | H12: ='TRANSPORTE CAP-50-70'!H12 -> 270.237 | L12: PIS | M12: 0.0065 | O12: LEGENDA
F13: 2021-09-01 | G13: ÍNDICE FINAL | H13: ='TRANSPORTE CAP-50-70'!H13 -> 428.475 | I13: =ROUND(H13/H12,4) -> 1.5856 | L13: ICMS | M13: 0.18 | N13: =1-(M13/1) -> 0.82 | O13: ENTRADA DE DADOS
E14: rr-1c
B15: DATA-BASE | C15: PRODUTOS | D15: LOCALIDADES | H15: CUSTO ANP (R$/Kg) | J15: CUSTO ANP | K15: IMPOSTOS DO PRODUTO | L15: CUSTO DO PRODUTO COM IMPOSTOS | M15: DMT's | N15: CUSTO DO TRANSPORTE RODOVIA PAVIMENTADA | O15: ICMS | P15: ATUALIZAÇÃO DO CUSTO DE TRANSPORTE | Q15: CUSTO DO TRANSPORTE RODOVIA PAVIMENTADA COM IMPOSTOS E ATUALIZAÇÃO MONETÁRIA | R15: PEDÁGIO | T15: TOTAL TRANSPORTE | U15: TOTAL PRODUTO | V15: TOTAL GERAL
B16: =F13 -> 2021-09-01 | D16: EMPRESAS | E16: ENDEREÇO | F16: ORIGEM DISTRIBUIDORAS | G16: DESTINO | H16: ESTADO | I16: REGIÃO | J16: R$/t | K16: R$/t | L16: R$/t | M16: KM | N16: R$/t | O16: R$/t | P16: R$/t | Q16: R$/t | R16: CUSTO POR EIXO | S16: R$/t | T16: R$/t | U16: R$/t | V16: R$/t | X16: TOTAL GERAL | Y16: TOTAL PRODUTO | Z16: TOTAL TRANSPORTE | BP16: PAVIMETAÇÃO
B17: 1 | C17: EMULSÃO RR 1C | D17: 'CENTRO OESTE ASFALTOS LTDA. | E17: SETOR DE INFLAMÁVEIS, S/N TRECHO 02 - LOTE 1.100 - GUARÁ - CEP:71225-000 | F17: BRASÍLIA - DF | G17: Fortaleza - CE | I17: 2.666142087 | J17: =IF(AND(H17="",I17=""),"",IF(AND(H17<>0,I17=""),H17*1000,IF(AND(H17="",I17<>0),I17*1000,IF(AND(H17<>0,I17<>0),SMALL(H17:I17,1)*1000,"")))) -> 2666.142087 | K17: =(J17/(1-$M$11-$M$12-$M$13))-J17 -> 736.7195428 | L17: =IF(AND(H17="",I17=""),0,J17+K17) -> 3402.86163 | M17: 2202 | N17: =TRUNC(IF(M17="",0,26.939+0.253*M17),2) -> 584.04 | O17: =TRUNC(N17*($M$13/(1-$M$13)),2) -> 128.2 | P17: =TRUNC(IF($H$12="","",(($H$13-$H$12)/$H$12)*(N17+O17)),2) -> 417.05 | Q17: =N17+O17+P17 -> 1129.29 | R17: 0 | S17: =EVEN(' CONSUMO DE MAT. B TOTAL'!$P$16*2/28)*R17/' CONSUMO DE MAT. B TOTAL'!$P$16 -> 0 | T17: =IF(AND(N17="",O17=""),"",Q17+S17) -> 1129.29 | U17: =IF(OR(J17="",K17=""),"",J17+K17) -> 3402.86163 | V17: =IF(OR(T17="",U17=""),"",T17+U17) -> 4532.15163 | X17: =V17 -> 4532.15163 | Y17: =U17 -> 3402.86163 | Z17: =T17 -> 1129.29 | BP17: CIMENTO ASFALTICO DE PETRÓLEO
B18: 2 | D18: STRATURA ASFALTOS S/A | E18: AVENIDA PRESIDENTE WILSON, 08 - JUNDIAÍ - CEP:75115-100 | F18: ANÁPOLIS - GO | G18: Fortaleza - CE | I18: 2.666142087 | J18: =IF(AND(H18="",I18=""),"",IF(AND(H18<>0,I18=""),H18*1000,IF(AND(H18="",I18<>0),I18*1000,IF(AND(H18<>0,I18<>0),SMALL(H18:I18,1)*1000,"")))) -> 2666.142087 | K18: =(J18/(1-$M$11-$M$12-$M$13))-J18 -> 736.7195428 | L18: =IF(AND(H18="",I18=""),0,J18+K18) -> 3402.86163 | M18: 2352 | N18: =TRUNC(IF(M18="",0,26.939+0.253*M18),2) -> 621.99 | O18: =TRUNC((N18/$N$13)-N18,2) -> 136.53 | P18: =TRUNC(IF($H$12="","",(($H$13-$H$12)/$H$12)*(N18+O18)),2) -> 444.15 | Q18: =N18+O18+P18 -> 1202.67 | R18: 17.4 | S18: =EVEN(' CONSUMO DE MAT. B TOTAL'!$P$16*2/28)*R18/' CONSUMO DE MAT. B TOTAL'!$P$16 -> 1.364111498 | T18: 1204.034111 | U18: =IF(OR(J18="",K18=""),"",J18+K18) -> 3402.86163 | V18: 4606.895741 | X18: =V18 -> 4606.895741 | Y18: =U18 -> 3402.86163 | Z18: =T18 -> 1204.034111 | BP18: ASFALTO DILUÍDO
B19: 3 | D19: DISTRIBUIDORA BRASILEIRA DE ASFALTO SA - DISBRAL | E19: VIA PRIMARIA 8, S/N QD-18, MODS. 24/47 - DAIAG - CEP:74980-970 | F19: APARECIDA DE GOIANIA - GO | G19: Fortaleza - CE | I19: 2.666142087 | J19: 2666.142087 | K19: 736.7195428 | L19: 3402.86163 | M19: 2421 | N19: 639.45 | O19: =TRUNC((N19/$N$13)-N19,2) -> 140.36 | P19: =TRUNC(IF($H$12="","",(($H$13-$H$12)/$H$12)*(N19+O19)),2) -> 456.61 | Q19: 1236.42 | R19: 28.8 | S19: =EVEN(' CONSUMO DE MAT. B TOTAL'!$P$16*2/28)*R19/' CONSUMO DE MAT. B TOTAL'!$P$16 -> 2.257839721 | T19: =IF(AND(N19="",O19=""),"",Q19+S19) -> 1238.67784 | U19: 3402.86163 | V19: 4641.539469 | X19: 4641.539469 | Y19: 3402.86163 | Z19: 1238.67784 | BP19: EMULSÕES
B20: 4 | D20: INDÚSTRIA NACIONAL DE ASFALTOS LTDA. | E20: VIA PRIMEIRA E SEGUNDA 3, S/N.º LOTES 01 A 10 - DISTRITO AGROINDUSTRIAL - CEP:75370-000 | F20: GOIANIRA - GO | G20: Fortaleza - CE | I20: 2.666142087 | J20: 2666.142087 | K20: 736.7195428 | L20: 3402.86163 | M20: 2423 | N20: 639.95 | O20: =TRUNC(IF(M20="",0,(1/(1-0.12))*N20-N20),2) -> 87.26 | P20: 425.81 | Q20: 1153.02 | R20: 17.4 | S20: =EVEN(' CONSUMO DE MAT. B TOTAL'!$P$16*2/28)*R20/' CONSUMO DE MAT. B TOTAL'!$P$16 -> 1.364111498 | T20: 1154.384111 | U20: 3402.86163 | V20: 4557.245741 | X20: 4557.245741 | Y20: 3402.86163 | Z20: 1154.384111 | BP20: LIGANTE BETUMINOSO
B21: 5 | D21: STRATURA ASFALTOS S/A | E21: RUA VICTOR RODRIGUES RESENDE, 333 - DISTRITO IND. DE UBERLÂNDIA - CEP:38405-440 | F21: UBERLANDIA - MG | G21: Fortaleza - CE | H21: 2.393165071 | J21: 2393.165071 | K21: 661.2893911 | L21: 3054.454462 | M21: 2592 | N21: 682.71 | O21: =TRUNC(IF(M21="",0,(1/(1-0.07))*N21-N21),2) -> 51.38 | P21: 429.84 | Q21: 1163.93 | R21: 177 | S21: =EVEN(' CONSUMO DE MAT. B TOTAL'!$P$16*2/28)*R21/' CONSUMO DE MAT. B TOTAL'!$P$16 -> 13.87630662 | T21: 1177.806307 | U21: 3054.454462 | V21: 4232.260769 | X21: 4232.260769 | Y21: 3054.454462 | Z21: 1177.806307
B22: 6 | D22: BETUNEL INDÚSTRIA E COMÉRCIO LTDA. | E22: RUA VICTOR RODRIGUES DE REZENDE, 185 - DISTRITO INDUSTRIAL - CEP:38402-334 | F22: UBERLANDIA - MG | G22: Fortaleza - CE | H22: 2.393165071 | J22: 2393.165071 | K22: 661.2893911 | L22: 3054.454462 | M22: 2592 | N22: 682.71 | O22: 51.38 | P22: 429.84 | Q22: 1163.93 | R22: 177 | S22: =EVEN(' CONSUMO DE MAT. B TOTAL'!$P$16*2/28)*R22/' CONSUMO DE MAT. B TOTAL'!$P$16 -> 13.87630662 | T22: 1177.806307 | U22: 3054.454462 | V22: 4232.260769 | X22: 4232.260769 | Y22: 3054.454462 | Z22: 1177.806307
B23: 7 | D23: ARAPETRO DISTRIBUIDORA DE PETRÓLEO LTDA. | E23: RUA 04, S/N° LOTES 17 A 20. - DISTRITO INDUSTRIAL 1/8 - CEP:78600-000 | F23: BARRA DO GARCAS - MT | G23: Fortaleza - CE | H23: 2.656739571 | J23: 2656.739571 | K23: 734.1214003 | L23: 3390.860972 | M23: 2741 | N23: 720.41 | O23: 54.22 | P23: 453.58 | Q23: 1228.21 | R23: 0 | S23: =EVEN(' CONSUMO DE MAT. B TOTAL'!$P$16*2/28)*R23/' CONSUMO DE MAT. B TOTAL'!$P$16 -> 0 | T23: 1228.21 | U23: 3390.860972 | V23: 4619.070972 | X23: 4619.070972 | Y23: 3390.860972 | Z23: 1228.21
B24: 8 | D24: DISTRIBUIDORA BRASILEIRA DE ASFALTO SA - DISBRAL | E24: SÃO JUDAS TADEU, 288 - DISTRITO INDUSTRIAL - CEP:32450-000 | F24: SARZEDO - MG | G24: Fortaleza - CE | H24: 2.393165071 | J24: 2393.165071 | K24: 661.2893911 | L24: 3054.454462 | M24: 2424 | N24: 640.21 | O24: 48.18 | P24: 403.08 | Q24: 1091.47 | R24: 400.8 | S24: =EVEN(' CONSUMO DE MAT. B TOTAL'!$P$16*2/28)*R24/' CONSUMO DE MAT. B TOTAL'!$P$16 -> 31.42160279 | T24: 1122.891603 | U24: 3054.454462 | V24: 4177.346065 | X24: 4177.346065 | Y24: 3054.454462 | Z24: 1122.891603
B25: 9 | D25: 'INDÚSTRIA NACIONAL DE ASFALTOS LTDA. | E25: INDÚSTRIA NACIONAL DE ASFALTOS LTDA - CEP:77053-080 | F25: PALMAS - TO | G25: Fortaleza - CE | I25: 3.492854801 | J25: 3492.854801 | K25: 965.1602608 | L25: 4458.015062 | M25: 1698 | N25: 456.53 | O25: 34.36 | P25: 287.44 | Q25: 778.33 | R25: 0 | S25: =EVEN(' CONSUMO DE MAT. B TOTAL'!$P$16*2/28)*R25/' CONSUMO DE MAT. B TOTAL'!$P$16 -> 0 | T25: 778.33 | U25: 4458.015062 | V25: 5236.345062 | X25: 5236.345062 | Y25: 4458.015062 | Z25: 778.33
B26: 10 | D26: 'NTA - NOVAS TÉCNICAS DE ASFALTOS S/A | E26: RUA SOFIA ATAURI FADIN, 150 SALA A - B. SANTA TEREZINHA - CEP:13140-000 | F26: PAULINIA - SP | G26: Fortaleza - CE | H26: 2.645449819 | J26: 2645.449819 | K26: 731.0017687 | L26: 3376.451587 | M26: 2990 | N26: 783.4 | O26: 58.96 | P26: 493.24 | Q26: 1335.6 | R26: 615 | S26: =EVEN(' CONSUMO DE MAT. B TOTAL'!$P$16*2/28)*R26/' CONSUMO DE MAT. B TOTAL'!$P$16 -> 48.21428571 | T26: 1383.814286 | U26: 3376.451587 | V26: 4760.265873 | X26: 4760.265873 | Y26: 3376.451587 | Z26: 1383.814286
B27: 11 | D27: COMPANHIA BRASILEIRA DE ASFALTOS DA AMAZÔNIA - IMPORTAÇÃO E EXPORTAÇÃO | E27: Avenida Doutor Olindo Dártora 2451, Galpão 02, Morro Grande - CEP:07726-555 | F27: CAIEIRAS - SP | G27: Fortaleza - CE | H27: 2.645449819 | J27: 2645.449819 | K27: 731.0017687 | L27: 3376.451587 | M27: 2962 | N27: 776.32 | O27: 58.43 | P27: 488.79 | Q27: 1323.54 | R27: 497.4 | S27: =EVEN(' CONSUMO DE MAT. B TOTAL'!$P$16*2/28)*R27/' CONSUMO DE MAT. B TOTAL'!$P$16 -> 38.99477352 | T27: 1362.534774 | U27: 3376.451587 | V27: 4738.986361 | X27: 4738.986361 | Y27: 3376.451587 | Z27: 1362.534774
B28: 12 | D28: BETUNEL INDÚSTRIA E COMÉRCIO LTDA. | E28: R 16 , 82, Vila Nova Campo Grande - CEP:79.103-834 | F28: CAMPO GRANDE - MS | G28: Fortaleza - CE | H28: 2.656739571 | J28: 2656.739571 | K28: 734.1214003 | L28: 3390.860972 | M28: 3247 | N28: 848.43 | O28: 63.86 | P28: 534.19 | Q28: 1446.48 | R28: 65.4 | S28: =EVEN(' CONSUMO DE MAT. B TOTAL'!$P$16*2/28)*R28/' CONSUMO DE MAT. B TOTAL'!$P$16 -> 5.1271777 | T28: 1451.607178 | U28: 3390.860972 | V28: 4842.468149 | X28: 4842.468149 | Y28: 3390.860972 | Z28: 1451.607178
B29: 13 | D29: CENTRO OESTE ASFALTOS LTDA. | E29: RUA N, S/N.º LOTES 39/43 E LOTES 129/133 - DISTRITO INDUSTRIAL - CEP:78098-400 | F29: CUIABA - MT | G29: Fortaleza - CE | I29: 2.666142087 | J29: 2666.142087 | K29: 736.7195428 | L29: 3402.86163 | M29: 3219 | N29: 841.34 | O29: 63.32 | P29: 529.72 | Q29: 1434.38 | R29: 24.6 | S29: =EVEN(' CONSUMO DE MAT. B TOTAL'!$P$16*2/28)*R29/' CONSUMO DE MAT. B TOTAL'!$P$16 -> 1.928571429 | T29: 1436.308571 | U29: 3402.86163 | V29: 4839.170201 | X29: 4839.170201 | Y29: 3402.86163 | Z29: 1436.308571
B30: 14 | D30: BETUNEL INDÚSTRIA E COMÉRCIO LTDA. | E30: RUA N ESQUINA COM RUA X, S/N QD. IND. 7 L 01/08 - DIST. IND. - CEP:78015-285 | F30: CUIABA - MT | G30: Fortaleza - CE | I30: 2.666142087 | J30: 2666.142087 | K30: 736.7195428 | L30: 3402.86163 | M30: 3219 | N30: 841.34 | O30: 63.32 | P30: 529.72 | Q30: 1434.38 | R30: 24.6 | S30: =EVEN(' CONSUMO DE MAT. B TOTAL'!$P$16*2/28)*R30/' CONSUMO DE MAT. B TOTAL'!$P$16 -> 1.928571429 | T30: 1436.308571 | U30: 3402.86163 | V30: 4839.170201 | X30: 4839.170201 | Y30: 3402.86163 | Z30: 1436.308571
B31: 15 | D31: EMAM - EMULSÕES E TRANSPORTES LTDA. | E31: RODOVIA DOS IMIGRANTES, S/Nº KM 8,6 - - CEP:60035-351 | F31: VARZEA GRANDE - MT | G31: Fortaleza - CE | I31: 2.666142087 | J31: 2666.142087 | K31: 736.7195428 | L31: 3402.86163 | M31: 3228 | N31: 843.62 | O31: 63.49 | P31: 531.16 | Q31: 1438.27 | R31: 24.6 | S31: =EVEN(' CONSUMO DE MAT. B TOTAL'!$P$16*2/28)*R31/' CONSUMO DE MAT. B TOTAL'!$P$16 -> 1.928571429 | T31: 1440.198571 | U31: 3402.86163 | V31: 4843.060201 | X31: 4843.060201 | Y31: 3402.86163 | Z31: 1440.198571
B32: 16 | D32: VIAPOL LTDA. | E32: VITO ARDITO, 6401 KM 118,5 - JARDIM CAMPO GRANDE - CEP:12282-535 | F32: CACAPAVA - SP | G32: Fortaleza - CE | H32: 2.645449819 | J32: 2645.449819 | K32: 731.0017687 | L32: 3376.451587 | M32: 2883 | N32: 756.33 | O32: 56.92 | P32: 476.2 | Q32: 1289.45 | R32: 405.6 | S32: =EVEN(' CONSUMO DE MAT. B TOTAL'!$P$16*2/28)*R32/' CONSUMO DE MAT. B TOTAL'!$P$16 -> 31.79790941 | T32: 1321.247909 | U32: 3376.451587 | V32: 4697.699497 | X32: 4697.699497 | Y32: 3376.451587 | Z32: 1321.247909
B33: 17 | D33: STRATURA ASFALTOS S/A | E33: RUA LUIS DE CAMÕES, 26 - CAMPOS ELÍSEOS - CEP:25225-030 | F33: DUQUE DE CAXIAS - RJ | G33: Fortaleza - CE | I33: 2.502948842 | J33: 2502.948842 | K33: 691.6253021 | L33: 3194.574144 | M33: 2614 | N33: 688.28 | O33: 51.8 | P33: 433.35 | Q33: 1173.43 | R33: 241.8 | S33: =EVEN(' CONSUMO DE MAT. B TOTAL'!$P$16*2/28)*R33/' CONSUMO DE MAT. B TOTAL'!$P$16 -> 18.95644599 | T33: 1192.386446 | U33: 3194.574144 | V33: 4386.96059 | X33: 4386.96059 | Y33: 3194.574144 | Z33: 1192.386446
B34: 18 | D34: PROBITEC - PRODUTOS BETUMINOSOS E TECNOLOGIA DE APLICAÇÃO LTDA. | E34: AVENIDA CANAL DA PAVUNA, 620 - PAVUNA - CEP:21535-630 | F34: RIO DE JANEIRO - RJ | G34: Fortaleza - CE | I34: 2.502948842 | J34: 2502.948842 | K34: 691.6253021 | L34: 3194.574144 | M34: 2628 | N34: 691.82 | O34: 52.07 | P34: 435.58 | Q34: 1179.47 | R34: 241.8 | S34: =EVEN(' CONSUMO DE MAT. B TOTAL'!$P$16*2/28)*R34/' CONSUMO DE MAT. B TOTAL'!$P$16 -> 18.95644599 | T34: 1198.426446 | U34: 3194.574144 | V34: 4393.00059 | X34: 4393.00059 | Y34: 3194.574144 | Z34: 1198.426446
B35: 19 | D35: CASA DO ASFALTO DISTRIBUIDORA, INDÚSTRIA E COMÉRCIO DE ASFALTO LTDA. | E35: BR 376, PARQUE INDUSTRIAL, S/N LOTE 6/7/7-A-3-1 - GL.PATR.MARIALVA - CEP:86990-000 | F35: MARIALVA - PR | G35: Fortaleza - CE | H35: 2.447273964 | J35: 2447.273964 | K35: 676.2409869 | L35: 3123.514951 | M35: 3328 | N35: 868.92 | O35: 65.4 | P35: 547.09 | Q35: 1481.41 | R35: 740.3 | S35: =EVEN(' CONSUMO DE MAT. B TOTAL'!$P$16*2/28)*R35/' CONSUMO DE MAT. B TOTAL'!$P$16 -> 58.03745645 | T35: 1539.447456 | U35: 3123.514951 | V35: 4662.962408 | X35: 4662.962408 | Y35: 3123.514951 | Z35: 1539.447456
B36: 20 | D36: PETROBRAS DISTRIBUIDORA S.A. | E36: RUA MAQUINISTA ELEODORO JACINTO, 100 - OFICINAS - CEP:84045-170 | F36: PONTA GROSSA - PR | G36: Fortaleza - CE | H36: 2.447273964 | J36: 2447.273964 | K36: 676.2409869 | L36: 3123.514951 | M36: 3395 | N36: 885.87 | O36: 66.67 | P36: 557.76 | Q36: 1510.3 | R36: 6408 | S36: =EVEN(' CONSUMO DE MAT. B TOTAL'!$P$16*2/28)*R36/' CONSUMO DE MAT. B TOTAL'!$P$16 -> 502.369338 | T36: 2012.669338 | U36: 3123.514951 | V36: 5136.184289 | X36: 5136.184289 | Y36: 3123.514951 | Z36: 2012.669338

Sheet TRANSPORTE EAI
B1: https://www.gov.br/anp/pt-br/assuntos/precos-e-defesa-da-concorrencia/precos/precos-de-distribuicao-de-produtos-asfalticos
B8: MEMÓRIA DE CÁLCULO
B11: REAJUSTE | F11: TIPOLOGIA DO MATERIAL | G11: EMULSÕES | K11: IMPOSTOS | L11: COFINS | M11: 0.03
F12: 2014-07-01 | G12: ÍNDICE INICIAL | H12: ='TRANSPORTE CAP-50-70'!H12 -> 270.237 | L12: PIS | M12: 0.0065 | O12: LEGENDA
F13: 2021-09-01 | G13: ÍNDICE FINAL | H13: ='TRANSPORTE CAP-50-70'!H13 -> 428.475 | I13: =ROUND(H13/H12,4) -> 1.5856 | L13: ICMS | M13: 0.18 | N13: =1-(M13/1) -> 0.82 | O13: ENTRADA DE DADOS
B15: DATA-BASE | C15: PRODUTOS | D15: LOCALIDADES | H15: CUSTO ANP (R$/Kg) | J15: CUSTO ANP | K15: IMPOSTOS DO PRODUTO | L15: CUSTO DO PRODUTO COM IMPOSTOS | M15: DMT's | N15: CUSTO DO TRANSPORTE RODOVIA PAVIMENTADA | O15: ICMS | P15: ATUALIZAÇÃO DO CUSTO DE TRANSPORTE | Q15: CUSTO DO TRANSPORTE RODOVIA PAVIMENTADA COM IMPOSTOS E ATUALIZAÇÃO MONETÁRIA | R15: PEDÁGIO | T15: TOTAL TRANSPORTE | U15: TOTAL PRODUTO | V15: TOTAL GERAL
B16: =F13 -> 2021-09-01 | D16: EMPRESAS | E16: ENDEREÇO | F16: ORIGEM DISTRIBUIDORAS | G16: DESTINO | H16: ESTADO | I16: REGIÃO | J16: R$/t | K16: R$/t | L16: R$/t | M16: KM | N16: R$/t | O16: R$/t | P16: R$/t | Q16: R$/t | R16: CUSTO | S16: R$/t | T16: R$/t | U16: R$/t | V16: R$/t | X16: TOTAL GERAL | Y16: TOTAL PRODUTO | Z16: TOTAL TRANSPORTE | BP16: PAVIMETAÇÃO
B17: 1 | C17: EMULSÃO EAI | D17: CENTRO OESTE ASFALTOS LTDA. | E17: SETOR DE INFLAMÁVEIS, S/N TRECHO 02 - LOTE 1.100 - GUARÁ - CEP:71225-000 | F17: BRASÍLIA - DF | G17: Fortaleza - CE | I17: 2.458177909 | J17: =IF(AND(H17="",I17=""),"",IF(AND(H17<>0,I17=""),H17*1000,IF(AND(H17="",I17<>0),I17*1000,IF(AND(H17<>0,I17<>0),SMALL(H17:I17,1)*1000,"")))) -> 2458.177909 | K17: =ROUND((J17*(1/(1-$M$11-$M$12-$M$13)-1)),2) -> 679.25 | L17: =(J17+K17) -> 3137.427909 | M17: 2202 | N17: =TRUNC(IF(M17="",0,26.939+0.253*M17),2) -> 584.04 | O17: =TRUNC(N17*(1/(1-$M$13)-1),2) -> 128.2 | P17: =TRUNC(IF($H$12="","",(($H$13-$H$12)/$H$12)*(N17+O17)),2) -> 417.05 | Q17: =N17+O17+P17 -> 1129.29 | R17: 0 | S17: =EVEN(' CONSUMO DE MAT. B TOTAL'!$P$14*2/28)*R17/' CONSUMO DE MAT. B TOTAL'!$P$14 -> 0 | T17: =IF(AND(N17="",O17=""),"",Q17+S17) -> 1129.29 | U17: =IF(OR(J17="",K17=""),"",J17+K17) -> 3137.427909 | V17: =IF(OR(T17="",U17=""),"",T17+U17) -> 4266.717909 | X17: =V17 -> 4266.717909 | Y17: =U17 -> 3137.427909 | Z17: =T17 -> 1129.29 | BP17: CIMENTO ASFALTICO DE PETRÓLEO
B18: 2 | D18: STRATURA ASFALTOS S/A | E18: AVENIDA PRESIDENTE WILSON, 08 - JUNDIAÍ - CEP:75115-100 | F18: ANÁPOLIS - GO | G18: Fortaleza - CE | I18: 2.458177909 | J18: =IF(AND(H18="",I18=""),"",IF(AND(H18<>0,I18=""),H18*1000,IF(AND(H18="",I18<>0),I18*1000,IF(AND(H18<>0,I18<>0),SMALL(H18:I18,1)*1000,"")))) -> 2458.177909 | K18: =ROUND((J18*(1/(1-$M$11-$M$12-$M$13)-1)),2) -> 679.25 | L18: =(J18+K18) -> 3137.427909 | M18: 2352 | N18: 621.99 | O18: =TRUNC(N18*(1/(1-$M$13)-1),2) -> 136.53 | P18: =TRUNC(IF($H$12="","",(($H$13-$H$12)/$H$12)*(N18+O18)),2) -> 444.15 | Q18: =N18+O18+P18 -> 1202.67 | R18: 17.4 | S18: =EVEN(' CONSUMO DE MAT. B TOTAL'!$P$14*2/28)*R18/' CONSUMO DE MAT. B TOTAL'!$P$14 -> 1.25043554 | T18: 1203.920436 | U18: =IF(OR(J18="",K18=""),"",J18+K18) -> 3137.427909 | V18: 4341.348344 | X18: =V18 -> 4341.348344 | Y18: =U18 -> 3137.427909 | Z18: =T18 -> 1203.920436 | BP18: ASFALTO DILUÍDO
B19: 3 | D19: DISTRIBUIDORA BRASILEIRA DE ASFALTO SA - DISBRAL | E19: VIA PRIMARIA 8, S/N QD-18, MODS. 24/47 - DAIAG - CEP:74980-970 | F19: APARECIDA DE GOIANIA - GO | G19: Fortaleza - CE | I19: 2.458177909 | J19: 2458.177909 | K19: =ROUND(((J19/(1-$M$13-$M$12-$M$11))-J19),2) -> 679.25 | L19: 3137.427909 | M19: 2421 | N19: =ROUND((26.939+0.253*M19),2) -> 639.45 | O19: 140.36 | P19: 456.61 | Q19: 1236.42 | R19: 28.8 | S19: =EVEN(' CONSUMO DE MAT. B TOTAL'!$P$14*2/28)*R19/' CONSUMO DE MAT. B TOTAL'!$P$14 -> 2.069686411 | T19: 1238.489686 | U19: 3137.427909 | V19: 4375.917595 | X19: 4375.917595 | Y19: 3137.427909 | Z19: 1238.489686 | BP19: EMULSÕES
B20: 4 | D20: INDÚSTRIA NACIONAL DE ASFALTOS LTDA. | E20: VIA PRIMEIRA E SEGUNDA 3, S/N.º LOTES 01 A 10 - DISTRITO AGROINDUSTRIAL - CEP:75370-000 | F20: GOIANIRA - GO | G20: Fortaleza - CE | I20: 2.458177909 | J20: 2458.177909 | K20: 679.25 | L20: 3137.427909 | M20: 2423 | N20: 639.96 | O20: 140.47 | P20: 456.98 | Q20: 1237.41 | R20: 17.4 | S20: =EVEN(' CONSUMO DE MAT. B TOTAL'!$P$14*2/28)*R20/' CONSUMO DE MAT. B TOTAL'!$P$14 -> 1.25043554 | T20: 1238.660436 | U20: 3137.427909 | V20: 4376.088344 | X20: 4376.088344 | Y20: 3137.427909 | Z20: 1238.660436 | BP20: LIGANTE BETUMINOSO
B21: 5 | D21: STRATURA ASFALTOS S/A | E21: RUA VICTOR RODRIGUES RESENDE, 333 - DISTRITO IND. DE UBERLÂNDIA - CEP:38405-440 | F21: UBERLANDIA - MG | G21: Fortaleza - CE | H21: 2.358880902 | J21: 2358.880902 | K21: 651.82 | L21: 3010.700902 | M21: 2592 | N21: 682.72 | O21: 149.86 | P21: 487.51 | Q21: 1320.09 | R21: 177 | S21: =EVEN(' CONSUMO DE MAT. B TOTAL'!$P$14*2/28)*R21/' CONSUMO DE MAT. B TOTAL'!$P$14 -> 12.71994774 | T21: 1332.809948 | U21: 3010.700902 | V21: 4343.51085 | X21: 4343.51085 | Y21: 3010.700902 | Z21: 1332.809948
B22: 6 | D22: BETUNEL INDÚSTRIA E COMÉRCIO LTDA. | E22: RUA VICTOR RODRIGUES DE REZENDE, 185 - DISTRITO INDUSTRIAL - CEP:38402-334 | F22: UBERLANDIA - MG | G22: Fortaleza - CE | H22: 2.358880902 | J22: 2358.880902 | K22: 651.82 | L22: 3010.700902 | M22: 2592 | N22: 682.72 | O22: 149.86 | P22: 487.51 | Q22: 1320.09 | R22: 177 | S22: =EVEN(' CONSUMO DE MAT. B TOTAL'!$P$14*2/28)*R22/' CONSUMO DE MAT. B TOTAL'!$P$14 -> 12.71994774 | T22: 1332.809948 | U22: 3010.700902 | V22: 4343.51085 | X22: 4343.51085 | Y22: 3010.700902 | Z22: 1332.809948
B23: 7 | D23: ARAPETRO DISTRIBUIDORA DE PETRÓLEO LTDA. | E23: RUA 04, S/N° LOTES 17 A 20. - DISTRITO INDUSTRIAL 1/8 - CEP:78600-000 | F23: BARRA DO GARCAS - MT | G23: Fortaleza - CE | I23: 2.458177909 | J23: 2458.177909 | K23: 679.25 | L23: 3137.427909 | M23: 2741 | N23: 720.41 | O23: 158.13 | P23: 514.43 | Q23: 1392.97 | R23: 0 | S23: =EVEN(' CONSUMO DE MAT. B TOTAL'!$P$14*2/28)*R23/' CONSUMO DE MAT. B TOTAL'!$P$14 -> 0 | T23: 1392.97 | U23: 3137.427909 | V23: 4530.397909 | X23: 4530.397909 | Y23: 3137.427909 | Z23: 1392.97
B24: 8 | D24: DISTRIBUIDORA BRASILEIRA DE ASFALTO SA - DISBRAL | E24: SÃO JUDAS TADEU, 288 - DISTRITO INDUSTRIAL - CEP:32450-000 | F24: SARZEDO - MG | G24: Fortaleza - CE | H24: 2.358880902 | J24: 2358.880902 | K24: 651.82 | L24: 3010.700902 | M24: 2424 | N24: 640.21 | O24: =TRUNC((N24/$N$13)-N24,2) -> 140.53 | P24: 457.16 | Q24: 1237.9 | R24: 400.8 | S24: =EVEN(' CONSUMO DE MAT. B TOTAL'!$P$14*2/28)*R24/' CONSUMO DE MAT. B TOTAL'!$P$14 -> 28.80313589 | T24: 1266.703136 | U24: 3010.700902 | V24: 4277.404038 | X24: 4277.404038 | Y24: 3010.700902 | Z24: 1266.703136
B25: 9 | D25: INDÚSTRIA NACIONAL DE ASFALTOS LTDA. | E25: INDÚSTRIA NACIONAL DE ASFALTOS LTDA - CEP:77053-080 | F25: PALMAS - TO | G25: Fortaleza - CE | I25: 2.742960745 | J25: 2742.960745 | K25: 757.95 | L25: 3500.910745 | M25: 1698 | N25: 456.53 | O25: 100.21 | P25: 326 | Q25: 882.74 | R25: 0 | S25: =EVEN(' CONSUMO DE MAT. B TOTAL'!$P$14*2/28)*R25/' CONSUMO DE MAT. B TOTAL'!$P$14 -> 0 | T25: 882.74 | U25: 3500.910745 | V25: 4383.650745 | X25: 4383.650745 | Y25: 3500.910745 | Z25: 882.74
B26: 10 | D26: 'NTA - NOVAS TÉCNICAS DE ASFALTOS S/A | E26: RUA SOFIA ATAURI FADIN, 150 SALA A - B. SANTA TEREZINHA - CEP:13140-000 | F26: PAULINIA - SP | G26: Fortaleza - CE | I26: 2.412233634 | J26: 2412.233634 | K26: 666.56 | L26: 3078.793634 | M26: 2990 | N26: 783.41 | O26: 171.96 | P26: 559.41 | Q26: 1514.78 | R26: 615 | S26: =EVEN(' CONSUMO DE MAT. B TOTAL'!$P$14*2/28)*R26/' CONSUMO DE MAT. B TOTAL'!$P$14 -> 44.19642857 | T26: 1558.976429 | U26: 3078.793634 | V26: 4637.770062 | X26: 4637.770062 | Y26: 3078.793634 | Z26: 1558.976429
B27: 11 | D27: COMPANHIA BRASILEIRA DE ASFALTOS DA AMAZÔNIA - IMPORTAÇÃO E EXPORTAÇÃO | E27: Avenida Doutor Olindo Dártora 2451, Galpão 02, Morro Grande - CEP:07726-555 | F27: CAIEIRAS - SP | G27: Fortaleza - CE | I27: 2.412233634 | J27: 2412.233634 | K27: 666.56 | L27: 3078.793634 | M27: 2962 | N27: 776.33 | O27: 170.41 | P27: 554.36 | Q27: 1501.1 | R27: 497.4 | S27: =EVEN(' CONSUMO DE MAT. B TOTAL'!$P$14*2/28)*R27/' CONSUMO DE MAT. B TOTAL'!$P$14 -> 35.74520906 | T27: 1536.845209 | U27: 3078.793634 | V27: 4615.638843 | X27: 4615.638843 | Y27: 3078.793634 | Z27: 1536.845209
B28: 12 | D28: BETUNEL INDÚSTRIA E COMÉRCIO LTDA. | E28: R 16 , 82, Vila Nova Campo Grande - CEP:79.103-834 | F28: CAMPO GRANDE - MS | G28: Fortaleza - CE | I28: 2.458177909 | J28: 2458.177909 | K28: 679.25 | L28: 3137.427909 | M28: 3247 | N28: 848.43 | O28: 186.24 | P28: 605.85 | Q28: 1640.52 | R28: 65.4 | S28: =EVEN(' CONSUMO DE MAT. B TOTAL'!$P$14*2/28)*R28/' CONSUMO DE MAT. B TOTAL'!$P$14 -> 4.699912892 | T28: 1645.219913 | U28: 3137.427909 | V28: 4782.647822 | X28: 4782.647822 | Y28: 3137.427909 | Z28: 1645.219913
B29: 13 | D29: CENTRO OESTE ASFALTOS LTDA. | E29: RUA N, S/N.º LOTES 39/43 E LOTES 129/133 - DISTRITO INDUSTRIAL - CEP:78098-400 | F29: CUIABA - MT | G29: Fortaleza - CE | I29: 2.458177909 | J29: 2458.177909 | K29: 679.25 | L29: 3137.427909 | M29: 3219 | N29: 841.35 | O29: 184.68 | P29: 600.79 | Q29: 1626.82 | R29: 24.6 | S29: =EVEN(' CONSUMO DE MAT. B TOTAL'!$P$14*2/28)*R29/' CONSUMO DE MAT. B TOTAL'!$P$14 -> 1.767857143 | T29: 1628.587857 | U29: 3137.427909 | V29: 4766.015766 | X29: 4766.015766 | Y29: 3137.427909 | Z29: 1628.587857
B30: 14 | D30: BETUNEL INDÚSTRIA E COMÉRCIO LTDA. | E30: RUA N ESQUINA COM RUA X, S/N QD. IND. 7 L 01/08 - DIST. IND. - CEP:78015-285 | F30: CUIABA - MT | G30: Fortaleza - CE | I30: 2.458177909 | J30: 2458.177909 | K30: 679.25 | L30: 3137.427909 | M30: 3219 | N30: 841.35 | O30: 184.68 | P30: 600.79 | Q30: 1626.82 | R30: 24.6 | S30: =EVEN(' CONSUMO DE MAT. B TOTAL'!$P$14*2/28)*R30/' CONSUMO DE MAT. B TOTAL'!$P$14 -> 1.767857143 | T30: 1628.587857 | U30: 3137.427909 | V30: 4766.015766 | X30: 4766.015766 | Y30: 3137.427909 | Z30: 1628.587857
B31: 15 | D31: EMAM - EMULSÕES E TRANSPORTES LTDA. | E31: RODOVIA DOS IMIGRANTES, S/Nº KM 8,6 - - CEP:60035-351 | F31: VARZEA GRANDE - MT | G31: Fortaleza - CE | I31: 2.458177909 | J31: 2458.177909 | K31: 679.25 | L31: 3137.427909 | M31: 3228 | N31: 843.62 | O31: 185.18 | P31: 602.41 | Q31: 1631.21 | R31: 24.6 | S31: =EVEN(' CONSUMO DE MAT. B TOTAL'!$P$14*2/28)*R31/' CONSUMO DE MAT. B TOTAL'!$P$14 -> 1.767857143 | T31: 1632.977857 | U31: 3137.427909 | V31: 4770.405766 | X31: 4770.405766 | Y31: 3137.427909 | Z31: 1632.977857
B32: 16 | D32: VIAPOL LTDA. | E32: VITO ARDITO, 6401 KM 118,5 - JARDIM CAMPO GRANDE - CEP:12282-535 | F32: CACAPAVA - SP | G32: Fortaleza - CE | I32: 2.412233634 | J32: 2412.233634 | K32: 666.56 | L32: 3078.793634 | M32: 2883 | N32: 756.34 | O32: 166.02 | P32: 540.09 | Q32: 1462.45 | R32: 405.6 | S32: =EVEN(' CONSUMO DE MAT. B TOTAL'!$P$14*2/28)*R32/' CONSUMO DE MAT. B TOTAL'!$P$14 -> 29.14808362 | T32: 1491.598084 | U32: 3078.793634 | V32: 4570.391717 | X32: 4570.391717 | Y32: 3078.793634 | Z32: 1491.598084
B33: 17 | D33: STRATURA ASFALTOS S/A | E33: RUA LUIS DE CAMÕES, 26 - CAMPOS ELÍSEOS - CEP:25225-030 | F33: DUQUE DE CAXIAS - RJ | G33: Fortaleza - CE | I33: 2.412233634 | J33: 2412.233634 | K33: 666.56 | L33: 3078.793634 | M33: 2614 | N33: 688.28 | O33: 151.08 | P33: 491.48 | Q33: 1330.84 | R33: 241.8 | S33: =EVEN(' CONSUMO DE MAT. B TOTAL'!$P$14*2/28)*R33/' CONSUMO DE MAT. B TOTAL'!$P$14 -> 17.37674216 | T33: 1348.216742 | U33: 3078.793634 | V33: 4427.010376 | X33: 4427.010376 | Y33: 3078.793634 | Z33: 1348.216742
B34: 18 | D34: PROBITEC - PRODUTOS BETUMINOSOS E TECNOLOGIA DE APLICAÇÃO LTDA. | E34: AVENIDA CANAL DA PAVUNA, 620 - PAVUNA - CEP:21535-630 | F34: RIO DE JANEIRO - RJ | G34: Fortaleza - CE | I34: 2.412233634 | J34: 2412.233634 | K34: 666.56 | L34: 3078.793634 | M34: 2628 | N34: 691.82 | O34: 151.86 | P34: 494.01 | Q34: 1337.69 | R34: 241.8 | S34: =EVEN(' CONSUMO DE MAT. B TOTAL'!$P$14*2/28)*R34/' CONSUMO DE MAT. B TOTAL'!$P$14 -> 17.37674216 | T34: 1355.066742 | U34: 3078.793634 | V34: 4433.860376 | X34: 4433.860376 | Y34: 3078.793634 | Z34: 1355.066742
B35: 19 | D35: CASA DO ASFALTO DISTRIBUIDORA, INDÚSTRIA E COMÉRCIO DE ASFALTO LTDA. | E35: BR 376, PARQUE INDUSTRIAL, S/N LOTE 6/7/7-A-3-1 - GL.PATR.MARIALVA - CEP:86990-000 | F35: MARIALVA - PR | G35: Fortaleza - CE | H35: 2.77372 | J35: 2773.72 | K35: 766.45 | L35: 3540.17 | M35: 3328 | N35: 868.92 | O35: 190.73 | P35: 620.48 | Q35: 1680.13 | R35: 740.3 | S35: =EVEN(' CONSUMO DE MAT. B TOTAL'!$P$14*2/28)*R35/' CONSUMO DE MAT. B TOTAL'!$P$14 -> 53.20100174 | T35: 1733.331002 | U35: 3540.17 | V35: 5273.501002 | X35: 5273.501002 | Y35: 3540.17 | Z35: 1733.331002
B36: 20 | D36: PETROBRAS DISTRIBUIDORA S.A. | E36: RUA MAQUINISTA ELEODORO JACINTO, 100 - OFICINAS - CEP:84045-170 | F36: PONTA GROSSA - PR | G36: Fortaleza - CE | H36: 2.77372 | J36: 2773.72 | K36: 766.45 | L36: 3540.17 | M36: 3395 | N36: 885.87 | O36: 194.45 | P36: 632.58 | Q36: 1712.9 | R36: 6408 | S36: =EVEN(' CONSUMO DE MAT. B TOTAL'!$P$14*2/28)*R36/' CONSUMO DE MAT. B TOTAL'!$P$14 -> 460.5052265 | T36: 2173.405226 | U36: 3540.17 | V36: 5713.575226 | X36: 5713.575226 | Y36: 3540.17 | Z36: 2173.405226

Sheet Mob e Desmob
A5: ='RESUMO MODULO MINIMO'!A1 -> EXECUÇÃO DE SERVIÇOS DE IMPLANTAÇÃO DE PAVIMENTAÇÃO EM CONCRETO BETUMINOSO USINADO A QUENTE, EM VIAS URBANAS E RURAIS DE MUNÍCIPIOS DIVERSOS INSERIDOS NA ÁREA DE ATUAÇÃO DA CODEVASF, NO ESTADO DO CEARÁ
A7: MEMÓRIA DE CÁLCULO DOS MOMENTOS DE TRANSPORTE PARA MOBILIZAÇÃO E DESMOBILIZAÇÃO
A10: Deslocamento:
C11: Distancia méd. (Km) | D11: Qtde. | E11: Total (Km)
A12: Mobilização (entre os trechos de serviço): | C12: 1 | D12: 1 | E12: =C12*D12 -> 1
A13: Desmobilização (entre os trechos de serviço): | C13: 1 | D13: 1 | E13: =C13*D13 -> 1
A14: Mobilização inter-municipal (entre as localidades): | C14: 10 | D14: 1 | E14: =C14*D14 -> 10
A15: Desmobilização inter-municipal (entre as localidades): | C15: 10 | D15: 1 | E15: =C15*D15 -> 10
A16: Mobilização - Total (km) | E16: =E12+E14 -> 11
A17: Desmobilização - Total (km) | E17: =E13+E15 -> 11
A20: Peso das máquinas:
E21: Pá carregadeira | H21: 10.1 | I21: ton
E22: Motoniveladora | H22: 12.47 | I22: ton
E23: Trator de pneus | H23: 2.8 | I23: ton
E24: Rolo Compactador | H24: 15.33 | I24: ton
E25: Grade de disco | H25: 1 | I25: ton
E26: Usina misturadora | H26: 20 | I26: ton
E28: Total | H28: =ROUND(SUM(H20:H27),2) -> 61.7 | I28: ton
A30: Portanto: | B30: Portanto
A31: Mobilização - Total (km) | E31: =E16*H28 -> 678.7 | F31: t x km
A32: Desmobilização - Total (km) | E32: =E17*H28 -> 678.7 | F32: t x km
A39: E9010 | B39: Balança plataforma digital com mesa de 75 x 75 cm com capacidade de 500 kg | I39: Caminhão carroceria
A40: E9064 | B40: Transportador manual gerica com capacidade de 180 l | I40: Caminhão carroceria
A41: E9066 | B41: Grupo gerador - 13/14 kVA | I41: Caminhão carroceria
A42: E9071 | B42: Transportador manual carrinho de mão com capacidade de 80 l | I42: Caminhão carroceria
A43: E9076 | B43: Equipamento de pintura com cabine de 7,00 kW e estufa de 80.000 kCal para pintura eletrostática | I43: Caminhão carroceria
A44: E9519 | B44: Betoneira com motor a gasolina com capacidade de 600 l - 10 kW | I44: Caminhão carroceria
A45: E9521 | B45: Grupo gerador - 2,5/3 kVA | I45: Caminhão carroceria
A46: E9568 | B46: Furadeira de impacto de 12,5 mm - 0,8 kW | I46: Caminhão carroceria
A47: E9622 | B47: Máquina de bancada universal para corte de chapa - 1,5 kW | I47: Caminhão carroceria
A48: E9623 | B48: Máquina de bancada guilhotina - 4 kW | I48: Caminhão carroceria
A49: E9675 | B49: Martelete perfurador/rompedor elétrico - 1,5 kW | I49: Caminhão carroceria
A50: E9779 | B50: Grupo gerador - 100/110 kVA | I50: Caminhão carroceria
A53: E9506 | B53: Caminhão basculante com capacidade de 6 m³ - 136 kW | I53: Rodoviario
A54: E9571 | B54: Caminhão tanque com capacidade de 10.000 l - 188 kW | I54: Rodoviario
A55: E9579 | B55: Caminhão basculante com capacidade de 10 m³ - 188 kW | I55: Rodoviario
A56: E9592 | B56: Caminhão carroceria com capacidade de 15 t - 188 kW | I56: Rodoviario
A57: E9644 | B57: Caminhão demarcador de faixas com sistema de pintura a frio - 28 kW/115 kW | I57: Rodoviario
A58: E9686 | B58: Caminhão carroceria com guindauto com capacidade de 20 t.m - 136 kW | I58: Rodoviario
A59: E9687 | B59: Caminhão carroceria com capacidade de 5 t - 115 kW | I59: Rodoviario
A60: E9514 | B60: Distribuidor de agregados autopropelido - 130 kW | I60: Rodoviario
A62: E9511 | B62: Carregadeira de pneus com capacidade de 3,40 m³ - 195 kW | I62: TRANSPORTE COM CAVALO MECÂNICO COM SEMIRREBOQUE COM CAPACIDADE DE 30 T - RODOVIA PAVIMENTADA
A63: E9524 | B63: Motoniveladora - 93 kW | I63: TRANSPORTE COM CAVALO MECÂNICO COM SEMIRREBOQUE COM CAPACIDADE DE 30 T - RODOVIA PAVIMENTADA
A64: E9530 | B64: Rolo compactador liso autopropelido vibratório de 11 t - 97 kW | I64: TRANSPORTE COM CAVALO MECÂNICO COM SEMIRREBOQUE COM CAPACIDADE DE 30 T - RODOVIA PAVIMENTADA
A65: E9577 | B65: Trator agrícola - 77 kW | I65: TRANSPORTE COM CAVALO MECÂNICO COM SEMIRREBOQUE COM CAPACIDADE DE 30 T - RODOVIA PAVIMENTADA
A66: E9685 | B66: Rolo compactador pé de carneiro vibratório autopropelido de 11,6 t - 82 kW | I66: TRANSPORTE COM CAVALO MECÂNICO COM SEMIRREBOQUE COM CAPACIDADE DE 30 T - RODOVIA PAVIMENTADA
A67: E9762 | B67: Rolo compactador de pneus autopropelido de 27 t - 85 kW | I67: TRANSPORTE COM CAVALO MECÂNICO COM SEMIRREBOQUE COM CAPACIDADE DE 30 T - RODOVIA PAVIMENTADA
A68: E9518 | B68: Grade de 24 discos rebocável de 24" | I68: TRANSPORTE COM CAVALO MECÂNICO COM SEMIRREBOQUE COM CAPACIDADE DE 30 T - RODOVIA PAVIMENTADA
A69: E9615 | B69: Usina misturadora de solos com capacidade de 300 t/h | I69: TRANSPORTE COM CAVALO MECÂNICO COM SEMIRREBOQUE COM CAPACIDADE DE 30 T - RODOVIA PAVIMENTADA

Sheet MC MODULO
C1: Extensão | D1: = | E1: 2000 | F1: m | H1: QUANTIDADE DE MODULOS | I1: 41
C2: Largura | D2: = | E2: 7 | F2: m
C4: Extensão | D4: = | E4: 2 | F4: km
B6: MOBUILIZAÇÃO | L6: MOBUILIZAÇÃO
A7: 1 | B7: Implantação da obra | K7: 1 | L7: Implantação da obra
B9: Extensão (km) | D9: Extensão (km) | L9: Extensão (km) | N9: Extensão (km)
B10: =E4 -> 2 | C10: = | D10: =B10 -> 2 | L10: =E4*$I$1 -> 82 | M10: = | N10: =L10 -> 82
A12: 2 | B12: Administração da obra | K12: 2 | L12: Administração da obra
B14: Extensão (km) | D14: Extensão (km) | L14: Extensão (km) | N14: Extensão (km)
B15: =E4 -> 2 | C15: = | D15: =B15 -> 2 | L15: =E4*$I$1 -> 82 | M15: = | N15: =L15 -> 82
B17: TERRAPLENAGEM | L17: TERRAPLENAGEM
A19: 4 | B19: serviços topográficos para pavimentação, inclusive notas de serviços, acompanhamento e greide | K19: 4 | L19: serviços topográficos para pavimentação, inclusive notas de serviços, acompanhamento e greide
B21: Extensão (m) | D21: Largura (m) | H21: area (m2) | L21: Extensão (m) | N21: Largura (m) | R21: area (m2)
B22: =$E$1 -> 2000 | C22: x | D22: =$E$2 -> 7 | G22: = | H22: =B22*D22 -> 14000 | L22: =$E$1*I1 -> 82000 | M22: x | N22: =$E$2 -> 7 | Q22: = | R22: =L22*N22 -> 574000
A24: 5 | B24: ='RESUMO MODULO MINIMO'!D16 -> Escavação, carga e transporte de material de 1ª categoria - DMT de 1.000 a 1.200 m - caminho de serviço em leito natural - com escavadeira e caminhão basculante de 14 m³ | K24: 5
B26: Extensão (m) | D26: Largura (m) | F26: Espessura (m) | H26: Volume (m3) | L26: Extensão (m) | N26: Largura (m) | P26: Espessura (m) | R26: Volume (m3)
B27: =E1 -> 2000 | C27: x | D27: =$E$2 -> 7 | E27: x | F27: 0.1 | G27: = | H27: =B27*D27*F27 -> 1400 | L27: =E1*I1 -> 82000 | M27: x | N27: =$E$2 -> 7 | O27: x | P27: 0.1 | Q27: = | R27: =L27*N27*P27 -> 57400
A31: 6 | B31: ='RESUMO MODULO MINIMO'!D17 -> Espalhamento de material em bota-fora | K31: 6
B33: Extensão (m) | D33: Largura (m) | F33: Espessura (m) | H33: Volume (m3) | L33: Extensão (m) | N33: Largura (m) | P33: Espessura (m) | R33: Volume (m3)
B34: =$E$1 -> 2000 | C34: x | D34: =$E$2 -> 7 | E34: x | F34: 0.1 | G34: = | H34: =B34*D34*F34 -> 1400 | L34: =$E$1*I1 -> 82000 | M34: x | N34: =$E$2 -> 7 | O34: x | P34: 0.1 | Q34: = | R34: =L34*N34*P34 -> 57400
B37: PAVIMENTAÇÃO | L37: PAVIMENTAÇÃO
A39: 7 | B39: Concreto asfáltico - faixa C - areia e brita comerciais | K39: 7 | L39: Concreto asfáltico - faixa C - areia e brita comerciais
B41: Extensão (m) | C41: Largura (m) | D41: Espessura (m) | E41: Densidade (t/m³) | H41: Volume (t) | L41: Extensão (m) | M41: Largura (m) | N41: Espessura (m) | O41: Densidade (t/m³) | R41: Volume (t)
B42: =$E$1 -> 2000 | C42: =$E$2 -> 7 | D42: 0.05 | E42: 2.4 | G42: = | H42: =B42*C42*D42*E42 -> 1680 | L42: =$E$1*I1 -> 82000 | M42: =$E$2 -> 7 | N42: 0.05 | O42: 2.4 | Q42: = | R42: =L42*M42*N42*O42 -> 68880
A45: 8 | B45: Imprimação com emulsão asfáltica | K45: 8 | L45: Imprimação com emulsão asfáltica
B47: Extensão (m) | D47: Largura (m) | H47: area (m2) | L47: Extensão (m) | N47: Largura (m) | R47: area (m2)
B48: =$E$1 -> 2000 | C48: x | D48: =$E$2 -> 7 | G48: = | H48: =B48*D48 -> 14000 | L48: =$E$1*I1 -> 82000 | M48: x | N48: =$E$2 -> 7 | Q48: = | R48: =L48*N48 -> 574000
A51: 9 | B51: Pintura de ligação | K51: 9 | L51: Pintura de ligação
B53: Extensão (m) | D53: Largura (m) | H53: area (m2) | L53: Extensão (m) | N53: Largura (m) | R53: area (m2)
B54: =$E$1 -> 2000 | C54: x | D54: =$E$2 -> 7 | G54: = | H54: =B54*D54 -> 14000 | L54: =$E$1*I1 -> 82000 | M54: x | N54: =$E$2 -> 7 | Q54: = | R54: =L54*N54 -> 574000
A56: 10 | B56: Base ou sub-base de brita graduada com brita comercial | K56: 10 | L56: Base ou sub-base de brita graduada com brita comercial
B58: Extensão (m) | D58: Largura (m) | F58: Espessura (m) | H58: Volume (m3) | L58: Extensão (m) | N58: Largura (m) | P58: Espessura (m) | R58: Volume (m3)
B59: =$E$1 -> 2000 | C59: x | D59: =$E$2 -> 7 | E59: x | F59: 0.15 | G59: = | H59: =B59*D59*F59 -> 2100 | L59: =$E$1*I1 -> 82000 | M59: x | N59: =$E$2 -> 7 | O59: x | P59: 0.15 | Q59: = | R59: =L59*N59*P59 -> 86100
A62: 11 | B62: Sub-base estabilizada granulometricamente com mistura de solos na pista com material de jazida | K62: 11 | L62: Sub-base estabilizada granulometricamente com mistura de solos na pista com material de jazida
B64: Extensão (m) | D64: Largura (m) | F64: Espessura (m) | H64: Volume (m3) | L64: Extensão (m) | N64: Largura (m) | P64: Espessura (m) | R64: Volume (m3)
B65: =$E$1 -> 2000 | C65: x | D65: =$E$2 -> 7 | E65: x | F65: 0.15 | G65: = | H65: =B65*D65*F65 -> 2100 | L65: =$E$1*I1 -> 82000 | M65: x | N65: =$E$2 -> 7 | O65: x | P65: 0.15 | Q65: = | R65: =L65*N65*P65 -> 86100
A68: 12 | B68: Regularização do subleito | K68: 12 | L68: Regularização do subleito
B70: Extensão (m) | D70: Largura (m) | H70: area (m2) | L70: Extensão (m) | N70: Largura (m) | R70: area (m2)
B71: =$E$1 -> 2000 | C71: x | D71: =$E$2 -> 7 | G71: = | H71: =B71*D71 -> 14000 | L71: =$E$1*I1 -> 82000 | M71: x | N71: =$E$2 -> 7 | Q71: = | R71: =L71*N71 -> 574000
B73: SINALIZAÇÃO | L73: SINALIZAÇÃO
A75: 19 | B75: Fornecimento e implantação de placa de regulamentação em aço D = 0,60 m - película retrorrefletiva tipo I + SI | K75: 19 | L75: Fornecimento e implantação de placa de regulamentação em aço D = 0,60 m - película retrorrefletiva tipo I + SI
B77: Extensão (km) | D77: Quant. (un) | H77: Quant. (un) | L77: Extensão (km) | N77: Quant. (un) | R77: Quant. (un)
B78: =$E$4 -> 2 | C78: x | D78: 0.5 | G78: = | H78: =B78*D78 -> 1 | L78: =$E$4*$I$1 -> 82 | M78: x | N78: 0.5 | Q78: = | R78: =L78*N78 -> 41
A81: 20 | B81: Fornecimento e implantação de suporte metálico galvanizado para placa de regulamentação - D = 0,60 m | K81: 20 | L81: Fornecimento e implantação de suporte metálico galvanizado para placa de regulamentação - D = 0,60 m
B83: Extensão (km) | D83: Quant. (un) | H83: Quant. (un) | L83: Extensão (km) | N83: Quant. (un) | R83: Quant. (un)
B84: =$E$4 -> 2 | C84: x | D84: 0.5 | G84: = | H84: =B84*D84 -> 1 | L84: =$E$4*$I$1 -> 82 | M84: x | N84: 0.5 | Q84: = | R84: =L84*N84 -> 41
B87: DRENAGEM | L87: DRENAGEM
A88: 21 | B88: Meio fio de concreto - MFC 04 - areia e brita comerciais - fôrma de madeira | K88: 21 | L88: Meio fio de concreto - MFC 04 - areia e brita comerciais - fôrma de madeira
B90: Extensão (m) | D90: Quant. (un) | H90: Volume (m) | L90: Extensão (m) | N90: Quant. (un) | R90: Volume (m)
B91: =$E$1 -> 2000 | C91: x | D91: 2 | G91: = | H91: =B91*D91 -> 4000 | L91: =$E$1*$I$1 -> 82000 | M91: x | N91: 2 | Q91: = | R91: =L91*N91 -> 164000
B95: LIMPEZA GERAL | L95: LIMPEZA GERAL
A96: 22 | B96: Limpeza Geral | K96: 22 | L96: Limpeza Geral
B98: Extensão (m) | D98: Largura (m) | F98: Quant. (un) | H98: Volume (m2) | L98: Extensão (m) | N98: Largura (m) | P98: Quant. (un) | R98: Volume (m2)
B99: =$E$1 -> 2000 | C99: x | D99: 7 | E99: x | F99: 1 | G99: = | H99: =B99*D99*F99 -> 14000 | L99: =$E$1*$I$1 -> 82000 | M99: x | N99: 7 | O99: x | P99: 1 | Q99: = | R99: =L99*N99*P99 -> 574000
B102: SERVIÇOS COMPLEMENTARES | L102: SERVIÇOS COMPLEMENTARES
A103: 23 | B103: ='RESUMO MODULO MINIMO'!D40 -> Conserto de quebra no ramal na rua sem pavimento com fornecimento de material hidráulico | K103: 23 | L103: ='RESUMO MODULO MINIMO'!O40 -> 0
B105: Extensão (m) | D105: Largura (m) | G105: 0.1 | H105: extensão (m) | L105: Extensão (m) | N105: Largura (m) | Q105: 0.1 | R105: extensão (m)
B106: =$E$1 -> 2000 | C106: x | D106: 1 | E106: x | G106: = | H106: =G105*B106 -> 200 | L106: =$E$1*I1 -> 82000 | M106: x | N106: 1 | O106: x | Q106: = | R106: =Q105*L106 -> 8200
B109: PROJETO EXECUTIVO | L109: PROJETO EXECUTIVO
A110: 24 | B110: Projeto Executivo | K110: 24 | L110: Projeto Executivo
B112: Extensão (m) | D112: Largura (m) | F112: Quant. (un) | H112: Volume (Km) | L112: Extensão (m) | N112: Largura (m) | P112: Quant. (un) | R112: Volume (Km)
B113: =E4 -> 2 | C113: x | E113: x | F113: 1 | G113: = | H113: =B113*F113 -> 2 | L113: =E4*I1 -> 82 | M113: x | O113: x | P113: 1 | Q113: = | R113: =L113*P113 -> 82

Sheet Relação Insumos
A1: cls | B1: fonte | C1: cod | D1: descrição | E1: unid | F1: PRECO UNITÁRIO (R$)
A2: INS. SINAPI | B2: SINAPI | C2: 370 | D2: AREIA MEDIA - POSTO JAZIDA/FORNECEDOR (RETIRADO NA JAZIDA, SEM TRANSPORTE) | E2: M3 | F2: =IF(A2="INS. SINAPI",VLOOKUP(C2,'INSUMOS SINAPI'!A:E,5,0),IF(A2="COMP. SINAPI",VLOOKUP(C2,'COMPOSIÇÃO ANALI sinapi'!A:E,5,0),IF(A2="INS. SICRO",VLOOKUP(C2,#REF!,5,0),""))) -> 90,00
A3: INS. SINAPI | B3: SINAPI | C3: 1379 | D3: CIMENTO PORTLAND COMPOSTO CP II-32 | E3: KG | F3: =IF(A3="INS. SINAPI",VLOOKUP(C3,'INSUMOS SINAPI'!A:E,5,0),IF(A3="COMP. SINAPI",VLOOKUP(C3,'COMPOSIÇÃO ANALI sinapi'!A:E,5,0),IF(A3="INS. SICRO",VLOOKUP(C3,#REF!,5,0),""))) -> 0,54
A4: INS. SINAPI | B4: SINAPI | C4: 1518 | D4: CONCRETO BETUMINOSO USINADO A QUENTE (CBUQ) PARA PAVIMENTACAO ASFALTICA, PADRAO DNIT, FAIXA C, COM CAP 50/70 - AQUISICAO POSTO USINA | E4: T | F4: =IF(A4="INS. SINAPI",VLOOKUP(C4,'INSUMOS SINAPI'!A:E,5,0),IF(A4="COMP. SINAPI",VLOOKUP(C4,'COMPOSIÇÃO ANALI sinapi'!A:E,5,0),IF(A4="INS. SICRO",VLOOKUP(C4,#REF!,5,0),""))) -> 419,00
A5: INS. SINAPI | B5: SINAPI | C5: 4059 | D5: MEIO-FIO OU GUIA DE CONCRETO, PRE-MOLDADO, COMP 1 M, *30 X 15/ 12* CM (H X L1/L2) | E5: M | F5: =IF(A5="INS. SINAPI",VLOOKUP(C5,'INSUMOS SINAPI'!A:E,5,0),IF(A5="COMP. SINAPI",VLOOKUP(C5,'COMPOSIÇÃO ANALI sinapi'!A:E,5,0),IF(A5="INS. SICRO",VLOOKUP(C5,#REF!,5,0),""))) -> 20,03
A6: COMP. ORSE | B6: ORSE | C6: 4299 | D6: Aluguel de container - Almoxarifado sem banheiro - 6,00 x 2,40m | E6: mês | F6: 654.42 | G6: 2021-08-01
A7: INSUMO | B7: ORSE | C7: 4415 | D7: Veículo leve - Volkswagen:GOL 1000 - automóvel até 100 hp | E7: h | F7: 4.4 | G7: 2021-08-01
A8: INSUMO | B8: ORSE | C8: 5896 | D8: VEÍCULO TIPO SEDAN OU PICK-UP CAPACIDADE 0,6 TON | E8: h | F8: 8.33 | G8: 2021-08-01
A9: INS. SINAPI | B9: SINAPI | C9: 4417 | D9: Peca de madeira de lei *2,5 x 7,5* cm (1" x 3"), não aparelhada, (p/telhado) | E9: m | F9: =IF(A9="INS. SINAPI",VLOOKUP(C9,'INSUMOS SINAPI'!A:E,5,0),IF(A9="COMP. SINAPI",VLOOKUP(C9,'COMPOSIÇÃO ANALI sinapi'!A:E,5,0),IF(A9="INS. SICRO",VLOOKUP(C9,#REF!,5,0),""))) -> 5,41
A10: INS. SINAPI | B10: SINAPI | C10: 4491 | D10: Peca de madeira nativa / regional 7,5 x 7,5cm (3x3) nao aparelhada (p/forma) | E10: m | F10: =IF(A10="INS. SINAPI",VLOOKUP(C10,'INSUMOS SINAPI'!A:E,5,0),IF(A10="COMP. SINAPI",VLOOKUP(C10,'COMPOSIÇÃO ANALI sinapi'!A:E,5,0),IF(A10="INS. SICRO",VLOOKUP(C10,#REF!,5,0),""))) -> 10,54
A11: INS. SINAPI | B11: SINAPI | C11: 4718 | D11: Pedra Britada nº 2 | E11: m³ | F11: =IF(A11="INS. SINAPI",VLOOKUP(C11,'INSUMOS SINAPI'!A:E,5,0),IF(A11="COMP. SINAPI",VLOOKUP(C11,'COMPOSIÇÃO ANALI sinapi'!A:E,5,0),IF(A11="INS. SICRO",VLOOKUP(C11,#REF!,5,0),""))) -> 77,80
A12: INS. SINAPI | B12: SINAPI | C12: 4721 | D12: PEDRA BRITADA N. 1 (9,5 a 19 MM) POSTO PEDREIRA/FORNECEDOR, SEM FRETE | E12: M3 | F12: =IF(A12="INS. SINAPI",VLOOKUP(C12,'INSUMOS SINAPI'!A:E,5,0),IF(A12="COMP. SINAPI",VLOOKUP(C12,'COMPOSIÇÃO ANALI sinapi'!A:E,5,0),IF(A12="INS. SICRO",VLOOKUP(C12,#REF!,5,0),""))) -> 77,39
A13: INS. SINAPI | B13: SINAPI | C13: 4730 | D13: PEDRA DE MÃO | E13: m³ | F13: =IF(A13="INS. SINAPI",VLOOKUP(C13,'INSUMOS SINAPI'!A:E,5,0),IF(A13="COMP. SINAPI",VLOOKUP(C13,'COMPOSIÇÃO ANALI sinapi'!A:E,5,0),IF(A13="INS. SICRO",VLOOKUP(C13,#REF!,5,0),""))) -> 72,74
A14: INS. SINAPI | B14: SINAPI | C14: 4813 | D14: Placa de obra (para construcao civil) em chapa galvanizada *nº 22*, de *2,0 x 1,125* m | E14: m² | F14: =IF(A14="INS. SINAPI",VLOOKUP(C14,'INSUMOS SINAPI'!A:E,5,0),IF(A14="COMP. SINAPI",VLOOKUP(C14,'COMPOSIÇÃO ANALI sinapi'!A:E,5,0),IF(A14="INS. SICRO",VLOOKUP(C14,#REF!,5,0),""))) -> 225,00
A15: INS. SINAPI | B15: SINAPI | C15: 5075 | D15: Prego 18x30. | E15: kg | F15: =IF(A15="INS. SINAPI",VLOOKUP(C15,'INSUMOS SINAPI'!A:E,5,0),IF(A15="COMP. SINAPI",VLOOKUP(C15,'COMPOSIÇÃO ANALI sinapi'!A:E,5,0),IF(A15="INS. SICRO",VLOOKUP(C15,#REF!,5,0),""))) -> 19,84
A16: INS. SINAPI | B16: SINAPI | C16: 5318 | D16: SOLVENTE DILUENTE A BASE DE AGUARRAS | E16: L | F16: =IF(A16="INS. SINAPI",VLOOKUP(C16,'INSUMOS SINAPI'!A:E,5,0),IF(A16="COMP. SINAPI",VLOOKUP(C16,'COMPOSIÇÃO ANALI sinapi'!A:E,5,0),IF(A16="INS. SICRO",VLOOKUP(C16,#REF!,5,0),""))) -> 18,78
A17: COMP. SINAPI | B17: SINAPI | C17: 5689 | D17: GRADE DE 24 DISCOS REBOCÁVEL DE 24" | E17: CHP | F17: =IF(A17="INS. SINAPI",VLOOKUP(C17,'INSUMOS SINAPI'!A:E,5,0),IF(A17="COMP. SINAPI",VLOOKUP(C17,'COMP Sint. Sinapi'!A5:E6676,5,0),IF(A17="INS. SICRO",VLOOKUP(C17,#REF!,5,0),""))) -> 7,08
A18: COMP. SINAPI | B18: SINAPI | C18: 5690 | D18: GRADE DE 24 DISCOS REBOCÁVEL DE 24" | E18: CHI | F18: =IF(A18="INS. SINAPI",VLOOKUP(C18,'INSUMOS SINAPI'!A:E,5,0),IF(A18="COMP. SINAPI",VLOOKUP(C18,'COMP Sint. Sinapi'!A6:E6677,5,0),IF(A18="INS. SICRO",VLOOKUP(C18,#REF!,5,0),""))) -> 4,40
A19: COMP. SINAPI | B19: SINAPI | C19: 5795 | D19: MARTELETE PERFURADOR/ROMPEDOR A AR COMPRIMIDO DE 25 KG | E19: CHP | F19: =IF(A19="INS. SINAPI",VLOOKUP(C19,'INSUMOS SINAPI'!A:E,5,0),IF(A19="COMP. SINAPI",VLOOKUP(C19,'COMP Sint. Sinapi'!A6:E6678,5,0),IF(A19="INS. SICRO",VLOOKUP(C19,#REF!,5,0),""))) -> 22,05
A20: COMP. SINAPI | B20: SINAPI | C20: 5845 | D20: TRATOR AGRÍCOLA - 77 KW | E20: CHI | F20: =IF(A20="INS. SINAPI",VLOOKUP(C20,'INSUMOS SINAPI'!A:E,5,0),IF(A20="COMP. SINAPI",VLOOKUP(C20,'COMP Sint. Sinapi'!A7:E6679,5,0),IF(A20="INS. SICRO",VLOOKUP(C20,#REF!,5,0),""))) -> 38,43
A21: COMP. SINAPI | B21: SINAPI | C21: 5855 | D21: TRATOR DE ESTEIRAS COM LÂMINA - 259 KW | E21: CHP | F21: =IF(A21="INS. SINAPI",VLOOKUP(C21,'INSUMOS SINAPI'!A:E,5,0),IF(A21="COMP. SINAPI",VLOOKUP(C21,'COMP Sint. Sinapi'!A8:E6680,5,0),IF(A21="INS. SICRO",VLOOKUP(C21,#REF!,5,0),""))) -> 508,58
A22: COMP. SINAPI | B22: SINAPI | C22: 5875 | D22: RETROESCAVADEIRA DE PNEUS - 58 KW | E22: H | F22: =IF(A22="INS. SINAPI",VLOOKUP(C22,'INSUMOS SINAPI'!A:E,5,0),IF(A22="COMP. SINAPI",VLOOKUP(C22,'COMP Sint. Sinapi'!A9:E6681,5,0),IF(A22="INS. SICRO",VLOOKUP(C22,#REF!,5,0),""))) -> 102,55
A23: COMP. SINAPI | B23: SINAPI | C23: 5901 | D23: CAMINHÃO TANQUE COM CAPACIDADE DE 10.000 L - 188 KW | E23: CHP | F23: =IF(A23="INS. SINAPI",VLOOKUP(C23,'INSUMOS SINAPI'!A:E,5,0),IF(A23="COMP. SINAPI",VLOOKUP(C23,'COMP Sint. Sinapi'!A10:E6682,5,0),IF(A23="INS. SICRO",VLOOKUP(C23,#REF!,5,0),""))) -> 234,37
A24: COMP. SINAPI | B24: SINAPI | C24: 5903 | D24: CAMINHÃO TANQUE COM CAPACIDADE DE 10.000 L - 188 KW | E24: CHI | F24: =IF(A24="INS. SINAPI",VLOOKUP(C24,'INSUMOS SINAPI'!A:E,5,0),IF(A24="COMP. SINAPI",VLOOKUP(C24,'COMP Sint. Sinapi'!A11:E6683,5,0),IF(A24="INS. SICRO",VLOOKUP(C24,#REF!,5,0),""))) -> 42,72
A25: COMP. SINAPI | B25: SINAPI | C25: 5932 | D25: MOTONIVELADORA - 93 KW | E25: CHP | F25: =IF(A25="INS. SINAPI",VLOOKUP(C25,'INSUMOS SINAPI'!A:E,5,0),IF(A25="COMP. SINAPI",VLOOKUP(C25,'COMP Sint. Sinapi'!A12:E6684,5,0),IF(A25="INS. SICRO",VLOOKUP(C25,#REF!,5,0),""))) -> 184,24
A26: COMP. SINAPI | B26: SINAPI | C26: 5934 | D26: MOTONIVELADORA - 93 KW | E26: CHI | F26: =IF(A26="INS. SINAPI",VLOOKUP(C26,'INSUMOS SINAPI'!A:E,5,0),IF(A26="COMP. SINAPI",VLOOKUP(C26,'COMP Sint. Sinapi'!A13:E6685,5,0),IF(A26="INS. SICRO",VLOOKUP(C26,#REF!,5,0),""))) -> 63,47
A27: COMP. SINAPI | B27: SINAPI | C27: 5944 | D27: CARREGADEIRA DE PNEUS PARA ROCHA COM CAPACIDADE DE 2,9 M³ - 96 KW | E27: CHP | F27: =IF(A27="INS. SINAPI",VLOOKUP(C27,'INSUMOS SINAPI'!A:E,5,0),IF(A27="COMP. SINAPI",VLOOKUP(C27,'COMP Sint. Sinapi'!A14:E6686,5,0),IF(A27="INS. SICRO",VLOOKUP(C27,#REF!,5,0),""))) -> 168,81
A28: COMP. SINAPI | B28: SINAPI | C28: 5946 | D28: CARREGADEIRA DE PNEUS PARA ROCHA COM CAPACIDADE DE 2,9 M³ - 96 KW | E28: CHI | F28: =IF(A28="INS. SINAPI",VLOOKUP(C28,'INSUMOS SINAPI'!A:E,5,0),IF(A28="COMP. SINAPI",VLOOKUP(C28,'COMP Sint. Sinapi'!A15:E6687,5,0),IF(A28="INS. SICRO",VLOOKUP(C28,#REF!,5,0),""))) -> 64,77
A29: COMP. SINAPI | B29: SINAPI | C29: 5953 | D29: COMPRESSOR DE AR PORTÁTIL DE 124 PCM - 27 Kw | E29: CHP | F29: =IF(A29="INS. SINAPI",VLOOKUP(C29,'INSUMOS SINAPI'!A:E,5,0),IF(A29="COMP. SINAPI",VLOOKUP(C29,'COMP Sint. Sinapi'!A16:E6688,5,0),IF(A29="INS. SICRO",VLOOKUP(C29,#REF!,5,0),""))) -> 46,93
A30: COMP. SINAPI | B30: SINAPI | C30: 7049 | D30: ROLO COMP. PÉ DE CARNEIRO VIBR. AUTOP. DE 11,6 T - 82 KW | E30: H | F30: =IF(A30="INS. SINAPI",VLOOKUP(C30,'INSUMOS SINAPI'!A:E,5,0),IF(A30="COMP. SINAPI",VLOOKUP(C30,'COMP Sint. Sinapi'!A17:E6689,5,0),IF(A30="INS. SICRO",VLOOKUP(C30,#REF!,5,0),""))) -> 173,77
A31: INS. SINAPI | B31: SINAPI | C31: 7343 | D31: TINTA A BASE DE RESINA ACRILICA, PARA SINALIZACAO HORIZONTAL VIARIA (NBR 11862) | E31: L | F31: =IF(A31="INS. SINAPI",VLOOKUP(C31,'INSUMOS SINAPI'!A:E,5,0),IF(A31="COMP. SINAPI",VLOOKUP(C31,'COMP Sint. Sinapi'!A18:E6690,5,0),IF(A31="INS. SICRO",VLOOKUP(C31,#REF!,5,0),""))) -> 10,61
A32: INS. SINAPI | B32: SINAPI | C32: 7348 | D32: TINTA ACRILICA PREMIUM PARA PISO | E32: L | F32: =IF(A32="INS. SINAPI",VLOOKUP(C32,'INSUMOS SINAPI'!A:E,5,0),IF(A32="COMP. SINAPI",VLOOKUP(C32,'COMP Sint. Sinapi'!A19:E6691,5,0),IF(A32="INS. SICRO",VLOOKUP(C32,#REF!,5,0),""))) -> 17,11
A33: INS. SINAPI | B33: SINAPI | C33: 10775 | D33: Locação de container - Escritório com banheiro - 6,20 x 2,20m | E33: mês | F33: =IF(A33="INS. SINAPI",VLOOKUP(C33,'INSUMOS SINAPI'!A:E,5,0),IF(A33="COMP. SINAPI",VLOOKUP(C33,'COMP Sint. Sinapi'!A20:E6692,5,0),IF(A33="INS. SICRO",VLOOKUP(C33,#REF!,5,0),""))) -> 900,00
A34: INS. SINAPI | B34: SINAPI | C34: 14250 | D34: ENERGIA | E34: KW/H | F34: =IF(A34="INS. SINAPI",VLOOKUP(C34,'INSUMOS SINAPI'!A:E,5,0),IF(A34="COMP. SINAPI",VLOOKUP(C34,'COMP Sint. Sinapi'!A21:E6693,5,0),IF(A34="INS. SICRO",VLOOKUP(C34,#REF!,5,0),""))) -> 0,78
A35: INS. SINAPI | B35: SINAPI | C35: 14583 | D35: ÁGUA | E35: M3 | F35: =IF(A35="INS. SINAPI",VLOOKUP(C35,'INSUMOS SINAPI'!A:E,5,0),IF(A35="COMP. SINAPI",VLOOKUP(C35,'COMP Sint. Sinapi'!A22:E6694,5,0),IF(A35="INS. SICRO",VLOOKUP(C35,#REF!,5,0),""))) -> 14,75
A36: INS. SINAPI | B36: SINAPI | C36: 25972 | D36: MICROESFERAS DE VIDRO PARA SINALIZACAO HORIZONTAL VIARIA, TIPO I-B (PREMIX) - NBR 16184 | E36: KG | F36: =IF(A36="INS. SINAPI",VLOOKUP(C36,'INSUMOS SINAPI'!A:E,5,0),IF(A36="COMP. SINAPI",VLOOKUP(C36,'COMP Sint. Sinapi'!A23:E6695,5,0),IF(A36="INS. SICRO",VLOOKUP(C36,#REF!,5,0),""))) -> 14,44
A37: INS. SINAPI | B37: SINAPI | C37: 41899 | D37: CIMENTO ASFÁLTICO CAP 50/70 | E37: T | F37: =IF(A37="INS. SINAPI",VLOOKUP(C37,'INSUMOS SINAPI'!A:E,5,0),IF(A37="COMP. SINAPI",VLOOKUP(C37,'COMP Sint. Sinapi'!A24:E6696,5,0),IF(A37="INS. SICRO",VLOOKUP(C37,#REF!,5,0),""))) -> 4.130,03
A38: INS. SINAPI | B38: SINAPI | C38: 41903 | D38: EMULSAO ASFALTICA CATIONICA RR-2C PARA USO EM PAVIMENTACAO ASFALTICA (COLETADO CAIXA NA ANP ACRESCIDO DE ICMS) | E38: KG | F38: =IF(A38="INS. SINAPI",VLOOKUP(C38,'INSUMOS SINAPI'!A:E,5,0),IF(A38="COMP. SINAPI",VLOOKUP(C38,'COMP Sint. Sinapi'!A25:E6697,5,0),IF(A38="INS. SICRO",VLOOKUP(C38,#REF!,5,0),""))) -> 3,10
A39: COMP. SINAPI | B39: SINAPI | C39: 100574 | D39: ESPALHAMENTO DE MATERIAL COM TRATOR DE ESTEIRAS. AF_11/2019 | E39: M³ | F39: =IF(A39="INS. SINAPI",VLOOKUP(C39,'INSUMOS SINAPI'!A:E,5,0),IF(A39="COMP. SINAPI",VLOOKUP(C39,'COMP Sint. Sinapi'!A26:E6698,5,0),IF(A39="INS. SICRO",VLOOKUP(C39,#REF!,5,0),""))) -> 1,06
A40: COMP. SINAPI | B40: SINAPI | C40: 83356 | D40: TRANSPORTE PEDRA DE MAO | E40: m² X KM
A41: COMP. SINAPI | B41: SINAPI | C41: 87445 | D41: Betoneira 320 l, diesel, potencia de 5,5 hp, sem carregador mecanico (locacao) | E41: h | F41: =IF(A41="INS. SINAPI",VLOOKUP(C41,'INSUMOS SINAPI'!A:E,5,0),IF(A41="COMP. SINAPI",VLOOKUP(C41,'COMP Sint. Sinapi'!A28:E6700,5,0),IF(A41="INS. SICRO",VLOOKUP(C41,#REF!,5,0),""))) -> 4,30
A42: COMP. SINAPI | B42: SINAPI | C42: 88257 | D42: BLASTER | E42: H | F42: =IF(A42="INS. SINAPI",VLOOKUP(C42,'INSUMOS SINAPI'!A:E,5,0),IF(A42="COMP. SINAPI",VLOOKUP(C42,'COMP Sint. Sinapi'!A29:E6701,5,0),IF(A42="INS. SICRO",VLOOKUP(C42,#REF!,5,0),""))) -> 18,25
A43: COMP. SINAPI | B43: SINAPI | C43: 88262 | D43: CARPINTEIRO DE FORMAS COM ENCARGOS COMPLEMENTARES | E43: h | F43: =IF(A43="INS. SINAPI",VLOOKUP(C43,'INSUMOS SINAPI'!A:E,5,0),IF(A43="COMP. SINAPI",VLOOKUP(C43,'COMP Sint. Sinapi'!A30:E6702,5,0),IF(A43="INS. SICRO",VLOOKUP(C43,#REF!,5,0),""))) -> 22,02
A44: COMP. SINAPI | B44: SINAPI | C44: 88309 | D44: PEDREIRO COM ENCARGOS COMPLEMENTARES | E44: H | F44: =IF(A44="INS. SINAPI",VLOOKUP(C44,'INSUMOS SINAPI'!A:E,5,0),IF(A44="COMP. SINAPI",VLOOKUP(C44,'COMP Sint. Sinapi'!A31:E6703,5,0),IF(A44="INS. SICRO",VLOOKUP(C44,#REF!,5,0),""))) -> 
A45: COMP. SINAPI | B45: SINAPI | C45: 88377 | D45: OPERADOR DE BETONEIRA ESTACIONÁRIA/MISTURADOR COM ENCARGOS COMPLEMENTARES | E45: H | F45: =IF(A45="INS. SINAPI",VLOOKUP(C45,'INSUMOS SINAPI'!A:E,5,0),IF(A45="COMP. SINAPI",VLOOKUP(C45,'COMP Sint. Sinapi'!A32:E6704,5,0),IF(A45="INS. SICRO",VLOOKUP(C45,#REF!,5,0),""))) -> 
A46: COMP. SINAPI | B46: SINAPI | C46: 88629 | D46: ARGAMASSA TRAÇO 1:3 (EM VOLUME DE CIMENTO E AREIA MÉDIA ÚMIDA), PREPARO MANUAL. AF_08/2019 | E46: M3 | F46: =IF(A46="INS. SINAPI",VLOOKUP(C46,'INSUMOS SINAPI'!A:E,5,0),IF(A46="COMP. SINAPI",VLOOKUP(C46,'COMP Sint. Sinapi'!A33:E6705,5,0),IF(A46="INS. SICRO",VLOOKUP(C46,#REF!,5,0),""))) -> 497,98
A47: COMP. SINAPI | B47: SINAPI | C47: 88830 | D47: BETONEIRA CAPACIDADE NOMINAL DE 400 L, CAPACIDADE DE MISTURA 280 L, MOTOR ELÉTRICO TRIFÁSICO POTÊNCIA DE 2 CV, SEM CARREGADOR - CHP DIURNO. AF_10/2014 | E47: CHP | F47: =IF(A47="INS. SINAPI",VLOOKUP(C47,'INSUMOS SINAPI'!A:E,5,0),IF(A47="COMP. SINAPI",VLOOKUP(C47,'COMP Sint. Sinapi'!A34:E6706,5,0),IF(A47="INS. SICRO",VLOOKUP(C47,#REF!,5,0),""))) -> 1,54
A48: COMP. SINAPI | B48: SINAPI | C48: 88831 | D48: BETONEIRA CAPACIDADE NOMINAL DE 400 L, CAPACIDADE DE MISTURA 280 L, MOTOR ELÉTRICO TRIFÁSICO POTÊNCIA DE 2 CV, SEM CARREGADOR - CHI DIURNO. AF_10/2014 | E48: CHI | F48: =IF(A48="INS. SINAPI",VLOOKUP(C48,'INSUMOS SINAPI'!A:E,5,0),IF(A48="COMP. SINAPI",VLOOKUP(C48,'COMP Sint. Sinapi'!A35:E6707,5,0),IF(A48="INS. SICRO",VLOOKUP(C48,#REF!,5,0),""))) -> 0,32
A49: COMP. SINAPI | B49: SINAPI | C49: 88843 | D49: TRATOR DE ESTEIRAS COM LÂMINA - 112 KW | E49: CHP | F49: =IF(A49="INS. SINAPI",VLOOKUP(C49,'INSUMOS SINAPI'!A:E,5,0),IF(A49="COMP. SINAPI",VLOOKUP(C49,'COMP Sint. Sinapi'!A36:E6708,5,0),IF(A49="INS. SICRO",VLOOKUP(C49,#REF!,5,0),""))) -> 161,18
A50: COMP. SINAPI | B50: SINAPI | C50: 88844 | D50: TRATOR DE ESTEIRAS COM LÂMINA - 112 KW | E50: CHI | F50: =IF(A50="INS. SINAPI",VLOOKUP(C50,'INSUMOS SINAPI'!A:E,5,0),IF(A50="COMP. SINAPI",VLOOKUP(C50,'COMP Sint. Sinapi'!A37:E6709,5,0),IF(A50="INS. SICRO",VLOOKUP(C50,#REF!,5,0),""))) -> 51,73
A51: COMP. SINAPI | B51: SINAPI | C51: 89035 | D51: TRATOR AGRÍCOLA - 77 KW | E51: CHP | F51: =IF(A51="INS. SINAPI",VLOOKUP(C51,'INSUMOS SINAPI'!A:E,5,0),IF(A51="COMP. SINAPI",VLOOKUP(C51,'COMP Sint. Sinapi'!A38:E6710,5,0),IF(A51="INS. SICRO",VLOOKUP(C51,#REF!,5,0),""))) -> 144,48
A52: COMP. SINAPI | B52: SINAPI | C52: 89876 | D52: CAMINHÃO BASCULANTE COM CAPACIDADE DE 14 M³ - 323 KW | E52: CHP | F52: =IF(A52="INS. SINAPI",VLOOKUP(C52,'INSUMOS SINAPI'!A:E,5,0),IF(A52="COMP. SINAPI",VLOOKUP(C52,'COMP Sint. Sinapi'!A39:E6711,5,0),IF(A52="INS. SICRO",VLOOKUP(C52,#REF!,5,0),""))) -> 253,78
A53: COMP. SINAPI | B53: SINAPI | C53: 89877 | D53: CAMINHÃO BASCULANTE COM CAPACIDADE DE 14 M³ - 323 KW | E53: CHI | F53: =IF(A53="INS. SINAPI",VLOOKUP(C53,'INSUMOS SINAPI'!A:E,5,0),IF(A53="COMP. SINAPI",VLOOKUP(C53,'COMP Sint. Sinapi'!A40:E6712,5,0),IF(A53="INS. SICRO",VLOOKUP(C53,#REF!,5,0),""))) -> 54,93
A54: COMP. SINAPI | B54: SINAPI | C54: 90772 | D54: AUXILIAR DE ESCRITORIO COM ENCARGOS COMPLEMENTARES | E54: H | F54: =IF(A54="INS. SINAPI",VLOOKUP(C54,'INSUMOS SINAPI'!A:E,5,0),IF(A54="COMP. SINAPI",VLOOKUP(C54,'COMP Sint. Sinapi'!A41:E6713,5,0),IF(A54="INS. SICRO",VLOOKUP(C54,#REF!,5,0),""))) -> 
A55: COMP. SINAPI | B55: SINAPI | C55: 90777 | D55: ENGENHEIRO CIVIL DE OBRA JUNIOR COM ENCARGOS COMPLEMENTARES | E55: H | F55: =IF(A55="INS. SINAPI",VLOOKUP(C55,'INSUMOS SINAPI'!A:E,5,0),IF(A55="COMP. SINAPI",VLOOKUP(C55,'COMP Sint. Sinapi'!A42:E6714,5,0),IF(A55="INS. SICRO",VLOOKUP(C55,#REF!,5,0),""))) -> 
A56: COMP. SINAPI | B56: SINAPI | C56: 90780 | D56: MESTRE DE OBRAS COM ENCARGOS COMPLEMENTARES | E56: H | F56: =IF(A56="INS. SINAPI",VLOOKUP(C56,'INSUMOS SINAPI'!A:E,5,0),IF(A56="COMP. SINAPI",VLOOKUP(C56,'COMP Sint. Sinapi'!A43:E6715,5,0),IF(A56="INS. SICRO",VLOOKUP(C56,#REF!,5,0),""))) -> 
A57: COMP. SINAPI | B57: SINAPI | C57: 94964 | D57: CONCRETO FCK = 20 MPA - CONFECÇÃO EM BETONEIRA E LANÇAMENTO MANUAL - AREIA E BRITA COMERCIAIS | E57: M3 | F57: =IF(A57="INS. SINAPI",VLOOKUP(C57,'INSUMOS SINAPI'!A:E,5,0),IF(A57="COMP. SINAPI",VLOOKUP(C57,'COMP Sint. Sinapi'!A44:E6716,5,0),IF(A57="INS. SICRO",VLOOKUP(C57,#REF!,5,0),""))) -> 359,25
A58: COMP.SICRO | B58: DNIT | C58: 4816126 | D58: CONFECÇÃO DE TUBOS DE CONCRETO D = 0,60 M - AREIA E BRITA COMERCIAIS | E58: m | F58: =IF(A58="INS. SINAPI",VLOOKUP(C58,'INSUMOS SINAPI'!A:E,5,0),IF(A58="COMP. SINAPI",VLOOKUP(C58,'COMP Sint. Sinapi'!A45:E6717,5,0),IF(A58="INS. SICRO",VLOOKUP(C58,#REF!,5,0),""))) -> 
A59: COMP. SINAPI | B59: SINAPI | C59: 95708 | D59: PERFURATRIZ SOBRE ESTEIRAS - 145 KW | E59: CHP | F59: =IF(A59="INS. SINAPI",VLOOKUP(C59,'INSUMOS SINAPI'!A:E,5,0),IF(A59="COMP. SINAPI",VLOOKUP(C59,'COMP Sint. Sinapi'!A46:E6718,5,0),IF(A59="INS. SICRO",VLOOKUP(C59,#REF!,5,0),""))) -> 125,35
A60: COMP. SINAPI | B60: SINAPI | C60: 95720 | D60: ESCAVADEIRA HIDRÁULICA SOBRE ESTEIRA COM CAÇAMBA COM CAPACIDADE DE 1,5 M³ - 110 KW | E60: CHP | F60: =IF(A60="INS. SINAPI",VLOOKUP(C60,'INSUMOS SINAPI'!A:E,5,0),IF(A60="COMP. SINAPI",VLOOKUP(C60,'COMP Sint. Sinapi'!A47:E6719,5,0),IF(A60="INS. SICRO",VLOOKUP(C60,#REF!,5,0),""))) -> 187,02
A61: COMP. SINAPI | B61: SINAPI | C61: 96035 | D61: CAMINHÃO BASCULANTE PARA ROCHA COM CAPACIDADE DE 12 M³ - 188 KW | E61: CHI | F61: =IF(A61="INS. SINAPI",VLOOKUP(C61,'INSUMOS SINAPI'!A:E,5,0),IF(A61="COMP. SINAPI",VLOOKUP(C61,'COMP Sint. Sinapi'!A48:E6720,5,0),IF(A61="INS. SICRO",VLOOKUP(C61,#REF!,5,0),""))) -> 209,08
A62: COMP.SICRO | B62: DNIT | C62: 407820 | D62: ARMAÇÃO EM AÇO CA-60 - FORNECIMENTO, PREPARO E COLOCAÇÃO | E62: kg | F62: =#REF! -> 
A63: COMP.SICRO | B63: DNIT | C63: 1506055 | D63: PEDRA ARGAMASSADA COM CIMENTO E AREIA 1:3 - AREIA E PEDRA DE MÃO COMERCIAL - FORNECIMENTO E ASSENTAMENTO | E63: m² | F63: =#REF! -> 
A64: COMP.SICRO | B64: DNIT | C64: 2003842 | D64: ENCHIMENTO DE JUNTA DE CONCRETO COM ARGAMASSA ASFÁLTICA DE DENSIDADE 1.700 KG/M³ - ESPESSURA DE 1 CM | E64: kg | F64: =#REF! -> 
A65: COMP.SICRO | B65: DNIT | C65: 4805751 | D65: ESCAVAÇÃO MANUAL EM MATERIAL DE 1ª CATEGORIA NA PROFUNDIDADE DE ATÉ 2M | E65: m³ | F65: =#REF! -> 
A66: COMP.SICRO | B66: DNIT | C66: 3103302 | D66: FORMAS DE TÁBUAS DE PINHO PARA DISPOSITIVOS DE DRENAGEM - UTILIZAÇÃO DE 3 VEZES - CONFECÇÃO, INSTALAÇÃO E RETIRADA | E66: m² | F66: =#REF! -> 
A67: COMP.SICRO | B67: DNIT | C67: 3108022 | D67: GUIA DE MADEIRA DE 2,5 X 8,0 CM - CONFECÇÃO E INSTALAÇÃO | E67: m | F67: =#REF! -> 
A68: COMP.SICRO | B68: DNIT | C68: 4413996 | D68: ENLEIVAMENTO | E68: M² | F68: =#REF! -> 
A69: COMP. SICRO | B69: DNIT | C69: 5213414 | D69: CONFECÇÃO DE PLACA EM AÇO Nº 16 GALVANIZADO, COM PELÍCULA RETRORREFLETIVA TIPO I + SI | E69: M² | F69: =#REF! -> 
A70: COMP. ORSE | B70: ORSE | C70: 12651 | D70: APILOAMENTO MANUAL | E70: m³ | F70: 21.07
A71: COMP. SINAPI | B71: SINAPI | C71: 5824 | D71: CAMINHÃO TOCO, PBT 16.000 KG, CARGA ÚTIL MÁX. 10.685 KG, DIST. ENTRE EIXOS 4,8 M, POTÊNCIA 189 CV, INCLUSIVE CARROCERIA FIXA ABERTA DE MADEIRA P/ TRANSPORTE GERAL DE CARGA SECA, DIMEN. APROX. 2,5 X 7,00 X 0,50 M - CHP DIURNO. AF_06/2014 | E71: CHP | F71: =IF(A71="INS. SINAPI",VLOOKUP(C71,'INSUMOS SINAPI'!A:E,5,0),IF(A71="COMP. SINAPI",VLOOKUP(C71,'COMP Sint. Sinapi'!A59:E6731,5,0),IF(A71="INS. SICRO",VLOOKUP(C71,#REF!,5,0),""))) -> 150,18
A72: COMP. SINAPI | B72: SINAPI | C72: 5835 | D72: VIBROACABADORA DE ASFALTO SOBRE ESTEIRAS, LARGURA DE PAVIMENTAÇÃO 1,90 M A 5,30 M, POTÊNCIA 105 HP CAPACIDADE 450 T/H - CHP DIURNO. AF_11/2014 | E72: CHP | F72: =IF(A72="INS. SINAPI",VLOOKUP(C72,'INSUMOS SINAPI'!A:E,5,0),IF(A72="COMP. SINAPI",VLOOKUP(C72,'COMP Sint. Sinapi'!A60:E6732,5,0),IF(A72="INS. SICRO",VLOOKUP(C72,#REF!,5,0),""))) -> 346,04
A73: COMP. SINAPI | B73: SINAPI | C73: 5837 | D73: VIBROACABADORA DE ASFALTO SOBRE ESTEIRAS, LARGURA DE PAVIMENTAÇÃO 1,90 M A 5,30 M, POTÊNCIA 105 HP CAPACIDADE 450 T/H - CHI DIURNO. AF_11/2014 | E73: CHI | F73: =IF(A73="INS. SINAPI",VLOOKUP(C73,'INSUMOS SINAPI'!A:E,5,0),IF(A73="COMP. SINAPI",VLOOKUP(C73,'COMP Sint. Sinapi'!A61:E6733,5,0),IF(A73="INS. SICRO",VLOOKUP(C73,#REF!,5,0),""))) -> 128,22
A74: COMP. ORSE | B74: ORSE | C74: 4 | D74: Limpeza mecanizada do terreno c/ trator esteira (vegetação rasteira) inclusive carga e transporte - dmt até 1 km | E74: M2 | F74: 5.18
A75: COMP. SINAPI | B75: SINAPI | C75: 83362 | D75: ESPARGIDOR DE ASFALTO PRESSURIZADO, TANQUE 6 M3 COM ISOLAÇÃO TÉRMICA, AQUECIDO COM 2 MAÇARICOS, COM BARRA ESPARGIDORA 3,60 M, MONTADO SOBRE CAMINHÃO TOCO, PBT 14.300 KG, POTÊNCIA 185 CV - CHP DIURNO. AF_08/2015 | E75: CHP | F75: =IF(A75="INS. SINAPI",VLOOKUP(C75,'INSUMOS SINAPI'!A:E,5,0),IF(A75="COMP. SINAPI",VLOOKUP(C75,'COMP Sint. Sinapi'!A63:E6735,5,0),IF(A75="INS. SICRO",VLOOKUP(C75,#REF!,5,0),""))) -> 235,80
A76: COMP. SINAPI | B76: SINAPI | C76: 88278 | D76: Montador | E76: H | F76: =IF(A76="INS. SINAPI",VLOOKUP(C76,'INSUMOS SINAPI'!A:E,5,0),IF(A76="COMP. SINAPI",VLOOKUP(C76,'COMP Sint. Sinapi'!A64:E6736,5,0),IF(A76="INS. SICRO",VLOOKUP(C76,#REF!,5,0),""))) -> 17,07
A77: COMP. SINAPI | B77: SINAPI | C77: 88314 | D77: RASTELEIRO COM ENCARGOS COMPLEMENTARES | E77: H | F77: =IF(A77="INS. SINAPI",VLOOKUP(C77,'INSUMOS SINAPI'!A:E,5,0),IF(A77="COMP. SINAPI",VLOOKUP(C77,'COMP Sint. Sinapi'!A65:E6737,5,0),IF(A77="INS. SICRO",VLOOKUP(C77,#REF!,5,0),""))) -> 16,35
A78: COMP. SINAPI | B78: SINAPI | C78: 88316 | D78: SERVENTE COM ENCARGOS COMPLEMENTARES | E78: H | F78: =IF(A78="INS. SINAPI",VLOOKUP(C78,'INSUMOS SINAPI'!A:E,5,0),IF(A78="COMP. SINAPI",VLOOKUP(C78,'COMP Sint. Sinapi'!A66:E6738,5,0),IF(A78="INS. SICRO",VLOOKUP(C78,#REF!,5,0),""))) -> 16,44
A79: COMP. SINAPI | B79: SINAPI | C79: 91386 | D79: CAMINHÃO BASCULANTE 10 M3, TRUCADO CABINE SIMPLES, PESO BRUTO TOTAL 23.000 KG, CARGA ÚTIL MÁXIMA 15.935 KG, DISTÂNCIA ENTRE EIXOS 4,80 M, POTÊNCIA 230 CV INCLUSIVE CAÇAMBA METÁLICA - CHP DIURNO. AF_06/2014 | E79: CHP | F79: =IF(A79="INS. SINAPI",VLOOKUP(C79,'INSUMOS SINAPI'!A:E,5,0),IF(A79="COMP. SINAPI",VLOOKUP(C79,'COMP Sint. Sinapi'!A67:E6739,5,0),IF(A79="INS. SICRO",VLOOKUP(C79,#REF!,5,0),""))) -> 198,43
A80: COMP. SINAPI | B80: SINAPI | C80: 94970 | D80: Concreto fck = 20 MPa - confecção em betoneira e lançamento manual - areia e brita comerciais | E80: M³ | F80: =IF(A80="INS. SINAPI",VLOOKUP(C80,'INSUMOS SINAPI'!A:E,5,0),IF(A80="COMP. SINAPI",VLOOKUP(C80,'COMP Sint. Sinapi'!A68:E6740,5,0),IF(A80="INS. SICRO",VLOOKUP(C80,#REF!,5,0),""))) -> 349,29
A81: COMP. SINAPI | B81: SINAPI | C81: 95133 | D81: MÁQUINA DEMARCADORA DE FAIXA DE TRÁFEGO À FRIO, AUTOPROPELIDA, POTÊNCIA 38 HP - CHP DIURNO. AF_07/2016 | E81: CHP | F81: =IF(A81="INS. SINAPI",VLOOKUP(C81,'INSUMOS SINAPI'!A:E,5,0),IF(A81="COMP. SINAPI",VLOOKUP(C81,'COMP Sint. Sinapi'!A69:E6741,5,0),IF(A81="INS. SICRO",VLOOKUP(C81,#REF!,5,0),""))) -> 139,33
A82: COMP. SINAPI | B82: SINAPI | C82: 95631 | D82: ROLO COMPACTADOR VIBRATORIO TANDEM, ACO LISO, POTENCIA 125 HP, PESO SEM/COM LASTRO 10,20/11,65 T, LARGURA DE TRABALHO 1,73 M - CHP DIURNO. AF_11/2016 | E82: CHP | F82: =IF(A82="INS. SINAPI",VLOOKUP(C82,'INSUMOS SINAPI'!A:E,5,0),IF(A82="COMP. SINAPI",VLOOKUP(C82,'COMP Sint. Sinapi'!A70:E6742,5,0),IF(A82="INS. SICRO",VLOOKUP(C82,#REF!,5,0),""))) -> 179,92
A83: COMP. SINAPI | B83: SINAPI | C83: 95632 | D83: ROLO COMPACTADOR VIBRATORIO TANDEM, ACO LISO, POTENCIA 125 HP, PESO SEM/COM LASTRO 10,20/11,65 T, LARGURA DE TRABALHO 1,73 M - CHI DIURNO. AF_11/2016 | E83: CHI | F83: =IF(A83="INS. SINAPI",VLOOKUP(C83,'INSUMOS SINAPI'!A:E,5,0),IF(A83="COMP. SINAPI",VLOOKUP(C83,'COMP Sint. Sinapi'!A71:E6743,5,0),IF(A83="INS. SICRO",VLOOKUP(C83,#REF!,5,0),""))) -> 62,72
A84: COMP. SINAPI | B84: SINAPI | C84: 96013 | D84: TRATOR DE PNEUS COM POTÊNCIA DE 122 CV, TRAÇÃO 4X4, COM VASSOURA MECÂNICA ACOPLADA - CHP DIURNO. AF_02/2017 | E84: CHP | F84: =IF(A84="INS. SINAPI",VLOOKUP(C84,'INSUMOS SINAPI'!A:E,5,0),IF(A84="COMP. SINAPI",VLOOKUP(C84,'COMP Sint. Sinapi'!A72:E6744,5,0),IF(A84="INS. SICRO",VLOOKUP(C84,#REF!,5,0),""))) -> 206,04
A85: COMP. SINAPI | B85: SINAPI | C85: 96014 | D85: TRATOR DE PNEUS COM POTÊNCIA DE 122 CV, TRAÇÃO 4X4, COM VASSOURA MECÂNICA ACOPLADA - CHI DIURNO. AF_02/2017 | E85: CHI | F85: =IF(A85="INS. SINAPI",VLOOKUP(C85,'INSUMOS SINAPI'!A:E,5,0),IF(A85="COMP. SINAPI",VLOOKUP(C85,'COMP Sint. Sinapi'!A73:E6745,5,0),IF(A85="INS. SICRO",VLOOKUP(C85,#REF!,5,0),""))) -> 43,27
A86: COMP. SINAPI | B86: SINAPI | C86: 96155 | D86: TRATOR DE PNEUS COM POTÊNCIA DE 85 CV, TRAÇÃO 4X4, COM VASSOURA MECÂNICA ACOPLADA - CHI DIURNO. AF_02/2017 | E86: CHI | F86: =IF(A86="INS. SINAPI",VLOOKUP(C86,'INSUMOS SINAPI'!A:E,5,0),IF(A86="COMP. SINAPI",VLOOKUP(C86,'COMP Sint. Sinapi'!A74:E6746,5,0),IF(A86="INS. SICRO",VLOOKUP(C86,#REF!,5,0),""))) -> 38,53
A87: COMP. SINAPI | B87: SINAPI | C87: 96157 | D87: TRATOR DE PNEUS COM POTÊNCIA DE 85 CV, TRAÇÃO 4X4, COM VASSOURA MECÂNICA ACOPLADA - CHP DIURNO. AF_03/2017 | E87: CHP | F87: =IF(A87="INS. SINAPI",VLOOKUP(C87,'INSUMOS SINAPI'!A:E,5,0),IF(A87="COMP. SINAPI",VLOOKUP(C87,'COMP Sint. Sinapi'!A75:E6747,5,0),IF(A87="INS. SICRO",VLOOKUP(C87,#REF!,5,0),""))) -> 153,97
A88: COMP. SINAPI | B88: SINAPI | C88: 96463 | D88: ROLO COMPACTADOR DE PNEUS, ESTATICO, PRESSAO VARIAVEL, POTENCIA 110 HP, PESO SEM/COM LASTRO 10,8/27 T, LARGURA DE ROLAGEM 2,30 M - CHP DIURNO. AF_06/2017 | E88: CHP | F88: =IF(A88="INS. SINAPI",VLOOKUP(C88,'INSUMOS SINAPI'!A:E,5,0),IF(A88="COMP. SINAPI",VLOOKUP(C88,'COMP Sint. Sinapi'!A76:E6748,5,0),IF(A88="INS. SICRO",VLOOKUP(C88,#REF!,5,0),""))) -> 168,21
A89: COMP. SINAPI | B89: SINAPI | C89: 96464 | D89: ROLO COMPACTADOR DE PNEUS, ESTATICO, PRESSAO VARIAVEL, POTENCIA 110 HP, PESO SEM/COM LASTRO 10,8/27 T, LARGURA DE ROLAGEM 2,30 M - CHI DIURNO. AF_06/2017 | E89: CHI | F89: =IF(A89="INS. SINAPI",VLOOKUP(C89,'INSUMOS SINAPI'!A:E,5,0),IF(A89="COMP. SINAPI",VLOOKUP(C89,'COMP Sint. Sinapi'!A77:E6749,5,0),IF(A89="INS. SICRO",VLOOKUP(C89,#REF!,5,0),""))) -> 67,08
A90: COMP.SICRO | B90: DNIT | C90: E9647 | D90: COMPACTADOR MANUAL COM SOQUETE VIBRATÓRIO - 4,1 KW | E90: H | F90: =VLOOKUP($C90,#REF!,8,0) -> 
A91: COMP. SICRO | B91: DNIT | C91: E9687 | D91: Caminhão carroceria com capacidade de 5 t - 115 kW | E91: CHP | F91: =VLOOKUP($C91,#REF!,8,0) -> 
A92: COMP. SICRO | B92: DNIT | C92: E9687 | D92: Caminhão carroceria com capacidade de 5 t - 115 kW | E92: CHI | F92: =VLOOKUP($C92,#REF!,7,0) -> 
A93: INS. SICRO | B93: DNIT | C93: M0787 | D93: Suporte em aço carbono galvanizado perfil "C" | E93: kg | F93: =VLOOKUP($C93,#REF!,5,0) -> 
A94: INS. SICRO | B94: DNIT | C94: M0789 | D94: Conjunto de cantoneiras e parafusos galvanizados para fixação de placas | E94: kg | F94: =VLOOKUP($C94,#REF!,5,0) -> 
A95: INS. SICRO | B95: DNIT | C95: M2042 | D95: EMULSÃO EXPLOSIVA ENCARTUCHADA | E95: kg | F95: =VLOOKUP($C95,#REF!,5,0) -> 
A96: INS. SICRO | B96: DNIT | C96: M2062 | D96: COROA PARA PERFURATRIZ T38 - D = 2 1/2" | E96: und | F96: =VLOOKUP($C96,#REF!,5,0) -> 
A97: INS. SICRO | B97: DNIT | C97: M2065 | D97: HASTE PARA PERFURATRIZ DE ESTEIRA T38 DE 1 1/2" X 3 M | E97: und | F97: =VLOOKUP($C97,#REF!,5,0) -> 
A98: INS. SICRO | B98: DNIT | C98: M2066 | D98: LUVA PARA PERFURATRIZ DE ESTEIRA T38 - D = 1 1/2" | E98: und | F98: =VLOOKUP($C98,#REF!,5,0) -> 
A99: INS. SICRO | B99: DNIT | C99: M2067 | D99: PUNHO PARA PERFURATRIZ DE ESTEIRA T38 - D = 1 1/2" | E99: und | F99: =VLOOKUP($C99,#REF!,5,0) -> 
A100: INS. SICRO | B100: DNIT | C100: M2141 | D100: NONEL DE INICIAÇÃO PARA FOGACHO COM 6 M | E100: und | F100: =VLOOKUP($C100,#REF!,5,0) -> 
A101: INS. SICRO | B101: DNIT | C101: M2143 | D101: NONEL DE LIGAÇÃO | E101: und | F101: =VLOOKUP($C101,#REF!,5,0) -> 
A102: INS. SICRO | B102: DNIT | C102: M2144 | D102: NONEL DE COLUNA COM 6 M | E102: und | F102: =VLOOKUP($C102,#REF!,5,0) -> 
A103: INS. SICRO | B103: DNIT | C103: M2145 | D103: SÉRIE DE BROCAS S-12 - D = 22 MM | E103: und | F103: =VLOOKUP($C103,#REF!,5,0) -> 
A104: INS. SICRO | B104: DNIT | C104: M2146 | D104: NONEL INICIADOR COM 150 M | E104: und | F104: =VLOOKUP($C104,#REF!,5,0) -> 
A105: INSUMO | B105: ORSE | C105: 10585 | D105: Arco de serra | E105: und | F105: 21.25 | G105: 2021-08-01

Sheet INSUMOS SINAPI
A1: PRECOS DE INSUMOS
A3: MES DE COLETA: 09/2021
A4: LOCALIDADE: 0760 - FORTALEZA
A5: ENCARGOS SOCIAIS (%) HORISTA 112,76 MENSALISTA 71,07
A7: CODIGO | B7: DESCRICAO DO INSUMO | C7: UNIDADE | D7: ORIGEM DO PRECO | E7: PRECO MEDIANO R$
A8: 1344 | B8: !EM PROCESSO DE DESATIVACAO! CHAPA DE MADEIRA COMPENSADA PLASTIFICADA PARA FORMA DE CONCRETO, DE 2,20 x 1,10 M, E = 6 MM | C8: UN | D8: AS | E8: 96,07
A9: 1342 | B9: !EM PROCESSO DE DESATIVACAO! CHAPA DE MADEIRA COMPENSADA PLASTIFICADA PARA FORMA DE CONCRETO, DE 2,20 X 1,10 m, E = 14 MM | C9: UN | D9: AS | E9: 169,82
A10: 1349 | B10: !EM PROCESSO DE DESATIVACAO! CHAPA DE MADEIRA COMPENSADA PLASTIFICADA PARA FORMA DE CONCRETO, DE 2,20 X 1,10 M, E = 20 MM | C10: UN | D10: AS | E10: 242,19
A11: 1350 | B11: !EM PROCESSO DE DESATIVACAO! CHAPA DE MADEIRA COMPENSADA RESINADA PARA FORMA DE CONCRETO, DE *2,2 X 1,1* M, E = 10 MM | C11: UN | D11: C | E11: 89,50
A12: 1359 | B12: !EM PROCESSO DE DESATIVACAO! CHAPA DE MADEIRA COMPENSADA RESINADA PARA FORMA DE CONCRETO, DE *2,2 X 1,1* M, E = 20 MM | C12: UN | D12: CR | E12: 176,13
A13: 1351 | B13: !EM PROCESSO DE DESATIVACAO! CHAPA DE MADEIRA COMPENSADA RESINADA PARA FORMA DE CONCRETO, DE *2,2 X 1,1* M, E = 6 MM | C13: UN | D13: CR | E13: 56,76
A14: 2418 | B14: !EM PROCESSO DE DESATIVACAO! DOBRADICA EM ACO/FERRO, 3" X 2 1/2", E= 1,2 A 1,8 MM, SEM ANEL, CROMADO OU ZINCADO, TAMPA BOLA, COM PARAFUSOS | C14: UN | D14: C | E14: 15,24
A15: 6086 | B15: !EM PROCESSO DE DESATIVACAO! FUNDO SINTETICO NIVELADOR BRANCO FOSCO PARA MADEIRA | C15: GL | D15: CR | E15: 52,29
A16: 3378 | B16: !EM PROCESSO DE DESATIVACAO! HASTE DE ATERRAMENTO EM ACO COM 3,00 M DE COMPRIMENTO E DN = 3/4", REVESTIDA COM BAIXA CAMADA DE COBRE, SEM CONECTOR | C16: UN | D16: CR | E16: 69,98
A17: 3380 | B17: !EM PROCESSO DE DESATIVACAO! HASTE DE ATERRAMENTO EM ACO COM 3,00 M DE COMPRIMENTO E DN = 5/8", REVESTIDA COM BAIXA CAMADA DE COBRE, COM CONECTOR TIPO GRAMPO | C17: UN | D17: C | E17: 48,99
A18: 3379 | B18: !EM PROCESSO DE DESATIVACAO! HASTE DE ATERRAMENTO EM ACO COM 3,00 M DE COMPRIMENTO E DN = 5/8", REVESTIDA COM BAIXA CAMADA DE COBRE, SEM CONECTOR | C18: UN | D18: CR | E18: 47,30
A19: 615 | B19: !EM PROCESSO DE DESATIVACAO! JANELA BASCULANTE, ACO, COM BATENTE/REQUADRO, 60 X 80 CM (SEM VIDROS) | C19: M2 | D19: AS | E19: 521,64
A20: 606 | B20: !EM PROCESSO DE DESATIVACAO! JANELA DE CORRER, ACO, BATENTE/REQUADRO DE 6 A 14 CM, QUADRICULADA, PINTURA ANTICORROSIVA, SEM VIDRO, BANDEIRA COM BASCULA, 4 FLS, 120 X 150 CM (A X L) | C20: M2 | D20: AS | E20: 819,43
A21: 13382 | B21: !EM PROCESSO DE DESATIVACAO! LUMINARIA FECHADA P/ ILUMINACAO PUBLICA, TIPO ABL 50/F OU EQUIV, P/ LAMPADA A VAPOR DE MERCURIO 400W | C21: UN | D21: AS | E21: 373,96
A22: 4047 | B22: !EM PROCESSO DE DESATIVACAO! MASSA CORRIDA PVA PARA PAREDES INTERNAS | C22: GL | D22: C | E22: 10,58
A23: 7344 | B23: !EM PROCESSO DE DESATIVACAO! TINTA LATEX PVA PREMIUM, COR BRANCA | C23: GL | D23: C | E23: 79,80
A24: 40514 | B24: !EM PROCESSO DE DESATIVACAO! VERNIZ POLIURETANO BRILHANTE PARA MADEIRA, SEM FILTRO SOLAR, USO INTERNO E EXTERNO | C24: L | D24: C | E24: 28,31
A25: 11199 | B25: !EM PROCESSO DE DESATIVACAO!JANELA DE CORRER, ACO, BATENTE/REQUADRO DE 6 A 14 CM, COM DIVISAO HORIZ , PINT ANTICORROSIVA, SEM VIDRO, BANDEIRA COM BASCULA, 4 FLS, 120 X 150 CM (A X L) | C25: UN | D25: AS | E25: 1.175,81
A26: 4053 | B26: !EM PROCESSO DE DESATIVACAO!MASSA A OLEO PARA MADEIRA | C26: GL | D26: CR | E26: 40,30
A27: 4056 | B27: !EM PROCESSO DE DESATIVACAO!MASSA ACRILICA PARA PAREDES INTERIOR/EXTERIOR | C27: GL | D27: CR | E27: 21,19
A28: 21136 | B28: !EM PROCESSO DESATIVACAO! ELETRODUTO EM ACO GALVANIZADO ELETROLITICO, LEVE, DIAMETRO 1", PAREDE DE 0,90 MM | C28: M | D28: AS | E28: 13,48
A29: 21128 | B29: !EM PROCESSO DESATIVACAO! ELETRODUTO EM ACO GALVANIZADO ELETROLITICO, LEVE, DIAMETRO 3/4", PAREDE DE 0,90 MM | C29: M | D29: AS | E29: 10,43
A30: 21130 | B30: !EM PROCESSO DESATIVACAO! ELETRODUTO EM ACO GALVANIZADO ELETROLITICO, SEMI-PESADO, DIAMETRO 1 1/2", PAREDE DE 1,20 MM | C30: M | D30: AS | E30: 26,34
A31: 21135 | B31: !EM PROCESSO DESATIVACAO! ELETRODUTO EM ACO GALVANIZADO ELETROLITICO, SEMI-PESADO, DIAMETRO 1 1/4", PAREDE DE 1,20 MM | C31: M | D31: AS | E31: 25,93
A32: 38605 | B32: ABERTURA PARA ENCAIXE DE CUBA OU LAVATORIO EM BANCADA DE MARMORE/ GRANITO OU OUTRO TIPO DE PEDRA NATURAL | C32: UN | D32: AS | E32: 146,42
A33: 11270 | B33: ABRACADEIRA DE LATAO PARA FIXACAO DE CABO PARA-RAIO, DIMENSOES 32 X 24 X 24 MM | C33: UN | D33: CR | E33: 2,70
A34: 412 | B34: ABRACADEIRA DE NYLON PARA AMARRACAO DE CABOS, COMPRIMENTO DE *230* X *7,6* MM | C34: UN | D34: CR | E34: 0,87
A35: 414 | B35: ABRACADEIRA DE NYLON PARA AMARRACAO DE CABOS, COMPRIMENTO DE 100 X 2,5 MM | C35: UN | D35: CR | E35: 0,05
A36: 410 | B36: ABRACADEIRA DE NYLON PARA AMARRACAO DE CABOS, COMPRIMENTO DE 150 X *3,6* MM | C36: UN | D36: CR | E36: 0,13
A37: 411 | B37: ABRACADEIRA DE NYLON PARA AMARRACAO DE CABOS, COMPRIMENTO DE 200 X *4,6* MM | C37: UN | D37: C | E37: 0,17
A38: 408 | B38: ABRACADEIRA DE NYLON PARA AMARRACAO DE CABOS, COMPRIMENTO DE 390 X *4,6* MM | C38: UN | D38: CR | E38: 0,84
A39: 39131 | B39: ABRACADEIRA EM ACO PARA AMARRACAO DE ELETRODUTOS, TIPO D, COM 1 1/2" E CUNHA DE FIXACAO | C39: UN | D39: CR | E39: 2,33
A40: 394 | B40: ABRACADEIRA EM ACO PARA AMARRACAO DE ELETRODUTOS, TIPO D, COM 1 1/2" E PARAFUSO DE FIXACAO | C40: UN | D40: CR | E40: 2,36
A41: 39130 | B41: ABRACADEIRA EM ACO PARA AMARRACAO DE ELETRODUTOS, TIPO D, COM 1 1/4" E CUNHA DE FIXACAO | C41: UN | D41: CR | E41: 2,12
A42: 395 | B42: ABRACADEIRA EM ACO PARA AMARRACAO DE ELETRODUTOS, TIPO D, COM 1 1/4" E PARAFUSO DE FIXACAO | C42: UN | D42: CR | E42: 2,27
A43: 39127 | B43: ABRACADEIRA EM ACO PARA AMARRACAO DE ELETRODUTOS, TIPO D, COM 1/2" E CUNHA DE FIXACAO | C43: UN | D43: CR | E43: 1,12
A44: 392 | B44: ABRACADEIRA EM ACO PARA AMARRACAO DE ELETRODUTOS, TIPO D, COM 1/2" E PARAFUSO DE FIXACAO | C44: UN | D44: CR | E44: 1,15
A45: 39129 | B45: ABRACADEIRA EM ACO PARA AMARRACAO DE ELETRODUTOS, TIPO D, COM 1" E CUNHA DE FIXACAO | C45: UN | D45: CR | E45: 1,31
A46: 393 | B46: ABRACADEIRA EM ACO PARA AMARRACAO DE ELETRODUTOS, TIPO D, COM 1" E PARAFUSO DE FIXACAO | C46: UN | D46: C | E46: 1,37
A47: 39133 | B47: ABRACADEIRA EM ACO PARA AMARRACAO DE ELETRODUTOS, TIPO D, COM 2 1/2" E CUNHA DE FIXACAO | C47: UN | D47: CR | E47: 3,06
A48: 397 | B48: ABRACADEIRA EM ACO PARA AMARRACAO DE ELETRODUTOS, TIPO D, COM 2 1/2" E PARAFUSO DE FIXACAO | C48: UN | D48: CR | E48: 3,38
A49: 39132 | B49: ABRACADEIRA EM ACO PARA AMARRACAO DE ELETRODUTOS, TIPO D, COM 2" E CUNHA DE FIXACAO | C49: UN | D49: CR | E49: 2,44
A50: 396 | B50: ABRACADEIRA EM ACO PARA AMARRACAO DE ELETRODUTOS, TIPO D, COM 2" E PARAFUSO DE FIXACAO | C50: UN | D50: CR | E50: 2,62
A51: 39135 | B51: ABRACADEIRA EM ACO PARA AMARRACAO DE ELETRODUTOS, TIPO D, COM 3 1/2" E CUNHA DE FIXACAO | C51: UN | D51: CR | E51: 4,89
A52: 39128 | B52: ABRACADEIRA EM ACO PARA AMARRACAO DE ELETRODUTOS, TIPO D, COM 3/4" E CUNHA DE FIXACAO | C52: UN | D52: CR | E52: 1,22
A53: 400 | B53: ABRACADEIRA EM ACO PARA AMARRACAO DE ELETRODUTOS, TIPO D, COM 3/4" E PARAFUSO DE FIXACAO | C53: UN | D53: CR | E53: 1,19
A54: 39125 | B54: ABRACADEIRA EM ACO PARA AMARRACAO DE ELETRODUTOS, TIPO D, COM 3/8" E PARAFUSO DE FIXACAO | C54: UN | D54: CR | E54: 1,22
A55: 39134 | B55: ABRACADEIRA EM ACO PARA AMARRACAO DE ELETRODUTOS, TIPO D, COM 3" E CUNHA DE FIXACAO | C55: UN | D55: CR | E55: 4,08
A56: 398 | B56: ABRACADEIRA EM ACO PARA AMARRACAO DE ELETRODUTOS, TIPO D, COM 3" E PARAFUSO DE FIXACAO | C56: UN | D56: CR | E56: 3,76
A57: 39126 | B57: ABRACADEIRA EM ACO PARA AMARRACAO DE ELETRODUTOS, TIPO D, COM 4" E CUNHA DE FIXACAO | C57: UN | D57: CR | E57: 5,50
A58: 399 | B58: ABRACADEIRA EM ACO PARA AMARRACAO DE ELETRODUTOS, TIPO D, COM 4" E PARAFUSO DE FIXACAO | C58: UN | D58: CR | E58: 4,85
A59: 39158 | B59: ABRACADEIRA EM ACO PARA AMARRACAO DE ELETRODUTOS, TIPO ECONOMICA (GOTA), COM 8" | C59: UN | D59: CR | E59: 13,02
A60: 39141 | B60: ABRACADEIRA EM ACO PARA AMARRACAO DE ELETRODUTOS, TIPO U SIMPLES, COM 1 1/2" | C60: UN | D60: CR | E60: 0,94
A61: 39140 | B61: ABRACADEIRA EM ACO PARA AMARRACAO DE ELETRODUTOS, TIPO U SIMPLES, COM 1 1/4" | C61: UN | D61: CR | E61: 0,85
A62: 39137 | B62: ABRACADEIRA EM ACO PARA AMARRACAO DE ELETRODUTOS, TIPO U SIMPLES, COM 1/2" | C62: UN | D62: CR | E62: 0,49
A63: 39139 | B63: ABRACADEIRA EM ACO PARA AMARRACAO DE ELETRODUTOS, TIPO U SIMPLES, COM 1" | C63: UN | D63: CR | E63: 0,71
A64: 39143 | B64: ABRACADEIRA EM ACO PARA AMARRACAO DE ELETRODUTOS, TIPO U SIMPLES, COM 2 1/2" | C64: UN | D64: CR | E64: 1,95
A65: 39142 | B65: ABRACADEIRA EM ACO PARA AMARRACAO DE ELETRODUTOS, TIPO U SIMPLES, COM 2" | C65: UN | D65: CR | E65: 1,39
A66: 39138 | B66: ABRACADEIRA EM ACO PARA AMARRACAO DE ELETRODUTOS, TIPO U SIMPLES, COM 3/4" | C66: UN | D66: CR | E66: 0,52
A67: 39136 | B67: ABRACADEIRA EM ACO PARA AMARRACAO DE ELETRODUTOS, TIPO U SIMPLES, COM 3/8" | C67: UN | D67: CR | E67: 0,34
A68: 39144 | B68: ABRACADEIRA EM ACO PARA AMARRACAO DE ELETRODUTOS, TIPO U SIMPLES, COM 3" | C68: UN | D68: CR | E68: 2,27
A69: 39145 | B69: ABRACADEIRA EM ACO PARA AMARRACAO DE ELETRODUTOS, TIPO U SIMPLES, COM 4" | C69: UN | D69: CR | E69: 3,74
A70: 12615 | B70: ABRACADEIRA PVC, PARA CALHA PLUVIAL, DIAMETRO ENTRE 80 E 100 MM, PARA DRENAGEM PREDIAL | C70: UN | D70: AS | E70: 4,76
A71: 11927 | B71: ABRACADEIRA, GALVANIZADA/ZINCADA, ROSCA SEM FIM, PARAFUSO INOX, LARGURA FITA *12,6 A *14 MM, D = 2" A 2 1/2" | C71: UN | D71: CR | E71: 8,06
A72: 11928 | B72: ABRACADEIRA, GALVANIZADA/ZINCADA, ROSCA SEM FIM, PARAFUSO INOX, LARGURA FITA *12,6 A *14 MM, D = 3" A 3 3/4" | C72: UN | D72: CR | E72: 9,23
A73: 11929 | B73: ABRACADEIRA, GALVANIZADA/ZINCADA, ROSCA SEM FIM, PARAFUSO INOX, LARGURA FITA *12,6 A *14 MM, D = 4" A 4 3/4" | C73: UN | D73: CR | E73: 14,28
A74: 36801 | B74: ACABAMENTO CROMADO PARA REGISTRO PEQUENO, DE PAREDE, 1/2 " OU 3/4 " | C74: UN | D74: CR | E74: 25,28
A75: 36246 | B75: ACABAMENTO SIMPLES/CONVENCIONAL PARA FORRO PVC, TIPO "U" OU "C", COR BRANCA, COMPRIMENTO 6 M | C75: M | D75: AS | E75: 4,26
A76: 37600 | B76: ACESSORIO DE LIGACAO NAO ELETRICO PARA CARGAS EXPLOSIVAS, TUBO DE 6 M | C76: UN | D76: AS | E76: 93,16
A77: 37599 | B77: ACESSORIO INICIADOR NAO ELETRICO, TUBO DE 6 M, TEMPO DE RETARDO DE *160* MS | C77: UN | D77: AS | E77: 86,71
A78: 1 | B78: ACETILENO (RECARGA PARA CILINDRO DE CONJUNTO OXICORTE GRANDE) | C78: KG | D78: C | E78: 64,50
A79: 3 | B79: ACIDO CLORIDRICO / ACIDO MURIATICO, DILUICAO 10% A 12% PARA USO EM LIMPEZA | C79: L | D79: CR | E79: 14,26
A80: 43054 | B80: ACO CA-25, 10,0 MM, OU 12,5 MM, OU 16,0 MM, OU 20,0 MM, OU 25,0 MM, VERGALHAO | C80: KG | D80: CR | E80: 13,04
A81: 42402 | B81: ACO CA-25, 16,0 MM, BARRA DE TRANSFERENCIA | C81: KG | D81: CR | E81: 12,46
A82: 42403 | B82: ACO CA-25, 20,0 MM, BARRA DE TRANSFERENCIA | C82: KG | D82: CR | E82: 15,98
A83: 42404 | B83: ACO CA-25, 25,0 MM, BARRA DE TRANSFERENCIA | C83: KG | D83: CR | E83: 15,89
A84: 42405 | B84: ACO CA-25, 32,0 MM, BARRA DE TRANSFERENCIA | C84: KG | D84: CR | E84: 16,93
A85: 34341 | B85: ACO CA-25, 32,0 MM, VERGALHAO | C85: KG | D85: CR | E85: 14,69
A86: 43053 | B86: ACO CA-25, 6,3 MM OU 8,0 MM, VERGALHAO | C86: KG | D86: CR | E86: 11,64
A87: 43058 | B87: ACO CA-50, 10,0 MM, OU 12,5 MM, OU 16,0 MM, OU 20,0 MM, DOBRADO E CORTADO | C87: KG | D87: CR | E87: 12,07
A88: 34 | B88: ACO CA-50, 10,0 MM, VERGALHAO | C88: KG | D88: CR | E88: 12,13
A89: 43055 | B89: ACO CA-50, 12,5 MM OU 16,0 MM, VERGALHAO | C89: KG | D89: C | E89: 10,51
A90: 43056 | B90: ACO CA-50, 20,0 MM OU 25,0 MM, VERGALHAO | C90: KG | D90: CR | E90: 12,12
A91: 43057 | B91: ACO CA-50, 32,0 MM, VERGALHAO | C91: KG | D91: CR | E91: 13,32
A92: 34449 | B92: ACO CA-50, 6,3 MM, DOBRADO E CORTADO | C92: KG | D92: CR | E92: 14,24
A93: 32 | B93: ACO CA-50, 6,3 MM, VERGALHAO | C93: KG | D93: CR | E93: 12,80
A94: 33 | B94: ACO CA-50, 8,0 MM, VERGALHAO | C94: KG | D94: CR | E94: 12,87
A95: 43061 | B95: ACO CA-60, 4,2 MM OU 5,0 MM, DOBRADO E CORTADO | C95: KG | D95: CR | E95: 12,03
A96: 43059 | B96: ACO CA-60, 4,2 MM, OU 5,0 MM, OU 6,0 MM, OU 7,0 MM, VERGALHAO | C96: KG | D96: CR | E96: 11,48
A97: 43062 | B97: ACO CA-60, 6,0 MM OU 7,0 MM, DOBRADO E CORTADO | C97: KG | D97: CR | E97: 12,73
A98: 43060 | B98: ACO CA-60, 8,0 MM OU 9,5 MM, VERGALHAO | C98: KG | D98: CR | E98: 10,00
A99: 20063 | B99: ACOPLAMENTO DE CONDUTOR PLUVIAL, EM PVC, DIAMETRO ENTRE 80 E 100 MM, PARA DRENAGEM PREDIAL | C99: UN | D99: AS | E99: 4,74
A100: 40410 | B100: ACOPLAMENTO RIGIDO EM FERRO FUNDIDO PARA SISTEMA DE TUBULACAO RANHURADA, DN 50 MM (2") | C100: UN | D100: AS | E100: 24,76
A101: 40411 | B101: ACOPLAMENTO RIGIDO EM FERRO FUNDIDO PARA SISTEMA DE TUBULACAO RANHURADA, DN 65 MM (2 1/2") | C101: UN | D101: AS | E101: 26,87
A102: 40412 | B102: ACOPLAMENTO RIGIDO EM FERRO FUNDIDO PARA SISTEMA DE TUBULACAO RANHURADA, DN 80 MM (3") | C102: UN | D102: AS | E102: 30,16
A103: 38838 | B103: ADAPTADOR DE COBRE PARA TUBULACAO PEX, DN 16 X 15 MM | C103: UN | D103: AS | E103: 11,26
A104: 38839 | B104: ADAPTADOR DE COBRE PARA TUBULACAO PEX, DN 20 X 22 MM | C104: UN | D104: AS | E104: 13,26
A105: 55 | B105: ADAPTADOR DE COMPRESSAO EM POLIPROPILENO (PP), PARA TUBO EM PEAD, 20 MM X 1/2", PARA LIGACAO PREDIAL DE AGUA (NTS 179) | C105: UN | D105: AS | E105: 4,80
A106: 61 | B106: ADAPTADOR DE COMPRESSAO EM POLIPROPILENO (PP), PARA TUBO EM PEAD, 20 MM X 3/4", PARA LIGACAO PREDIAL DE AGUA (NTS 179) | C106: UN | D106: AS | E106: 4,54
A107: 62 | B107: ADAPTADOR DE COMPRESSAO EM POLIPROPILENO (PP), PARA TUBO EM PEAD, 32 MM X 1", PARA LIGACAO PREDIAL DE AGUA (NTS 179) | C107: UN | D107: AS | E107: 9,41
A108: 77 | B108: ADAPTADOR PVC PARA SIFAO METALICO, SOLDAVEL, COM ANEL BORRACHA (JE), 40 MM X 1 1/2" | C108: UN | D108: CR | E108: 1,25
A109: 76 | B109: ADAPTADOR PVC PARA SIFAO, ROSCAVEL, 40 MM X 1 1/4" | C109: UN | D109: CR | E109: 1,27
A110: 67 | B110: ADAPTADOR PVC ROSCAVEL, COM FLANGES E ANEL DE VEDACAO, 1/2", PARA CAIXA D' AGUA | C110: UN | D110: CR | E110: 12,27
A111: 71 | B111: ADAPTADOR PVC ROSCAVEL, COM FLANGES E ANEL DE VEDACAO, 1", PARA CAIXA D' AGUA | C111: UN | D111: CR | E111: 22,55
A112: 73 | B112: ADAPTADOR PVC ROSCAVEL, COM FLANGES E ANEL DE VEDACAO, 3/4", PARA CAIXA D' AGUA | C112: UN | D112: CR | E112: 16,84
A113: 103 | B113: ADAPTADOR PVC SOLDAVEL CURTO COM BOLSA E ROSCA, 110 MM X 4", PARA AGUA FRIA | C113: UN | D113: CR | E113: 50,09
A114: 107 | B114: ADAPTADOR PVC SOLDAVEL CURTO COM BOLSA E ROSCA, 20 MM X 1/2", PARA AGUA FRIA | C114: UN | D114: CR | E114: 0,78
A115: 65 | B115: ADAPTADOR PVC SOLDAVEL CURTO COM BOLSA E ROSCA, 25 MM X 3/4", PARA AGUA FRIA | C115: UN | D115: CR | E115: 0,96
A116: 108 | B116: ADAPTADOR PVC SOLDAVEL CURTO COM BOLSA E ROSCA, 32 MM X 1", PARA AGUA FRIA | C116: UN | D116: CR | E116: 2,00
A117: 110 | B117: ADAPTADOR PVC SOLDAVEL CURTO COM BOLSA E ROSCA, 40 MM X 1 1/2", PARA AGUA FRIA | C117: UN | D117: CR | E117: 7,73
A118: 109 | B118: ADAPTADOR PVC SOLDAVEL CURTO COM BOLSA E ROSCA, 40 MM X 1 1/4", PARA AGUA FRIA | C118: UN | D118: CR | E118: 3,81
A119: 111 | B119: ADAPTADOR PVC SOLDAVEL CURTO COM BOLSA E ROSCA, 50 MM X 1 1/4", PARA AGUA FRIA | C119: UN | D119: CR | E119: 8,92
A120: 112 | B120: ADAPTADOR PVC SOLDAVEL CURTO COM BOLSA E ROSCA, 50 MM X1 1/2", PARA AGUA FRIA | C120: UN | D120: CR | E120: 4,85
A121: 113 | B121: ADAPTADOR PVC SOLDAVEL CURTO COM BOLSA E ROSCA, 60 MM X 2", PARA AGUA FRIA | C121: UN | D121: CR | E121: 13,17
A122: 104 | B122: ADAPTADOR PVC SOLDAVEL CURTO COM BOLSA E ROSCA, 75 MM X 2 1/2", PARA AGUA FRIA | C122: UN | D122: CR | E122: 19,16
A123: 102 | B123: ADAPTADOR PVC SOLDAVEL CURTO COM BOLSA E ROSCA, 85 MM X 3", PARA AGUA FRIA | C123: UN | D123: CR | E123: 31,46
A124: 95 | B124: ADAPTADOR PVC SOLDAVEL, COM FLANGE E ANEL DE VEDACAO, 20 MM X 1/2", PARA CAIXA D'AGUA | C124: UN | D124: CR | E124: 10,65
A125: 96 | B125: ADAPTADOR PVC SOLDAVEL, COM FLANGE E ANEL DE VEDACAO, 25 MM X 3/4", PARA CAIXA D'AGUA | C125: UN | D125: CR | E125: 12,25
A126: 97 | B126: ADAPTADOR PVC SOLDAVEL, COM FLANGE E ANEL DE VEDACAO, 32 MM X 1", PARA CAIXA D'AGUA | C126: UN | D126: CR | E126: 15,90
A127: 98 | B127: ADAPTADOR PVC SOLDAVEL, COM FLANGE E ANEL DE VEDACAO, 40 MM X 1 1/4", PARA CAIXA D'AGUA | C127: UN | D127: CR | E127: 21,43
A128: 99 | B128: ADAPTADOR PVC SOLDAVEL, COM FLANGE E ANEL DE VEDACAO, 50 MM X 1 1/2", PARA CAIXA D'AGUA | C128: UN | D128: CR | E128: 26,00
A129: 100 | B129: ADAPTADOR PVC SOLDAVEL, COM FLANGES E ANEL DE VEDACAO, 60 MM X 2", PARA CAIXA D' AGUA | C129: UN | D129: CR | E129: 36,27
A130: 75 | B130: ADAPTADOR PVC SOLDAVEL, COM FLANGES LIVRES, 110 MM X 4", PARA CAIXA D' AGUA | C130: UN | D130: CR | E130: 378,00
A131: 114 | B131: ADAPTADOR PVC SOLDAVEL, COM FLANGES LIVRES, 25 MM X 3/4", PARA CAIXA D' AGUA | C131: UN | D131: CR | E131: 13,77
A132: 68 | B132: ADAPTADOR PVC SOLDAVEL, COM FLANGES LIVRES, 32 MM X 1", PARA CAIXA D' AGUA | C132: UN | D132: CR | E132: 21,06
A133: 86 | B133: ADAPTADOR PVC SOLDAVEL, COM FLANGES LIVRES, 40 MM X 1 1/4", PARA CAIXA D' AGUA | C133: UN | D133: CR | E133: 39,15
A134: 66 | B134: ADAPTADOR PVC SOLDAVEL, COM FLANGES LIVRES, 50 MM X 1 1/2", PARA CAIXA D' AGUA | C134: UN | D134: CR | E134: 39,29
A135: 69 | B135: ADAPTADOR PVC SOLDAVEL, COM FLANGES LIVRES, 60 MM X 2", PARA CAIXA D' AGUA | C135: UN | D135: CR | E135: 60,06
A136: 83 | B136: ADAPTADOR PVC SOLDAVEL, COM FLANGES LIVRES, 75 MM X 2 1/2", PARA CAIXA D' AGUA | C136: UN | D136: CR | E136: 191,83
A137: 74 | B137: ADAPTADOR PVC SOLDAVEL, COM FLANGES LIVRES, 85 MM X 3", PARA CAIXA D' AGUA | C137: UN | D137: CR | E137: 267,82
A138: 106 | B138: ADAPTADOR PVC SOLDAVEL, LONGO, COM FLANGE LIVRE, 110 MM X 4", PARA CAIXA D' AGUA | C138: UN | D138: CR | E138: 406,86
A139: 87 | B139: ADAPTADOR PVC SOLDAVEL, LONGO, COM FLANGE LIVRE, 25 MM X 3/4", PARA CAIXA D' AGUA | C139: UN | D139: CR | E139: 19,34
A140: 88 | B140: ADAPTADOR PVC SOLDAVEL, LONGO, COM FLANGE LIVRE, 32 MM X 1", PARA CAIXA D' AGUA | C140: UN | D140: CR | E140: 21,58
A141: 89 | B141: ADAPTADOR PVC SOLDAVEL, LONGO, COM FLANGE LIVRE, 40 MM X 1 1/4", PARA CAIXA D' AGUA | C141: UN | D141: CR | E141: 31,91
A142: 90 | B142: ADAPTADOR PVC SOLDAVEL, LONGO, COM FLANGE LIVRE, 50 MM X 1 1/2", PARA CAIXA D' AGUA | C142: UN | D142: CR | E142: 36,56
A143: 81 | B143: ADAPTADOR PVC SOLDAVEL, LONGO, COM FLANGE LIVRE, 60 MM X 2", PARA CAIXA D' AGUA | C143: UN | D143: CR | E143: 62,53
A144: 82 | B144: ADAPTADOR PVC SOLDAVEL, LONGO, COM FLANGE LIVRE, 75 MM X 2 1/2", PARA CAIXA D' AGUA | C144: UN | D144: CR | E144: 242,76
A145: 105 | B145: ADAPTADOR PVC SOLDAVEL, LONGO, COM FLANGE LIVRE, 85 MM X 3", PARA CAIXA D' AGUA | C145: UN | D145: CR | E145: 284,21
A146: 60 | B146: ADAPTADOR PVC, COM REGISTRO, PARA PEAD, 20 MM X 3/4", PARA LIGACAO PREDIAL DE AGUA | C146: UN | D146: AS | E146: 6,23
A147: 72 | B147: ADAPTADOR PVC, ROSCAVEL, COM FLANGES E ANEL DE VEDACAO, 1 1/2", PARA CAIXA D'AGUA | C147: UN | D147: CR | E147: 38,23
A148: 70 | B148: ADAPTADOR PVC, ROSCAVEL, COM FLANGES E ANEL DE VEDACAO, 1 1/4", PARA CAIXA D' AGUA | C148: UN | D148: CR | E148: 31,97
A149: 85 | B149: ADAPTADOR PVC, ROSCAVEL, COM FLANGES E ANEL DE VEDACAO, 2", PARA CAIXA D' AGUA | C149: UN | D149: CR | E149: 46,40
A150: 84 | B150: ADAPTADOR PVC, ROSCAVEL, PARA VALVULA PIA OU LAVATORIO, 40 MM | C150: UN | D150: CR | E150: 0,53
A151: 37997 | B151: ADAPTADOR, CPVC, SOLDAVEL, 15 MM, PARA AGUA QUENTE | C151: UN | D151: AS | E151: 5,65
A152: 37998 | B152: ADAPTADOR, CPVC, SOLDAVEL, 22 MM, PARA AGUA QUENTE | C152: UN | D152: AS | E152: 5,85
A153: 10899 | B153: ADAPTADOR, EM LATAO, ENGATE RAPIDO 2 1/2" X ROSCA INTERNA 5 FIOS 2 1/2", PARA INSTALACAO PREDIAL DE COMBATE A INCENDIO | C153: UN | D153: CR | E153: 75,57
A154: 10900 | B154: ADAPTADOR, EM LATAO, ENGATE RAPIDO1 1/2" X ROSCA INTERNA 5 FIOS 2 1/2", PARA INSTALACAO PREDIAL DE COMBATE A INCENDIO | C154: UN | D154: CR | E154: 59,14
A155: 46 | B155: ADAPTADOR, PVC PBA, BOLSA/ROSCA, JE, DN 75 / DE 85 MM | C155: UN | D155: AS | E155: 53,07
A156: 51 | B156: ADAPTADOR, PVC PBA, A BOLSA DEFOFO, JE, DN 100 / DE 110 MM | C156: UN | D156: AS | E156: 146,41
A157: 12863 | B157: ADAPTADOR, PVC PBA, A BOLSA DEFOFO, JE, DN 50 / DE 60 MM | C157: UN | D157: AS | E157: 33,72
A158: 50 | B158: ADAPTADOR, PVC PBA, A BOLSA DEFOFO, JE, DN 75 / DE 85 MM | C158: UN | D158: AS | E158: 76,45
A159: 47 | B159: ADAPTADOR, PVC PBA, BOLSA/ROSCA, JE, DN 100 / DE 110 MM | C159: UN | D159: AS | E159: 90,74
A160: 48 | B160: ADAPTADOR, PVC PBA, BOLSA/ROSCA, JE, DN 50 / DE 60 MM | C160: UN | D160: AS | E160: 23,67
A161: 52 | B161: ADAPTADOR, PVC PBA, PONTA/ROSCA, JE, DN 50 / DE 60 MM | C161: UN | D161: AS | E161: 17,98
A162: 43 | B162: ADAPTADOR, PVC PBA, PONTA/ROSCA, JE, DN 75 / DE 85 MM | C162: UN | D162: AS | E162: 60,69
A163: 39719 | B163: ADESIVO / COLA DE CONTATO LIQUIDO, A BASE DE RESINAS, PARA COLAGEM DE ESPUMA PARA ISOLAMENTO TERMICO FLEXIVEL | C163: L | D163: CR | E163: 130,10
A164: 3410 | B164: ADESIVO / COLA PARA EPS (ISOPOR) E OUTROS MATERIAIS | C164: KG | D164: CR | E164: 29,26
A165: 4791 | B165: ADESIVO ACRILICO DE BASE AQUOSA / COLA DE CONTATO | C165: KG | D165: CR | E165: 28,00
A166: 157 | B166: ADESIVO ESTRUTURAL A BASE DE RESINA EPOXI PARA INJECAO EM TRINCAS, BICOMPONENTE, BAIXA VISCOSIDADE | C166: KG | D166: CR | E166: 126,97
A167: 156 | B167: ADESIVO ESTRUTURAL A BASE DE RESINA EPOXI, BICOMPONENTE, FLUIDO | C167: KG | D167: CR | E167: 45,21
A168: 131 | B168: ADESIVO ESTRUTURAL A BASE DE RESINA EPOXI, BICOMPONENTE, PASTOSO (TIXOTROPICO) | C168: KG | D168: CR | E168: 38,66
A169: 21114 | B169: ADESIVO PARA TUBOS CPVC, *75* G | C169: UN | D169: CR | E169: 25,64
A170: 119 | B170: ADESIVO PLASTICO PARA PVC, BISNAGA COM 75 GR | C170: UN | D170: C | E170: 6,50
A171: 122 | B171: ADESIVO PLASTICO PARA PVC, FRASCO COM *850* GR | C171: UN | D171: CR | E171: 50,01
A172: 20080 | B172: ADESIVO PLASTICO PARA PVC, FRASCO COM 175 GR | C172: UN | D172: CR | E172: 16,32
A173: 124 | B173: ADITIVO ACELERADOR DE PEGA E ENDURECIMENTO PARA ARGAMASSAS E CONCRETOS, LIQUIDO E ISENTO DE CLORETOS | C173: L | D173: CR | E173: 14,91
A174: 7334 | B174: ADITIVO ADESIVO LIQUIDO PARA ARGAMASSAS DE REVESTIMENTOS CIMENTICIOS | C174: L | D174: CR | E174: 11,65
A175: 123 | B175: ADITIVO IMPERMEABILIZANTE DE PEGA NORMAL PARA ARGAMASSAS E CONCRETOS SEM ARMACAO, LIQUIDO E ISENTO DE CLORETOS | C175: L | D175: C | E175: 6,10
A176: 127 | B176: ADITIVO IMPERMEABILIZANTE DE PEGA ULTRARRAPIDA, LIQUIDO E ISENTO DE CLORETOS | C176: L | D176: CR | E176: 14,56
A177: 41373 | B177: ADITIVO LIQUIDO IMPERMEABILIZANTE CRISTALIZANTE | C177: L | D177: CR | E177: 20,29
A178: 133 | B178: ADITIVO LIQUIDO INCORPORADOR DE AR PARA CONCRETO E ARGAMASSA, LIQUIDO E ISENTO DE CLORETOS | C178: L | D178: CR | E178: 6,05
A179: 43617 | B179: ADITIVO PLASTIFICANTE E ESTABILIZADOR PARA ARGAMASSAS DE ASSENTAMENTO E REBOCO, LIQUIDO E ISENTO DE CLORETOS | C179: L | D179: CR | E179: 6,76
A180: 132 | B180: ADITIVO PLASTIFICANTE RETARDADOR DE PEGA E REDUTOR DE AGUA PARA CONCRETO, LIQUIDO E ISENTO DE CLORETOS | C180: L | D180: CR | E180: 6,27
A181: 43618 | B181: ADITIVO SUPERPLASTIFICANTE DE PEGA NORMAL PARA CONCRETO, LIQUIDO E ISENTO DE CLORETOS | C181: KG | D181: CR | E181: 15,78
A182: 37476 | B182: ADUELA/ GALERIA PRE-MOLDADA DE CONCRETO ARMADO, SECAO QUADRADA INTERNA DE 1,50 X 1,50 M (L X A), MISULA DE 20 X 20 CM, C = 1,00 M, ESPESSURA MIN = 15 CM, TB-45 E FCK DO CONCRETO = 30 MPA | C182: UN | D182: AS | E182: 2.915,92
A183: 37478 | B183: ADUELA/ GALERIA PRE-MOLDADA DE CONCRETO ARMADO, SECAO RETANGULAR INTERNA DE 2,00 X 2,00 M (L X A), MISULA DE 20 X 20 CM, C = 1,00 M, ESPESSURA MIN = 15 CM, TB-45 E FCK DO CONCRETO = 30 MPA | C183: UN | D183: AS | E183: 3.652,26
A184: 37477 | B184: ADUELA/ GALERIA PRE-MOLDADA DE CONCRETO ARMADO, SECAO RETANGULAR INTERNA DE 2,50 X 2,50 M (L X A), MISULA DE 20 X 20 CM, C = 1,00 M, ESPESSURA MIN = 15 CM, TB-45 E FCK DO CONCRETO = 30 MPA | C184: UN | D184: AS | E184: 4.948,23
A185: 37479 | B185: ADUELA/ GALERIA PRE-MOLDADA DE CONCRETO ARMADO, SECAO RETANGULAR INTERNA DE 3,00 X 3,00 M (L X A), MISULA DE 20 X 20 CM, C = 1.00 M, ESPESSURA MIN = 20 CM, TB-45 E FCK DO CONCRETO = 30 MPA | C185: UN | D185: AS | E185: 5.868,66
A186: 4319 | B186: AFASTADOR PARA TELHA DE FIBROCIMENTO CANALETE 90 OU KALHETAO | C186: UN | D186: CR | E186: 2,04
A187: 42409 | B187: AGENTE DE CURA, PROTETOR DA EVAPORACAO DA AGUA DE HIDRATACAO DO CONCRETO | C187: KG | D187: CR | E187: 9,94
A188: 40553 | B188: AGREGADO RECICLADO, TIPO RACHAO RECICLADO CINZA, CLASSE A | C188: M3 | D188: AS | E188: 36,50
A189: 6114 | B189: AJUDANTE DE ARMADOR | C189: H | D189: CR | E189: 11,44
A190: 40912 | B190: AJUDANTE DE ARMADOR (MENSALISTA) | C190: MES | D190: CR | E190: 2.026,76
A191: 247 | B191: AJUDANTE DE ELETRICISTA | C191: H | D191: CR | E191: 11,55
A192: 40919 | B192: AJUDANTE DE ELETRICISTA (MENSALISTA) | C192: MES | D192: CR | E192: 2.043,82
A193: 25958 | B193: AJUDANTE DE ESTRUTURAS METALICAS | C193: H | D193: CR | E193: 9,08
A194: 40984 | B194: AJUDANTE DE ESTRUTURAS METALICAS (MENSALISTA) | C194: MES | D194: CR | E194: 1.609,71
A195: 248 | B195: AJUDANTE DE OPERACAO EM GERAL | C195: H | D195: CR | E195: 11,85
A196: 41086 | B196: AJUDANTE DE OPERACAO EM GERAL (MENSALISTA) | C196: MES | D196: CR | E196: 2.097,21
A197: 34466 | B197: AJUDANTE DE PINTOR | C197: H | D197: CR | E197: 11,85
A198: 41083 | B198: AJUDANTE DE PINTOR (MENSALISTA) | C198: MES | D198: CR | E198: 2.097,21
A199: 252 | B199: AJUDANTE DE SERRALHEIRO | C199: H | D199: CR | E199: 12,27
A200: 40909 | B200: AJUDANTE DE SERRALHEIRO (MENSALISTA) | C200: MES | D200: CR | E200: 2.173,90
A201: 242 | B201: AJUDANTE ESPECIALIZADO | C201: H | D201: CR | E201: 14,04
A202: 41085 | B202: AJUDANTE ESPECIALIZADO (MENSALISTA) | C202: MES | D202: CR | E202: 2.486,24
... 5011 more rows

Sheet COMPOSIÇÃO ANALI sinapi
A1: PCI.818.01 - CUSTOS DE COMPOSIÇÕES ANALÍTICO DATA DE EMISSÃO:15/10/2021 23:40:14 DATA DE RT: 15/10/2021
A2: ENCARGOS SOCIAIS SOBRE PREÇOS DA MÃO-DE-OBRA: 112,76%(HORA) 71,07%(MÊS)
A3: ABRANGENCIA: NACIONAL DATA REFERENCIA TECNICA: 15/10/2021 LOCALIDADE : FORTALEZA DATA DE PREÇO : 09/2021
A4: REFERÊNCIA DE COLETA: MEDIANO
A6: DESCRICAO DA CLASSE | B6: SIGLA DA CLASSE | C6: DESCRICAO DO TIPO 1 | D6: SIGLA DO TIPO 1 | E6: CODIGO DO AGRUPADOR | F6: DESCRICAO DO AGRUPADOR | G6: CODIGO DA COMPOSICAO | H6: DESCRICAO DA COMPOSICAO | I6: UNIDADE | J6: ORIGEM DE PREÇO | K6: CUSTO TOTAL | L6: TIPO ITEM | M6: CODIGO ITEM | N6: DESCRIÇÃO ITEM | O6: UNIDADE ITEM | P6: ORIGEM DE PREÇO ITEM | Q6: COEFICIENTE | R6: PRECO UNITARIO | S6: CUSTO TOTAL | T6: CUSTO MAO DE OBRA | U6: % MAO DE OBRA | V6: CUSTO MATERIAL | W6: % MATERIAL | X6: CUSTO EQUIPAMENTO | Y6: % EQUIPAMENTO | Z6: CUSTO SERVICOS TERCEIROS | AA6: % SERVICOS TERCEIROS | AB6: CUSTO OUTROS | AC6: % OUTROS | AD6: % ATRIBUÍDO SÃO PAULO | AE6: VINCULO
A8: ASSENTAMENTO DE TUBOS E PECAS | B8: ASTU | C8: FORNEC E/OU ASSENT DE TUBO DE FERRO FUNDIDO JUNTA | D8: 45 | G8: 97141 | H8: ASSENTAMENTO DE TUBO DE FERRO FUNDIDO PARA REDE DE ÁGUA, DN 80 MM, JUNTA ELÁSTICA, INSTALADO EM LOCAL COM NÍVEL ALTO DE INTERFERÊNCIAS (NÃO INCLUI FORNECIMENTO). AF_11/2017 | I8: M | J8: ATRIBUÍDO SÃO PAULO | K8: 6,08 | T8: 2,99 | U8: 49,0693740 | V8: 1,64 | W8: 27,0727580 | X8: 1,45 | Y8: 23,8578680 | Z8: 0,00 | AA8: 0,0000000 | AB8: 0,00 | AC8: 0,0000000 | AD8: 0.23355 | AE8: CAIXA REFERENCIAL
A9: ASSENTAMENTO DE TUBOS E PECAS | B9: ASTU | C9: FORNEC E/OU ASSENT DE TUBO DE FERRO FUNDIDO JUNTA | D9: 45 | G9: 97141 | H9: ASSENTAMENTO DE TUBO DE FERRO FUNDIDO PARA REDE DE ÁGUA, DN 80 MM, JUNTA ELÁSTICA, INSTALADO EM LOCAL COM NÍVEL ALTO DE INTERFERÊNCIAS (NÃO INCLUI FORNECIMENTO). AF_11/2017 | I9: M | J9: ATRIBUÍDO SÃO PAULO | K9: 6,08 | L9: COMPOSICAO | M9: 5678 | N9: RETROESCAVADEIRA SOBRE RODAS COM CARREGADEIRA, TRAÇÃO 4X4, POTÊNCIA LÍQ. 88 HP, CAÇAMBA CARREG. CAP. MÍN. 1 M3, CAÇAMBA RETRO CAP. 0,26 M3, PESO OPERACIONAL MÍN. 6.674 KG, PROFUNDIDADE ESCAVAÇÃO MÁX. 4,37 M - CHP DIURNO. AF_06/2014 | O9: CHP | P9: ATRIBUÍDO SÃO PAULO | Q9: 0,0099000 | R9: 110,79 | S9: 1,09 | AE9: CAIXA REFERENCIAL
A10: ASSENTAMENTO DE TUBOS E PECAS | B10: ASTU | C10: FORNEC E/OU ASSENT DE TUBO DE FERRO FUNDIDO JUNTA | D10: 45 | G10: 97141 | H10: ASSENTAMENTO DE TUBO DE FERRO FUNDIDO PARA REDE DE ÁGUA, DN 80 MM, JUNTA ELÁSTICA, INSTALADO EM LOCAL COM NÍVEL ALTO DE INTERFERÊNCIAS (NÃO INCLUI FORNECIMENTO). AF_11/2017 | I10: M | J10: ATRIBUÍDO SÃO PAULO | K10: 6,08 | L10: COMPOSICAO | M10: 5679 | N10: RETROESCAVADEIRA SOBRE RODAS COM CARREGADEIRA, TRAÇÃO 4X4, POTÊNCIA LÍQ. 88 HP, CAÇAMBA CARREG. CAP. MÍN. 1 M3, CAÇAMBA RETRO CAP. 0,26 M3, PESO OPERACIONAL MÍN. 6.674 KG, PROFUNDIDADE ESCAVAÇÃO MÁX. 4,37 M - CHI DIURNO. AF_06/2014 | O10: CHI | P10: ATRIBUÍDO SÃO PAULO | Q10: 0,0477000 | R10: 43,82 | S10: 2,09 | AE10: CAIXA REFERENCIAL
A11: ASSENTAMENTO DE TUBOS E PECAS | B11: ASTU | C11: FORNEC E/OU ASSENT DE TUBO DE FERRO FUNDIDO JUNTA | D11: 45 | G11: 97141 | H11: ASSENTAMENTO DE TUBO DE FERRO FUNDIDO PARA REDE DE ÁGUA, DN 80 MM, JUNTA ELÁSTICA, INSTALADO EM LOCAL COM NÍVEL ALTO DE INTERFERÊNCIAS (NÃO INCLUI FORNECIMENTO). AF_11/2017 | I11: M | J11: ATRIBUÍDO SÃO PAULO | K11: 6,08 | L11: INSUMO | M11: 20078 | N11: PASTA LUBRIFICANTE PARA TUBOS E CONEXOES COM JUNTA ELASTICA, EMBALAGEM DE *400* GR (USO EM PVC, ACO, POLIETILENO E OUTROS) | O11: UN | P11: COEFICIENTE DE REPRESENTATIVIDADE | Q11: 0,0046000 | R11: 20,64 | S11: 0,09 | AE11: CAIXA REFERENCIAL
A12: ASSENTAMENTO DE TUBOS E PECAS | B12: ASTU | C12: FORNEC E/OU ASSENT DE TUBO DE FERRO FUNDIDO JUNTA | D12: 45 | G12: 97141 | H12: ASSENTAMENTO DE TUBO DE FERRO FUNDIDO PARA REDE DE ÁGUA, DN 80 MM, JUNTA ELÁSTICA, INSTALADO EM LOCAL COM NÍVEL ALTO DE INTERFERÊNCIAS (NÃO INCLUI FORNECIMENTO). AF_11/2017 | I12: M | J12: ATRIBUÍDO SÃO PAULO | K12: 6,08 | L12: COMPOSICAO | M12: 88246 | N12: ASSENTADOR DE TUBOS COM ENCARGOS COMPLEMENTARES | O12: H | P12: COEFICIENTE DE REPRESENTATIVIDADE | Q12: 0,0905000 | R12: 14,73 | S12: 1,33 | AE12: CAIXA REFERENCIAL
A13: ASSENTAMENTO DE TUBOS E PECAS | B13: ASTU | C13: FORNEC E/OU ASSENT DE TUBO DE FERRO FUNDIDO JUNTA | D13: 45 | G13: 97141 | H13: ASSENTAMENTO DE TUBO DE FERRO FUNDIDO PARA REDE DE ÁGUA, DN 80 MM, JUNTA ELÁSTICA, INSTALADO EM LOCAL COM NÍVEL ALTO DE INTERFERÊNCIAS (NÃO INCLUI FORNECIMENTO). AF_11/2017 | I13: M | J13: ATRIBUÍDO SÃO PAULO | K13: 6,08 | L13: COMPOSICAO | M13: 88316 | N13: SERVENTE COM ENCARGOS COMPLEMENTARES | O13: H | P13: COLETADO | Q13: 0,0905000 | R13: 16,44 | S13: 1,48 | AE13: CAIXA REFERENCIAL
A14: ASSENTAMENTO DE TUBOS E PECAS | B14: ASTU | C14: FORNEC E/OU ASSENT DE TUBO DE FERRO FUNDIDO JUNTA | D14: 45 | G14: 97142 | H14: ASSENTAMENTO DE TUBO DE FERRO FUNDIDO PARA REDE DE ÁGUA, DN 100 MM, JUNTA ELÁSTICA, INSTALADO EM LOCAL COM NÍVEL ALTO DE INTERFERÊNCIAS (NÃO INCLUI FORNECIMENTO). AF_11/2017 | I14: M | J14: ATRIBUÍDO SÃO PAULO | K14: 6,75 | T14: 3,36 | U14: 49,6969698 | V14: 1,85 | W14: 27,4242424 | X14: 1,54 | Y14: 22,8787878 | Z14: 0,00 | AA14: 0,0000000 | AB14: 0,00 | AC14: 0,0000000 | AD14: 0.2237 | AE14: CAIXA REFERENCIAL
A15: ASSENTAMENTO DE TUBOS E PECAS | B15: ASTU | C15: FORNEC E/OU ASSENT DE TUBO DE FERRO FUNDIDO JUNTA | D15: 45 | G15: 97142 | H15: ASSENTAMENTO DE TUBO DE FERRO FUNDIDO PARA REDE DE ÁGUA, DN 100 MM, JUNTA ELÁSTICA, INSTALADO EM LOCAL COM NÍVEL ALTO DE INTERFERÊNCIAS (NÃO INCLUI FORNECIMENTO). AF_11/2017 | I15: M | J15: ATRIBUÍDO SÃO PAULO | K15: 6,75 | L15: COMPOSICAO | M15: 5678 | N15: RETROESCAVADEIRA SOBRE RODAS COM CARREGADEIRA, TRAÇÃO 4X4, POTÊNCIA LÍQ. 88 HP, CAÇAMBA CARREG. CAP. MÍN. 1 M3, CAÇAMBA RETRO CAP. 0,26 M3, PESO OPERACIONAL MÍN. 6.674 KG, PROFUNDIDADE ESCAVAÇÃO MÁX. 4,37 M - CHP DIURNO. AF_06/2014 | O15: CHP | P15: ATRIBUÍDO SÃO PAULO | Q15: 0,0106000 | R15: 110,79 | S15: 1,17 | AE15: CAIXA REFERENCIAL
A16: ASSENTAMENTO DE TUBOS E PECAS | B16: ASTU | C16: FORNEC E/OU ASSENT DE TUBO DE FERRO FUNDIDO JUNTA | D16: 45 | G16: 97142 | H16: ASSENTAMENTO DE TUBO DE FERRO FUNDIDO PARA REDE DE ÁGUA, DN 100 MM, JUNTA ELÁSTICA, INSTALADO EM LOCAL COM NÍVEL ALTO DE INTERFERÊNCIAS (NÃO INCLUI FORNECIMENTO). AF_11/2017 | I16: M | J16: ATRIBUÍDO SÃO PAULO | K16: 6,75 | L16: COMPOSICAO | M16: 5679 | N16: RETROESCAVADEIRA SOBRE RODAS COM CARREGADEIRA, TRAÇÃO 4X4, POTÊNCIA LÍQ. 88 HP, CAÇAMBA CARREG. CAP. MÍN. 1 M3, CAÇAMBA RETRO CAP. 0,26 M3, PESO OPERACIONAL MÍN. 6.674 KG, PROFUNDIDADE ESCAVAÇÃO MÁX. 4,37 M - CHI DIURNO. AF_06/2014 | O16: CHI | P16: ATRIBUÍDO SÃO PAULO | Q16: 0,0510000 | R16: 43,82 | S16: 2,23 | AE16: CAIXA REFERENCIAL
A17: ASSENTAMENTO DE TUBOS E PECAS | B17: ASTU | C17: FORNEC E/OU ASSENT DE TUBO DE FERRO FUNDIDO JUNTA | D17: 45 | G17: 97142 | H17: ASSENTAMENTO DE TUBO DE FERRO FUNDIDO PARA REDE DE ÁGUA, DN 100 MM, JUNTA ELÁSTICA, INSTALADO EM LOCAL COM NÍVEL ALTO DE INTERFERÊNCIAS (NÃO INCLUI FORNECIMENTO). AF_11/2017 | I17: M | J17: ATRIBUÍDO SÃO PAULO | K17: 6,75 | L17: INSUMO | M17: 20078 | N17: PASTA LUBRIFICANTE PARA TUBOS E CONEXOES COM JUNTA ELASTICA, EMBALAGEM DE *400* GR (USO EM PVC, ACO, POLIETILENO E OUTROS) | O17: UN | P17: COEFICIENTE DE REPRESENTATIVIDADE | Q17: 0,0054000 | R17: 20,64 | S17: 0,11 | AE17: CAIXA REFERENCIAL
A18: ASSENTAMENTO DE TUBOS E PECAS | B18: ASTU | C18: FORNEC E/OU ASSENT DE TUBO DE FERRO FUNDIDO JUNTA | D18: 45 | G18: 97142 | H18: ASSENTAMENTO DE TUBO DE FERRO FUNDIDO PARA REDE DE ÁGUA, DN 100 MM, JUNTA ELÁSTICA, INSTALADO EM LOCAL COM NÍVEL ALTO DE INTERFERÊNCIAS (NÃO INCLUI FORNECIMENTO). AF_11/2017 | I18: M | J18: ATRIBUÍDO SÃO PAULO | K18: 6,75 | L18: COMPOSICAO | M18: 88246 | N18: ASSENTADOR DE TUBOS COM ENCARGOS COMPLEMENTARES | O18: H | P18: COEFICIENTE DE REPRESENTATIVIDADE | Q18: 0,1045000 | R18: 14,73 | S18: 1,53 | AE18: CAIXA REFERENCIAL
A19: ASSENTAMENTO DE TUBOS E PECAS | B19: ASTU | C19: FORNEC E/OU ASSENT DE TUBO DE FERRO FUNDIDO JUNTA | D19: 45 | G19: 97142 | H19: ASSENTAMENTO DE TUBO DE FERRO FUNDIDO PARA REDE DE ÁGUA, DN 100 MM, JUNTA ELÁSTICA, INSTALADO EM LOCAL COM NÍVEL ALTO DE INTERFERÊNCIAS (NÃO INCLUI FORNECIMENTO). AF_11/2017 | I19: M | J19: ATRIBUÍDO SÃO PAULO | K19: 6,75 | L19: COMPOSICAO | M19: 88316 | N19: SERVENTE COM ENCARGOS COMPLEMENTARES | O19: H | P19: COLETADO | Q19: 0,1045000 | R19: 16,44 | S19: 1,71 | AE19: CAIXA REFERENCIAL
A20: ASSENTAMENTO DE TUBOS E PECAS | B20: ASTU | C20: FORNEC E/OU ASSENT DE TUBO DE FERRO FUNDIDO JUNTA | D20: 45 | G20: 97143 | H20: ASSENTAMENTO DE TUBO DE FERRO FUNDIDO PARA REDE DE ÁGUA, DN 150 MM, JUNTA ELÁSTICA, INSTALADO EM LOCAL COM NÍVEL ALTO DE INTERFERÊNCIAS (NÃO INCLUI FORNECIMENTO). AF_11/2017 | I20: M | J20: ATRIBUÍDO SÃO PAULO | K20: 8,45 | T20: 4,28 | U20: 50,6024097 | V20: 2,37 | W20: 28,0722891 | X20: 1,80 | Y20: 21,3253012 | Z20: 0,00 | AA20: 0,0000000 | AB20: 0,00 | AC20: 0,0000000 | AD20: 0.20947 | AE20: CAIXA REFERENCIAL
A21: ASSENTAMENTO DE TUBOS E PECAS | B21: ASTU | C21: FORNEC E/OU ASSENT DE TUBO DE FERRO FUNDIDO JUNTA | D21: 45 | G21: 97143 | H21: ASSENTAMENTO DE TUBO DE FERRO FUNDIDO PARA REDE DE ÁGUA, DN 150 MM, JUNTA ELÁSTICA, INSTALADO EM LOCAL COM NÍVEL ALTO DE INTERFERÊNCIAS (NÃO INCLUI FORNECIMENTO). AF_11/2017 | I21: M | J21: ATRIBUÍDO SÃO PAULO | K21: 8,45 | L21: COMPOSICAO | M21: 5678 | N21: RETROESCAVADEIRA SOBRE RODAS COM CARREGADEIRA, TRAÇÃO 4X4, POTÊNCIA LÍQ. 88 HP, CAÇAMBA CARREG. CAP. MÍN. 1 M3, CAÇAMBA RETRO CAP. 0,26 M3, PESO OPERACIONAL MÍN. 6.674 KG, PROFUNDIDADE ESCAVAÇÃO MÁX. 4,37 M - CHP DIURNO. AF_06/2014 | O21: CHP | P21: ATRIBUÍDO SÃO PAULO | Q21: 0,0124000 | R21: 110,79 | S21: 1,37 | AE21: CAIXA REFERENCIAL
A22: ASSENTAMENTO DE TUBOS E PECAS | B22: ASTU | C22: FORNEC E/OU ASSENT DE TUBO DE FERRO FUNDIDO JUNTA | D22: 45 | G22: 97143 | H22: ASSENTAMENTO DE TUBO DE FERRO FUNDIDO PARA REDE DE ÁGUA, DN 150 MM, JUNTA ELÁSTICA, INSTALADO EM LOCAL COM NÍVEL ALTO DE INTERFERÊNCIAS (NÃO INCLUI FORNECIMENTO). AF_11/2017 | I22: M | J22: ATRIBUÍDO SÃO PAULO | K22: 8,45 | L22: COMPOSICAO | M22: 5679 | N22: RETROESCAVADEIRA SOBRE RODAS COM CARREGADEIRA, TRAÇÃO 4X4, POTÊNCIA LÍQ. 88 HP, CAÇAMBA CARREG. CAP. MÍN. 1 M3, CAÇAMBA RETRO CAP. 0,26 M3, PESO OPERACIONAL MÍN. 6.674 KG, PROFUNDIDADE ESCAVAÇÃO MÁX. 4,37 M - CHI DIURNO. AF_06/2014 | O22: CHI | P22: ATRIBUÍDO SÃO PAULO | Q22: 0,0594000 | R22: 43,82 | S22: 2,60 | AE22: CAIXA REFERENCIAL
A23: ASSENTAMENTO DE TUBOS E PECAS | B23: ASTU | C23: FORNEC E/OU ASSENT DE TUBO DE FERRO FUNDIDO JUNTA | D23: 45 | G23: 97143 | H23: ASSENTAMENTO DE TUBO DE FERRO FUNDIDO PARA REDE DE ÁGUA, DN 150 MM, JUNTA ELÁSTICA, INSTALADO EM LOCAL COM NÍVEL ALTO DE INTERFERÊNCIAS (NÃO INCLUI FORNECIMENTO). AF_11/2017 | I23: M | J23: ATRIBUÍDO SÃO PAULO | K23: 8,45 | L23: INSUMO | M23: 20078 | N23: PASTA LUBRIFICANTE PARA TUBOS E CONEXOES COM JUNTA ELASTICA, EMBALAGEM DE *400* GR (USO EM PVC, ACO, POLIETILENO E OUTROS) | O23: UN | P23: COEFICIENTE DE REPRESENTATIVIDADE | Q23: 0,0071000 | R23: 20,64 | S23: 0,14 | AE23: CAIXA REFERENCIAL
A24: ASSENTAMENTO DE TUBOS E PECAS | B24: ASTU | C24: FORNEC E/OU ASSENT DE TUBO DE FERRO FUNDIDO JUNTA | D24: 45 | G24: 97143 | H24: ASSENTAMENTO DE TUBO DE FERRO FUNDIDO PARA REDE DE ÁGUA, DN 150 MM, JUNTA ELÁSTICA, INSTALADO EM LOCAL COM NÍVEL ALTO DE INTERFERÊNCIAS (NÃO INCLUI FORNECIMENTO). AF_11/2017 | I24: M | J24: ATRIBUÍDO SÃO PAULO | K24: 8,45 | L24: COMPOSICAO | M24: 88246 | N24: ASSENTADOR DE TUBOS COM ENCARGOS COMPLEMENTARES | O24: H | P24: COEFICIENTE DE REPRESENTATIVIDADE | Q24: 0,1396000 | R24: 14,73 | S24: 2,05 | AE24: CAIXA REFERENCIAL
A25: ASSENTAMENTO DE TUBOS E PECAS | B25: ASTU | C25: FORNEC E/OU ASSENT DE TUBO DE FERRO FUNDIDO JUNTA | D25: 45 | G25: 97143 | H25: ASSENTAMENTO DE TUBO DE FERRO FUNDIDO PARA REDE DE ÁGUA, DN 150 MM, JUNTA ELÁSTICA, INSTALADO EM LOCAL COM NÍVEL ALTO DE INTERFERÊNCIAS (NÃO INCLUI FORNECIMENTO). AF_11/2017 | I25: M | J25: ATRIBUÍDO SÃO PAULO | K25: 8,45 | L25: COMPOSICAO | M25: 88316 | N25: SERVENTE COM ENCARGOS COMPLEMENTARES | O25: H | P25: COLETADO | Q25: 0,1396000 | R25: 16,44 | S25: 2,29 | AE25: CAIXA REFERENCIAL
A26: ASSENTAMENTO DE TUBOS E PECAS | B26: ASTU | C26: FORNEC E/OU ASSENT DE TUBO DE FERRO FUNDIDO JUNTA | D26: 45 | G26: 97144 | H26: ASSENTAMENTO DE TUBO DE FERRO FUNDIDO PARA REDE DE ÁGUA, DN 200 MM, JUNTA ELÁSTICA, INSTALADO EM LOCAL COM NÍVEL ALTO DE INTERFERÊNCIAS (NÃO INCLUI FORNECIMENTO). AF_11/2017 | I26: M | J26: ATRIBUÍDO SÃO PAULO | K26: 10,14 | T26: 5,20 | U26: 51,2024049 | V26: 2,88 | W26: 28,4569138 | X26: 2,06 | Y26: 20,3406813 | Z26: 0,00 | AA26: 0,0000000 | AB26: 0,00 | AC26: 0,0000000 | AD26: 0.2002 | AE26: CAIXA REFERENCIAL
A27: ASSENTAMENTO DE TUBOS E PECAS | B27: ASTU | C27: FORNEC E/OU ASSENT DE TUBO DE FERRO FUNDIDO JUNTA | D27: 45 | G27: 97144 | H27: ASSENTAMENTO DE TUBO DE FERRO FUNDIDO PARA REDE DE ÁGUA, DN 200 MM, JUNTA ELÁSTICA, INSTALADO EM LOCAL COM NÍVEL ALTO DE INTERFERÊNCIAS (NÃO INCLUI FORNECIMENTO). AF_11/2017 | I27: M | J27: ATRIBUÍDO SÃO PAULO | K27: 10,14 | L27: COMPOSICAO | M27: 5678 | N27: RETROESCAVADEIRA SOBRE RODAS COM CARREGADEIRA, TRAÇÃO 4X4, POTÊNCIA LÍQ. 88 HP, CAÇAMBA CARREG. CAP. MÍN. 1 M3, CAÇAMBA RETRO CAP. 0,26 M3, PESO OPERACIONAL MÍN. 6.674 KG, PROFUNDIDADE ESCAVAÇÃO MÁX. 4,37 M - CHP DIURNO. AF_06/2014 | O27: CHP | P27: ATRIBUÍDO SÃO PAULO | Q27: 0,0141000 | R27: 110,79 | S27: 1,56 | AE27: CAIXA REFERENCIAL
A28: ASSENTAMENTO DE TUBOS E PECAS | B28: ASTU | C28: FORNEC E/OU ASSENT DE TUBO DE FERRO FUNDIDO JUNTA | D28: 45 | G28: 97144 | H28: ASSENTAMENTO DE TUBO DE FERRO FUNDIDO PARA REDE DE ÁGUA, DN 200 MM, JUNTA ELÁSTICA, INSTALADO EM LOCAL COM NÍVEL ALTO DE INTERFERÊNCIAS (NÃO INCLUI FORNECIMENTO). AF_11/2017 | I28: M | J28: ATRIBUÍDO SÃO PAULO | K28: 10,14 | L28: COMPOSICAO | M28: 5679 | N28: RETROESCAVADEIRA SOBRE RODAS COM CARREGADEIRA, TRAÇÃO 4X4, POTÊNCIA LÍQ. 88 HP, CAÇAMBA CARREG. CAP. MÍN. 1 M3, CAÇAMBA RETRO CAP. 0,26 M3, PESO OPERACIONAL MÍN. 6.674 KG, PROFUNDIDADE ESCAVAÇÃO MÁX. 4,37 M - CHI DIURNO. AF_06/2014 | O28: CHI | P28: ATRIBUÍDO SÃO PAULO | Q28: 0,0678000 | R28: 43,82 | S28: 2,97 | AE28: CAIXA REFERENCIAL
A29: ASSENTAMENTO DE TUBOS E PECAS | B29: ASTU | C29: FORNEC E/OU ASSENT DE TUBO DE FERRO FUNDIDO JUNTA | D29: 45 | G29: 97144 | H29: ASSENTAMENTO DE TUBO DE FERRO FUNDIDO PARA REDE DE ÁGUA, DN 200 MM, JUNTA ELÁSTICA, INSTALADO EM LOCAL COM NÍVEL ALTO DE INTERFERÊNCIAS (NÃO INCLUI FORNECIMENTO). AF_11/2017 | I29: M | J29: ATRIBUÍDO SÃO PAULO | K29: 10,14 | L29: INSUMO | M29: 20078 | N29: PASTA LUBRIFICANTE PARA TUBOS E CONEXOES COM JUNTA ELASTICA, EMBALAGEM DE *400* GR (USO EM PVC, ACO, POLIETILENO E OUTROS) | O29: UN | P29: COEFICIENTE DE REPRESENTATIVIDADE | Q29: 0,0087000 | R29: 20,64 | S29: 0,17 | AE29: CAIXA REFERENCIAL
A30: ASSENTAMENTO DE TUBOS E PECAS | B30: ASTU | C30: FORNEC E/OU ASSENT DE TUBO DE FERRO FUNDIDO JUNTA | D30: 45 | G30: 97144 | H30: ASSENTAMENTO DE TUBO DE FERRO FUNDIDO PARA REDE DE ÁGUA, DN 200 MM, JUNTA ELÁSTICA, INSTALADO EM LOCAL COM NÍVEL ALTO DE INTERFERÊNCIAS (NÃO INCLUI FORNECIMENTO). AF_11/2017 | I30: M | J30: ATRIBUÍDO SÃO PAULO | K30: 10,14 | L30: COMPOSICAO | M30: 88246 | N30: ASSENTADOR DE TUBOS COM ENCARGOS COMPLEMENTARES | O30: H | P30: COEFICIENTE DE REPRESENTATIVIDADE | Q30: 0,1747000 | R30: 14,73 | S30: 2,57 | AE30: CAIXA REFERENCIAL
A31: ASSENTAMENTO DE TUBOS E PECAS | B31: ASTU | C31: FORNEC E/OU ASSENT DE TUBO DE FERRO FUNDIDO JUNTA | D31: 45 | G31: 97144 | H31: ASSENTAMENTO DE TUBO DE FERRO FUNDIDO PARA REDE DE ÁGUA, DN 200 MM, JUNTA ELÁSTICA, INSTALADO EM LOCAL COM NÍVEL ALTO DE INTERFERÊNCIAS (NÃO INCLUI FORNECIMENTO). AF_11/2017 | I31: M | J31: ATRIBUÍDO SÃO PAULO | K31: 10,14 | L31: COMPOSICAO | M31: 88316 | N31: SERVENTE COM ENCARGOS COMPLEMENTARES | O31: H | P31: COLETADO | Q31: 0,1747000 | R31: 16,44 | S31: 2,87 | AE31: CAIXA REFERENCIAL
A32: ASSENTAMENTO DE TUBOS E PECAS | B32: ASTU | C32: FORNEC E/OU ASSENT DE TUBO DE FERRO FUNDIDO JUNTA | D32: 45 | G32: 97145 | H32: ASSENTAMENTO DE TUBO DE FERRO FUNDIDO PARA REDE DE ÁGUA, DN 250 MM, JUNTA ELÁSTICA, INSTALADO EM LOCAL COM NÍVEL ALTO DE INTERFERÊNCIAS (NÃO INCLUI FORNECIMENTO). AF_11/2017 | I32: M | J32: ATRIBUÍDO SÃO PAULO | K32: 11,84 | T32: 6,12 | U32: 51,5798463 | V32: 3,42 | W32: 28,9496157 | X32: 2,30 | Y32: 19,4705380 | Z32: 0,00 | AA32: 0,0000000 | AB32: 0,00 | AC32: 0,0000000 | AD32: 0.19341 | AE32: CAIXA REFERENCIAL
A33: ASSENTAMENTO DE TUBOS E PECAS | B33: ASTU | C33: FORNEC E/OU ASSENT DE TUBO DE FERRO FUNDIDO JUNTA | D33: 45 | G33: 97145 | H33: ASSENTAMENTO DE TUBO DE FERRO FUNDIDO PARA REDE DE ÁGUA, DN 250 MM, JUNTA ELÁSTICA, INSTALADO EM LOCAL COM NÍVEL ALTO DE INTERFERÊNCIAS (NÃO INCLUI FORNECIMENTO). AF_11/2017 | I33: M | J33: ATRIBUÍDO SÃO PAULO | K33: 11,84 | L33: COMPOSICAO | M33: 5678 | N33: RETROESCAVADEIRA SOBRE RODAS COM CARREGADEIRA, TRAÇÃO 4X4, POTÊNCIA LÍQ. 88 HP, CAÇAMBA CARREG. CAP. MÍN. 1 M3, CAÇAMBA RETRO CAP. 0,26 M3, PESO OPERACIONAL MÍN. 6.674 KG, PROFUNDIDADE ESCAVAÇÃO MÁX. 4,37 M - CHP DIURNO. AF_06/2014 | O33: CHP | P33: ATRIBUÍDO SÃO PAULO | Q33: 0,0159000 | R33: 110,79 | S33: 1,76 | AE33: CAIXA REFERENCIAL
A34: ASSENTAMENTO DE TUBOS E PECAS | B34: ASTU | C34: FORNEC E/OU ASSENT DE TUBO DE FERRO FUNDIDO JUNTA | D34: 45 | G34: 97145 | H34: ASSENTAMENTO DE TUBO DE FERRO FUNDIDO PARA REDE DE ÁGUA, DN 250 MM, JUNTA ELÁSTICA, INSTALADO EM LOCAL COM NÍVEL ALTO DE INTERFERÊNCIAS (NÃO INCLUI FORNECIMENTO). AF_11/2017 | I34: M | J34: ATRIBUÍDO SÃO PAULO | K34: 11,84 | L34: COMPOSICAO | M34: 5679 | N34: RETROESCAVADEIRA SOBRE RODAS COM CARREGADEIRA, TRAÇÃO 4X4, POTÊNCIA LÍQ. 88 HP, CAÇAMBA CARREG. CAP. MÍN. 1 M3, CAÇAMBA RETRO CAP. 0,26 M3, PESO OPERACIONAL MÍN. 6.674 KG, PROFUNDIDADE ESCAVAÇÃO MÁX. 4,37 M - CHI DIURNO. AF_06/2014 | O34: CHI | P34: ATRIBUÍDO SÃO PAULO | Q34: 0,0762000 | R34: 43,82 | S34: 3,33 | AE34: CAIXA REFERENCIAL
A35: ASSENTAMENTO DE TUBOS E PECAS | B35: ASTU | C35: FORNEC E/OU ASSENT DE TUBO DE FERRO FUNDIDO JUNTA | D35: 45 | G35: 97145 | H35: ASSENTAMENTO DE TUBO DE FERRO FUNDIDO PARA REDE DE ÁGUA, DN 250 MM, JUNTA ELÁSTICA, INSTALADO EM LOCAL COM NÍVEL ALTO DE INTERFERÊNCIAS (NÃO INCLUI FORNECIMENTO). AF_11/2017 | I35: M | J35: ATRIBUÍDO SÃO PAULO | K35: 11,84 | L35: INSUMO | M35: 20078 | N35: PASTA LUBRIFICANTE PARA TUBOS E CONEXOES COM JUNTA ELASTICA, EMBALAGEM DE *400* GR (USO EM PVC, ACO, POLIETILENO E OUTROS) | O35: UN | P35: COEFICIENTE DE REPRESENTATIVIDADE | Q35: 0,0113000 | R35: 20,64 | S35: 0,23 | AE35: CAIXA REFERENCIAL
A36: ASSENTAMENTO DE TUBOS E PECAS | B36: ASTU | C36: FORNEC E/OU ASSENT DE TUBO DE FERRO FUNDIDO JUNTA | D36: 45 | G36: 97145 | H36: ASSENTAMENTO DE TUBO DE FERRO FUNDIDO PARA REDE DE ÁGUA, DN 250 MM, JUNTA ELÁSTICA, INSTALADO EM LOCAL COM NÍVEL ALTO DE INTERFERÊNCIAS (NÃO INCLUI FORNECIMENTO). AF_11/2017 | I36: M | J36: ATRIBUÍDO SÃO PAULO | K36: 11,84 | L36: COMPOSICAO | M36: 88246 | N36: ASSENTADOR DE TUBOS COM ENCARGOS COMPLEMENTARES | O36: H | P36: COEFICIENTE DE REPRESENTATIVIDADE | Q36: 0,2097000 | R36: 14,73 | S36: 3,08 | AE36: CAIXA REFERENCIAL
A37: ASSENTAMENTO DE TUBOS E PECAS | B37: ASTU | C37: FORNEC E/OU ASSENT DE TUBO DE FERRO FUNDIDO JUNTA | D37: 45 | G37: 97145 | H37: ASSENTAMENTO DE TUBO DE FERRO FUNDIDO PARA REDE DE ÁGUA, DN 250 MM, JUNTA ELÁSTICA, INSTALADO EM LOCAL COM NÍVEL ALTO DE INTERFERÊNCIAS (NÃO INCLUI FORNECIMENTO). AF_11/2017 | I37: M | J37: ATRIBUÍDO SÃO PAULO | K37: 11,84 | L37: COMPOSICAO | M37: 88316 | N37: SERVENTE COM ENCARGOS COMPLEMENTARES | O37: H | P37: COLETADO | Q37: 0,2097000 | R37: 16,44 | S37: 3,44 | AE37: CAIXA REFERENCIAL
A38: ASSENTAMENTO DE TUBOS E PECAS | B38: ASTU | C38: FORNEC E/OU ASSENT DE TUBO DE FERRO FUNDIDO JUNTA | D38: 45 | G38: 97146 | H38: ASSENTAMENTO DE TUBO DE FERRO FUNDIDO PARA REDE DE ÁGUA, DN 300 MM, JUNTA ELÁSTICA, INSTALADO EM LOCAL COM NÍVEL ALTO DE INTERFERÊNCIAS (NÃO INCLUI FORNECIMENTO). AF_11/2017 | I38: M | J38: ATRIBUÍDO SÃO PAULO | K38: 13,54 | T38: 7,04 | U38: 51,9044064 | V38: 3,95 | W38: 29,2008961 | X38: 2,55 | Y38: 18,8946975 | Z38: 0,00 | AA38: 0,0000000 | AB38: 0,00 | AC38: 0,0000000 | AD38: 0.18685 | AE38: CAIXA REFERENCIAL
A39: ASSENTAMENTO DE TUBOS E PECAS | B39: ASTU | C39: FORNEC E/OU ASSENT DE TUBO DE FERRO FUNDIDO JUNTA | D39: 45 | G39: 97146 | H39: ASSENTAMENTO DE TUBO DE FERRO FUNDIDO PARA REDE DE ÁGUA, DN 300 MM, JUNTA ELÁSTICA, INSTALADO EM LOCAL COM NÍVEL ALTO DE INTERFERÊNCIAS (NÃO INCLUI FORNECIMENTO). AF_11/2017 | I39: M | J39: ATRIBUÍDO SÃO PAULO | K39: 13,54 | L39: COMPOSICAO | M39: 5678 | N39: RETROESCAVADEIRA SOBRE RODAS COM CARREGADEIRA, TRAÇÃO 4X4, POTÊNCIA LÍQ. 88 HP, CAÇAMBA CARREG. CAP. MÍN. 1 M3, CAÇAMBA RETRO CAP. 0,26 M3, PESO OPERACIONAL MÍN. 6.674 KG, PROFUNDIDADE ESCAVAÇÃO MÁX. 4,37 M - CHP DIURNO. AF_06/2014 | O39: CHP | P39: ATRIBUÍDO SÃO PAULO | Q39: 0,0176000 | R39: 110,79 | S39: 1,94 | AE39: CAIXA REFERENCIAL
A40: ASSENTAMENTO DE TUBOS E PECAS | B40: ASTU | C40: FORNEC E/OU ASSENT DE TUBO DE FERRO FUNDIDO JUNTA | D40: 45 | G40: 97146 | H40: ASSENTAMENTO DE TUBO DE FERRO FUNDIDO PARA REDE DE ÁGUA, DN 300 MM, JUNTA ELÁSTICA, INSTALADO EM LOCAL COM NÍVEL ALTO DE INTERFERÊNCIAS (NÃO INCLUI FORNECIMENTO). AF_11/2017 | I40: M | J40: ATRIBUÍDO SÃO PAULO | K40: 13,54 | L40: COMPOSICAO | M40: 5679 | N40: RETROESCAVADEIRA SOBRE RODAS COM CARREGADEIRA, TRAÇÃO 4X4, POTÊNCIA LÍQ. 88 HP, CAÇAMBA CARREG. CAP. MÍN. 1 M3, CAÇAMBA RETRO CAP. 0,26 M3, PESO OPERACIONAL MÍN. 6.674 KG, PROFUNDIDADE ESCAVAÇÃO MÁX. 4,37 M - CHI DIURNO. AF_06/2014 | O40: CHI | P40: ATRIBUÍDO SÃO PAULO | Q40: 0,0846000 | R40: 43,82 | S40: 3,70 | AE40: CAIXA REFERENCIAL
A41: ASSENTAMENTO DE TUBOS E PECAS | B41: ASTU | C41: FORNEC E/OU ASSENT DE TUBO DE FERRO FUNDIDO JUNTA | D41: 45 | G41: 97146 | H41: ASSENTAMENTO DE TUBO DE FERRO FUNDIDO PARA REDE DE ÁGUA, DN 300 MM, JUNTA ELÁSTICA, INSTALADO EM LOCAL COM NÍVEL ALTO DE INTERFERÊNCIAS (NÃO INCLUI FORNECIMENTO). AF_11/2017 | I41: M | J41: ATRIBUÍDO SÃO PAULO | K41: 13,54 | L41: INSUMO | M41: 20078 | N41: PASTA LUBRIFICANTE PARA TUBOS E CONEXOES COM JUNTA ELASTICA, EMBALAGEM DE *400* GR (USO EM PVC, ACO, POLIETILENO E OUTROS) | O41: UN | P41: COEFICIENTE DE REPRESENTATIVIDADE | Q41: 0,0138000 | R41: 20,64 | S41: 0,28 | AE41: CAIXA REFERENCIAL
A42: ASSENTAMENTO DE TUBOS E PECAS | B42: ASTU | C42: FORNEC E/OU ASSENT DE TUBO DE FERRO FUNDIDO JUNTA | D42: 45 | G42: 97146 | H42: ASSENTAMENTO DE TUBO DE FERRO FUNDIDO PARA REDE DE ÁGUA, DN 300 MM, JUNTA ELÁSTICA, INSTALADO EM LOCAL COM NÍVEL ALTO DE INTERFERÊNCIAS (NÃO INCLUI FORNECIMENTO). AF_11/2017 | I42: M | J42: ATRIBUÍDO SÃO PAULO | K42: 13,54 | L42: COMPOSICAO | M42: 88246 | N42: ASSENTADOR DE TUBOS COM ENCARGOS COMPLEMENTARES | O42: H | P42: COEFICIENTE DE REPRESENTATIVIDADE | Q42: 0,2448000 | R42: 14,73 | S42: 3,60 | AE42: CAIXA REFERENCIAL
A43: ASSENTAMENTO DE TUBOS E PECAS | B43: ASTU | C43: FORNEC E/OU ASSENT DE TUBO DE FERRO FUNDIDO JUNTA | D43: 45 | G43: 97146 | H43: ASSENTAMENTO DE TUBO DE FERRO FUNDIDO PARA REDE DE ÁGUA, DN 300 MM, JUNTA ELÁSTICA, INSTALADO EM LOCAL COM NÍVEL ALTO DE INTERFERÊNCIAS (NÃO INCLUI FORNECIMENTO). AF_11/2017 | I43: M | J43: ATRIBUÍDO SÃO PAULO | K43: 13,54 | L43: COMPOSICAO | M43: 88316 | N43: SERVENTE COM ENCARGOS COMPLEMENTARES | O43: H | P43: COLETADO | Q43: 0,2448000 | R43: 16,44 | S43: 4,02 | AE43: CAIXA REFERENCIAL
A44: ASSENTAMENTO DE TUBOS E PECAS | B44: ASTU | C44: FORNEC E/OU ASSENT DE TUBO DE FERRO FUNDIDO JUNTA | D44: 45 | G44: 97147 | H44: ASSENTAMENTO DE TUBO DE FERRO FUNDIDO PARA REDE DE ÁGUA, DN 350 MM, JUNTA ELÁSTICA, INSTALADO EM LOCAL COM NÍVEL ALTO DE INTERFERÊNCIAS (NÃO INCLUI FORNECIMENTO). AF_11/2017 | I44: M | J44: ATRIBUÍDO SÃO PAULO | K44: 15,26 | T44: 7,97 | U44: 52,1883290 | V44: 4,48 | W44: 29,3766578 | X44: 2,81 | Y44: 18,4350132 | Z44: 0,00 | AA44: 0,0000000 | AB44: 0,00 | AC44: 0,0000000 | AD44: 0.18218 | AE44: CAIXA REFERENCIAL
A45: ASSENTAMENTO DE TUBOS E PECAS | B45: ASTU | C45: FORNEC E/OU ASSENT DE TUBO DE FERRO FUNDIDO JUNTA | D45: 45 | G45: 97147 | H45: ASSENTAMENTO DE TUBO DE FERRO FUNDIDO PARA REDE DE ÁGUA, DN 350 MM, JUNTA ELÁSTICA, INSTALADO EM LOCAL COM NÍVEL ALTO DE INTERFERÊNCIAS (NÃO INCLUI FORNECIMENTO). AF_11/2017 | I45: M | J45: ATRIBUÍDO SÃO PAULO | K45: 15,26 | L45: COMPOSICAO | M45: 5678 | N45: RETROESCAVADEIRA SOBRE RODAS COM CARREGADEIRA, TRAÇÃO 4X4, POTÊNCIA LÍQ. 88 HP, CAÇAMBA CARREG. CAP. MÍN. 1 M3, CAÇAMBA RETRO CAP. 0,26 M3, PESO OPERACIONAL MÍN. 6.674 KG, PROFUNDIDADE ESCAVAÇÃO MÁX. 4,37 M - CHP DIURNO. AF_06/2014 | O45: CHP | P45: ATRIBUÍDO SÃO PAULO | Q45: 0,0194000 | R45: 110,79 | S45: 2,14 | AE45: CAIXA REFERENCIAL
A46: ASSENTAMENTO DE TUBOS E PECAS | B46: ASTU | C46: FORNEC E/OU ASSENT DE TUBO DE FERRO FUNDIDO JUNTA | D46: 45 | G46: 97147 | H46: ASSENTAMENTO DE TUBO DE FERRO FUNDIDO PARA REDE DE ÁGUA, DN 350 MM, JUNTA ELÁSTICA, INSTALADO EM LOCAL COM NÍVEL ALTO DE INTERFERÊNCIAS (NÃO INCLUI FORNECIMENTO). AF_11/2017 | I46: M | J46: ATRIBUÍDO SÃO PAULO | K46: 15,26 | L46: COMPOSICAO | M46: 5679 | N46: RETROESCAVADEIRA SOBRE RODAS COM CARREGADEIRA, TRAÇÃO 4X4, POTÊNCIA LÍQ. 88 HP, CAÇAMBA CARREG. CAP. MÍN. 1 M3, CAÇAMBA RETRO CAP. 0,26 M3, PESO OPERACIONAL MÍN. 6.674 KG, PROFUNDIDADE ESCAVAÇÃO MÁX. 4,37 M - CHI DIURNO. AF_06/2014 | O46: CHI | P46: ATRIBUÍDO SÃO PAULO | Q46: 0,0930000 | R46: 43,82 | S46: 4,07 | AE46: CAIXA REFERENCIAL
A47: ASSENTAMENTO DE TUBOS E PECAS | B47: ASTU | C47: FORNEC E/OU ASSENT DE TUBO DE FERRO FUNDIDO JUNTA | D47: 45 | G47: 97147 | H47: ASSENTAMENTO DE TUBO DE FERRO FUNDIDO PARA REDE DE ÁGUA, DN 350 MM, JUNTA ELÁSTICA, INSTALADO EM LOCAL COM NÍVEL ALTO DE INTERFERÊNCIAS (NÃO INCLUI FORNECIMENTO). AF_11/2017 | I47: M | J47: ATRIBUÍDO SÃO PAULO | K47: 15,26 | L47: INSUMO | M47: 20078 | N47: PASTA LUBRIFICANTE PARA TUBOS E CONEXOES COM JUNTA ELASTICA, EMBALAGEM DE *400* GR (USO EM PVC, ACO, POLIETILENO E OUTROS) | O47: UN | P47: COEFICIENTE DE REPRESENTATIVIDADE | Q47: 0,0163000 | R47: 20,64 | S47: 0,33 | AE47: CAIXA REFERENCIAL
A48: ASSENTAMENTO DE TUBOS E PECAS | B48: ASTU | C48: FORNEC E/OU ASSENT DE TUBO DE FERRO FUNDIDO JUNTA | D48: 45 | G48: 97147 | H48: ASSENTAMENTO DE TUBO DE FERRO FUNDIDO PARA REDE DE ÁGUA, DN 350 MM, JUNTA ELÁSTICA, INSTALADO EM LOCAL COM NÍVEL ALTO DE INTERFERÊNCIAS (NÃO INCLUI FORNECIMENTO). AF_11/2017 | I48: M | J48: ATRIBUÍDO SÃO PAULO | K48: 15,26 | L48: COMPOSICAO | M48: 88246 | N48: ASSENTADOR DE TUBOS COM ENCARGOS COMPLEMENTARES | O48: H | P48: COEFICIENTE DE REPRESENTATIVIDADE | Q48: 0,2799000 | R48: 14,73 | S48: 4,12 | AE48: CAIXA REFERENCIAL
A49: ASSENTAMENTO DE TUBOS E PECAS | B49: ASTU | C49: FORNEC E/OU ASSENT DE TUBO DE FERRO FUNDIDO JUNTA | D49: 45 | G49: 97147 | H49: ASSENTAMENTO DE TUBO DE FERRO FUNDIDO PARA REDE DE ÁGUA, DN 350 MM, JUNTA ELÁSTICA, INSTALADO EM LOCAL COM NÍVEL ALTO DE INTERFERÊNCIAS (NÃO INCLUI FORNECIMENTO). AF_11/2017 | I49: M | J49: ATRIBUÍDO SÃO PAULO | K49: 15,26 | L49: COMPOSICAO | M49: 88316 | N49: SERVENTE COM ENCARGOS COMPLEMENTARES | O49: H | P49: COLETADO | Q49: 0,2799000 | R49: 16,44 | S49: 4,60 | AE49: CAIXA REFERENCIAL
A50: ASSENTAMENTO DE TUBOS E PECAS | B50: ASTU | C50: FORNEC E/OU ASSENT DE TUBO DE FERRO FUNDIDO JUNTA | D50: 45 | G50: 97148 | H50: ASSENTAMENTO DE TUBO DE FERRO FUNDIDO PARA REDE DE ÁGUA, DN 400 MM, JUNTA ELÁSTICA, INSTALADO EM LOCAL COM NÍVEL ALTO DE INTERFERÊNCIAS (NÃO INCLUI FORNECIMENTO). AF_11/2017 | I50: M | J50: ATRIBUÍDO SÃO PAULO | K50: 16,95 | T50: 8,91 | U50: 52,4717095 | V50: 4,98 | W50: 29,4222751 | X50: 3,06 | Y50: 18,1060154 | Z50: 0,00 | AA50: 0,0000000 | AB50: 0,00 | AC50: 0,0000000 | AD50: 0.17994 | AE50: CAIXA REFERENCIAL
A51: ASSENTAMENTO DE TUBOS E PECAS | B51: ASTU | C51: FORNEC E/OU ASSENT DE TUBO DE FERRO FUNDIDO JUNTA | D51: 45 | G51: 97148 | H51: ASSENTAMENTO DE TUBO DE FERRO FUNDIDO PARA REDE DE ÁGUA, DN 400 MM, JUNTA ELÁSTICA, INSTALADO EM LOCAL COM NÍVEL ALTO DE INTERFERÊNCIAS (NÃO INCLUI FORNECIMENTO). AF_11/2017 | I51: M | J51: ATRIBUÍDO SÃO PAULO | K51: 16,95 | L51: COMPOSICAO | M51: 5678 | N51: RETROESCAVADEIRA SOBRE RODAS COM CARREGADEIRA, TRAÇÃO 4X4, POTÊNCIA LÍQ. 88 HP, CAÇAMBA CARREG. CAP. MÍN. 1 M3, CAÇAMBA RETRO CAP. 0,26 M3, PESO OPERACIONAL MÍN. 6.674 KG, PROFUNDIDADE ESCAVAÇÃO MÁX. 4,37 M - CHP DIURNO. AF_06/2014 | O51: CHP | P51: ATRIBUÍDO SÃO PAULO | Q51: 0,0211000 | R51: 110,79 | S51: 2,33 | AE51: CAIXA REFERENCIAL
A52: ASSENTAMENTO DE TUBOS E PECAS | B52: ASTU | C52: FORNEC E/OU ASSENT DE TUBO DE FERRO FUNDIDO JUNTA | D52: 45 | G52: 97148 | H52: ASSENTAMENTO DE TUBO DE FERRO FUNDIDO PARA REDE DE ÁGUA, DN 400 MM, JUNTA ELÁSTICA, INSTALADO EM LOCAL COM NÍVEL ALTO DE INTERFERÊNCIAS (NÃO INCLUI FORNECIMENTO). AF_11/2017 | I52: M | J52: ATRIBUÍDO SÃO PAULO | K52: 16,95 | L52: COMPOSICAO | M52: 5679 | N52: RETROESCAVADEIRA SOBRE RODAS COM CARREGADEIRA, TRAÇÃO 4X4, POTÊNCIA LÍQ. 88 HP, CAÇAMBA CARREG. CAP. MÍN. 1 M3, CAÇAMBA RETRO CAP. 0,26 M3, PESO OPERACIONAL MÍN. 6.674 KG, PROFUNDIDADE ESCAVAÇÃO MÁX. 4,37 M - CHI DIURNO. AF_06/2014 | O52: CHI | P52: ATRIBUÍDO SÃO PAULO | Q52: 0,1014000 | R52: 43,82 | S52: 4,44 | AE52: CAIXA REFERENCIAL
A53: ASSENTAMENTO DE TUBOS E PECAS | B53: ASTU | C53: FORNEC E/OU ASSENT DE TUBO DE FERRO FUNDIDO JUNTA | D53: 45 | G53: 97148 | H53: ASSENTAMENTO DE TUBO DE FERRO FUNDIDO PARA REDE DE ÁGUA, DN 400 MM, JUNTA ELÁSTICA, INSTALADO EM LOCAL COM NÍVEL ALTO DE INTERFERÊNCIAS (NÃO INCLUI FORNECIMENTO). AF_11/2017 | I53: M | J53: ATRIBUÍDO SÃO PAULO | K53: 16,95 | L53: INSUMO | M53: 20078 | N53: PASTA LUBRIFICANTE PARA TUBOS E CONEXOES COM JUNTA ELASTICA, EMBALAGEM DE *400* GR (USO EM PVC, ACO, POLIETILENO E OUTROS) | O53: UN | P53: COEFICIENTE DE REPRESENTATIVIDADE | Q53: 0,0188000 | R53: 20,64 | S53: 0,38 | AE53: CAIXA REFERENCIAL
A54: ASSENTAMENTO DE TUBOS E PECAS | B54: ASTU | C54: FORNEC E/OU ASSENT DE TUBO DE FERRO FUNDIDO JUNTA | D54: 45 | G54: 97148 | H54: ASSENTAMENTO DE TUBO DE FERRO FUNDIDO PARA REDE DE ÁGUA, DN 400 MM, JUNTA ELÁSTICA, INSTALADO EM LOCAL COM NÍVEL ALTO DE INTERFERÊNCIAS (NÃO INCLUI FORNECIMENTO). AF_11/2017 | I54: M | J54: ATRIBUÍDO SÃO PAULO | K54: 16,95 | L54: COMPOSICAO | M54: 88246 | N54: ASSENTADOR DE TUBOS COM ENCARGOS COMPLEMENTARES | O54: H | P54: COEFICIENTE DE REPRESENTATIVIDADE | Q54: 0,3150000 | R54: 14,73 | S54: 4,63 | AE54: CAIXA REFERENCIAL
A55: ASSENTAMENTO DE TUBOS E PECAS | B55: ASTU | C55: FORNEC E/OU ASSENT DE TUBO DE FERRO FUNDIDO JUNTA | D55: 45 | G55: 97148 | H55: ASSENTAMENTO DE TUBO DE FERRO FUNDIDO PARA REDE DE ÁGUA, DN 400 MM, JUNTA ELÁSTICA, INSTALADO EM LOCAL COM NÍVEL ALTO DE INTERFERÊNCIAS (NÃO INCLUI FORNECIMENTO). AF_11/2017 | I55: M | J55: ATRIBUÍDO SÃO PAULO | K55: 16,95 | L55: COMPOSICAO | M55: 88316 | N55: SERVENTE COM ENCARGOS COMPLEMENTARES | O55: H | P55: COLETADO | Q55: 0,3150000 | R55: 16,44 | S55: 5,17 | AE55: CAIXA REFERENCIAL
A56: ASSENTAMENTO DE TUBOS E PECAS | B56: ASTU | C56: FORNEC E/OU ASSENT DE TUBO DE FERRO FUNDIDO JUNTA | D56: 45 | G56: 97149 | H56: ASSENTAMENTO DE TUBO DE FERRO FUNDIDO PARA REDE DE ÁGUA, DN 450 MM, JUNTA ELÁSTICA, INSTALADO EM LOCAL COM NÍVEL ALTO DE INTERFERÊNCIAS (NÃO INCLUI FORNECIMENTO). AF_11/2017 | I56: M | J56: ATRIBUÍDO SÃO PAULO | K56: 18,69 | T56: 9,81 | U56: 52,4245690 | V56: 5,56 | W56: 29,7952586 | X56: 3,32 | Y56: 17,7801724 | Z56: 0,00 | AA56: 0,0000000 | AB56: 0,00 | AC56: 0,0000000 | AD56: 0.17657 | AE56: CAIXA REFERENCIAL
A57: ASSENTAMENTO DE TUBOS E PECAS | B57: ASTU | C57: FORNEC E/OU ASSENT DE TUBO DE FERRO FUNDIDO JUNTA | D57: 45 | G57: 97149 | H57: ASSENTAMENTO DE TUBO DE FERRO FUNDIDO PARA REDE DE ÁGUA, DN 450 MM, JUNTA ELÁSTICA, INSTALADO EM LOCAL COM NÍVEL ALTO DE INTERFERÊNCIAS (NÃO INCLUI FORNECIMENTO). AF_11/2017 | I57: M | J57: ATRIBUÍDO SÃO PAULO | K57: 18,69 | L57: COMPOSICAO | M57: 5678 | N57: RETROESCAVADEIRA SOBRE RODAS COM CARREGADEIRA, TRAÇÃO 4X4, POTÊNCIA LÍQ. 88 HP, CAÇAMBA CARREG. CAP. MÍN. 1 M3, CAÇAMBA RETRO CAP. 0,26 M3, PESO OPERACIONAL MÍN. 6.674 KG, PROFUNDIDADE ESCAVAÇÃO MÁX. 4,37 M - CHP DIURNO. AF_06/2014 | O57: CHP | P57: ATRIBUÍDO SÃO PAULO | Q57: 0,0229000 | R57: 110,79 | S57: 2,53 | AE57: CAIXA REFERENCIAL
A58: ASSENTAMENTO DE TUBOS E PECAS | B58: ASTU | C58: FORNEC E/OU ASSENT DE TUBO DE FERRO FUNDIDO JUNTA | D58: 45 | G58: 97149 | H58: ASSENTAMENTO DE TUBO DE FERRO FUNDIDO PARA REDE DE ÁGUA, DN 450 MM, JUNTA ELÁSTICA, INSTALADO EM LOCAL COM NÍVEL ALTO DE INTERFERÊNCIAS (NÃO INCLUI FORNECIMENTO). AF_11/2017 | I58: M | J58: ATRIBUÍDO SÃO PAULO | K58: 18,69 | L58: COMPOSICAO | M58: 5679 | N58: RETROESCAVADEIRA SOBRE RODAS COM CARREGADEIRA, TRAÇÃO 4X4, POTÊNCIA LÍQ. 88 HP, CAÇAMBA CARREG. CAP. MÍN. 1 M3, CAÇAMBA RETRO CAP. 0,26 M3, PESO OPERACIONAL MÍN. 6.674 KG, PROFUNDIDADE ESCAVAÇÃO MÁX. 4,37 M - CHI DIURNO. AF_06/2014 | O58: CHI | P58: ATRIBUÍDO SÃO PAULO | Q58: 0,1098000 | R58: 43,82 | S58: 4,81 | AE58: CAIXA REFERENCIAL
A59: ASSENTAMENTO DE TUBOS E PECAS | B59: ASTU | C59: FORNEC E/OU ASSENT DE TUBO DE FERRO FUNDIDO JUNTA | D59: 45 | G59: 97149 | H59: ASSENTAMENTO DE TUBO DE FERRO FUNDIDO PARA REDE DE ÁGUA, DN 450 MM, JUNTA ELÁSTICA, INSTALADO EM LOCAL COM NÍVEL ALTO DE INTERFERÊNCIAS (NÃO INCLUI FORNECIMENTO). AF_11/2017 | I59: M | J59: ATRIBUÍDO SÃO PAULO | K59: 18,69 | L59: INSUMO | M59: 20078 | N59: PASTA LUBRIFICANTE PARA TUBOS E CONEXOES COM JUNTA ELASTICA, EMBALAGEM DE *400* GR (USO EM PVC, ACO, POLIETILENO E OUTROS) | O59: UN | P59: COEFICIENTE DE REPRESENTATIVIDADE | Q59: 0,0221000 | R59: 20,64 | S59: 0,45 | AE59: CAIXA REFERENCIAL
A60: ASSENTAMENTO DE TUBOS E PECAS | B60: ASTU | C60: FORNEC E/OU ASSENT DE TUBO DE FERRO FUNDIDO JUNTA | D60: 45 | G60: 97149 | H60: ASSENTAMENTO DE TUBO DE FERRO FUNDIDO PARA REDE DE ÁGUA, DN 450 MM, JUNTA ELÁSTICA, INSTALADO EM LOCAL COM NÍVEL ALTO DE INTERFERÊNCIAS (NÃO INCLUI FORNECIMENTO). AF_11/2017 | I60: M | J60: ATRIBUÍDO SÃO PAULO | K60: 18,69 | L60: COMPOSICAO | M60: 88246 | N60: ASSENTADOR DE TUBOS COM ENCARGOS COMPLEMENTARES | O60: H | P60: COEFICIENTE DE REPRESENTATIVIDADE | Q60: 0,3501000 | R60: 14,73 | S60: 5,15 | AE60: CAIXA REFERENCIAL
A61: ASSENTAMENTO DE TUBOS E PECAS | B61: ASTU | C61: FORNEC E/OU ASSENT DE TUBO DE FERRO FUNDIDO JUNTA | D61: 45 | G61: 97149 | H61: ASSENTAMENTO DE TUBO DE FERRO FUNDIDO PARA REDE DE ÁGUA, DN 450 MM, JUNTA ELÁSTICA, INSTALADO EM LOCAL COM NÍVEL ALTO DE INTERFERÊNCIAS (NÃO INCLUI FORNECIMENTO). AF_11/2017 | I61: M | J61: ATRIBUÍDO SÃO PAULO | K61: 18,69 | L61: COMPOSICAO | M61: 88316 | N61: SERVENTE COM ENCARGOS COMPLEMENTARES | O61: H | P61: COLETADO | Q61: 0,3501000 | R61: 16,44 | S61: 5,75 | AE61: CAIXA REFERENCIAL
A62: ASSENTAMENTO DE TUBOS E PECAS | B62: ASTU | C62: FORNEC E/OU ASSENT DE TUBO DE FERRO FUNDIDO JUNTA | D62: 45 | G62: 97150 | H62: ASSENTAMENTO DE TUBO DE FERRO FUNDIDO PARA REDE DE ÁGUA, DN 500 MM, JUNTA ELÁSTICA, INSTALADO EM LOCAL COM NÍVEL ALTO DE INTERFERÊNCIAS (NÃO INCLUI FORNECIMENTO). AF_11/2017 | I62: M | J62: ATRIBUÍDO SÃO PAULO | K62: 23,54 | T62: 10,73 | U62: 45,5128206 | V62: 6,32 | W62: 26,8803418 | X62: 6,49 | Y62: 27,6068376 | Z62: 0,00 | AA62: 0,0000000 | AB62: 0,00 | AC62: 0,0000000 | AD62: 0.27443 | AE62: CAIXA REFERENCIAL
A63: ASSENTAMENTO DE TUBOS E PECAS | B63: ASTU | C63: FORNEC E/OU ASSENT DE TUBO DE FERRO FUNDIDO JUNTA | D63: 45 | G63: 97150 | H63: ASSENTAMENTO DE TUBO DE FERRO FUNDIDO PARA REDE DE ÁGUA, DN 500 MM, JUNTA ELÁSTICA, INSTALADO EM LOCAL COM NÍVEL ALTO DE INTERFERÊNCIAS (NÃO INCLUI FORNECIMENTO). AF_11/2017 | I63: M | J63: ATRIBUÍDO SÃO PAULO | K63: 23,54 | L63: COMPOSICAO | M63: 5631 | N63: ESCAVADEIRA HIDRÁULICA SOBRE ESTEIRAS, CAÇAMBA 0,80 M3, PESO OPERACIONAL 17 T, POTENCIA BRUTA 111 HP - CHP DIURNO. AF_06/2014 | O63: CHP | P63: ATRIBUÍDO SÃO PAULO | Q63: 0,0246000 | R63: 155,81 | S63: 3,83 | AE63: CAIXA REFERENCIAL
A64: ASSENTAMENTO DE TUBOS E PECAS | B64: ASTU | C64: FORNEC E/OU ASSENT DE TUBO DE FERRO FUNDIDO JUNTA | D64: 45 | G64: 97150 | H64: ASSENTAMENTO DE TUBO DE FERRO FUNDIDO PARA REDE DE ÁGUA, DN 500 MM, JUNTA ELÁSTICA, INSTALADO EM LOCAL COM NÍVEL ALTO DE INTERFERÊNCIAS (NÃO INCLUI FORNECIMENTO). AF_11/2017 | I64: M | J64: ATRIBUÍDO SÃO PAULO | K64: 23,54 | L64: COMPOSICAO | M64: 5632 | N64: ESCAVADEIRA HIDRÁULICA SOBRE ESTEIRAS, CAÇAMBA 0,80 M3, PESO OPERACIONAL 17 T, POTENCIA BRUTA 111 HP - CHI DIURNO. AF_06/2014 | O64: CHI | P64: ATRIBUÍDO SÃO PAULO | Q64: 0,1182000 | R64: 60,93 | S64: 7,20 | AE64: CAIXA REFERENCIAL
A65: ASSENTAMENTO DE TUBOS E PECAS | B65: ASTU | C65: FORNEC E/OU ASSENT DE TUBO DE FERRO FUNDIDO JUNTA | D65: 45 | G65: 97150 | H65: ASSENTAMENTO DE TUBO DE FERRO FUNDIDO PARA REDE DE ÁGUA, DN 500 MM, JUNTA ELÁSTICA, INSTALADO EM LOCAL COM NÍVEL ALTO DE INTERFERÊNCIAS (NÃO INCLUI FORNECIMENTO). AF_11/2017 | I65: M | J65: ATRIBUÍDO SÃO PAULO | K65: 23,54 | L65: INSUMO | M65: 20078 | N65: PASTA LUBRIFICANTE PARA TUBOS E CONEXOES COM JUNTA ELASTICA, EMBALAGEM DE *400* GR (USO EM PVC, ACO, POLIETILENO E OUTROS) | O65: UN | P65: COEFICIENTE DE REPRESENTATIVIDADE | Q65: 0,0248000 | R65: 20,64 | S65: 0,51 | AE65: CAIXA REFERENCIAL
A66: ASSENTAMENTO DE TUBOS E PECAS | B66: ASTU | C66: FORNEC E/OU ASSENT DE TUBO DE FERRO FUNDIDO JUNTA | D66: 45 | G66: 97150 | H66: ASSENTAMENTO DE TUBO DE FERRO FUNDIDO PARA REDE DE ÁGUA, DN 500 MM, JUNTA ELÁSTICA, INSTALADO EM LOCAL COM NÍVEL ALTO DE INTERFERÊNCIAS (NÃO INCLUI FORNECIMENTO). AF_11/2017 | I66: M | J66: ATRIBUÍDO SÃO PAULO | K66: 23,54 | L66: COMPOSICAO | M66: 88246 | N66: ASSENTADOR DE TUBOS COM ENCARGOS COMPLEMENTARES | O66: H | P66: COEFICIENTE DE REPRESENTATIVIDADE | Q66: 0,3851000 | R66: 14,73 | S66: 5,67 | AE66: CAIXA REFERENCIAL
A67: ASSENTAMENTO DE TUBOS E PECAS | B67: ASTU | C67: FORNEC E/OU ASSENT DE TUBO DE FERRO FUNDIDO JUNTA | D67: 45 | G67: 97150 | H67: ASSENTAMENTO DE TUBO DE FERRO FUNDIDO PARA REDE DE ÁGUA, DN 500 MM, JUNTA ELÁSTICA, INSTALADO EM LOCAL COM NÍVEL ALTO DE INTERFERÊNCIAS (NÃO INCLUI FORNECIMENTO). AF_11/2017 | I67: M | J67: ATRIBUÍDO SÃO PAULO | K67: 23,54 | L67: COMPOSICAO | M67: 88316 | N67: SERVENTE COM ENCARGOS COMPLEMENTARES | O67: H | P67: COLETADO | Q67: 0,3851000 | R67: 16,44 | S67: 6,33 | AE67: CAIXA REFERENCIAL
A68: ASSENTAMENTO DE TUBOS E PECAS | B68: ASTU | C68: FORNEC E/OU ASSENT DE TUBO DE FERRO FUNDIDO JUNTA | D68: 45 | G68: 97151 | H68: ASSENTAMENTO DE TUBO DE FERRO FUNDIDO PARA REDE DE ÁGUA, DN 600 MM, JUNTA ELÁSTICA, INSTALADO EM LOCAL COM NÍVEL ALTO DE INTERFERÊNCIAS (NÃO INCLUI FORNECIMENTO). AF_11/2017 | I68: M | J68: ATRIBUÍDO SÃO PAULO | K68: 27,41 | T68: 12,57 | U68: 45,8012469 | V68: 7,43 | W68: 27,1360469 | X68: 7,41 | Y68: 27,0627062 | Z68: 0,00 | AA68: 0,0000000 | AB68: 0,00 | AC68: 0,0000000 | AD68: 0.26924 | AE68: CAIXA REFERENCIAL
A69: ASSENTAMENTO DE TUBOS E PECAS | B69: ASTU | C69: FORNEC E/OU ASSENT DE TUBO DE FERRO FUNDIDO JUNTA | D69: 45 | G69: 97151 | H69: ASSENTAMENTO DE TUBO DE FERRO FUNDIDO PARA REDE DE ÁGUA, DN 600 MM, JUNTA ELÁSTICA, INSTALADO EM LOCAL COM NÍVEL ALTO DE INTERFERÊNCIAS (NÃO INCLUI FORNECIMENTO). AF_11/2017 | I69: M | J69: ATRIBUÍDO SÃO PAULO | K69: 27,41 | L69: COMPOSICAO | M69: 5631 | N69: ESCAVADEIRA HIDRÁULICA SOBRE ESTEIRAS, CAÇAMBA 0,80 M3, PESO OPERACIONAL 17 T, POTENCIA BRUTA 111 HP - CHP DIURNO. AF_06/2014 | O69: CHP | P69: ATRIBUÍDO SÃO PAULO | Q69: 0,0281000 | R69: 155,81 | S69: 4,37 | AE69: CAIXA REFERENCIAL
A70: ASSENTAMENTO DE TUBOS E PECAS | B70: ASTU | C70: FORNEC E/OU ASSENT DE TUBO DE FERRO FUNDIDO JUNTA | D70: 45 | G70: 97151 | H70: ASSENTAMENTO DE TUBO DE FERRO FUNDIDO PARA REDE DE ÁGUA, DN 600 MM, JUNTA ELÁSTICA, INSTALADO EM LOCAL COM NÍVEL ALTO DE INTERFERÊNCIAS (NÃO INCLUI FORNECIMENTO). AF_11/2017 | I70: M | J70: ATRIBUÍDO SÃO PAULO | K70: 27,41 | L70: COMPOSICAO | M70: 5632 | N70: ESCAVADEIRA HIDRÁULICA SOBRE ESTEIRAS, CAÇAMBA 0,80 M3, PESO OPERACIONAL 17 T, POTENCIA BRUTA 111 HP - CHI DIURNO. AF_06/2014 | O70: CHI | P70: ATRIBUÍDO SÃO PAULO | Q70: 0,1350000 | R70: 60,93 | S70: 8,22 | AE70: CAIXA REFERENCIAL
A71: ASSENTAMENTO DE TUBOS E PECAS | B71: ASTU | C71: FORNEC E/OU ASSENT DE TUBO DE FERRO FUNDIDO JUNTA | D71: 45 | G71: 97151 | H71: ASSENTAMENTO DE TUBO DE FERRO FUNDIDO PARA REDE DE ÁGUA, DN 600 MM, JUNTA ELÁSTICA, INSTALADO EM LOCAL COM NÍVEL ALTO DE INTERFERÊNCIAS (NÃO INCLUI FORNECIMENTO). AF_11/2017 | I71: M | J71: ATRIBUÍDO SÃO PAULO | K71: 27,41 | L71: INSUMO | M71: 20078 | N71: PASTA LUBRIFICANTE PARA TUBOS E CONEXOES COM JUNTA ELASTICA, EMBALAGEM DE *400* GR (USO EM PVC, ACO, POLIETILENO E OUTROS) | O71: UN | P71: COEFICIENTE DE REPRESENTATIVIDADE | Q71: 0,0313000 | R71: 20,64 | S71: 0,64 | AE71: CAIXA REFERENCIAL
A72: ASSENTAMENTO DE TUBOS E PECAS | B72: ASTU | C72: FORNEC E/OU ASSENT DE TUBO DE FERRO FUNDIDO JUNTA | D72: 45 | G72: 97151 | H72: ASSENTAMENTO DE TUBO DE FERRO FUNDIDO PARA REDE DE ÁGUA, DN 600 MM, JUNTA ELÁSTICA, INSTALADO EM LOCAL COM NÍVEL ALTO DE INTERFERÊNCIAS (NÃO INCLUI FORNECIMENTO). AF_11/2017 | I72: M | J72: ATRIBUÍDO SÃO PAULO | K72: 27,41 | L72: COMPOSICAO | M72: 88246 | N72: ASSENTADOR DE TUBOS COM ENCARGOS COMPLEMENTARES | O72: H | P72: COEFICIENTE DE REPRESENTATIVIDADE | Q72: 0,4553000 | R72: 14,73 | S72: 6,70 | AE72: CAIXA REFERENCIAL
A73: ASSENTAMENTO DE TUBOS E PECAS | B73: ASTU | C73: FORNEC E/OU ASSENT DE TUBO DE FERRO FUNDIDO JUNTA | D73: 45 | G73: 97151 | H73: ASSENTAMENTO DE TUBO DE FERRO FUNDIDO PARA REDE DE ÁGUA, DN 600 MM, JUNTA ELÁSTICA, INSTALADO EM LOCAL COM NÍVEL ALTO DE INTERFERÊNCIAS (NÃO INCLUI FORNECIMENTO). AF_11/2017 | I73: M | J73: ATRIBUÍDO SÃO PAULO | K73: 27,41 | L73: COMPOSICAO | M73: 88316 | N73: SERVENTE COM ENCARGOS COMPLEMENTARES | O73: H | P73: COLETADO | Q73: 0,4553000 | R73: 16,44 | S73: 7,48 | AE73: CAIXA REFERENCIAL
A74: ASSENTAMENTO DE TUBOS E PECAS | B74: ASTU | C74: FORNEC E/OU ASSENT DE TUBO DE FERRO FUNDIDO JUNTA | D74: 45 | G74: 97152 | H74: ASSENTAMENTO DE TUBO DE FERRO FUNDIDO PARA REDE DE ÁGUA, DN 700 MM, JUNTA ELÁSTICA, INSTALADO EM LOCAL COM NÍVEL ALTO DE INTERFERÊNCIAS (NÃO INCLUI FORNECIMENTO). AF_11/2017 | I74: M | J74: ATRIBUÍDO SÃO PAULO | K74: 31,11 | T74: 14,40 | U74: 46,2556489 | V74: 8,37 | W74: 26,9205939 | X74: 8,34 | Y74: 26,8237572 | Z74: 0,00 | AA74: 0,0000000 | AB74: 0,00 | AC74: 0,0000000 | AD74: 0.26712 | AE74: CAIXA REFERENCIAL
A75: ASSENTAMENTO DE TUBOS E PECAS | B75: ASTU | C75: FORNEC E/OU ASSENT DE TUBO DE FERRO FUNDIDO JUNTA | D75: 45 | G75: 97152 | H75: ASSENTAMENTO DE TUBO DE FERRO FUNDIDO PARA REDE DE ÁGUA, DN 700 MM, JUNTA ELÁSTICA, INSTALADO EM LOCAL COM NÍVEL ALTO DE INTERFERÊNCIAS (NÃO INCLUI FORNECIMENTO). AF_11/2017 | I75: M | J75: ATRIBUÍDO SÃO PAULO | K75: 31,11 | L75: COMPOSICAO | M75: 5631 | N75: ESCAVADEIRA HIDRÁULICA SOBRE ESTEIRAS, CAÇAMBA 0,80 M3, PESO OPERACIONAL 17 T, POTENCIA BRUTA 111 HP - CHP DIURNO. AF_06/2014 | O75: CHP | P75: ATRIBUÍDO SÃO PAULO | Q75: 0,0316000 | R75: 155,81 | S75: 4,92 | AE75: CAIXA REFERENCIAL
A76: ASSENTAMENTO DE TUBOS E PECAS | B76: ASTU | C76: FORNEC E/OU ASSENT DE TUBO DE FERRO FUNDIDO JUNTA | D76: 45 | G76: 97152 | H76: ASSENTAMENTO DE TUBO DE FERRO FUNDIDO PARA REDE DE ÁGUA, DN 700 MM, JUNTA ELÁSTICA, INSTALADO EM LOCAL COM NÍVEL ALTO DE INTERFERÊNCIAS (NÃO INCLUI FORNECIMENTO). AF_11/2017 | I76: M | J76: ATRIBUÍDO SÃO PAULO | K76: 31,11 | L76: COMPOSICAO | M76: 5632 | N76: ESCAVADEIRA HIDRÁULICA SOBRE ESTEIRAS, CAÇAMBA 0,80 M3, PESO OPERACIONAL 17 T, POTENCIA BRUTA 111 HP - CHI DIURNO. AF_06/2014 | O76: CHI | P76: ATRIBUÍDO SÃO PAULO | Q76: 0,1518000 | R76: 60,93 | S76: 9,24 | AE76: CAIXA REFERENCIAL
A77: ASSENTAMENTO DE TUBOS E PECAS | B77: ASTU | C77: FORNEC E/OU ASSENT DE TUBO DE FERRO FUNDIDO JUNTA | D77: 45 | G77: 97152 | H77: ASSENTAMENTO DE TUBO DE FERRO FUNDIDO PARA REDE DE ÁGUA, DN 700 MM, JUNTA ELÁSTICA, INSTALADO EM LOCAL COM NÍVEL ALTO DE INTERFERÊNCIAS (NÃO INCLUI FORNECIMENTO). AF_11/2017 | I77: M | J77: ATRIBUÍDO SÃO PAULO | K77: 31,11 | L77: INSUMO | M77: 20078 | N77: PASTA LUBRIFICANTE PARA TUBOS E CONEXOES COM JUNTA ELASTICA, EMBALAGEM DE *400* GR (USO EM PVC, ACO, POLIETILENO E OUTROS) | O77: UN | P77: COEFICIENTE DE REPRESENTATIVIDADE | Q77: 0,0284000 | R77: 20,64 | S77: 0,58 | AE77: CAIXA REFERENCIAL
A78: ASSENTAMENTO DE TUBOS E PECAS | B78: ASTU | C78: FORNEC E/OU ASSENT DE TUBO DE FERRO FUNDIDO JUNTA | D78: 45 | G78: 97152 | H78: ASSENTAMENTO DE TUBO DE FERRO FUNDIDO PARA REDE DE ÁGUA, DN 700 MM, JUNTA ELÁSTICA, INSTALADO EM LOCAL COM NÍVEL ALTO DE INTERFERÊNCIAS (NÃO INCLUI FORNECIMENTO). AF_11/2017 | I78: M | J78: ATRIBUÍDO SÃO PAULO | K78: 31,11 | L78: COMPOSICAO | M78: 88246 | N78: ASSENTADOR DE TUBOS COM ENCARGOS COMPLEMENTARES | O78: H | P78: COEFICIENTE DE REPRESENTATIVIDADE | Q78: 0,5255000 | R78: 14,73 | S78: 7,74 | AE78: CAIXA REFERENCIAL
A79: ASSENTAMENTO DE TUBOS E PECAS | B79: ASTU | C79: FORNEC E/OU ASSENT DE TUBO DE FERRO FUNDIDO JUNTA | D79: 45 | G79: 97152 | H79: ASSENTAMENTO DE TUBO DE FERRO FUNDIDO PARA REDE DE ÁGUA, DN 700 MM, JUNTA ELÁSTICA, INSTALADO EM LOCAL COM NÍVEL ALTO DE INTERFERÊNCIAS (NÃO INCLUI FORNECIMENTO). AF_11/2017 | I79: M | J79: ATRIBUÍDO SÃO PAULO | K79: 31,11 | L79: COMPOSICAO | M79: 88316 | N79: SERVENTE COM ENCARGOS COMPLEMENTARES | O79: H | P79: COLETADO | Q79: 0,5255000 | R79: 16,44 | S79: 8,63 | AE79: CAIXA REFERENCIAL
A80: ASSENTAMENTO DE TUBOS E PECAS | B80: ASTU | C80: FORNEC E/OU ASSENT DE TUBO DE FERRO FUNDIDO JUNTA | D80: 45 | G80: 97153 | H80: ASSENTAMENTO DE TUBO DE FERRO FUNDIDO PARA REDE DE ÁGUA, DN 800 MM, JUNTA ELÁSTICA, INSTALADO EM LOCAL COM NÍVEL ALTO DE INTERFERÊNCIAS (NÃO INCLUI FORNECIMENTO). AF_11/2017 | I80: M | J80: ATRIBUÍDO SÃO PAULO | K80: 34,93 | T80: 16,27 | U80: 46,5323742 | V80: 9,40 | W80: 26,9352517 | X80: 9,26 | Y80: 26,5323741 | Z80: 0,00 | AA80: 0,0000000 | AB80: 0,00 | AC80: 0,0000000 | AD80: 0.26396 | AE80: CAIXA REFERENCIAL
A81: ASSENTAMENTO DE TUBOS E PECAS | B81: ASTU | C81: FORNEC E/OU ASSENT DE TUBO DE FERRO FUNDIDO JUNTA | D81: 45 | G81: 97153 | H81: ASSENTAMENTO DE TUBO DE FERRO FUNDIDO PARA REDE DE ÁGUA, DN 800 MM, JUNTA ELÁSTICA, INSTALADO EM LOCAL COM NÍVEL ALTO DE INTERFERÊNCIAS (NÃO INCLUI FORNECIMENTO). AF_11/2017 | I81: M | J81: ATRIBUÍDO SÃO PAULO | K81: 34,93 | L81: COMPOSICAO | M81: 5631 | N81: ESCAVADEIRA HIDRÁULICA SOBRE ESTEIRAS, CAÇAMBA 0,80 M3, PESO OPERACIONAL 17 T, POTENCIA BRUTA 111 HP - CHP DIURNO. AF_06/2014 | O81: CHP | P81: ATRIBUÍDO SÃO PAULO | Q81: 0,0351000 | R81: 155,81 | S81: 5,46 | AE81: CAIXA REFERENCIAL
A82: ASSENTAMENTO DE TUBOS E PECAS | B82: ASTU | C82: FORNEC E/OU ASSENT DE TUBO DE FERRO FUNDIDO JUNTA | D82: 45 | G82: 97153 | H82: ASSENTAMENTO DE TUBO DE FERRO FUNDIDO PARA REDE DE ÁGUA, DN 800 MM, JUNTA ELÁSTICA, INSTALADO EM LOCAL COM NÍVEL ALTO DE INTERFERÊNCIAS (NÃO INCLUI FORNECIMENTO). AF_11/2017 | I82: M | J82: ATRIBUÍDO SÃO PAULO | K82: 34,93 | L82: COMPOSICAO | M82: 5632 | N82: ESCAVADEIRA HIDRÁULICA SOBRE ESTEIRAS, CAÇAMBA 0,80 M3, PESO OPERACIONAL 17 T, POTENCIA BRUTA 111 HP - CHI DIURNO. AF_06/2014 | O82: CHI | P82: ATRIBUÍDO SÃO PAULO | Q82: 0,1686000 | R82: 60,93 | S82: 10,27 | AE82: CAIXA REFERENCIAL
A83: ASSENTAMENTO DE TUBOS E PECAS | B83: ASTU | C83: FORNEC E/OU ASSENT DE TUBO DE FERRO FUNDIDO JUNTA | D83: 45 | G83: 97153 | H83: ASSENTAMENTO DE TUBO DE FERRO FUNDIDO PARA REDE DE ÁGUA, DN 800 MM, JUNTA ELÁSTICA, INSTALADO EM LOCAL COM NÍVEL ALTO DE INTERFERÊNCIAS (NÃO INCLUI FORNECIMENTO). AF_11/2017 | I83: M | J83: ATRIBUÍDO SÃO PAULO | K83: 34,93 | L83: INSUMO | M83: 20078 | N83: PASTA LUBRIFICANTE PARA TUBOS E CONEXOES COM JUNTA ELASTICA, EMBALAGEM DE *400* GR (USO EM PVC, ACO, POLIETILENO E OUTROS) | O83: UN | P83: COEFICIENTE DE REPRESENTATIVIDADE | Q83: 0,0314000 | R83: 20,64 | S83: 0,64 | AE83: CAIXA REFERENCIAL
A84: ASSENTAMENTO DE TUBOS E PECAS | B84: ASTU | C84: FORNEC E/OU ASSENT DE TUBO DE FERRO FUNDIDO JUNTA | D84: 45 | G84: 97153 | H84: ASSENTAMENTO DE TUBO DE FERRO FUNDIDO PARA REDE DE ÁGUA, DN 800 MM, JUNTA ELÁSTICA, INSTALADO EM LOCAL COM NÍVEL ALTO DE INTERFERÊNCIAS (NÃO INCLUI FORNECIMENTO). AF_11/2017 | I84: M | J84: ATRIBUÍDO SÃO PAULO | K84: 34,93 | L84: COMPOSICAO | M84: 88246 | N84: ASSENTADOR DE TUBOS COM ENCARGOS COMPLEMENTARES | O84: H | P84: COEFICIENTE DE REPRESENTATIVIDADE | Q84: 0,5956000 | R84: 14,73 | S84: 8,77 | AE84: CAIXA REFERENCIAL
A85: ASSENTAMENTO DE TUBOS E PECAS | B85: ASTU | C85: FORNEC E/OU ASSENT DE TUBO DE FERRO FUNDIDO JUNTA | D85: 45 | G85: 97153 | H85: ASSENTAMENTO DE TUBO DE FERRO FUNDIDO PARA REDE DE ÁGUA, DN 800 MM, JUNTA ELÁSTICA, INSTALADO EM LOCAL COM NÍVEL ALTO DE INTERFERÊNCIAS (NÃO INCLUI FORNECIMENTO). AF_11/2017 | I85: M | J85: ATRIBUÍDO SÃO PAULO | K85: 34,93 | L85: COMPOSICAO | M85: 88316 | N85: SERVENTE COM ENCARGOS COMPLEMENTARES | O85: H | P85: COLETADO | Q85: 0,5956000 | R85: 16,44 | S85: 9,79 | AE85: CAIXA REFERENCIAL
A86: ASSENTAMENTO DE TUBOS E PECAS | B86: ASTU | C86: FORNEC E/OU ASSENT DE TUBO DE FERRO FUNDIDO JUNTA | D86: 45 | G86: 97154 | H86: ASSENTAMENTO DE TUBO DE FERRO FUNDIDO PARA REDE DE ÁGUA, DN 900 MM, JUNTA ELÁSTICA, INSTALADO EM LOCAL COM NÍVEL ALTO DE INTERFERÊNCIAS (NÃO INCLUI FORNECIMENTO). AF_11/2017 | I86: M | J86: ATRIBUÍDO SÃO PAULO | K86: 38,77 | T86: 18,10 | U86: 46,6580312 | V86: 10,49 | W86: 27,0725388 | X86: 10,18 | Y86: 26,2694300 | Z86: 0,00 | AA86: 0,0000000 | AB86: 0,00 | AC86: 0,0000000 | AD86: 0.26154 | AE86: CAIXA REFERENCIAL
A87: ASSENTAMENTO DE TUBOS E PECAS | B87: ASTU | C87: FORNEC E/OU ASSENT DE TUBO DE FERRO FUNDIDO JUNTA | D87: 45 | G87: 97154 | H87: ASSENTAMENTO DE TUBO DE FERRO FUNDIDO PARA REDE DE ÁGUA, DN 900 MM, JUNTA ELÁSTICA, INSTALADO EM LOCAL COM NÍVEL ALTO DE INTERFERÊNCIAS (NÃO INCLUI FORNECIMENTO). AF_11/2017 | I87: M | J87: ATRIBUÍDO SÃO PAULO | K87: 38,77 | L87: COMPOSICAO | M87: 5631 | N87: ESCAVADEIRA HIDRÁULICA SOBRE ESTEIRAS, CAÇAMBA 0,80 M3, PESO OPERACIONAL 17 T, POTENCIA BRUTA 111 HP - CHP DIURNO. AF_06/2014 | O87: CHP | P87: ATRIBUÍDO SÃO PAULO | Q87: 0,0386000 | R87: 155,81 | S87: 6,01 | AE87: CAIXA REFERENCIAL
A88: ASSENTAMENTO DE TUBOS E PECAS | B88: ASTU | C88: FORNEC E/OU ASSENT DE TUBO DE FERRO FUNDIDO JUNTA | D88: 45 | G88: 97154 | H88: ASSENTAMENTO DE TUBO DE FERRO FUNDIDO PARA REDE DE ÁGUA, DN 900 MM, JUNTA ELÁSTICA, INSTALADO EM LOCAL COM NÍVEL ALTO DE INTERFERÊNCIAS (NÃO INCLUI FORNECIMENTO). AF_11/2017 | I88: M | J88: ATRIBUÍDO SÃO PAULO | K88: 38,77 | L88: COMPOSICAO | M88: 5632 | N88: ESCAVADEIRA HIDRÁULICA SOBRE ESTEIRAS, CAÇAMBA 0,80 M3, PESO OPERACIONAL 17 T, POTENCIA BRUTA 111 HP - CHI DIURNO. AF_06/2014 | O88: CHI | P88: ATRIBUÍDO SÃO PAULO | Q88: 0,1854000 | R88: 60,93 | S88: 11,29 | AE88: CAIXA REFERENCIAL
A89: ASSENTAMENTO DE TUBOS E PECAS | B89: ASTU | C89: FORNEC E/OU ASSENT DE TUBO DE FERRO FUNDIDO JUNTA | D89: 45 | G89: 97154 | H89: ASSENTAMENTO DE TUBO DE FERRO FUNDIDO PARA REDE DE ÁGUA, DN 900 MM, JUNTA ELÁSTICA, INSTALADO EM LOCAL COM NÍVEL ALTO DE INTERFERÊNCIAS (NÃO INCLUI FORNECIMENTO). AF_11/2017 | I89: M | J89: ATRIBUÍDO SÃO PAULO | K89: 38,77 | L89: INSUMO | M89: 20078 | N89: PASTA LUBRIFICANTE PARA TUBOS E CONEXOES COM JUNTA ELASTICA, EMBALAGEM DE *400* GR (USO EM PVC, ACO, POLIETILENO E OUTROS) | O89: UN | P89: COEFICIENTE DE REPRESENTATIVIDADE | Q89: 0,0355000 | R89: 20,64 | S89: 0,73 | AE89: CAIXA REFERENCIAL
A90: ASSENTAMENTO DE TUBOS E PECAS | B90: ASTU | C90: FORNEC E/OU ASSENT DE TUBO DE FERRO FUNDIDO JUNTA | D90: 45 | G90: 97154 | H90: ASSENTAMENTO DE TUBO DE FERRO FUNDIDO PARA REDE DE ÁGUA, DN 900 MM, JUNTA ELÁSTICA, INSTALADO EM LOCAL COM NÍVEL ALTO DE INTERFERÊNCIAS (NÃO INCLUI FORNECIMENTO). AF_11/2017 | I90: M | J90: ATRIBUÍDO SÃO PAULO | K90: 38,77 | L90: COMPOSICAO | M90: 88246 | N90: ASSENTADOR DE TUBOS COM ENCARGOS COMPLEMENTARES | O90: H | P90: COEFICIENTE DE REPRESENTATIVIDADE | Q90: 0,6658000 | R90: 14,73 | S90: 9,80 | AE90: CAIXA REFERENCIAL
A91: ASSENTAMENTO DE TUBOS E PECAS | B91: ASTU | C91: FORNEC E/OU ASSENT DE TUBO DE FERRO FUNDIDO JUNTA | D91: 45 | G91: 97154 | H91: ASSENTAMENTO DE TUBO DE FERRO FUNDIDO PARA REDE DE ÁGUA, DN 900 MM, JUNTA ELÁSTICA, INSTALADO EM LOCAL COM NÍVEL ALTO DE INTERFERÊNCIAS (NÃO INCLUI FORNECIMENTO). AF_11/2017 | I91: M | J91: ATRIBUÍDO SÃO PAULO | K91: 38,77 | L91: COMPOSICAO | M91: 88316 | N91: SERVENTE COM ENCARGOS COMPLEMENTARES | O91: H | P91: COLETADO | Q91: 0,6658000 | R91: 16,44 | S91: 10,94 | AE91: CAIXA REFERENCIAL
A92: ASSENTAMENTO DE TUBOS E PECAS | B92: ASTU | C92: FORNEC E/OU ASSENT DE TUBO DE FERRO FUNDIDO JUNTA | D92: 45 | G92: 97155 | H92: ASSENTAMENTO DE TUBO DE FERRO FUNDIDO PARA REDE DE ÁGUA, DN 1000 MM, JUNTA ELÁSTICA, INSTALADO EM LOCAL COM NÍVEL ALTO DE INTERFERÊNCIAS (NÃO INCLUI FORNECIMENTO). AF_11/2017 | I92: M | J92: ATRIBUÍDO SÃO PAULO | K92: 42,61 | T92: 19,93 | U92: 46,7498824 | V92: 11,58 | W92: 27,1785209 | X92: 11,10 | Y92: 26,0715967 | Z92: 0,00 | AA92: 0,0000000 | AB92: 0,00 | AC92: 0,0000000 | AD92: 0.2598 | AE92: CAIXA REFERENCIAL
A93: ASSENTAMENTO DE TUBOS E PECAS | B93: ASTU | C93: FORNEC E/OU ASSENT DE TUBO DE FERRO FUNDIDO JUNTA | D93: 45 | G93: 97155 | H93: ASSENTAMENTO DE TUBO DE FERRO FUNDIDO PARA REDE DE ÁGUA, DN 1000 MM, JUNTA ELÁSTICA, INSTALADO EM LOCAL COM NÍVEL ALTO DE INTERFERÊNCIAS (NÃO INCLUI FORNECIMENTO). AF_11/2017 | I93: M | J93: ATRIBUÍDO SÃO PAULO | K93: 42,61 | L93: COMPOSICAO | M93: 5631 | N93: ESCAVADEIRA HIDRÁULICA SOBRE ESTEIRAS, CAÇAMBA 0,80 M3, PESO OPERACIONAL 17 T, POTENCIA BRUTA 111 HP - CHP DIURNO. AF_06/2014 | O93: CHP | P93: ATRIBUÍDO SÃO PAULO | Q93: 0,0421000 | R93: 155,81 | S93: 6,55 | AE93: CAIXA REFERENCIAL
A94: ASSENTAMENTO DE TUBOS E PECAS | B94: ASTU | C94: FORNEC E/OU ASSENT DE TUBO DE FERRO FUNDIDO JUNTA | D94: 45 | G94: 97155 | H94: ASSENTAMENTO DE TUBO DE FERRO FUNDIDO PARA REDE DE ÁGUA, DN 1000 MM, JUNTA ELÁSTICA, INSTALADO EM LOCAL COM NÍVEL ALTO DE INTERFERÊNCIAS (NÃO INCLUI FORNECIMENTO). AF_11/2017 | I94: M | J94: ATRIBUÍDO SÃO PAULO | K94: 42,61 | L94: COMPOSICAO | M94: 5632 | N94: ESCAVADEIRA HIDRÁULICA SOBRE ESTEIRAS, CAÇAMBA 0,80 M3, PESO OPERACIONAL 17 T, POTENCIA BRUTA 111 HP - CHI DIURNO. AF_06/2014 | O94: CHI | P94: ATRIBUÍDO SÃO PAULO | Q94: 0,2021000 | R94: 60,93 | S94: 12,31 | AE94: CAIXA REFERENCIAL
A95: ASSENTAMENTO DE TUBOS E PECAS | B95: ASTU | C95: FORNEC E/OU ASSENT DE TUBO DE FERRO FUNDIDO JUNTA | D95: 45 | G95: 97155 | H95: ASSENTAMENTO DE TUBO DE FERRO FUNDIDO PARA REDE DE ÁGUA, DN 1000 MM, JUNTA ELÁSTICA, INSTALADO EM LOCAL COM NÍVEL ALTO DE INTERFERÊNCIAS (NÃO INCLUI FORNECIMENTO). AF_11/2017 | I95: M | J95: ATRIBUÍDO SÃO PAULO | K95: 42,61 | L95: INSUMO | M95: 20078 | N95: PASTA LUBRIFICANTE PARA TUBOS E CONEXOES COM JUNTA ELASTICA, EMBALAGEM DE *400* GR (USO EM PVC, ACO, POLIETILENO E OUTROS) | O95: UN | P95: COEFICIENTE DE REPRESENTATIVIDADE | Q95: 0,0403000 | R95: 20,64 | S95: 0,83 | AE95: CAIXA REFERENCIAL
A96: ASSENTAMENTO DE TUBOS E PECAS | B96: ASTU | C96: FORNEC E/OU ASSENT DE TUBO DE FERRO FUNDIDO JUNTA | D96: 45 | G96: 97155 | H96: ASSENTAMENTO DE TUBO DE FERRO FUNDIDO PARA REDE DE ÁGUA, DN 1000 MM, JUNTA ELÁSTICA, INSTALADO EM LOCAL COM NÍVEL ALTO DE INTERFERÊNCIAS (NÃO INCLUI FORNECIMENTO). AF_11/2017 | I96: M | J96: ATRIBUÍDO SÃO PAULO | K96: 42,61 | L96: COMPOSICAO | M96: 88246 | N96: ASSENTADOR DE TUBOS COM ENCARGOS COMPLEMENTARES | O96: H | P96: COEFICIENTE DE REPRESENTATIVIDADE | Q96: 0,7359000 | R96: 14,73 | S96: 10,83 | AE96: CAIXA REFERENCIAL
A97: ASSENTAMENTO DE TUBOS E PECAS | B97: ASTU | C97: FORNEC E/OU ASSENT DE TUBO DE FERRO FUNDIDO JUNTA | D97: 45 | G97: 97155 | H97: ASSENTAMENTO DE TUBO DE FERRO FUNDIDO PARA REDE DE ÁGUA, DN 1000 MM, JUNTA ELÁSTICA, INSTALADO EM LOCAL COM NÍVEL ALTO DE INTERFERÊNCIAS (NÃO INCLUI FORNECIMENTO). AF_11/2017 | I97: M | J97: ATRIBUÍDO SÃO PAULO | K97: 42,61 | L97: COMPOSICAO | M97: 88316 | N97: SERVENTE COM ENCARGOS COMPLEMENTARES | O97: H | P97: COLETADO | Q97: 0,7359000 | R97: 16,44 | S97: 12,09 | AE97: CAIXA REFERENCIAL
A98: ASSENTAMENTO DE TUBOS E PECAS | B98: ASTU | C98: FORNEC E/OU ASSENT DE TUBO DE FERRO FUNDIDO JUNTA | D98: 45 | G98: 97156 | H98: ASSENTAMENTO DE TUBO DE FERRO FUNDIDO PARA REDE DE ÁGUA, DN 1200 MM, JUNTA ELÁSTICA, INSTALADO EM LOCAL COM NÍVEL ALTO DE INTERFERÊNCIAS (NÃO INCLUI FORNECIMENTO). AF_11/2017 | I98: M | J98: ATRIBUÍDO SÃO PAULO | K98: 50,64 | T98: 23,63 | U98: 46,6428997 | V98: 14,08 | W98: 27,8074866 | X98: 12,93 | Y98: 25,5496137 | Z98: 0,00 | AA98: 0,0000000 | AB98: 0,00 | AC98: 0,0000000 | AD98: 0.25474 | AE98: CAIXA REFERENCIAL
A99: ASSENTAMENTO DE TUBOS E PECAS | B99: ASTU | C99: FORNEC E/OU ASSENT DE TUBO DE FERRO FUNDIDO JUNTA | D99: 45 | G99: 97156 | H99: ASSENTAMENTO DE TUBO DE FERRO FUNDIDO PARA REDE DE ÁGUA, DN 1200 MM, JUNTA ELÁSTICA, INSTALADO EM LOCAL COM NÍVEL ALTO DE INTERFERÊNCIAS (NÃO INCLUI FORNECIMENTO). AF_11/2017 | I99: M | J99: ATRIBUÍDO SÃO PAULO | K99: 50,64 | L99: COMPOSICAO | M99: 5631 | N99: ESCAVADEIRA HIDRÁULICA SOBRE ESTEIRAS, CAÇAMBA 0,80 M3, PESO OPERACIONAL 17 T, POTENCIA BRUTA 111 HP - CHP DIURNO. AF_06/2014 | O99: CHP | P99: ATRIBUÍDO SÃO PAULO | Q99: 0,0491000 | R99: 155,81 | S99: 7,65 | AE99: CAIXA REFERENCIAL
A100: ASSENTAMENTO DE TUBOS E PECAS | B100: ASTU | C100: FORNEC E/OU ASSENT DE TUBO DE FERRO FUNDIDO JUNTA | D100: 45 | G100: 97156 | H100: ASSENTAMENTO DE TUBO DE FERRO FUNDIDO PARA REDE DE ÁGUA, DN 1200 MM, JUNTA ELÁSTICA, INSTALADO EM LOCAL COM NÍVEL ALTO DE INTERFERÊNCIAS (NÃO INCLUI FORNECIMENTO). AF_11/2017 | I100: M | J100: ATRIBUÍDO SÃO PAULO | K100: 50,64 | L100: COMPOSICAO | M100: 5632 | N100: ESCAVADEIRA HIDRÁULICA SOBRE ESTEIRAS, CAÇAMBA 0,80 M3, PESO OPERACIONAL 17 T, POTENCIA BRUTA 111 HP - CHI DIURNO. AF_06/2014 | O100: CHI | P100: ATRIBUÍDO SÃO PAULO | Q100: 0,2357000 | R100: 60,93 | S100: 14,36 | AE100: CAIXA REFERENCIAL
A101: ASSENTAMENTO DE TUBOS E PECAS | B101: ASTU | C101: FORNEC E/OU ASSENT DE TUBO DE FERRO FUNDIDO JUNTA | D101: 45 | G101: 97156 | H101: ASSENTAMENTO DE TUBO DE FERRO FUNDIDO PARA REDE DE ÁGUA, DN 1200 MM, JUNTA ELÁSTICA, INSTALADO EM LOCAL COM NÍVEL ALTO DE INTERFERÊNCIAS (NÃO INCLUI FORNECIMENTO). AF_11/2017 | I101: M | J101: ATRIBUÍDO SÃO PAULO | K101: 50,64 | L101: INSUMO | M101: 20078 | N101: PASTA LUBRIFICANTE PARA TUBOS E CONEXOES COM JUNTA ELASTICA, EMBALAGEM DE *400* GR (USO EM PVC, ACO, POLIETILENO E OUTROS) | O101: UN | P101: COEFICIENTE DE REPRESENTATIVIDADE | Q101: 0,0646000 | R101: 20,64 | S101: 1,33 | AE101: CAIXA REFERENCIAL
A102: ASSENTAMENTO DE TUBOS E PECAS | B102: ASTU | C102: FORNEC E/OU ASSENT DE TUBO DE FERRO FUNDIDO JUNTA | D102: 45 | G102: 97156 | H102: ASSENTAMENTO DE TUBO DE FERRO FUNDIDO PARA REDE DE ÁGUA, DN 1200 MM, JUNTA ELÁSTICA, INSTALADO EM LOCAL COM NÍVEL ALTO DE INTERFERÊNCIAS (NÃO INCLUI FORNECIMENTO). AF_11/2017 | I102: M | J102: ATRIBUÍDO SÃO PAULO | K102: 50,64 | L102: COMPOSICAO | M102: 88246 | N102: ASSENTADOR DE TUBOS COM ENCARGOS COMPLEMENTARES | O102: H | P102: COEFICIENTE DE REPRESENTATIVIDADE | Q102: 0,8762000 | R102: 14,73 | S102: 12,90 | AE102: CAIXA REFERENCIAL
A103: ASSENTAMENTO DE TUBOS E PECAS | B103: ASTU | C103: FORNEC E/OU ASSENT DE TUBO DE FERRO FUNDIDO JUNTA | D103: 45 | G103: 97156 | H103: ASSENTAMENTO DE TUBO DE FERRO FUNDIDO PARA REDE DE ÁGUA, DN 1200 MM, JUNTA ELÁSTICA, INSTALADO EM LOCAL COM NÍVEL ALTO DE INTERFERÊNCIAS (NÃO INCLUI FORNECIMENTO). AF_11/2017 | I103: M | J103: ATRIBUÍDO SÃO PAULO | K103: 50,64 | L103: COMPOSICAO | M103: 88316 | N103: SERVENTE COM ENCARGOS COMPLEMENTARES | O103: H | P103: COLETADO | Q103: 0,8762000 | R103: 16,44 | S103: 14,40 | AE103: CAIXA REFERENCIAL
A104: ASSENTAMENTO DE TUBOS E PECAS | B104: ASTU | C104: FORNEC E/OU ASSENT DE TUBO DE FERRO FUNDIDO JUNTA | D104: 45 | G104: 97157 | H104: ASSENTAMENTO DE TUBO DE FERRO FUNDIDO PARA REDE DE ÁGUA, DN 80 MM, JUNTA ELÁSTICA, INSTALADO EM LOCAL COM NÍVEL BAIXO DE INTERFERÊNCIAS (NÃO INCLUI FORNECIMENTO). AF_11/2017 | I104: M | J104: ATRIBUÍDO SÃO PAULO | K104: 3,71 | T104: 1,72 | U104: 46,0674159 | V104: 1,15 | W104: 31,1797752 | X104: 0,84 | Y104: 22,7528089 | Z104: 0,00 | AA104: 0,0000000 | AB104: 0,00 | AC104: 0,0000000 | AD104: 0.21833 | AE104: CAIXA REFERENCIAL
A105: ASSENTAMENTO DE TUBOS E PECAS | B105: ASTU | C105: FORNEC E/OU ASSENT DE TUBO DE FERRO FUNDIDO JUNTA | D105: 45 | G105: 97157 | H105: ASSENTAMENTO DE TUBO DE FERRO FUNDIDO PARA REDE DE ÁGUA, DN 80 MM, JUNTA ELÁSTICA, INSTALADO EM LOCAL COM NÍVEL BAIXO DE INTERFERÊNCIAS (NÃO INCLUI FORNECIMENTO). AF_11/2017 | I105: M | J105: ATRIBUÍDO SÃO PAULO | K105: 3,71 | L105: COMPOSICAO | M105: 5678 | N105: RETROESCAVADEIRA SOBRE RODAS COM CARREGADEIRA, TRAÇÃO 4X4, POTÊNCIA LÍQ. 88 HP, CAÇAMBA CARREG. CAP. MÍN. 1 M3, CAÇAMBA RETRO CAP. 0,26 M3, PESO OPERACIONAL MÍN. 6.674 KG, PROFUNDIDADE ESCAVAÇÃO MÁX. 4,37 M - CHP DIURNO. AF_06/2014 | O105: CHP | P105: ATRIBUÍDO SÃO PAULO | Q105: 0,0099000 | R105: 110,79 | S105: 1,09 | AE105: CAIXA REFERENCIAL
A106: ASSENTAMENTO DE TUBOS E PECAS | B106: ASTU | C106: FORNEC E/OU ASSENT DE TUBO DE FERRO FUNDIDO JUNTA | D106: 45 | G106: 97157 | H106: ASSENTAMENTO DE TUBO DE FERRO FUNDIDO PARA REDE DE ÁGUA, DN 80 MM, JUNTA ELÁSTICA, INSTALADO EM LOCAL COM NÍVEL BAIXO DE INTERFERÊNCIAS (NÃO INCLUI FORNECIMENTO). AF_11/2017 | I106: M | J106: ATRIBUÍDO SÃO PAULO | K106: 3,71 | L106: COMPOSICAO | M106: 5679 | N106: RETROESCAVADEIRA SOBRE RODAS COM CARREGADEIRA, TRAÇÃO 4X4, POTÊNCIA LÍQ. 88 HP, CAÇAMBA CARREG. CAP. MÍN. 1 M3, CAÇAMBA RETRO CAP. 0,26 M3, PESO OPERACIONAL MÍN. 6.674 KG, PROFUNDIDADE ESCAVAÇÃO MÁX. 4,37 M - CHI DIURNO. AF_06/2014 | O106: CHI | P106: ATRIBUÍDO SÃO PAULO | Q106: 0,0190000 | R106: 43,82 | S106: 0,83 | AE106: CAIXA REFERENCIAL
A107: ASSENTAMENTO DE TUBOS E PECAS | B107: ASTU | C107: FORNEC E/OU ASSENT DE TUBO DE FERRO FUNDIDO JUNTA | D107: 45 | G107: 97157 | H107: ASSENTAMENTO DE TUBO DE FERRO FUNDIDO PARA REDE DE ÁGUA, DN 80 MM, JUNTA ELÁSTICA, INSTALADO EM LOCAL COM NÍVEL BAIXO DE INTERFERÊNCIAS (NÃO INCLUI FORNECIMENTO). AF_11/2017 | I107: M | J107: ATRIBUÍDO SÃO PAULO | K107: 3,71 | L107: INSUMO | M107: 20078 | N107: PASTA LUBRIFICANTE PARA TUBOS E CONEXOES COM JUNTA ELASTICA, EMBALAGEM DE *400* GR (USO EM PVC, ACO, POLIETILENO E OUTROS) | O107: UN | P107: COEFICIENTE DE REPRESENTATIVIDADE | Q107: 0,0046000 | R107: 20,64 | S107: 0,09 | AE107: CAIXA REFERENCIAL
A108: ASSENTAMENTO DE TUBOS E PECAS | B108: ASTU | C108: FORNEC E/OU ASSENT DE TUBO DE FERRO FUNDIDO JUNTA | D108: 45 | G108: 97157 | H108: ASSENTAMENTO DE TUBO DE FERRO FUNDIDO PARA REDE DE ÁGUA, DN 80 MM, JUNTA ELÁSTICA, INSTALADO EM LOCAL COM NÍVEL BAIXO DE INTERFERÊNCIAS (NÃO INCLUI FORNECIMENTO). AF_11/2017 | I108: M | J108: ATRIBUÍDO SÃO PAULO | K108: 3,71 | L108: COMPOSICAO | M108: 88246 | N108: ASSENTADOR DE TUBOS COM ENCARGOS COMPLEMENTARES | O108: H | P108: COEFICIENTE DE REPRESENTATIVIDADE | Q108: 0,0548000 | R108: 14,73 | S108: 0,80 | AE108: CAIXA REFERENCIAL
A109: ASSENTAMENTO DE TUBOS E PECAS | B109: ASTU | C109: FORNEC E/OU ASSENT DE TUBO DE FERRO FUNDIDO JUNTA | D109: 45 | G109: 97157 | H109: ASSENTAMENTO DE TUBO DE FERRO FUNDIDO PARA REDE DE ÁGUA, DN 80 MM, JUNTA ELÁSTICA, INSTALADO EM LOCAL COM NÍVEL BAIXO DE INTERFERÊNCIAS (NÃO INCLUI FORNECIMENTO). AF_11/2017 | I109: M | J109: ATRIBUÍDO SÃO PAULO | K109: 3,71 | L109: COMPOSICAO | M109: 88316 | N109: SERVENTE COM ENCARGOS COMPLEMENTARES | O109: H | P109: COLETADO | Q109: 0,0548000 | R109: 16,44 | S109: 0,90 | AE109: CAIXA REFERENCIAL
A110: ASSENTAMENTO DE TUBOS E PECAS | B110: ASTU | C110: FORNEC E/OU ASSENT DE TUBO DE FERRO FUNDIDO JUNTA | D110: 45 | G110: 97158 | H110: ASSENTAMENTO DE TUBO DE FERRO FUNDIDO PARA REDE DE ÁGUA, DN 100 MM, JUNTA ELÁSTICA, INSTALADO EM LOCAL COM NÍVEL BAIXO DE INTERFERÊNCIAS (NÃO INCLUI FORNECIMENTO). AF_11/2017 | I110: M | J110: ATRIBUÍDO SÃO PAULO | K110: 4,14 | T110: 1,94 | U110: 46,6165415 | V110: 1,30 | W110: 31,5789473 | X110: 0,90 | Y110: 21,8045112 | Z110: 0,00 | AA110: 0,0000000 | AB110: 0,00 | AC110: 0,0000000 | AD110: 0.21014 | AE110: CAIXA REFERENCIAL
A111: ASSENTAMENTO DE TUBOS E PECAS | B111: ASTU | C111: FORNEC E/OU ASSENT DE TUBO DE FERRO FUNDIDO JUNTA | D111: 45 | G111: 97158 | H111: ASSENTAMENTO DE TUBO DE FERRO FUNDIDO PARA REDE DE ÁGUA, DN 100 MM, JUNTA ELÁSTICA, INSTALADO EM LOCAL COM NÍVEL BAIXO DE INTERFERÊNCIAS (NÃO INCLUI FORNECIMENTO). AF_11/2017 | I111: M | J111: ATRIBUÍDO SÃO PAULO | K111: 4,14 | L111: COMPOSICAO | M111: 5678 | N111: RETROESCAVADEIRA SOBRE RODAS COM CARREGADEIRA, TRAÇÃO 4X4, POTÊNCIA LÍQ. 88 HP, CAÇAMBA CARREG. CAP. MÍN. 1 M3, CAÇAMBA RETRO CAP. 0,26 M3, PESO OPERACIONAL MÍN. 6.674 KG, PROFUNDIDADE ESCAVAÇÃO MÁX. 4,37 M - CHP DIURNO. AF_06/2014 | O111: CHP | P111: ATRIBUÍDO SÃO PAULO | Q111: 0,0106000 | R111: 110,79 | S111: 1,17 | AE111: CAIXA REFERENCIAL
A112: ASSENTAMENTO DE TUBOS E PECAS | B112: ASTU | C112: FORNEC E/OU ASSENT DE TUBO DE FERRO FUNDIDO JUNTA | D112: 45 | G112: 97158 | H112: ASSENTAMENTO DE TUBO DE FERRO FUNDIDO PARA REDE DE ÁGUA, DN 100 MM, JUNTA ELÁSTICA, INSTALADO EM LOCAL COM NÍVEL BAIXO DE INTERFERÊNCIAS (NÃO INCLUI FORNECIMENTO). AF_11/2017 | I112: M | J112: ATRIBUÍDO SÃO PAULO | K112: 4,14 | L112: COMPOSICAO | M112: 5679 | N112: RETROESCAVADEIRA SOBRE RODAS COM CARREGADEIRA, TRAÇÃO 4X4, POTÊNCIA LÍQ. 88 HP, CAÇAMBA CARREG. CAP. MÍN. 1 M3, CAÇAMBA RETRO CAP. 0,26 M3, PESO OPERACIONAL MÍN. 6.674 KG, PROFUNDIDADE ESCAVAÇÃO MÁX. 4,37 M - CHI DIURNO. AF_06/2014 | O112: CHI | P112: ATRIBUÍDO SÃO PAULO | Q112: 0,0204000 | R112: 43,82 | S112: 0,89 | AE112: CAIXA REFERENCIAL
A113: ASSENTAMENTO DE TUBOS E PECAS | B113: ASTU | C113: FORNEC E/OU ASSENT DE TUBO DE FERRO FUNDIDO JUNTA | D113: 45 | G113: 97158 | H113: ASSENTAMENTO DE TUBO DE FERRO FUNDIDO PARA REDE DE ÁGUA, DN 100 MM, JUNTA ELÁSTICA, INSTALADO EM LOCAL COM NÍVEL BAIXO DE INTERFERÊNCIAS (NÃO INCLUI FORNECIMENTO). AF_11/2017 | I113: M | J113: ATRIBUÍDO SÃO PAULO | K113: 4,14 | L113: INSUMO | M113: 20078 | N113: PASTA LUBRIFICANTE PARA TUBOS E CONEXOES COM JUNTA ELASTICA, EMBALAGEM DE *400* GR (USO EM PVC, ACO, POLIETILENO E OUTROS) | O113: UN | P113: COEFICIENTE DE REPRESENTATIVIDADE | Q113: 0,0054000 | R113: 20,64 | S113: 0,11 | AE113: CAIXA REFERENCIAL
A114: ASSENTAMENTO DE TUBOS E PECAS | B114: ASTU | C114: FORNEC E/OU ASSENT DE TUBO DE FERRO FUNDIDO JUNTA | D114: 45 | G114: 97158 | H114: ASSENTAMENTO DE TUBO DE FERRO FUNDIDO PARA REDE DE ÁGUA, DN 100 MM, JUNTA ELÁSTICA, INSTALADO EM LOCAL COM NÍVEL BAIXO DE INTERFERÊNCIAS (NÃO INCLUI FORNECIMENTO). AF_11/2017 | I114: M | J114: ATRIBUÍDO SÃO PAULO | K114: 4,14 | L114: COMPOSICAO | M114: 88246 | N114: ASSENTADOR DE TUBOS COM ENCARGOS COMPLEMENTARES | O114: H | P114: COEFICIENTE DE REPRESENTATIVIDADE | Q114: 0,0633000 | R114: 14,73 | S114: 0,93 | AE114: CAIXA REFERENCIAL
A115: ASSENTAMENTO DE TUBOS E PECAS | B115: ASTU | C115: FORNEC E/OU ASSENT DE TUBO DE FERRO FUNDIDO JUNTA | D115: 45 | G115: 97158 | H115: ASSENTAMENTO DE TUBO DE FERRO FUNDIDO PARA REDE DE ÁGUA, DN 100 MM, JUNTA ELÁSTICA, INSTALADO EM LOCAL COM NÍVEL BAIXO DE INTERFERÊNCIAS (NÃO INCLUI FORNECIMENTO). AF_11/2017 | I115: M | J115: ATRIBUÍDO SÃO PAULO | K115: 4,14 | L115: COMPOSICAO | M115: 88316 | N115: SERVENTE COM ENCARGOS COMPLEMENTARES | O115: H | P115: COLETADO | Q115: 0,0633000 | R115: 16,44 | S115: 1,04 | AE115: CAIXA REFERENCIAL
A116: ASSENTAMENTO DE TUBOS E PECAS | B116: ASTU | C116: FORNEC E/OU ASSENT DE TUBO DE FERRO FUNDIDO JUNTA | D116: 45 | G116: 97159 | H116: ASSENTAMENTO DE TUBO DE FERRO FUNDIDO PARA REDE DE ÁGUA, DN 150 MM, JUNTA ELÁSTICA, INSTALADO EM LOCAL COM NÍVEL BAIXO DE INTERFERÊNCIAS (NÃO INCLUI FORNECIMENTO). AF_11/2017 | I116: M | J116: ATRIBUÍDO SÃO PAULO | K116: 5,16 | T116: 2,47 | U116: 47,7137178 | V116: 1,66 | W116: 32,2067594 | X116: 1,03 | Y116: 20,0795228 | Z116: 0,00 | AA116: 0,0000000 | AB116: 0,00 | AC116: 0,0000000 | AD116: 0.19574 | AE116: CAIXA REFERENCIAL
A117: ASSENTAMENTO DE TUBOS E PECAS | B117: ASTU | C117: FORNEC E/OU ASSENT DE TUBO DE FERRO FUNDIDO JUNTA | D117: 45 | G117: 97159 | H117: ASSENTAMENTO DE TUBO DE FERRO FUNDIDO PARA REDE DE ÁGUA, DN 150 MM, JUNTA ELÁSTICA, INSTALADO EM LOCAL COM NÍVEL BAIXO DE INTERFERÊNCIAS (NÃO INCLUI FORNECIMENTO). AF_11/2017 | I117: M | J117: ATRIBUÍDO SÃO PAULO | K117: 5,16 | L117: COMPOSICAO | M117: 5678 | N117: RETROESCAVADEIRA SOBRE RODAS COM CARREGADEIRA, TRAÇÃO 4X4, POTÊNCIA LÍQ. 88 HP, CAÇAMBA CARREG. CAP. MÍN. 1 M3, CAÇAMBA RETRO CAP. 0,26 M3, PESO OPERACIONAL MÍN. 6.674 KG, PROFUNDIDADE ESCAVAÇÃO MÁX. 4,37 M - CHP DIURNO. AF_06/2014 | O117: CHP | P117: ATRIBUÍDO SÃO PAULO | Q117: 0,0124000 | R117: 110,79 | S117: 1,37 | AE117: CAIXA REFERENCIAL
A118: ASSENTAMENTO DE TUBOS E PECAS | B118: ASTU | C118: FORNEC E/OU ASSENT DE TUBO DE FERRO FUNDIDO JUNTA | D118: 45 | G118: 97159 | H118: ASSENTAMENTO DE TUBO DE FERRO FUNDIDO PARA REDE DE ÁGUA, DN 150 MM, JUNTA ELÁSTICA, INSTALADO EM LOCAL COM NÍVEL BAIXO DE INTERFERÊNCIAS (NÃO INCLUI FORNECIMENTO). AF_11/2017 | I118: M | J118: ATRIBUÍDO SÃO PAULO | K118: 5,16 | L118: COMPOSICAO | M118: 5679 | N118: RETROESCAVADEIRA SOBRE RODAS COM CARREGADEIRA, TRAÇÃO 4X4, POTÊNCIA LÍQ. 88 HP, CAÇAMBA CARREG. CAP. MÍN. 1 M3, CAÇAMBA RETRO CAP. 0,26 M3, PESO OPERACIONAL MÍN. 6.674 KG, PROFUNDIDADE ESCAVAÇÃO MÁX. 4,37 M - CHI DIURNO. AF_06/2014 | O118: CHI | P118: ATRIBUÍDO SÃO PAULO | Q118: 0,0237000 | R118: 43,82 | S118: 1,03 | AE118: CAIXA REFERENCIAL
A119: ASSENTAMENTO DE TUBOS E PECAS | B119: ASTU | C119: FORNEC E/OU ASSENT DE TUBO DE FERRO FUNDIDO JUNTA | D119: 45 | G119: 97159 | H119: ASSENTAMENTO DE TUBO DE FERRO FUNDIDO PARA REDE DE ÁGUA, DN 150 MM, JUNTA ELÁSTICA, INSTALADO EM LOCAL COM NÍVEL BAIXO DE INTERFERÊNCIAS (NÃO INCLUI FORNECIMENTO). AF_11/2017 | I119: M | J119: ATRIBUÍDO SÃO PAULO | K119: 5,16 | L119: INSUMO | M119: 20078 | N119: PASTA LUBRIFICANTE PARA TUBOS E CONEXOES COM JUNTA ELASTICA, EMBALAGEM DE *400* GR (USO EM PVC, ACO, POLIETILENO E OUTROS) | O119: UN | P119: COEFICIENTE DE REPRESENTATIVIDADE | Q119: 0,0071000 | R119: 20,64 | S119: 0,14 | AE119: CAIXA REFERENCIAL
A120: ASSENTAMENTO DE TUBOS E PECAS | B120: ASTU | C120: FORNEC E/OU ASSENT DE TUBO DE FERRO FUNDIDO JUNTA | D120: 45 | G120: 97159 | H120: ASSENTAMENTO DE TUBO DE FERRO FUNDIDO PARA REDE DE ÁGUA, DN 150 MM, JUNTA ELÁSTICA, INSTALADO EM LOCAL COM NÍVEL BAIXO DE INTERFERÊNCIAS (NÃO INCLUI FORNECIMENTO). AF_11/2017 | I120: M | J120: ATRIBUÍDO SÃO PAULO | K120: 5,16 | L120: COMPOSICAO | M120: 88246 | N120: ASSENTADOR DE TUBOS COM ENCARGOS COMPLEMENTARES | O120: H | P120: COEFICIENTE DE REPRESENTATIVIDADE | Q120: 0,0845000 | R120: 14,73 | S120: 1,24 | AE120: CAIXA REFERENCIAL
A121: ASSENTAMENTO DE TUBOS E PECAS | B121: ASTU | C121: FORNEC E/OU ASSENT DE TUBO DE FERRO FUNDIDO JUNTA | D121: 45 | G121: 97159 | H121: ASSENTAMENTO DE TUBO DE FERRO FUNDIDO PARA REDE DE ÁGUA, DN 150 MM, JUNTA ELÁSTICA, INSTALADO EM LOCAL COM NÍVEL BAIXO DE INTERFERÊNCIAS (NÃO INCLUI FORNECIMENTO). AF_11/2017 | I121: M | J121: ATRIBUÍDO SÃO PAULO | K121: 5,16 | L121: COMPOSICAO | M121: 88316 | N121: SERVENTE COM ENCARGOS COMPLEMENTARES | O121: H | P121: COLETADO | Q121: 0,0845000 | R121: 16,44 | S121: 1,38 | AE121: CAIXA REFERENCIAL
A122: ASSENTAMENTO DE TUBOS E PECAS | B122: ASTU | C122: FORNEC E/OU ASSENT DE TUBO DE FERRO FUNDIDO JUNTA | D122: 45 | G122: 97160 | H122: ASSENTAMENTO DE TUBO DE FERRO FUNDIDO PARA REDE DE ÁGUA, DN 200 MM, JUNTA ELÁSTICA, INSTALADO EM LOCAL COM NÍVEL BAIXO DE INTERFERÊNCIAS (NÃO INCLUI FORNECIMENTO). AF_11/2017 | I122: M | J122: ATRIBUÍDO SÃO PAULO | K122: 6,19 | T122: 3,02 | U122: 48,7562190 | V122: 1,97 | W122: 31,8407960 | X122: 1,20 | Y122: 19,4029850 | Z122: 0,00 | AA122: 0,0000000 | AB122: 0,00 | AC122: 0,0000000 | AD122: 0.18901 | AE122: CAIXA REFERENCIAL
A123: ASSENTAMENTO DE TUBOS E PECAS | B123: ASTU | C123: FORNEC E/OU ASSENT DE TUBO DE FERRO FUNDIDO JUNTA | D123: 45 | G123: 97160 | H123: ASSENTAMENTO DE TUBO DE FERRO FUNDIDO PARA REDE DE ÁGUA, DN 200 MM, JUNTA ELÁSTICA, INSTALADO EM LOCAL COM NÍVEL BAIXO DE INTERFERÊNCIAS (NÃO INCLUI FORNECIMENTO). AF_11/2017 | I123: M | J123: ATRIBUÍDO SÃO PAULO | K123: 6,19 | L123: COMPOSICAO | M123: 5678 | N123: RETROESCAVADEIRA SOBRE RODAS COM CARREGADEIRA, TRAÇÃO 4X4, POTÊNCIA LÍQ. 88 HP, CAÇAMBA CARREG. CAP. MÍN. 1 M3, CAÇAMBA RETRO CAP. 0,26 M3, PESO OPERACIONAL MÍN. 6.674 KG, PROFUNDIDADE ESCAVAÇÃO MÁX. 4,37 M - CHP DIURNO. AF_06/2014 | O123: CHP | P123: ATRIBUÍDO SÃO PAULO | Q123: 0,0141000 | R123: 110,79 | S123: 1,56 | AE123: CAIXA REFERENCIAL
A124: ASSENTAMENTO DE TUBOS E PECAS | B124: ASTU | C124: FORNEC E/OU ASSENT DE TUBO DE FERRO FUNDIDO JUNTA | D124: 45 | G124: 97160 | H124: ASSENTAMENTO DE TUBO DE FERRO FUNDIDO PARA REDE DE ÁGUA, DN 200 MM, JUNTA ELÁSTICA, INSTALADO EM LOCAL COM NÍVEL BAIXO DE INTERFERÊNCIAS (NÃO INCLUI FORNECIMENTO). AF_11/2017 | I124: M | J124: ATRIBUÍDO SÃO PAULO | K124: 6,19 | L124: COMPOSICAO | M124: 5679 | N124: RETROESCAVADEIRA SOBRE RODAS COM CARREGADEIRA, TRAÇÃO 4X4, POTÊNCIA LÍQ. 88 HP, CAÇAMBA CARREG. CAP. MÍN. 1 M3, CAÇAMBA RETRO CAP. 0,26 M3, PESO OPERACIONAL MÍN. 6.674 KG, PROFUNDIDADE ESCAVAÇÃO MÁX. 4,37 M - CHI DIURNO. AF_06/2014 | O124: CHI | P124: ATRIBUÍDO SÃO PAULO | Q124: 0,0270000 | R124: 43,82 | S124: 1,18 | AE124: CAIXA REFERENCIAL
A125: ASSENTAMENTO DE TUBOS E PECAS | B125: ASTU | C125: FORNEC E/OU ASSENT DE TUBO DE FERRO FUNDIDO JUNTA | D125: 45 | G125: 97160 | H125: ASSENTAMENTO DE TUBO DE FERRO FUNDIDO PARA REDE DE ÁGUA, DN 200 MM, JUNTA ELÁSTICA, INSTALADO EM LOCAL COM NÍVEL BAIXO DE INTERFERÊNCIAS (NÃO INCLUI FORNECIMENTO). AF_11/2017 | I125: M | J125: ATRIBUÍDO SÃO PAULO | K125: 6,19 | L125: INSUMO | M125: 20078 | N125: PASTA LUBRIFICANTE PARA TUBOS E CONEXOES COM JUNTA ELASTICA, EMBALAGEM DE *400* GR (USO EM PVC, ACO, POLIETILENO E OUTROS) | O125: UN | P125: COEFICIENTE DE REPRESENTATIVIDADE | Q125: 0,0087000 | R125: 20,64 | S125: 0,17 | AE125: CAIXA REFERENCIAL
A126: ASSENTAMENTO DE TUBOS E PECAS | B126: ASTU | C126: FORNEC E/OU ASSENT DE TUBO DE FERRO FUNDIDO JUNTA | D126: 45 | G126: 97160 | H126: ASSENTAMENTO DE TUBO DE FERRO FUNDIDO PARA REDE DE ÁGUA, DN 200 MM, JUNTA ELÁSTICA, INSTALADO EM LOCAL COM NÍVEL BAIXO DE INTERFERÊNCIAS (NÃO INCLUI FORNECIMENTO). AF_11/2017 | I126: M | J126: ATRIBUÍDO SÃO PAULO | K126: 6,19 | L126: COMPOSICAO | M126: 88246 | N126: ASSENTADOR DE TUBOS COM ENCARGOS COMPLEMENTARES | O126: H | P126: COEFICIENTE DE REPRESENTATIVIDADE | Q126: 0,1057000 | R126: 14,73 | S126: 1,55 | AE126: CAIXA REFERENCIAL
A127: ASSENTAMENTO DE TUBOS E PECAS | B127: ASTU | C127: FORNEC E/OU ASSENT DE TUBO DE FERRO FUNDIDO JUNTA | D127: 45 | G127: 97160 | H127: ASSENTAMENTO DE TUBO DE FERRO FUNDIDO PARA REDE DE ÁGUA, DN 200 MM, JUNTA ELÁSTICA, INSTALADO EM LOCAL COM NÍVEL BAIXO DE INTERFERÊNCIAS (NÃO INCLUI FORNECIMENTO). AF_11/2017 | I127: M | J127: ATRIBUÍDO SÃO PAULO | K127: 6,19 | L127: COMPOSICAO | M127: 88316 | N127: SERVENTE COM ENCARGOS COMPLEMENTARES | O127: H | P127: COLETADO | Q127: 0,1057000 | R127: 16,44 | S127: 1,73 | AE127: CAIXA REFERENCIAL
A128: ASSENTAMENTO DE TUBOS E PECAS | B128: ASTU | C128: FORNEC E/OU ASSENT DE TUBO DE FERRO FUNDIDO JUNTA | D128: 45 | G128: 97161 | H128: ASSENTAMENTO DE TUBO DE FERRO FUNDIDO PARA REDE DE ÁGUA, DN 250 MM, JUNTA ELÁSTICA, INSTALADO EM LOCAL COM NÍVEL BAIXO DE INTERFERÊNCIAS (NÃO INCLUI FORNECIMENTO). AF_11/2017 | I128: M | J128: ATRIBUÍDO SÃO PAULO | K128: 7,27 | T128: 3,57 | U128: 48,9451478 | V128: 2,37 | W128: 32,6300984 | X128: 1,33 | Y128: 18,4247538 | Z128: 0,00 | AA128: 0,0000000 | AB128: 0,00 | AC128: 0,0000000 | AD128: 0.18157 | AE128: CAIXA REFERENCIAL
A129: ASSENTAMENTO DE TUBOS E PECAS | B129: ASTU | C129: FORNEC E/OU ASSENT DE TUBO DE FERRO FUNDIDO JUNTA | D129: 45 | G129: 97161 | H129: ASSENTAMENTO DE TUBO DE FERRO FUNDIDO PARA REDE DE ÁGUA, DN 250 MM, JUNTA ELÁSTICA, INSTALADO EM LOCAL COM NÍVEL BAIXO DE INTERFERÊNCIAS (NÃO INCLUI FORNECIMENTO). AF_11/2017 | I129: M | J129: ATRIBUÍDO SÃO PAULO | K129: 7,27 | L129: COMPOSICAO | M129: 5678 | N129: RETROESCAVADEIRA SOBRE RODAS COM CARREGADEIRA, TRAÇÃO 4X4, POTÊNCIA LÍQ. 88 HP, CAÇAMBA CARREG. CAP. MÍN. 1 M3, CAÇAMBA RETRO CAP. 0,26 M3, PESO OPERACIONAL MÍN. 6.674 KG, PROFUNDIDADE ESCAVAÇÃO MÁX. 4,37 M - CHP DIURNO. AF_06/2014 | O129: CHP | P129: ATRIBUÍDO SÃO PAULO | Q129: 0,0159000 | R129: 110,79 | S129: 1,76 | AE129: CAIXA REFERENCIAL
A130: ASSENTAMENTO DE TUBOS E PECAS | B130: ASTU | C130: FORNEC E/OU ASSENT DE TUBO DE FERRO FUNDIDO JUNTA | D130: 45 | G130: 97161 | H130: ASSENTAMENTO DE TUBO DE FERRO FUNDIDO PARA REDE DE ÁGUA, DN 250 MM, JUNTA ELÁSTICA, INSTALADO EM LOCAL COM NÍVEL BAIXO DE INTERFERÊNCIAS (NÃO INCLUI FORNECIMENTO). AF_11/2017 | I130: M | J130: ATRIBUÍDO SÃO PAULO | K130: 7,27 | L130: COMPOSICAO | M130: 5679 | N130: RETROESCAVADEIRA SOBRE RODAS COM CARREGADEIRA, TRAÇÃO 4X4, POTÊNCIA LÍQ. 88 HP, CAÇAMBA CARREG. CAP. MÍN. 1 M3, CAÇAMBA RETRO CAP. 0,26 M3, PESO OPERACIONAL MÍN. 6.674 KG, PROFUNDIDADE ESCAVAÇÃO MÁX. 4,37 M - CHI DIURNO. AF_06/2014 | O130: CHI | P130: ATRIBUÍDO SÃO PAULO | Q130: 0,0304000 | R130: 43,82 | S130: 1,33 | AE130: CAIXA REFERENCIAL
A131: ASSENTAMENTO DE TUBOS E PECAS | B131: ASTU | C131: FORNEC E/OU ASSENT DE TUBO DE FERRO FUNDIDO JUNTA | D131: 45 | G131: 97161 | H131: ASSENTAMENTO DE TUBO DE FERRO FUNDIDO PARA REDE DE ÁGUA, DN 250 MM, JUNTA ELÁSTICA, INSTALADO EM LOCAL COM NÍVEL BAIXO DE INTERFERÊNCIAS (NÃO INCLUI FORNECIMENTO). AF_11/2017 | I131: M | J131: ATRIBUÍDO SÃO PAULO | K131: 7,27 | L131: INSUMO | M131: 20078 | N131: PASTA LUBRIFICANTE PARA TUBOS E CONEXOES COM JUNTA ELASTICA, EMBALAGEM DE *400* GR (USO EM PVC, ACO, POLIETILENO E OUTROS) | O131: UN | P131: COEFICIENTE DE REPRESENTATIVIDADE | Q131: 0,0113000 | R131: 20,64 | S131: 0,23 | AE131: CAIXA REFERENCIAL
A132: ASSENTAMENTO DE TUBOS E PECAS | B132: ASTU | C132: FORNEC E/OU ASSENT DE TUBO DE FERRO FUNDIDO JUNTA | D132: 45 | G132: 97161 | H132: ASSENTAMENTO DE TUBO DE FERRO FUNDIDO PARA REDE DE ÁGUA, DN 250 MM, JUNTA ELÁSTICA, INSTALADO EM LOCAL COM NÍVEL BAIXO DE INTERFERÊNCIAS (NÃO INCLUI FORNECIMENTO). AF_11/2017 | I132: M | J132: ATRIBUÍDO SÃO PAULO | K132: 7,27 | L132: COMPOSICAO | M132: 88246 | N132: ASSENTADOR DE TUBOS COM ENCARGOS COMPLEMENTARES | O132: H | P132: COEFICIENTE DE REPRESENTATIVIDADE | Q132: 0,1270000 | R132: 14,73 | S132: 1,87 | AE132: CAIXA REFERENCIAL
A133: ASSENTAMENTO DE TUBOS E PECAS | B133: ASTU | C133: FORNEC E/OU ASSENT DE TUBO DE FERRO FUNDIDO JUNTA | D133: 45 | G133: 97161 | H133: ASSENTAMENTO DE TUBO DE FERRO FUNDIDO PARA REDE DE ÁGUA, DN 250 MM, JUNTA ELÁSTICA, INSTALADO EM LOCAL COM NÍVEL BAIXO DE INTERFERÊNCIAS (NÃO INCLUI FORNECIMENTO). AF_11/2017 | I133: M | J133: ATRIBUÍDO SÃO PAULO | K133: 7,27 | L133: COMPOSICAO | M133: 88316 | N133: SERVENTE COM ENCARGOS COMPLEMENTARES | O133: H | P133: COLETADO | Q133: 0,1270000 | R133: 16,44 | S133: 2,08 | AE133: CAIXA REFERENCIAL
A134: ASSENTAMENTO DE TUBOS E PECAS | B134: ASTU | C134: FORNEC E/OU ASSENT DE TUBO DE FERRO FUNDIDO JUNTA | D134: 45 | G134: 97162 | H134: ASSENTAMENTO DE TUBO DE FERRO FUNDIDO PARA REDE DE ÁGUA, DN 300 MM, JUNTA ELÁSTICA, INSTALADO EM LOCAL COM NÍVEL BAIXO DE INTERFERÊNCIAS (NÃO INCLUI FORNECIMENTO). AF_11/2017 | I134: M | J134: ATRIBUÍDO SÃO PAULO | K134: 8,30 | T134: 4,09 | U134: 49,1421570 | V134: 2,73 | W134: 32,9656862 | X134: 1,48 | Y134: 17,8921568 | Z134: 0,00 | AA134: 0,0000000 | AB134: 0,00 | AC134: 0,0000000 | AD134: 0.1759 | AE134: CAIXA REFERENCIAL
A135: ASSENTAMENTO DE TUBOS E PECAS | B135: ASTU | C135: FORNEC E/OU ASSENT DE TUBO DE FERRO FUNDIDO JUNTA | D135: 45 | G135: 97162 | H135: ASSENTAMENTO DE TUBO DE FERRO FUNDIDO PARA REDE DE ÁGUA, DN 300 MM, JUNTA ELÁSTICA, INSTALADO EM LOCAL COM NÍVEL BAIXO DE INTERFERÊNCIAS (NÃO INCLUI FORNECIMENTO). AF_11/2017 | I135: M | J135: ATRIBUÍDO SÃO PAULO | K135: 8,30 | L135: COMPOSICAO | M135: 5678 | N135: RETROESCAVADEIRA SOBRE RODAS COM CARREGADEIRA, TRAÇÃO 4X4, POTÊNCIA LÍQ. 88 HP, CAÇAMBA CARREG. CAP. MÍN. 1 M3, CAÇAMBA RETRO CAP. 0,26 M3, PESO OPERACIONAL MÍN. 6.674 KG, PROFUNDIDADE ESCAVAÇÃO MÁX. 4,37 M - CHP DIURNO. AF_06/2014 | O135: CHP | P135: ATRIBUÍDO SÃO PAULO | Q135: 0,0176000 | R135: 110,79 | S135: 1,94 | AE135: CAIXA REFERENCIAL
A136: ASSENTAMENTO DE TUBOS E PECAS | B136: ASTU | C136: FORNEC E/OU ASSENT DE TUBO DE FERRO FUNDIDO JUNTA | D136: 45 | G136: 97162 | H136: ASSENTAMENTO DE TUBO DE FERRO FUNDIDO PARA REDE DE ÁGUA, DN 300 MM, JUNTA ELÁSTICA, INSTALADO EM LOCAL COM NÍVEL BAIXO DE INTERFERÊNCIAS (NÃO INCLUI FORNECIMENTO). AF_11/2017 | I136: M | J136: ATRIBUÍDO SÃO PAULO | K136: 8,30 | L136: COMPOSICAO | M136: 5679 | N136: RETROESCAVADEIRA SOBRE RODAS COM CARREGADEIRA, TRAÇÃO 4X4, POTÊNCIA LÍQ. 88 HP, CAÇAMBA CARREG. CAP. MÍN. 1 M3, CAÇAMBA RETRO CAP. 0,26 M3, PESO OPERACIONAL MÍN. 6.674 KG, PROFUNDIDADE ESCAVAÇÃO MÁX. 4,37 M - CHI DIURNO. AF_06/2014 | O136: CHI | P136: ATRIBUÍDO SÃO PAULO | Q136: 0,0337000 | R136: 43,82 | S136: 1,47 | AE136: CAIXA REFERENCIAL
A137: ASSENTAMENTO DE TUBOS E PECAS | B137: ASTU | C137: FORNEC E/OU ASSENT DE TUBO DE FERRO FUNDIDO JUNTA | D137: 45 | G137: 97162 | H137: ASSENTAMENTO DE TUBO DE FERRO FUNDIDO PARA REDE DE ÁGUA, DN 300 MM, JUNTA ELÁSTICA, INSTALADO EM LOCAL COM NÍVEL BAIXO DE INTERFERÊNCIAS (NÃO INCLUI FORNECIMENTO). AF_11/2017 | I137: M | J137: ATRIBUÍDO SÃO PAULO | K137: 8,30 | L137: INSUMO | M137: 20078 | N137: PASTA LUBRIFICANTE PARA TUBOS E CONEXOES COM JUNTA ELASTICA, EMBALAGEM DE *400* GR (USO EM PVC, ACO, POLIETILENO E OUTROS) | O137: UN | P137: COEFICIENTE DE REPRESENTATIVIDADE | Q137: 0,0138000 | R137: 20,64 | S137: 0,28 | AE137: CAIXA REFERENCIAL
A138: ASSENTAMENTO DE TUBOS E PECAS | B138: ASTU | C138: FORNEC E/OU ASSENT DE TUBO DE FERRO FUNDIDO JUNTA | D138: 45 | G138: 97162 | H138: ASSENTAMENTO DE TUBO DE FERRO FUNDIDO PARA REDE DE ÁGUA, DN 300 MM, JUNTA ELÁSTICA, INSTALADO EM LOCAL COM NÍVEL BAIXO DE INTERFERÊNCIAS (NÃO INCLUI FORNECIMENTO). AF_11/2017 | I138: M | J138: ATRIBUÍDO SÃO PAULO | K138: 8,30 | L138: COMPOSICAO | M138: 88246 | N138: ASSENTADOR DE TUBOS COM ENCARGOS COMPLEMENTARES | O138: H | P138: COEFICIENTE DE REPRESENTATIVIDADE | Q138: 0,1482000 | R138: 14,73 | S138: 2,18 | AE138: CAIXA REFERENCIAL
A139: ASSENTAMENTO DE TUBOS E PECAS | B139: ASTU | C139: FORNEC E/OU ASSENT DE TUBO DE FERRO FUNDIDO JUNTA | D139: 45 | G139: 97162 | H139: ASSENTAMENTO DE TUBO DE FERRO FUNDIDO PARA REDE DE ÁGUA, DN 300 MM, JUNTA ELÁSTICA, INSTALADO EM LOCAL COM NÍVEL BAIXO DE INTERFERÊNCIAS (NÃO INCLUI FORNECIMENTO). AF_11/2017 | I139: M | J139: ATRIBUÍDO SÃO PAULO | K139: 8,30 | L139: COMPOSICAO | M139: 88316 | N139: SERVENTE COM ENCARGOS COMPLEMENTARES | O139: H | P139: COLETADO | Q139: 0,1482000 | R139: 16,44 | S139: 2,43 | AE139: CAIXA REFERENCIAL
A140: ASSENTAMENTO DE TUBOS E PECAS | B140: ASTU | C140: FORNEC E/OU ASSENT DE TUBO DE FERRO FUNDIDO JUNTA | D140: 45 | G140: 97163 | H140: ASSENTAMENTO DE TUBO DE FERRO FUNDIDO PARA REDE DE ÁGUA, DN 350 MM, JUNTA ELÁSTICA, INSTALADO EM LOCAL COM NÍVEL BAIXO DE INTERFERÊNCIAS (NÃO INCLUI FORNECIMENTO). AF_11/2017 | I140: M | J140: ATRIBUÍDO SÃO PAULO | K140: 9,36 | T140: 4,63 | U140: 49,2942455 | V140: 3,11 | W140: 33,3333333 | X140: 1,62 | Y140: 17,3724212 | Z140: 0,00 | AA140: 0,0000000 | AB140: 0,00 | AC140: 0,0000000 | AD140: 0.17094 | AE140: CAIXA REFERENCIAL
A141: ASSENTAMENTO DE TUBOS E PECAS | B141: ASTU | C141: FORNEC E/OU ASSENT DE TUBO DE FERRO FUNDIDO JUNTA | D141: 45 | G141: 97163 | H141: ASSENTAMENTO DE TUBO DE FERRO FUNDIDO PARA REDE DE ÁGUA, DN 350 MM, JUNTA ELÁSTICA, INSTALADO EM LOCAL COM NÍVEL BAIXO DE INTERFERÊNCIAS (NÃO INCLUI FORNECIMENTO). AF_11/2017 | I141: M | J141: ATRIBUÍDO SÃO PAULO | K141: 9,36 | L141: COMPOSICAO | M141: 5678 | N141: RETROESCAVADEIRA SOBRE RODAS COM CARREGADEIRA, TRAÇÃO 4X4, POTÊNCIA LÍQ. 88 HP, CAÇAMBA CARREG. CAP. MÍN. 1 M3, CAÇAMBA RETRO CAP. 0,26 M3, PESO OPERACIONAL MÍN. 6.674 KG, PROFUNDIDADE ESCAVAÇÃO MÁX. 4,37 M - CHP DIURNO. AF_06/2014 | O141: CHP | P141: ATRIBUÍDO SÃO PAULO | Q141: 0,0194000 | R141: 110,79 | S141: 2,14 | AE141: CAIXA REFERENCIAL
A142: ASSENTAMENTO DE TUBOS E PECAS | B142: ASTU | C142: FORNEC E/OU ASSENT DE TUBO DE FERRO FUNDIDO JUNTA | D142: 45 | G142: 97163 | H142: ASSENTAMENTO DE TUBO DE FERRO FUNDIDO PARA REDE DE ÁGUA, DN 350 MM, JUNTA ELÁSTICA, INSTALADO EM LOCAL COM NÍVEL BAIXO DE INTERFERÊNCIAS (NÃO INCLUI FORNECIMENTO). AF_11/2017 | I142: M | J142: ATRIBUÍDO SÃO PAULO | K142: 9,36 | L142: COMPOSICAO | M142: 5679 | N142: RETROESCAVADEIRA SOBRE RODAS COM CARREGADEIRA, TRAÇÃO 4X4, POTÊNCIA LÍQ. 88 HP, CAÇAMBA CARREG. CAP. MÍN. 1 M3, CAÇAMBA RETRO CAP. 0,26 M3, PESO OPERACIONAL MÍN. 6.674 KG, PROFUNDIDADE ESCAVAÇÃO MÁX. 4,37 M - CHI DIURNO. AF_06/2014 | O142: CHI | P142: ATRIBUÍDO SÃO PAULO | Q142: 0,0371000 | R142: 43,82 | S142: 1,62 | AE142: CAIXA REFERENCIAL
A143: ASSENTAMENTO DE TUBOS E PECAS | B143: ASTU | C143: FORNEC E/OU ASSENT DE TUBO DE FERRO FUNDIDO JUNTA | D143: 45 | G143: 97163 | H143: ASSENTAMENTO DE TUBO DE FERRO FUNDIDO PARA REDE DE ÁGUA, DN 350 MM, JUNTA ELÁSTICA, INSTALADO EM LOCAL COM NÍVEL BAIXO DE INTERFERÊNCIAS (NÃO INCLUI FORNECIMENTO). AF_11/2017 | I143: M | J143: ATRIBUÍDO SÃO PAULO | K143: 9,36 | L143: INSUMO | M143: 20078 | N143: PASTA LUBRIFICANTE PARA TUBOS E CONEXOES COM JUNTA ELASTICA, EMBALAGEM DE *400* GR (USO EM PVC, ACO, POLIETILENO E OUTROS) | O143: UN | P143: COEFICIENTE DE REPRESENTATIVIDADE | Q143: 0,0163000 | R143: 20,64 | S143: 0,33 | AE143: CAIXA REFERENCIAL
A144: ASSENTAMENTO DE TUBOS E PECAS | B144: ASTU | C144: FORNEC E/OU ASSENT DE TUBO DE FERRO FUNDIDO JUNTA | D144: 45 | G144: 97163 | H144: ASSENTAMENTO DE TUBO DE FERRO FUNDIDO PARA REDE DE ÁGUA, DN 350 MM, JUNTA ELÁSTICA, INSTALADO EM LOCAL COM NÍVEL BAIXO DE INTERFERÊNCIAS (NÃO INCLUI FORNECIMENTO). AF_11/2017 | I144: M | J144: ATRIBUÍDO SÃO PAULO | K144: 9,36 | L144: COMPOSICAO | M144: 88246 | N144: ASSENTADOR DE TUBOS COM ENCARGOS COMPLEMENTARES | O144: H | P144: COEFICIENTE DE REPRESENTATIVIDADE | Q144: 0,1694000 | R144: 14,73 | S144: 2,49 | AE144: CAIXA REFERENCIAL
A145: ASSENTAMENTO DE TUBOS E PECAS | B145: ASTU | C145: FORNEC E/OU ASSENT DE TUBO DE FERRO FUNDIDO JUNTA | D145: 45 | G145: 97163 | H145: ASSENTAMENTO DE TUBO DE FERRO FUNDIDO PARA REDE DE ÁGUA, DN 350 MM, JUNTA ELÁSTICA, INSTALADO EM LOCAL COM NÍVEL BAIXO DE INTERFERÊNCIAS (NÃO INCLUI FORNECIMENTO). AF_11/2017 | I145: M | J145: ATRIBUÍDO SÃO PAULO | K145: 9,36 | L145: COMPOSICAO | M145: 88316 | N145: SERVENTE COM ENCARGOS COMPLEMENTARES | O145: H | P145: COLETADO | Q145: 0,1694000 | R145: 16,44 | S145: 2,78 | AE145: CAIXA REFERENCIAL
A146: ASSENTAMENTO DE TUBOS E PECAS | B146: ASTU | C146: FORNEC E/OU ASSENT DE TUBO DE FERRO FUNDIDO JUNTA | D146: 45 | G146: 97164 | H146: ASSENTAMENTO DE TUBO DE FERRO FUNDIDO PARA REDE DE ÁGUA, DN 400 MM, JUNTA ELÁSTICA, INSTALADO EM LOCAL COM NÍVEL BAIXO DE INTERFERÊNCIAS (NÃO INCLUI FORNECIMENTO). AF_11/2017 | I146: M | J146: ATRIBUÍDO SÃO PAULO | K146: 10,41 | T146: 5,16 | U146: 49,4644597 | V146: 3,47 | W146: 33,3982473 | X146: 1,78 | Y146: 17,1372930 | Z146: 0,00 | AA146: 0,0000000 | AB146: 0,00 | AC146: 0,0000000 | AD146: 0.16907 | AE146: CAIXA REFERENCIAL
A147: ASSENTAMENTO DE TUBOS E PECAS | B147: ASTU | C147: FORNEC E/OU ASSENT DE TUBO DE FERRO FUNDIDO JUNTA | D147: 45 | G147: 97164 | H147: ASSENTAMENTO DE TUBO DE FERRO FUNDIDO PARA REDE DE ÁGUA, DN 400 MM, JUNTA ELÁSTICA, INSTALADO EM LOCAL COM NÍVEL BAIXO DE INTERFERÊNCIAS (NÃO INCLUI FORNECIMENTO). AF_11/2017 | I147: M | J147: ATRIBUÍDO SÃO PAULO | K147: 10,41 | L147: COMPOSICAO | M147: 5678 | N147: RETROESCAVADEIRA SOBRE RODAS COM CARREGADEIRA, TRAÇÃO 4X4, POTÊNCIA LÍQ. 88 HP, CAÇAMBA CARREG. CAP. MÍN. 1 M3, CAÇAMBA RETRO CAP. 0,26 M3, PESO OPERACIONAL MÍN. 6.674 KG, PROFUNDIDADE ESCAVAÇÃO MÁX. 4,37 M - CHP DIURNO. AF_06/2014 | O147: CHP | P147: ATRIBUÍDO SÃO PAULO | Q147: 0,0211000 | R147: 110,79 | S147: 2,33 | AE147: CAIXA REFERENCIAL
A148: ASSENTAMENTO DE TUBOS E PECAS | B148: ASTU | C148: FORNEC E/OU ASSENT DE TUBO DE FERRO FUNDIDO JUNTA | D148: 45 | G148: 97164 | H148: ASSENTAMENTO DE TUBO DE FERRO FUNDIDO PARA REDE DE ÁGUA, DN 400 MM, JUNTA ELÁSTICA, INSTALADO EM LOCAL COM NÍVEL BAIXO DE INTERFERÊNCIAS (NÃO INCLUI FORNECIMENTO). AF_11/2017 | I148: M | J148: ATRIBUÍDO SÃO PAULO | K148: 10,41 | L148: COMPOSICAO | M148: 5679 | N148: RETROESCAVADEIRA SOBRE RODAS COM CARREGADEIRA, TRAÇÃO 4X4, POTÊNCIA LÍQ. 88 HP, CAÇAMBA CARREG. CAP. MÍN. 1 M3, CAÇAMBA RETRO CAP. 0,26 M3, PESO OPERACIONAL MÍN. 6.674 KG, PROFUNDIDADE ESCAVAÇÃO MÁX. 4,37 M - CHI DIURNO. AF_06/2014 | O148: CHI | P148: ATRIBUÍDO SÃO PAULO | Q148: 0,0404000 | R148: 43,82 | S148: 1,77 | AE148: CAIXA REFERENCIAL
A149: ASSENTAMENTO DE TUBOS E PECAS | B149: ASTU | C149: FORNEC E/OU ASSENT DE TUBO DE FERRO FUNDIDO JUNTA | D149: 45 | G149: 97164 | H149: ASSENTAMENTO DE TUBO DE FERRO FUNDIDO PARA REDE DE ÁGUA, DN 400 MM, JUNTA ELÁSTICA, INSTALADO EM LOCAL COM NÍVEL BAIXO DE INTERFERÊNCIAS (NÃO INCLUI FORNECIMENTO). AF_11/2017 | I149: M | J149: ATRIBUÍDO SÃO PAULO | K149: 10,41 | L149: INSUMO | M149: 20078 | N149: PASTA LUBRIFICANTE PARA TUBOS E CONEXOES COM JUNTA ELASTICA, EMBALAGEM DE *400* GR (USO EM PVC, ACO, POLIETILENO E OUTROS) | O149: UN | P149: COEFICIENTE DE REPRESENTATIVIDADE | Q149: 0,0188000 | R149: 20,64 | S149: 0,38 | AE149: CAIXA REFERENCIAL
A150: ASSENTAMENTO DE TUBOS E PECAS | B150: ASTU | C150: FORNEC E/OU ASSENT DE TUBO DE FERRO FUNDIDO JUNTA | D150: 45 | G150: 97164 | H150: ASSENTAMENTO DE TUBO DE FERRO FUNDIDO PARA REDE DE ÁGUA, DN 400 MM, JUNTA ELÁSTICA, INSTALADO EM LOCAL COM NÍVEL BAIXO DE INTERFERÊNCIAS (NÃO INCLUI FORNECIMENTO). AF_11/2017 | I150: M | J150: ATRIBUÍDO SÃO PAULO | K150: 10,41 | L150: COMPOSICAO | M150: 88246 | N150: ASSENTADOR DE TUBOS COM ENCARGOS COMPLEMENTARES | O150: H | P150: COEFICIENTE DE REPRESENTATIVIDADE | Q150: 0,1907000 | R150: 14,73 | S150: 2,80 | AE150: CAIXA REFERENCIAL
A151: ASSENTAMENTO DE TUBOS E PECAS | B151: ASTU | C151: FORNEC E/OU ASSENT DE TUBO DE FERRO FUNDIDO JUNTA | D151: 45 | G151: 97164 | H151: ASSENTAMENTO DE TUBO DE FERRO FUNDIDO PARA REDE DE ÁGUA, DN 400 MM, JUNTA ELÁSTICA, INSTALADO EM LOCAL COM NÍVEL BAIXO DE INTERFERÊNCIAS (NÃO INCLUI FORNECIMENTO). AF_11/2017 | I151: M | J151: ATRIBUÍDO SÃO PAULO | K151: 10,41 | L151: COMPOSICAO | M151: 88316 | N151: SERVENTE COM ENCARGOS COMPLEMENTARES | O151: H | P151: COLETADO | Q151: 0,1907000 | R151: 16,44 | S151: 3,13 | AE151: CAIXA REFERENCIAL
A152: ASSENTAMENTO DE TUBOS E PECAS | B152: ASTU | C152: FORNEC E/OU ASSENT DE TUBO DE FERRO FUNDIDO JUNTA | D152: 45 | G152: 97165 | H152: ASSENTAMENTO DE TUBO DE FERRO FUNDIDO PARA REDE DE ÁGUA, DN 450 MM, JUNTA ELÁSTICA, INSTALADO EM LOCAL COM NÍVEL BAIXO DE INTERFERÊNCIAS (NÃO INCLUI FORNECIMENTO). AF_11/2017 | I152: M | J152: ATRIBUÍDO SÃO PAULO | K152: 11,49 | T152: 5,70 | U152: 49,5598593 | V152: 3,86 | W152: 33,6267605 | X152: 1,93 | Y152: 16,8133802 | Z152: 0,00 | AA152: 0,0000000 | AB152: 0,00 | AC152: 0,0000000 | AD152: 0.1671 | AE152: CAIXA REFERENCIAL
A153: ASSENTAMENTO DE TUBOS E PECAS | B153: ASTU | C153: FORNEC E/OU ASSENT DE TUBO DE FERRO FUNDIDO JUNTA | D153: 45 | G153: 97165 | H153: ASSENTAMENTO DE TUBO DE FERRO FUNDIDO PARA REDE DE ÁGUA, DN 450 MM, JUNTA ELÁSTICA, INSTALADO EM LOCAL COM NÍVEL BAIXO DE INTERFERÊNCIAS (NÃO INCLUI FORNECIMENTO). AF_11/2017 | I153: M | J153: ATRIBUÍDO SÃO PAULO | K153: 11,49 | L153: COMPOSICAO | M153: 5678 | N153: RETROESCAVADEIRA SOBRE RODAS COM CARREGADEIRA, TRAÇÃO 4X4, POTÊNCIA LÍQ. 88 HP, CAÇAMBA CARREG. CAP. MÍN. 1 M3, CAÇAMBA RETRO CAP. 0,26 M3, PESO OPERACIONAL MÍN. 6.674 KG, PROFUNDIDADE ESCAVAÇÃO MÁX. 4,37 M - CHP DIURNO. AF_06/2014 | O153: CHP | P153: ATRIBUÍDO SÃO PAULO | Q153: 0,0229000 | R153: 110,79 | S153: 2,53 | AE153: CAIXA REFERENCIAL
A154: ASSENTAMENTO DE TUBOS E PECAS | B154: ASTU | C154: FORNEC E/OU ASSENT DE TUBO DE FERRO FUNDIDO JUNTA | D154: 45 | G154: 97165 | H154: ASSENTAMENTO DE TUBO DE FERRO FUNDIDO PARA REDE DE ÁGUA, DN 450 MM, JUNTA ELÁSTICA, INSTALADO EM LOCAL COM NÍVEL BAIXO DE INTERFERÊNCIAS (NÃO INCLUI FORNECIMENTO). AF_11/2017 | I154: M | J154: ATRIBUÍDO SÃO PAULO | K154: 11,49 | L154: COMPOSICAO | M154: 5679 | N154: RETROESCAVADEIRA SOBRE RODAS COM CARREGADEIRA, TRAÇÃO 4X4, POTÊNCIA LÍQ. 88 HP, CAÇAMBA CARREG. CAP. MÍN. 1 M3, CAÇAMBA RETRO CAP. 0,26 M3, PESO OPERACIONAL MÍN. 6.674 KG, PROFUNDIDADE ESCAVAÇÃO MÁX. 4,37 M - CHI DIURNO. AF_06/2014 | O154: CHI | P154: ATRIBUÍDO SÃO PAULO | Q154: 0,0438000 | R154: 43,82 | S154: 1,91 | AE154: CAIXA REFERENCIAL
A155: ASSENTAMENTO DE TUBOS E PECAS | B155: ASTU | C155: FORNEC E/OU ASSENT DE TUBO DE FERRO FUNDIDO JUNTA | D155: 45 | G155: 97165 | H155: ASSENTAMENTO DE TUBO DE FERRO FUNDIDO PARA REDE DE ÁGUA, DN 450 MM, JUNTA ELÁSTICA, INSTALADO EM LOCAL COM NÍVEL BAIXO DE INTERFERÊNCIAS (NÃO INCLUI FORNECIMENTO). AF_11/2017 | I155: M | J155: ATRIBUÍDO SÃO PAULO | K155: 11,49 | L155: INSUMO | M155: 20078 | N155: PASTA LUBRIFICANTE PARA TUBOS E CONEXOES COM JUNTA ELASTICA, EMBALAGEM DE *400* GR (USO EM PVC, ACO, POLIETILENO E OUTROS) | O155: UN | P155: COEFICIENTE DE REPRESENTATIVIDADE | Q155: 0,0221000 | R155: 20,64 | S155: 0,45 | AE155: CAIXA REFERENCIAL
A156: ASSENTAMENTO DE TUBOS E PECAS | B156: ASTU | C156: FORNEC E/OU ASSENT DE TUBO DE FERRO FUNDIDO JUNTA | D156: 45 | G156: 97165 | H156: ASSENTAMENTO DE TUBO DE FERRO FUNDIDO PARA REDE DE ÁGUA, DN 450 MM, JUNTA ELÁSTICA, INSTALADO EM LOCAL COM NÍVEL BAIXO DE INTERFERÊNCIAS (NÃO INCLUI FORNECIMENTO). AF_11/2017 | I156: M | J156: ATRIBUÍDO SÃO PAULO | K156: 11,49 | L156: COMPOSICAO | M156: 88246 | N156: ASSENTADOR DE TUBOS COM ENCARGOS COMPLEMENTARES | O156: H | P156: COEFICIENTE DE REPRESENTATIVIDADE | Q156: 0,2119000 | R156: 14,73 | S156: 3,12 | AE156: CAIXA REFERENCIAL
A157: ASSENTAMENTO DE TUBOS E PECAS | B157: ASTU | C157: FORNEC E/OU ASSENT DE TUBO DE FERRO FUNDIDO JUNTA | D157: 45 | G157: 97165 | H157: ASSENTAMENTO DE TUBO DE FERRO FUNDIDO PARA REDE DE ÁGUA, DN 450 MM, JUNTA ELÁSTICA, INSTALADO EM LOCAL COM NÍVEL BAIXO DE INTERFERÊNCIAS (NÃO INCLUI FORNECIMENTO). AF_11/2017 | I157: M | J157: ATRIBUÍDO SÃO PAULO | K157: 11,49 | L157: COMPOSICAO | M157: 88316 | N157: SERVENTE COM ENCARGOS COMPLEMENTARES | O157: H | P157: COLETADO | Q157: 0,2119000 | R157: 16,44 | S157: 3,48 | AE157: CAIXA REFERENCIAL
A158: ASSENTAMENTO DE TUBOS E PECAS | B158: ASTU | C158: FORNEC E/OU ASSENT DE TUBO DE FERRO FUNDIDO JUNTA | D158: 45 | G158: 97166 | H158: ASSENTAMENTO DE TUBO DE FERRO FUNDIDO PARA REDE DE ÁGUA, DN 500 MM, JUNTA ELÁSTICA, INSTALADO EM LOCAL COM NÍVEL BAIXO DE INTERFERÊNCIAS (NÃO INCLUI FORNECIMENTO). AF_11/2017 | I158: M | J158: ATRIBUÍDO SÃO PAULO | K158: 14,46 | T158: 6,23 | U158: 43,0167599 | V158: 4,45 | W158: 30,7960893 | X158: 3,78 | Y158: 26,1871508 | Z158: 0,00 | AA158: 0,0000000 | AB158: 0,00 | AC158: 0,0000000 | AD158: 0.25934 | AE158: CAIXA REFERENCIAL
A159: ASSENTAMENTO DE TUBOS E PECAS | B159: ASTU | C159: FORNEC E/OU ASSENT DE TUBO DE FERRO FUNDIDO JUNTA | D159: 45 | G159: 97166 | H159: ASSENTAMENTO DE TUBO DE FERRO FUNDIDO PARA REDE DE ÁGUA, DN 500 MM, JUNTA ELÁSTICA, INSTALADO EM LOCAL COM NÍVEL BAIXO DE INTERFERÊNCIAS (NÃO INCLUI FORNECIMENTO). AF_11/2017 | I159: M | J159: ATRIBUÍDO SÃO PAULO | K159: 14,46 | L159: COMPOSICAO | M159: 5631 | N159: ESCAVADEIRA HIDRÁULICA SOBRE ESTEIRAS, CAÇAMBA 0,80 M3, PESO OPERACIONAL 17 T, POTENCIA BRUTA 111 HP - CHP DIURNO. AF_06/2014 | O159: CHP | P159: ATRIBUÍDO SÃO PAULO | Q159: 0,0246000 | R159: 155,81 | S159: 3,83 | AE159: CAIXA REFERENCIAL
A160: ASSENTAMENTO DE TUBOS E PECAS | B160: ASTU | C160: FORNEC E/OU ASSENT DE TUBO DE FERRO FUNDIDO JUNTA | D160: 45 | G160: 97166 | H160: ASSENTAMENTO DE TUBO DE FERRO FUNDIDO PARA REDE DE ÁGUA, DN 500 MM, JUNTA ELÁSTICA, INSTALADO EM LOCAL COM NÍVEL BAIXO DE INTERFERÊNCIAS (NÃO INCLUI FORNECIMENTO). AF_11/2017 | I160: M | J160: ATRIBUÍDO SÃO PAULO | K160: 14,46 | L160: COMPOSICAO | M160: 5632 | N160: ESCAVADEIRA HIDRÁULICA SOBRE ESTEIRAS, CAÇAMBA 0,80 M3, PESO OPERACIONAL 17 T, POTENCIA BRUTA 111 HP - CHI DIURNO. AF_06/2014 | O160: CHI | P160: ATRIBUÍDO SÃO PAULO | Q160: 0,0471000 | R160: 60,93 | S160: 2,86 | AE160: CAIXA REFERENCIAL
A161: ASSENTAMENTO DE TUBOS E PECAS | B161: ASTU | C161: FORNEC E/OU ASSENT DE TUBO DE FERRO FUNDIDO JUNTA | D161: 45 | G161: 97166 | H161: ASSENTAMENTO DE TUBO DE FERRO FUNDIDO PARA REDE DE ÁGUA, DN 500 MM, JUNTA ELÁSTICA, INSTALADO EM LOCAL COM NÍVEL BAIXO DE INTERFERÊNCIAS (NÃO INCLUI FORNECIMENTO). AF_11/2017 | I161: M | J161: ATRIBUÍDO SÃO PAULO | K161: 14,46 | L161: INSUMO | M161: 20078 | N161: PASTA LUBRIFICANTE PARA TUBOS E CONEXOES COM JUNTA ELASTICA, EMBALAGEM DE *400* GR (USO EM PVC, ACO, POLIETILENO E OUTROS) | O161: UN | P161: COEFICIENTE DE REPRESENTATIVIDADE | Q161: 0,0248000 | R161: 20,64 | S161: 0,51 | AE161: CAIXA REFERENCIAL
A162: ASSENTAMENTO DE TUBOS E PECAS | B162: ASTU | C162: FORNEC E/OU ASSENT DE TUBO DE FERRO FUNDIDO JUNTA | D162: 45 | G162: 97166 | H162: ASSENTAMENTO DE TUBO DE FERRO FUNDIDO PARA REDE DE ÁGUA, DN 500 MM, JUNTA ELÁSTICA, INSTALADO EM LOCAL COM NÍVEL BAIXO DE INTERFERÊNCIAS (NÃO INCLUI FORNECIMENTO). AF_11/2017 | I162: M | J162: ATRIBUÍDO SÃO PAULO | K162: 14,46 | L162: COMPOSICAO | M162: 88246 | N162: ASSENTADOR DE TUBOS COM ENCARGOS COMPLEMENTARES | O162: H | P162: COEFICIENTE DE REPRESENTATIVIDADE | Q162: 0,2331000 | R162: 14,73 | S162: 3,43 | AE162: CAIXA REFERENCIAL
A163: ASSENTAMENTO DE TUBOS E PECAS | B163: ASTU | C163: FORNEC E/OU ASSENT DE TUBO DE FERRO FUNDIDO JUNTA | D163: 45 | G163: 97166 | H163: ASSENTAMENTO DE TUBO DE FERRO FUNDIDO PARA REDE DE ÁGUA, DN 500 MM, JUNTA ELÁSTICA, INSTALADO EM LOCAL COM NÍVEL BAIXO DE INTERFERÊNCIAS (NÃO INCLUI FORNECIMENTO). AF_11/2017 | I163: M | J163: ATRIBUÍDO SÃO PAULO | K163: 14,46 | L163: COMPOSICAO | M163: 88316 | N163: SERVENTE COM ENCARGOS COMPLEMENTARES | O163: H | P163: COLETADO | Q163: 0,2331000 | R163: 16,44 | S163: 3,83 | AE163: CAIXA REFERENCIAL
A164: ASSENTAMENTO DE TUBOS E PECAS | B164: ASTU | C164: FORNEC E/OU ASSENT DE TUBO DE FERRO FUNDIDO JUNTA | D164: 45 | G164: 97167 | H164: ASSENTAMENTO DE TUBO DE FERRO FUNDIDO PARA REDE DE ÁGUA, DN 600 MM, JUNTA ELÁSTICA, INSTALADO EM LOCAL COM NÍVEL BAIXO DE INTERFERÊNCIAS (NÃO INCLUI FORNECIMENTO). AF_11/2017 | I164: M | J164: ATRIBUÍDO SÃO PAULO | K164: 16,86 | T164: 7,31 | U164: 43,3014355 | V164: 5,24 | W164: 31,1004784 | X164: 4,31 | Y164: 25,5980861 | Z164: 0,00 | AA164: 0,0000000 | AB164: 0,00 | AC164: 0,0000000 | AD164: 0.25386 | AE164: CAIXA REFERENCIAL
A165: ASSENTAMENTO DE TUBOS E PECAS | B165: ASTU | C165: FORNEC E/OU ASSENT DE TUBO DE FERRO FUNDIDO JUNTA | D165: 45 | G165: 97167 | H165: ASSENTAMENTO DE TUBO DE FERRO FUNDIDO PARA REDE DE ÁGUA, DN 600 MM, JUNTA ELÁSTICA, INSTALADO EM LOCAL COM NÍVEL BAIXO DE INTERFERÊNCIAS (NÃO INCLUI FORNECIMENTO). AF_11/2017 | I165: M | J165: ATRIBUÍDO SÃO PAULO | K165: 16,86 | L165: COMPOSICAO | M165: 5631 | N165: ESCAVADEIRA HIDRÁULICA SOBRE ESTEIRAS, CAÇAMBA 0,80 M3, PESO OPERACIONAL 17 T, POTENCIA BRUTA 111 HP - CHP DIURNO. AF_06/2014 | O165: CHP | P165: ATRIBUÍDO SÃO PAULO | Q165: 0,0281000 | R165: 155,81 | S165: 4,37 | AE165: CAIXA REFERENCIAL
A166: ASSENTAMENTO DE TUBOS E PECAS | B166: ASTU | C166: FORNEC E/OU ASSENT DE TUBO DE FERRO FUNDIDO JUNTA | D166: 45 | G166: 97167 | H166: ASSENTAMENTO DE TUBO DE FERRO FUNDIDO PARA REDE DE ÁGUA, DN 600 MM, JUNTA ELÁSTICA, INSTALADO EM LOCAL COM NÍVEL BAIXO DE INTERFERÊNCIAS (NÃO INCLUI FORNECIMENTO). AF_11/2017 | I166: M | J166: ATRIBUÍDO SÃO PAULO | K166: 16,86 | L166: COMPOSICAO | M166: 5632 | N166: ESCAVADEIRA HIDRÁULICA SOBRE ESTEIRAS, CAÇAMBA 0,80 M3, PESO OPERACIONAL 17 T, POTENCIA BRUTA 111 HP - CHI DIURNO. AF_06/2014 | O166: CHI | P166: ATRIBUÍDO SÃO PAULO | Q166: 0,0538000 | R166: 60,93 | S166: 3,27 | AE166: CAIXA REFERENCIAL
A167: ASSENTAMENTO DE TUBOS E PECAS | B167: ASTU | C167: FORNEC E/OU ASSENT DE TUBO DE FERRO FUNDIDO JUNTA | D167: 45 | G167: 97167 | H167: ASSENTAMENTO DE TUBO DE FERRO FUNDIDO PARA REDE DE ÁGUA, DN 600 MM, JUNTA ELÁSTICA, INSTALADO EM LOCAL COM NÍVEL BAIXO DE INTERFERÊNCIAS (NÃO INCLUI FORNECIMENTO). AF_11/2017 | I167: M | J167: ATRIBUÍDO SÃO PAULO | K167: 16,86 | L167: INSUMO | M167: 20078 | N167: PASTA LUBRIFICANTE PARA TUBOS E CONEXOES COM JUNTA ELASTICA, EMBALAGEM DE *400* GR (USO EM PVC, ACO, POLIETILENO E OUTROS) | O167: UN | P167: COEFICIENTE DE REPRESENTATIVIDADE | Q167: 0,0313000 | R167: 20,64 | S167: 0,64 | AE167: CAIXA REFERENCIAL
A168: ASSENTAMENTO DE TUBOS E PECAS | B168: ASTU | C168: FORNEC E/OU ASSENT DE TUBO DE FERRO FUNDIDO JUNTA | D168: 45 | G168: 97167 | H168: ASSENTAMENTO DE TUBO DE FERRO FUNDIDO PARA REDE DE ÁGUA, DN 600 MM, JUNTA ELÁSTICA, INSTALADO EM LOCAL COM NÍVEL BAIXO DE INTERFERÊNCIAS (NÃO INCLUI FORNECIMENTO). AF_11/2017 | I168: M | J168: ATRIBUÍDO SÃO PAULO | K168: 16,86 | L168: COMPOSICAO | M168: 88246 | N168: ASSENTADOR DE TUBOS COM ENCARGOS COMPLEMENTARES | O168: H | P168: COEFICIENTE DE REPRESENTATIVIDADE | Q168: 0,2756000 | R168: 14,73 | S168: 4,05 | AE168: CAIXA REFERENCIAL
A169: ASSENTAMENTO DE TUBOS E PECAS | B169: ASTU | C169: FORNEC E/OU ASSENT DE TUBO DE FERRO FUNDIDO JUNTA | D169: 45 | G169: 97167 | H169: ASSENTAMENTO DE TUBO DE FERRO FUNDIDO PARA REDE DE ÁGUA, DN 600 MM, JUNTA ELÁSTICA, INSTALADO EM LOCAL COM NÍVEL BAIXO DE INTERFERÊNCIAS (NÃO INCLUI FORNECIMENTO). AF_11/2017 | I169: M | J169: ATRIBUÍDO SÃO PAULO | K169: 16,86 | L169: COMPOSICAO | M169: 88316 | N169: SERVENTE COM ENCARGOS COMPLEMENTARES | O169: H | P169: COLETADO | Q169: 0,2756000 | R169: 16,44 | S169: 4,53 | AE169: CAIXA REFERENCIAL
A170: ASSENTAMENTO DE TUBOS E PECAS | B170: ASTU | C170: FORNEC E/OU ASSENT DE TUBO DE FERRO FUNDIDO JUNTA | D170: 45 | G170: 97168 | H170: ASSENTAMENTO DE TUBO DE FERRO FUNDIDO PARA REDE DE ÁGUA, DN 700 MM, JUNTA ELÁSTICA, INSTALADO EM LOCAL COM NÍVEL BAIXO DE INTERFERÊNCIAS (NÃO INCLUI FORNECIMENTO). AF_11/2017 | I170: M | J170: ATRIBUÍDO SÃO PAULO | K170: 19,08 | T170: 8,39 | U170: 43,9281944 | V170: 5,84 | W170: 30,6230200 | X170: 4,85 | Y170: 25,4487856 | Z170: 0,00 | AA170: 0,0000000 | AB170: 0,00 | AC170: 0,0000000 | AD170: 0.25262 | AE170: CAIXA REFERENCIAL
A171: ASSENTAMENTO DE TUBOS E PECAS | B171: ASTU | C171: FORNEC E/OU ASSENT DE TUBO DE FERRO FUNDIDO JUNTA | D171: 45 | G171: 97168 | H171: ASSENTAMENTO DE TUBO DE FERRO FUNDIDO PARA REDE DE ÁGUA, DN 700 MM, JUNTA ELÁSTICA, INSTALADO EM LOCAL COM NÍVEL BAIXO DE INTERFERÊNCIAS (NÃO INCLUI FORNECIMENTO). AF_11/2017 | I171: M | J171: ATRIBUÍDO SÃO PAULO | K171: 19,08 | L171: COMPOSICAO | M171: 5631 | N171: ESCAVADEIRA HIDRÁULICA SOBRE ESTEIRAS, CAÇAMBA 0,80 M3, PESO OPERACIONAL 17 T, POTENCIA BRUTA 111 HP - CHP DIURNO. AF_06/2014 | O171: CHP | P171: ATRIBUÍDO SÃO PAULO | Q171: 0,0316000 | R171: 155,81 | S171: 4,92 | AE171: CAIXA REFERENCIAL
A172: ASSENTAMENTO DE TUBOS E PECAS | B172: ASTU | C172: FORNEC E/OU ASSENT DE TUBO DE FERRO FUNDIDO JUNTA | D172: 45 | G172: 97168 | H172: ASSENTAMENTO DE TUBO DE FERRO FUNDIDO PARA REDE DE ÁGUA, DN 700 MM, JUNTA ELÁSTICA, INSTALADO EM LOCAL COM NÍVEL BAIXO DE INTERFERÊNCIAS (NÃO INCLUI FORNECIMENTO). AF_11/2017 | I172: M | J172: ATRIBUÍDO SÃO PAULO | K172: 19,08 | L172: COMPOSICAO | M172: 5632 | N172: ESCAVADEIRA HIDRÁULICA SOBRE ESTEIRAS, CAÇAMBA 0,80 M3, PESO OPERACIONAL 17 T, POTENCIA BRUTA 111 HP - CHI DIURNO. AF_06/2014 | O172: CHI | P172: ATRIBUÍDO SÃO PAULO | Q172: 0,0605000 | R172: 60,93 | S172: 3,68 | AE172: CAIXA REFERENCIAL
A173: ASSENTAMENTO DE TUBOS E PECAS | B173: ASTU | C173: FORNEC E/OU ASSENT DE TUBO DE FERRO FUNDIDO JUNTA | D173: 45 | G173: 97168 | H173: ASSENTAMENTO DE TUBO DE FERRO FUNDIDO PARA REDE DE ÁGUA, DN 700 MM, JUNTA ELÁSTICA, INSTALADO EM LOCAL COM NÍVEL BAIXO DE INTERFERÊNCIAS (NÃO INCLUI FORNECIMENTO). AF_11/2017 | I173: M | J173: ATRIBUÍDO SÃO PAULO | K173: 19,08 | L173: INSUMO | M173: 20078 | N173: PASTA LUBRIFICANTE PARA TUBOS E CONEXOES COM JUNTA ELASTICA, EMBALAGEM DE *400* GR (USO EM PVC, ACO, POLIETILENO E OUTROS) | O173: UN | P173: COEFICIENTE DE REPRESENTATIVIDADE | Q173: 0,0284000 | R173: 20,64 | S173: 0,58 | AE173: CAIXA REFERENCIAL
A174: ASSENTAMENTO DE TUBOS E PECAS | B174: ASTU | C174: FORNEC E/OU ASSENT DE TUBO DE FERRO FUNDIDO JUNTA | D174: 45 | G174: 97168 | H174: ASSENTAMENTO DE TUBO DE FERRO FUNDIDO PARA REDE DE ÁGUA, DN 700 MM, JUNTA ELÁSTICA, INSTALADO EM LOCAL COM NÍVEL BAIXO DE INTERFERÊNCIAS (NÃO INCLUI FORNECIMENTO). AF_11/2017 | I174: M | J174: ATRIBUÍDO SÃO PAULO | K174: 19,08 | L174: COMPOSICAO | M174: 88246 | N174: ASSENTADOR DE TUBOS COM ENCARGOS COMPLEMENTARES | O174: H | P174: COEFICIENTE DE REPRESENTATIVIDADE | Q174: 0,3181000 | R174: 14,73 | S174: 4,68 | AE174: CAIXA REFERENCIAL
A175: ASSENTAMENTO DE TUBOS E PECAS | B175: ASTU | C175: FORNEC E/OU ASSENT DE TUBO DE FERRO FUNDIDO JUNTA | D175: 45 | G175: 97168 | H175: ASSENTAMENTO DE TUBO DE FERRO FUNDIDO PARA REDE DE ÁGUA, DN 700 MM, JUNTA ELÁSTICA, INSTALADO EM LOCAL COM NÍVEL BAIXO DE INTERFERÊNCIAS (NÃO INCLUI FORNECIMENTO). AF_11/2017 | I175: M | J175: ATRIBUÍDO SÃO PAULO | K175: 19,08 | L175: COMPOSICAO | M175: 88316 | N175: SERVENTE COM ENCARGOS COMPLEMENTARES | O175: H | P175: COLETADO | Q175: 0,3181000 | R175: 16,44 | S175: 5,22 | AE175: CAIXA REFERENCIAL
A176: ASSENTAMENTO DE TUBOS E PECAS | B176: ASTU | C176: FORNEC E/OU ASSENT DE TUBO DE FERRO FUNDIDO JUNTA | D176: 45 | G176: 97169 | H176: ASSENTAMENTO DE TUBO DE FERRO FUNDIDO PARA REDE DE ÁGUA, DN 800 MM, JUNTA ELÁSTICA, INSTALADO EM LOCAL COM NÍVEL BAIXO DE INTERFERÊNCIAS (NÃO INCLUI FORNECIMENTO). AF_11/2017 | I176: M | J176: ATRIBUÍDO SÃO PAULO | K176: 21,42 | T176: 9,48 | U176: 44,2090396 | V176: 6,55 | W176: 30,6026365 | X176: 5,39 | Y176: 25,1883239 | Z176: 0,00 | AA176: 0,0000000 | AB176: 0,00 | AC176: 0,0000000 | AD176: 0.24977 | AE176: CAIXA REFERENCIAL
A177: ASSENTAMENTO DE TUBOS E PECAS | B177: ASTU | C177: FORNEC E/OU ASSENT DE TUBO DE FERRO FUNDIDO JUNTA | D177: 45 | G177: 97169 | H177: ASSENTAMENTO DE TUBO DE FERRO FUNDIDO PARA REDE DE ÁGUA, DN 800 MM, JUNTA ELÁSTICA, INSTALADO EM LOCAL COM NÍVEL BAIXO DE INTERFERÊNCIAS (NÃO INCLUI FORNECIMENTO). AF_11/2017 | I177: M | J177: ATRIBUÍDO SÃO PAULO | K177: 21,42 | L177: COMPOSICAO | M177: 5631 | N177: ESCAVADEIRA HIDRÁULICA SOBRE ESTEIRAS, CAÇAMBA 0,80 M3, PESO OPERACIONAL 17 T, POTENCIA BRUTA 111 HP - CHP DIURNO. AF_06/2014 | O177: CHP | P177: ATRIBUÍDO SÃO PAULO | Q177: 0,0351000 | R177: 155,81 | S177: 5,46 | AE177: CAIXA REFERENCIAL
A178: ASSENTAMENTO DE TUBOS E PECAS | B178: ASTU | C178: FORNEC E/OU ASSENT DE TUBO DE FERRO FUNDIDO JUNTA | D178: 45 | G178: 97169 | H178: ASSENTAMENTO DE TUBO DE FERRO FUNDIDO PARA REDE DE ÁGUA, DN 800 MM, JUNTA ELÁSTICA, INSTALADO EM LOCAL COM NÍVEL BAIXO DE INTERFERÊNCIAS (NÃO INCLUI FORNECIMENTO). AF_11/2017 | I178: M | J178: ATRIBUÍDO SÃO PAULO | K178: 21,42 | L178: COMPOSICAO | M178: 5632 | N178: ESCAVADEIRA HIDRÁULICA SOBRE ESTEIRAS, CAÇAMBA 0,80 M3, PESO OPERACIONAL 17 T, POTENCIA BRUTA 111 HP - CHI DIURNO. AF_06/2014 | O178: CHI | P178: ATRIBUÍDO SÃO PAULO | Q178: 0,0672000 | R178: 60,93 | S178: 4,09 | AE178: CAIXA REFERENCIAL
A179: ASSENTAMENTO DE TUBOS E PECAS | B179: ASTU | C179: FORNEC E/OU ASSENT DE TUBO DE FERRO FUNDIDO JUNTA | D179: 45 | G179: 97169 | H179: ASSENTAMENTO DE TUBO DE FERRO FUNDIDO PARA REDE DE ÁGUA, DN 800 MM, JUNTA ELÁSTICA, INSTALADO EM LOCAL COM NÍVEL BAIXO DE INTERFERÊNCIAS (NÃO INCLUI FORNECIMENTO). AF_11/2017 | I179: M | J179: ATRIBUÍDO SÃO PAULO | K179: 21,42 | L179: INSUMO | M179: 20078 | N179: PASTA LUBRIFICANTE PARA TUBOS E CONEXOES COM JUNTA ELASTICA, EMBALAGEM DE *400* GR (USO EM PVC, ACO, POLIETILENO E OUTROS) | O179: UN | P179: COEFICIENTE DE REPRESENTATIVIDADE | Q179: 0,0314000 | R179: 20,64 | S179: 0,64 | AE179: CAIXA REFERENCIAL
A180: ASSENTAMENTO DE TUBOS E PECAS | B180: ASTU | C180: FORNEC E/OU ASSENT DE TUBO DE FERRO FUNDIDO JUNTA | D180: 45 | G180: 97169 | H180: ASSENTAMENTO DE TUBO DE FERRO FUNDIDO PARA REDE DE ÁGUA, DN 800 MM, JUNTA ELÁSTICA, INSTALADO EM LOCAL COM NÍVEL BAIXO DE INTERFERÊNCIAS (NÃO INCLUI FORNECIMENTO). AF_11/2017 | I180: M | J180: ATRIBUÍDO SÃO PAULO | K180: 21,42 | L180: COMPOSICAO | M180: 88246 | N180: ASSENTADOR DE TUBOS COM ENCARGOS COMPLEMENTARES | O180: H | P180: COEFICIENTE DE REPRESENTATIVIDADE | Q180: 0,3605000 | R180: 14,73 | S180: 5,31 | AE180: CAIXA REFERENCIAL
A181: ASSENTAMENTO DE TUBOS E PECAS | B181: ASTU | C181: FORNEC E/OU ASSENT DE TUBO DE FERRO FUNDIDO JUNTA | D181: 45 | G181: 97169 | H181: ASSENTAMENTO DE TUBO DE FERRO FUNDIDO PARA REDE DE ÁGUA, DN 800 MM, JUNTA ELÁSTICA, INSTALADO EM LOCAL COM NÍVEL BAIXO DE INTERFERÊNCIAS (NÃO INCLUI FORNECIMENTO). AF_11/2017 | I181: M | J181: ATRIBUÍDO SÃO PAULO | K181: 21,42 | L181: COMPOSICAO | M181: 88316 | N181: SERVENTE COM ENCARGOS COMPLEMENTARES | O181: H | P181: COLETADO | Q181: 0,3605000 | R181: 16,44 | S181: 5,92 | AE181: CAIXA REFERENCIAL
A182: ASSENTAMENTO DE TUBOS E PECAS | B182: ASTU | C182: FORNEC E/OU ASSENT DE TUBO DE FERRO FUNDIDO JUNTA | D182: 45 | G182: 97170 | H182: ASSENTAMENTO DE TUBO DE FERRO FUNDIDO PARA REDE DE ÁGUA, DN 900 MM, JUNTA ELÁSTICA, INSTALADO EM LOCAL COM NÍVEL BAIXO DE INTERFERÊNCIAS (NÃO INCLUI FORNECIMENTO). AF_11/2017 | I182: M | J182: ATRIBUÍDO SÃO PAULO | K182: 23,79 | T182: 10,55 | U182: 44,3128965 | V182: 7,32 | W182: 30,7822410 | X182: 5,92 | Y182: 24,9048625 | Z182: 0,00 | AA182: 0,0000000 | AB182: 0,00 | AC182: 0,0000000 | AD182: 0.24758 | AE182: CAIXA REFERENCIAL
A183: ASSENTAMENTO DE TUBOS E PECAS | B183: ASTU | C183: FORNEC E/OU ASSENT DE TUBO DE FERRO FUNDIDO JUNTA | D183: 45 | G183: 97170 | H183: ASSENTAMENTO DE TUBO DE FERRO FUNDIDO PARA REDE DE ÁGUA, DN 900 MM, JUNTA ELÁSTICA, INSTALADO EM LOCAL COM NÍVEL BAIXO DE INTERFERÊNCIAS (NÃO INCLUI FORNECIMENTO). AF_11/2017 | I183: M | J183: ATRIBUÍDO SÃO PAULO | K183: 23,79 | L183: COMPOSICAO | M183: 5631 | N183: ESCAVADEIRA HIDRÁULICA SOBRE ESTEIRAS, CAÇAMBA 0,80 M3, PESO OPERACIONAL 17 T, POTENCIA BRUTA 111 HP - CHP DIURNO. AF_06/2014 | O183: CHP | P183: ATRIBUÍDO SÃO PAULO | Q183: 0,0386000 | R183: 155,81 | S183: 6,01 | AE183: CAIXA REFERENCIAL
A184: ASSENTAMENTO DE TUBOS E PECAS | B184: ASTU | C184: FORNEC E/OU ASSENT DE TUBO DE FERRO FUNDIDO JUNTA | D184: 45 | G184: 97170 | H184: ASSENTAMENTO DE TUBO DE FERRO FUNDIDO PARA REDE DE ÁGUA, DN 900 MM, JUNTA ELÁSTICA, INSTALADO EM LOCAL COM NÍVEL BAIXO DE INTERFERÊNCIAS (NÃO INCLUI FORNECIMENTO). AF_11/2017 | I184: M | J184: ATRIBUÍDO SÃO PAULO | K184: 23,79 | L184: COMPOSICAO | M184: 5632 | N184: ESCAVADEIRA HIDRÁULICA SOBRE ESTEIRAS, CAÇAMBA 0,80 M3, PESO OPERACIONAL 17 T, POTENCIA BRUTA 111 HP - CHI DIURNO. AF_06/2014 | O184: CHI | P184: ATRIBUÍDO SÃO PAULO | Q184: 0,0739000 | R184: 60,93 | S184: 4,50 | AE184: CAIXA REFERENCIAL
A185: ASSENTAMENTO DE TUBOS E PECAS | B185: ASTU | C185: FORNEC E/OU ASSENT DE TUBO DE FERRO FUNDIDO JUNTA | D185: 45 | G185: 97170 | H185: ASSENTAMENTO DE TUBO DE FERRO FUNDIDO PARA REDE DE ÁGUA, DN 900 MM, JUNTA ELÁSTICA, INSTALADO EM LOCAL COM NÍVEL BAIXO DE INTERFERÊNCIAS (NÃO INCLUI FORNECIMENTO). AF_11/2017 | I185: M | J185: ATRIBUÍDO SÃO PAULO | K185: 23,79 | L185: INSUMO | M185: 20078 | N185: PASTA LUBRIFICANTE PARA TUBOS E CONEXOES COM JUNTA ELASTICA, EMBALAGEM DE *400* GR (USO EM PVC, ACO, POLIETILENO E OUTROS) | O185: UN | P185: COEFICIENTE DE REPRESENTATIVIDADE | Q185: 0,0355000 | R185: 20,64 | S185: 0,73 | AE185: CAIXA REFERENCIAL
A186: ASSENTAMENTO DE TUBOS E PECAS | B186: ASTU | C186: FORNEC E/OU ASSENT DE TUBO DE FERRO FUNDIDO JUNTA | D186: 45 | G186: 97170 | H186: ASSENTAMENTO DE TUBO DE FERRO FUNDIDO PARA REDE DE ÁGUA, DN 900 MM, JUNTA ELÁSTICA, INSTALADO EM LOCAL COM NÍVEL BAIXO DE INTERFERÊNCIAS (NÃO INCLUI FORNECIMENTO). AF_11/2017 | I186: M | J186: ATRIBUÍDO SÃO PAULO | K186: 23,79 | L186: COMPOSICAO | M186: 88246 | N186: ASSENTADOR DE TUBOS COM ENCARGOS COMPLEMENTARES | O186: H | P186: COEFICIENTE DE REPRESENTATIVIDADE | Q186: 0,4030000 | R186: 14,73 | S186: 5,93 | AE186: CAIXA REFERENCIAL
A187: ASSENTAMENTO DE TUBOS E PECAS | B187: ASTU | C187: FORNEC E/OU ASSENT DE TUBO DE FERRO FUNDIDO JUNTA | D187: 45 | G187: 97170 | H187: ASSENTAMENTO DE TUBO DE FERRO FUNDIDO PARA REDE DE ÁGUA, DN 900 MM, JUNTA ELÁSTICA, INSTALADO EM LOCAL COM NÍVEL BAIXO DE INTERFERÊNCIAS (NÃO INCLUI FORNECIMENTO). AF_11/2017 | I187: M | J187: ATRIBUÍDO SÃO PAULO | K187: 23,79 | L187: COMPOSICAO | M187: 88316 | N187: SERVENTE COM ENCARGOS COMPLEMENTARES | O187: H | P187: COLETADO | Q187: 0,4030000 | R187: 16,44 | S187: 6,62 | AE187: CAIXA REFERENCIAL
A188: ASSENTAMENTO DE TUBOS E PECAS | B188: ASTU | C188: FORNEC E/OU ASSENT DE TUBO DE FERRO FUNDIDO JUNTA | D188: 45 | G188: 97171 | H188: ASSENTAMENTO DE TUBO DE FERRO FUNDIDO PARA REDE DE ÁGUA, DN 1000 MM, JUNTA ELÁSTICA, INSTALADO EM LOCAL COM NÍVEL BAIXO DE INTERFERÊNCIAS (NÃO INCLUI FORNECIMENTO). AF_11/2017 | I188: M | J188: ATRIBUÍDO SÃO PAULO | K188: 26,17 | T188: 11,64 | U188: 44,4273636 | V188: 8,08 | W188: 30,8993082 | X188: 6,45 | Y188: 24,6733282 | Z188: 0,00 | AA188: 0,0000000 | AB188: 0,00 | AC188: 0,0000000 | AD188: 0.24532 | AE188: CAIXA REFERENCIAL
A189: ASSENTAMENTO DE TUBOS E PECAS | B189: ASTU | C189: FORNEC E/OU ASSENT DE TUBO DE FERRO FUNDIDO JUNTA | D189: 45 | G189: 97171 | H189: ASSENTAMENTO DE TUBO DE FERRO FUNDIDO PARA REDE DE ÁGUA, DN 1000 MM, JUNTA ELÁSTICA, INSTALADO EM LOCAL COM NÍVEL BAIXO DE INTERFERÊNCIAS (NÃO INCLUI FORNECIMENTO). AF_11/2017 | I189: M | J189: ATRIBUÍDO SÃO PAULO | K189: 26,17 | L189: COMPOSICAO | M189: 5631 | N189: ESCAVADEIRA HIDRÁULICA SOBRE ESTEIRAS, CAÇAMBA 0,80 M3, PESO OPERACIONAL 17 T, POTENCIA BRUTA 111 HP - CHP DIURNO. AF_06/2014 | O189: CHP | P189: ATRIBUÍDO SÃO PAULO | Q189: 0,0421000 | R189: 155,81 | S189: 6,55 | AE189: CAIXA REFERENCIAL
A190: ASSENTAMENTO DE TUBOS E PECAS | B190: ASTU | C190: FORNEC E/OU ASSENT DE TUBO DE FERRO FUNDIDO JUNTA | D190: 45 | G190: 97171 | H190: ASSENTAMENTO DE TUBO DE FERRO FUNDIDO PARA REDE DE ÁGUA, DN 1000 MM, JUNTA ELÁSTICA, INSTALADO EM LOCAL COM NÍVEL BAIXO DE INTERFERÊNCIAS (NÃO INCLUI FORNECIMENTO). AF_11/2017 | I190: M | J190: ATRIBUÍDO SÃO PAULO | K190: 26,17 | L190: COMPOSICAO | M190: 5632 | N190: ESCAVADEIRA HIDRÁULICA SOBRE ESTEIRAS, CAÇAMBA 0,80 M3, PESO OPERACIONAL 17 T, POTENCIA BRUTA 111 HP - CHI DIURNO. AF_06/2014 | O190: CHI | P190: ATRIBUÍDO SÃO PAULO | Q190: 0,0806000 | R190: 60,93 | S190: 4,91 | AE190: CAIXA REFERENCIAL
A191: ASSENTAMENTO DE TUBOS E PECAS | B191: ASTU | C191: FORNEC E/OU ASSENT DE TUBO DE FERRO FUNDIDO JUNTA | D191: 45 | G191: 97171 | H191: ASSENTAMENTO DE TUBO DE FERRO FUNDIDO PARA REDE DE ÁGUA, DN 1000 MM, JUNTA ELÁSTICA, INSTALADO EM LOCAL COM NÍVEL BAIXO DE INTERFERÊNCIAS (NÃO INCLUI FORNECIMENTO). AF_11/2017 | I191: M | J191: ATRIBUÍDO SÃO PAULO | K191: 26,17 | L191: INSUMO | M191: 20078 | N191: PASTA LUBRIFICANTE PARA TUBOS E CONEXOES COM JUNTA ELASTICA, EMBALAGEM DE *400* GR (USO EM PVC, ACO, POLIETILENO E OUTROS) | O191: UN | P191: COEFICIENTE DE REPRESENTATIVIDADE | Q191: 0,0403000 | R191: 20,64 | S191: 0,83 | AE191: CAIXA REFERENCIAL
A192: ASSENTAMENTO DE TUBOS E PECAS | B192: ASTU | C192: FORNEC E/OU ASSENT DE TUBO DE FERRO FUNDIDO JUNTA | D192: 45 | G192: 97171 | H192: ASSENTAMENTO DE TUBO DE FERRO FUNDIDO PARA REDE DE ÁGUA, DN 1000 MM, JUNTA ELÁSTICA, INSTALADO EM LOCAL COM NÍVEL BAIXO DE INTERFERÊNCIAS (NÃO INCLUI FORNECIMENTO). AF_11/2017 | I192: M | J192: ATRIBUÍDO SÃO PAULO | K192: 26,17 | L192: COMPOSICAO | M192: 88246 | N192: ASSENTADOR DE TUBOS COM ENCARGOS COMPLEMENTARES | O192: H | P192: COEFICIENTE DE REPRESENTATIVIDADE | Q192: 0,4455000 | R192: 14,73 | S192: 6,56 | AE192: CAIXA REFERENCIAL
A193: ASSENTAMENTO DE TUBOS E PECAS | B193: ASTU | C193: FORNEC E/OU ASSENT DE TUBO DE FERRO FUNDIDO JUNTA | D193: 45 | G193: 97171 | H193: ASSENTAMENTO DE TUBO DE FERRO FUNDIDO PARA REDE DE ÁGUA, DN 1000 MM, JUNTA ELÁSTICA, INSTALADO EM LOCAL COM NÍVEL BAIXO DE INTERFERÊNCIAS (NÃO INCLUI FORNECIMENTO). AF_11/2017 | I193: M | J193: ATRIBUÍDO SÃO PAULO | K193: 26,17 | L193: COMPOSICAO | M193: 88316 | N193: SERVENTE COM ENCARGOS COMPLEMENTARES | O193: H | P193: COLETADO | Q193: 0,4455000 | R193: 16,44 | S193: 7,32 | AE193: CAIXA REFERENCIAL
A194: ASSENTAMENTO DE TUBOS E PECAS | B194: ASTU | C194: FORNEC E/OU ASSENT DE TUBO DE FERRO FUNDIDO JUNTA | D194: 45 | G194: 97172 | H194: ASSENTAMENTO DE TUBO DE FERRO FUNDIDO PARA REDE DE ÁGUA, DN 1200 MM, JUNTA ELÁSTICA, INSTALADO EM LOCAL COM NÍVEL BAIXO DE INTERFERÊNCIAS (NÃO INCLUI FORNECIMENTO). AF_11/2017 | I194: M | J194: ATRIBUÍDO SÃO PAULO | K194: 31,22 | T194: 13,78 | U194: 44,1081778 | V194: 9,92 | W194: 31,7772054 | X194: 7,52 | Y194: 24,1146168 | Z194: 0,00 | AA194: 0,0000000 | AB194: 0,00 | AC194: 0,0000000 | AD194: 0.23991 | AE194: CAIXA REFERENCIAL
A195: ASSENTAMENTO DE TUBOS E PECAS | B195: ASTU | C195: FORNEC E/OU ASSENT DE TUBO DE FERRO FUNDIDO JUNTA | D195: 45 | G195: 97172 | H195: ASSENTAMENTO DE TUBO DE FERRO FUNDIDO PARA REDE DE ÁGUA, DN 1200 MM, JUNTA ELÁSTICA, INSTALADO EM LOCAL COM NÍVEL BAIXO DE INTERFERÊNCIAS (NÃO INCLUI FORNECIMENTO). AF_11/2017 | I195: M | J195: ATRIBUÍDO SÃO PAULO | K195: 31,22 | L195: COMPOSICAO | M195: 5631 | N195: ESCAVADEIRA HIDRÁULICA SOBRE ESTEIRAS, CAÇAMBA 0,80 M3, PESO OPERACIONAL 17 T, POTENCIA BRUTA 111 HP - CHP DIURNO. AF_06/2014 | O195: CHP | P195: ATRIBUÍDO SÃO PAULO | Q195: 0,0491000 | R195: 155,81 | S195: 7,65 | AE195: CAIXA REFERENCIAL
A196: ASSENTAMENTO DE TUBOS E PECAS | B196: ASTU | C196: FORNEC E/OU ASSENT DE TUBO DE FERRO FUNDIDO JUNTA | D196: 45 | G196: 97172 | H196: ASSENTAMENTO DE TUBO DE FERRO FUNDIDO PARA REDE DE ÁGUA, DN 1200 MM, JUNTA ELÁSTICA, INSTALADO EM LOCAL COM NÍVEL BAIXO DE INTERFERÊNCIAS (NÃO INCLUI FORNECIMENTO). AF_11/2017 | I196: M | J196: ATRIBUÍDO SÃO PAULO | K196: 31,22 | L196: COMPOSICAO | M196: 5632 | N196: ESCAVADEIRA HIDRÁULICA SOBRE ESTEIRAS, CAÇAMBA 0,80 M3, PESO OPERACIONAL 17 T, POTENCIA BRUTA 111 HP - CHI DIURNO. AF_06/2014 | O196: CHI | P196: ATRIBUÍDO SÃO PAULO | Q196: 0,0940000 | R196: 60,93 | S196: 5,72 | AE196: CAIXA REFERENCIAL
A197: ASSENTAMENTO DE TUBOS E PECAS | B197: ASTU | C197: FORNEC E/OU ASSENT DE TUBO DE FERRO FUNDIDO JUNTA | D197: 45 | G197: 97172 | H197: ASSENTAMENTO DE TUBO DE FERRO FUNDIDO PARA REDE DE ÁGUA, DN 1200 MM, JUNTA ELÁSTICA, INSTALADO EM LOCAL COM NÍVEL BAIXO DE INTERFERÊNCIAS (NÃO INCLUI FORNECIMENTO). AF_11/2017 | I197: M | J197: ATRIBUÍDO SÃO PAULO | K197: 31,22 | L197: INSUMO | M197: 20078 | N197: PASTA LUBRIFICANTE PARA TUBOS E CONEXOES COM JUNTA ELASTICA, EMBALAGEM DE *400* GR (USO EM PVC, ACO, POLIETILENO E OUTROS) | O197: UN | P197: COEFICIENTE DE REPRESENTATIVIDADE | Q197: 0,0646000 | R197: 20,64 | S197: 1,33 | AE197: CAIXA REFERENCIAL
A198: ASSENTAMENTO DE TUBOS E PECAS | B198: ASTU | C198: FORNEC E/OU ASSENT DE TUBO DE FERRO FUNDIDO JUNTA | D198: 45 | G198: 97172 | H198: ASSENTAMENTO DE TUBO DE FERRO FUNDIDO PARA REDE DE ÁGUA, DN 1200 MM, JUNTA ELÁSTICA, INSTALADO EM LOCAL COM NÍVEL BAIXO DE INTERFERÊNCIAS (NÃO INCLUI FORNECIMENTO). AF_11/2017 | I198: M | J198: ATRIBUÍDO SÃO PAULO | K198: 31,22 | L198: COMPOSICAO | M198: 88246 | N198: ASSENTADOR DE TUBOS COM ENCARGOS COMPLEMENTARES | O198: H | P198: COEFICIENTE DE REPRESENTATIVIDADE | Q198: 0,5304000 | R198: 14,73 | S198: 7,81 | AE198: CAIXA REFERENCIAL
A199: ASSENTAMENTO DE TUBOS E PECAS | B199: ASTU | C199: FORNEC E/OU ASSENT DE TUBO DE FERRO FUNDIDO JUNTA | D199: 45 | G199: 97172 | H199: ASSENTAMENTO DE TUBO DE FERRO FUNDIDO PARA REDE DE ÁGUA, DN 1200 MM, JUNTA ELÁSTICA, INSTALADO EM LOCAL COM NÍVEL BAIXO DE INTERFERÊNCIAS (NÃO INCLUI FORNECIMENTO). AF_11/2017 | I199: M | J199: ATRIBUÍDO SÃO PAULO | K199: 31,22 | L199: COMPOSICAO | M199: 88316 | N199: SERVENTE COM ENCARGOS COMPLEMENTARES | O199: H | P199: COLETADO | Q199: 0,5304000 | R199: 16,44 | S199: 8,71 | AE199: CAIXA REFERENCIAL
A200: ASSENTAMENTO DE TUBOS E PECAS | B200: ASTU | C200: FORNEC E/OU ASSENT DE TUBO DE ACO COM JUNTA SOLDAD | D200: 46 | G200: 97173 | H200: ASSENTAMENTO DE TUBO DE AÇO CARBONO PARA REDE DE ÁGUA, DN 600 MM (24), JUNTA SOLDADA, INSTALADO EM LOCAL COM NÍVEL ALTO DE INTERFERÊNCIAS (NÃO INCLUI FORNECIMENTO). AF_11/2017 | I200: M | J200: ATRIBUÍDO SÃO PAULO | K200: 29,71 | T200: 12,47 | U200: 41,9464226 | V200: 11,68 | W200: 39,3353679 | X200: 5,56 | Y200: 18,7182095 | Z200: 0,00 | AA200: 0,0000000 | AB200: 0,00 | AC200: 0,0000000 | AD200: 0.38742 | AE200: CAIXA REFERENCIAL
A201: ASSENTAMENTO DE TUBOS E PECAS | B201: ASTU | C201: FORNEC E/OU ASSENT DE TUBO DE ACO COM JUNTA SOLDAD | D201: 46 | G201: 97173 | H201: ASSENTAMENTO DE TUBO DE AÇO CARBONO PARA REDE DE ÁGUA, DN 600 MM (24), JUNTA SOLDADA, INSTALADO EM LOCAL COM NÍVEL ALTO DE INTERFERÊNCIAS (NÃO INCLUI FORNECIMENTO). AF_11/2017 | I201: M | J201: ATRIBUÍDO SÃO PAULO | K201: 29,71 | L201: COMPOSICAO | M201: 5631 | N201: ESCAVADEIRA HIDRÁULICA SOBRE ESTEIRAS, CAÇAMBA 0,80 M3, PESO OPERACIONAL 17 T, POTENCIA BRUTA 111 HP - CHP DIURNO. AF_06/2014 | O201: CHP | P201: ATRIBUÍDO SÃO PAULO | Q201: 0,0211000 | R201: 155,81 | S201: 3,28 | AE201: CAIXA REFERENCIAL
A202: ASSENTAMENTO DE TUBOS E PECAS | B202: ASTU | C202: FORNEC E/OU ASSENT DE TUBO DE ACO COM JUNTA SOLDAD | D202: 46 | G202: 97173 | H202: ASSENTAMENTO DE TUBO DE AÇO CARBONO PARA REDE DE ÁGUA, DN 600 MM (24), JUNTA SOLDADA, INSTALADO EM LOCAL COM NÍVEL ALTO DE INTERFERÊNCIAS (NÃO INCLUI FORNECIMENTO). AF_11/2017 | I202: M | J202: ATRIBUÍDO SÃO PAULO | K202: 29,71 | L202: COMPOSICAO | M202: 5632 | N202: ESCAVADEIRA HIDRÁULICA SOBRE ESTEIRAS, CAÇAMBA 0,80 M3, PESO OPERACIONAL 17 T, POTENCIA BRUTA 111 HP - CHI DIURNO. AF_06/2014 | O202: CHI | P202: ATRIBUÍDO SÃO PAULO | Q202: 0,1011000 | R202: 60,93 | S202: 6,16 | AE202: CAIXA REFERENCIAL
... 2048 more rows

Sheet COMP Sint. Sinapi
A1: PCI.817.01 - CUSTO DE COMPOSIÇÕES - SINTÉTICO DATA DE EMISSÃO: 15/10/2021 23:17:02 DATA DE RT: 15/10/2021
A2: ENCARGOS SOCIAIS SOBRE PREÇOS DA MÃO-DE-OBRA: 112,76%(HORA) 71,07%(MÊS)
A3: ABRANGÊNCIA : NACIONAL LOCALIDADE : FORTALEZA DATA DE PREÇO : 09/2021 REFERÊNCIA COLETA : MEDIANO
A5: CODIGO DA COMPOSICAO | B5: DESCRICAO DA COMPOSICAO | C5: UNIDADE | D5: ORIGEM DE PREÇO | E5: CUSTO TOTAL | F5: VINCULO
A7: 97141 | B7: ASSENTAMENTO DE TUBO DE FERRO FUNDIDO PARA REDE DE ÁGUA, DN 80 MM, JUNTA ELÁSTICA, INSTALADO EM LOCAL COM NÍVEL ALTO DE INTERFERÊNCIAS (NÃO INCLUI FORNECIMENTO). AF_11/2017 | C7: M | D7: ATRIBUÍDO SÃO PAULO | E7: 6,08 | F7: CAIXA REFERENCIAL
A8: 97142 | B8: ASSENTAMENTO DE TUBO DE FERRO FUNDIDO PARA REDE DE ÁGUA, DN 100 MM, JUNTA ELÁSTICA, INSTALADO EM LOCAL COM NÍVEL ALTO DE INTERFERÊNCIAS (NÃO INCLUI FORNECIMENTO). AF_11/2017 | C8: M | D8: ATRIBUÍDO SÃO PAULO | E8: 6,75 | F8: CAIXA REFERENCIAL
A9: 97143 | B9: ASSENTAMENTO DE TUBO DE FERRO FUNDIDO PARA REDE DE ÁGUA, DN 150 MM, JUNTA ELÁSTICA, INSTALADO EM LOCAL COM NÍVEL ALTO DE INTERFERÊNCIAS (NÃO INCLUI FORNECIMENTO). AF_11/2017 | C9: M | D9: ATRIBUÍDO SÃO PAULO | E9: 8,45 | F9: CAIXA REFERENCIAL
A10: 97144 | B10: ASSENTAMENTO DE TUBO DE FERRO FUNDIDO PARA REDE DE ÁGUA, DN 200 MM, JUNTA ELÁSTICA, INSTALADO EM LOCAL COM NÍVEL ALTO DE INTERFERÊNCIAS (NÃO INCLUI FORNECIMENTO). AF_11/2017 | C10: M | D10: ATRIBUÍDO SÃO PAULO | E10: 10,14 | F10: CAIXA REFERENCIAL
A11: 97145 | B11: ASSENTAMENTO DE TUBO DE FERRO FUNDIDO PARA REDE DE ÁGUA, DN 250 MM, JUNTA ELÁSTICA, INSTALADO EM LOCAL COM NÍVEL ALTO DE INTERFERÊNCIAS (NÃO INCLUI FORNECIMENTO). AF_11/2017 | C11: M | D11: ATRIBUÍDO SÃO PAULO | E11: 11,84 | F11: CAIXA REFERENCIAL
A12: 97146 | B12: ASSENTAMENTO DE TUBO DE FERRO FUNDIDO PARA REDE DE ÁGUA, DN 300 MM, JUNTA ELÁSTICA, INSTALADO EM LOCAL COM NÍVEL ALTO DE INTERFERÊNCIAS (NÃO INCLUI FORNECIMENTO). AF_11/2017 | C12: M | D12: ATRIBUÍDO SÃO PAULO | E12: 13,54 | F12: CAIXA REFERENCIAL
A13: 97147 | B13: ASSENTAMENTO DE TUBO DE FERRO FUNDIDO PARA REDE DE ÁGUA, DN 350 MM, JUNTA ELÁSTICA, INSTALADO EM LOCAL COM NÍVEL ALTO DE INTERFERÊNCIAS (NÃO INCLUI FORNECIMENTO). AF_11/2017 | C13: M | D13: ATRIBUÍDO SÃO PAULO | E13: 15,26 | F13: CAIXA REFERENCIAL
A14: 97148 | B14: ASSENTAMENTO DE TUBO DE FERRO FUNDIDO PARA REDE DE ÁGUA, DN 400 MM, JUNTA ELÁSTICA, INSTALADO EM LOCAL COM NÍVEL ALTO DE INTERFERÊNCIAS (NÃO INCLUI FORNECIMENTO). AF_11/2017 | C14: M | D14: ATRIBUÍDO SÃO PAULO | E14: 16,95 | F14: CAIXA REFERENCIAL
A15: 97149 | B15: ASSENTAMENTO DE TUBO DE FERRO FUNDIDO PARA REDE DE ÁGUA, DN 450 MM, JUNTA ELÁSTICA, INSTALADO EM LOCAL COM NÍVEL ALTO DE INTERFERÊNCIAS (NÃO INCLUI FORNECIMENTO). AF_11/2017 | C15: M | D15: ATRIBUÍDO SÃO PAULO | E15: 18,69 | F15: CAIXA REFERENCIAL
A16: 97150 | B16: ASSENTAMENTO DE TUBO DE FERRO FUNDIDO PARA REDE DE ÁGUA, DN 500 MM, JUNTA ELÁSTICA, INSTALADO EM LOCAL COM NÍVEL ALTO DE INTERFERÊNCIAS (NÃO INCLUI FORNECIMENTO). AF_11/2017 | C16: M | D16: ATRIBUÍDO SÃO PAULO | E16: 23,54 | F16: CAIXA REFERENCIAL
